Workbook

Sheet Notes
A2: Maternity Friends and Family Test (FFT) Data - April 2017

Sheet Summary
B7: FFT | C7: Number of organisations submitting | D7: Total responses to date | E7: Responses | G7: Response Rate | I7: Score (% recommend) | K7: Score (% not recommend)
C8: 2017-04-01 | D8: 2017-04-01 | E8: 2017-04-01 | F8: 2017-03-27 | G8: 2017-04-01 | H8: 2017-03-27 | I8: 2017-04-01 | J8: 2017-03-27 | K8: 2017-04-01 | L8: 2017-03-27
B9: Maternity Total | C9: NA | D9: 1599599 | E9: 34367 | F9: 38723 | G9: NA | H9: NA | I9: 0.9616201589 | J9: 0.9608501407 | K9: 0.01364681235 | L9: 0.01327376495
B10: Antenatal | C10: 134 | D10: 313295 | E10: 6239 | F10: 7232 | G10: NA | H10: NA | I10: 0.9665010418 | J10: 0.9636338496 | K10: 0.01650905594 | L10: 0.01285951327
B11: Birth | C11: 134 | D11: 501728 | E11: 11580 | F11: 12344 | G11: 0.2387382744 | H11: 0.2435050204 | I11: 0.9635578584 | J11: 0.9679196371 | K11: 0.01044905009 | L11: 0.01239468568
B12: Postnatal Ward | C12: 134 | D12: 536554 | E12: 11535 | F12: 13327 | G12: NA | H12: NA | I12: 0.9505851756 | J12: 0.9447737675 | K12: 0.01863892501 | L12: 0.01703309072
B13: Postnatal Community | C13: 134 | D13: 248022 | E13: 5013 | F13: 5820 | G13: NA | H13: NA | I13: 0.9764612009 | J13: 0.979209622 | K13: 0.005984440455 | L13: 0.00704467354

Sheet Region (Geography) Q1
B6: Sort data by:
A9: Region (Geo) Code | B9: Region (Geography) | C9: Total Responses | D9: Percentage Recommended | E9: Percentage Not Recommended | F9: Breakdown of Responses
F10: Extremely Likely | G10: Likely | H10: Neither | I10: Unlikely | J10: Extremely Unlikely | K10: Don't Know
B11: England | C11: 6239 | D11: 0.9665010418 | E11: 0.01650905594 | F11: 4767 | G11: 1263 | H11: 79 | I11: 43 | J11: 60 | K11: 27
B12: Selection (excluding suppressed data) | C12: =SUBTOTAL(9,C13:C38) -> 6239 | D12: =IFERROR((F12+G12)/SUM(F12:K12), "-") -> 0.9665010418 | E12: =IFERROR((I12+J12)/SUM(F12:K12), "-") -> 0.01650905594 | F12: =SUBTOTAL(9,F13:F38) -> 4767 | G12: =SUBTOTAL(9,G13:G38) -> 1263 | H12: 79 | I12: 43 | J12: 60 | K12: 27
A13: Q72 | B13: NHS England Yorkshire & Humber | C13: 963 | D13: 0.9761163032 | E13: 0.01038421599 | F13: 730 | G13: 210 | H13: 10 | I13: 4 | J13: 6 | K13: 3
A14: Q74 | B14: NHS England Cumbria & North East | C14: 257 | D14: 0.9688715953 | E14: 0.0233463035 | F14: 212 | G14: 37 | H14: 1 | I14: 1 | J14: 5 | K14: 1
A15: Q75 | B15: NHS England Cheshire & Merseyside | C15: 110 | D15: 0.9727272727 | E15: 0 | F15: 93 | G15: 14 | H15: 2 | I15: 0 | J15: 0 | K15: 1
A16: Q83 | B16: NHS England Greater Manchester | C16: 383 | D16: 0.9738903394 | E16: 0.01566579634 | F16: 308 | G16: 65 | H16: 4 | I16: 1 | J16: 5 | K16: 0
A17: Q84 | B17: NHS England Lancashire | C17: 207 | D17: 0.961352657 | E17: 0.0193236715 | F17: 160 | G17: 39 | H17: 3 | I17: 1 | J17: 3 | K17: 1
A18: Q76 | B18: NHS England North Midlands | C18: 373 | D18: 0.9785522788 | E18: 0.002680965147 | F18: 291 | G18: 74 | H18: 5 | I18: 0 | J18: 1 | K18: 2
A19: Q77 | B19: NHS England West Midlands | C19: 453 | D19: 0.9249448124 | E19: 0.05077262693 | F19: 338 | G19: 81 | H19: 8 | I19: 10 | J19: 13 | K19: 3
A20: Q78 | B20: NHS England Central Midlands | C20: 397 | D20: 0.9798488665 | E20: 0.007556675063 | F20: 289 | G20: 100 | H20: 5 | I20: 2 | J20: 1 | K20: 0
A21: Q79 | B21: NHS England East | C21: 823 | D21: 0.9842041312 | E21: 0.003645200486 | F21: 654 | G21: 156 | H21: 7 | I21: 0 | J21: 3 | K21: 3
A22: Q80 | B22: NHS England South West | C22: 330 | D22: 0.9757575758 | E22: 0.006060606061 | F22: 254 | G22: 68 | H22: 4 | I22: 1 | J22: 1 | K22: 2
A23: Q81 | B23: NHS England South East | C23: 281 | D23: 0.9644128114 | E23: 0.01779359431 | F23: 212 | G23: 59 | H23: 4 | I23: 3 | J23: 2 | K23: 1
A24: Q82 | B24: NHS England South Central | C24: 206 | D24: 0.9660194175 | E24: 0.01941747573 | F24: 161 | G24: 38 | H24: 3 | I24: 3 | J24: 1 | K24: 0
A25: Q70 | B25: NHS England Wessex | C25: 464 | D25: 0.974137931 | E25: 0.01077586207 | F25: 366 | G25: 86 | H25: 7 | I25: 3 | J25: 2 | K25: 0
A26: Q71 | B26: NHS England London | C26: 992 | D26: 0.9425403226 | E26: 0.03125 | F26: 699 | G26: 236 | H26: 16 | I26: 14 | J26: 17 | K26: 10

Sheet Trusts Q1
B6: Sort data by:
A9: Region (Geo) Code | B9: Trust Code | C9: Trust Name | D9: Total Responses | E9: Percentage Recommended | F9: Percentage Not Recommended | G9: Breakdown of Responses | M9: Mode of Collection
G10: Extremely Likely | H10: Likely | I10: Neither | J10: Unlikely | K10: Extremely Unlikely | L10: Don't Know | M10: SMS/Text / Smartphone App | N10: Electronic tablet/kiosk at point of discharge | O10: Paper / postcard at point of discharge | P10: Paper survey sent to the patients home | Q10: Telephone survey once patient is home | R10: Online survey once patient is home | S10: Other
C11: England | D11: 6239 | E11: 0.9665010418 | F11: 0.01650905594 | G11: 4767 | H11: 1263 | I11: 79 | J11: 43 | K11: 60 | L11: 27 | M11: 257 | N11: 783 | O11: 4806 | P11: 252 | Q11: 1 | R11: 90 | S11: 50
C12: Selection (excluding suppressed data) | D12: =SUBTOTAL(9,D13:D299) -> 6239 | E12: =IFERROR((G12+H12)/SUM(G12:L12), "-") -> 0.9665367122 | F12: =IFERROR((J12+K12)/SUM(G12:L12), "-") -> 0.01624431449 | G12: =SUBTOTAL(9,G13:G299) -> 4702 | H12: =SUBTOTAL(9,H13:H299) -> 1248 | I12: 79 | J12: 43 | K12: 57 | L12: 27 | M12: 257 | N12: 782 | O12: 4726 | P12: 252 | Q12: 1 | R12: 88 | S12: 50
A13: Q70 | B13: RBD | C13: DORSET COUNTY HOSPITAL NHS FOUNDATION TRUST | D13: 20 | E13: 0.95 | F13: 0.05 | G13: 14 | H13: 5 | I13: 0 | J13: 0 | K13: 1 | L13: 0 | M13: 20 | N13: 0 | O13: 0 | P13: 0 | Q13: 0 | R13: 0 | S13: 0
A14: Q70 | B14: RN5 | C14: HAMPSHIRE HOSPITALS NHS FOUNDATION TRUST | D14: 49 | E14: 1 | F14: 0 | G14: 42 | H14: 7 | I14: 0 | J14: 0 | K14: 0 | L14: 0 | M14: 1 | N14: 0 | O14: 48 | P14: 0 | Q14: 0 | R14: 0 | S14: 0
A15: Q70 | B15: R1F | C15: ISLE OF WIGHT NHS TRUST | D15: 0 | E15: NA | F15: NA | G15: 0 | H15: 0 | I15: 0 | J15: 0 | K15: 0 | L15: 0 | M15: 0 | N15: 0 | O15: 0 | P15: 0 | Q15: 0 | R15: 0 | S15: 0
A16: Q70 | B16: RD3 | C16: POOLE HOSPITAL NHS FOUNDATION TRUST | D16: 45 | E16: 0.8888888889 | F16: 0.04444444444 | G16: 27 | H16: 13 | I16: 3 | J16: 1 | K16: 1 | L16: 0 | M16: 45 | N16: 0 | O16: 0 | P16: 0 | Q16: 0 | R16: 0 | S16: 0
A17: Q70 | B17: RHU | C17: PORTSMOUTH HOSPITALS NHS TRUST | D17: 50 | E17: 1 | F17: 0 | G17: 41 | H17: 9 | I17: 0 | J17: 0 | K17: 0 | L17: 0 | M17: 0 | N17: 0 | O17: 50 | P17: 0 | Q17: 0 | R17: 0 | S17: 0
A18: Q70 | B18: RDZ | C18: THE ROYAL BOURNEMOUTH AND CHRISTCHURCH HOSPITALS NHS FOUNDATION TRUST | D18: 140 | E18: 0.9857142857 | F18: 0 | G18: 117 | H18: 21 | I18: 2 | J18: 0 | K18: 0 | L18: 0 | M18: 0 | N18: 0 | O18: 140 | P18: 0 | Q18: 0 | R18: 0 | S18: 0
A19: Q70 | B19: RHM | C19: UNIVERSITY HOSPITAL SOUTHAMPTON NHS FOUNDATION TRUST | D19: 160 | E19: 0.975 | F19: 0.0125 | G19: 125 | H19: 31 | I19: 2 | J19: 2 | K19: 0 | L19: 0 | M19: 0 | N19: 0 | O19: 157 | P19: 0 | Q19: 0 | R19: 3 | S19: 0
A20: Q71 | B20: RF4 | C20: BARKING, HAVERING AND REDBRIDGE UNIVERSITY HOSPITALS NHS TRUST | D20: 198 | E20: 0.9898989899 | F20: 0 | G20: 165 | H20: 31 | I20: 2 | J20: 0 | K20: 0 | L20: 0 | M20: 0 | N20: 0 | O20: 198 | P20: 0 | Q20: 0 | R20: 0 | S20: 0
A21: Q71 | B21: R1H | C21: BARTS HEALTH NHS TRUST | D21: 52 | E21: 0.8653846154 | F21: 0.07692307692 | G21: 31 | H21: 14 | I21: 0 | J21: 3 | K21: 1 | L21: 3 | M21: 0 | N21: 0 | O21: 50 | P21: 0 | Q21: 0 | R21: 2 | S21: 0
A22: Q71 | B22: RQM | C22: CHELSEA AND WESTMINSTER HOSPITAL NHS FOUNDATION TRUST | D22: 86 | E22: 0.8837209302 | F22: 0.1046511628 | G22: 53 | H22: 23 | I22: 1 | J22: 3 | K22: 6 | L22: 0 | M22: 85 | N22: 0 | O22: 0 | P22: 0 | Q22: 1 | R22: 0 | S22: 0
A23: Q71 | B23: RJ6 | C23: CROYDON HEALTH SERVICES NHS TRUST | D23: 42 | E23: 0.9761904762 | F23: 0.02380952381 | G23: 35 | H23: 6 | I23: 0 | J23: 0 | K23: 1 | L23: 0 | M23: 0 | N23: 0 | O23: 42 | P23: 0 | Q23: 0 | R23: 0 | S23: 0
A24: Q71 | B24: RVR | C24: EPSOM AND ST HELIER UNIVERSITY HOSPITALS NHS TRUST | D24: 10 | E24: 1 | F24: 0 | G24: * | H24: * | I24: * | J24: * | K24: * | L24: * | M24: * | N24: * | O24: * | P24: * | Q24: * | R24: * | S24: *
A25: Q71 | B25: RJ1 | C25: GUY'S AND ST THOMAS' NHS FOUNDATION TRUST | D25: 4 | E25: * | F25: * | G25: * | H25: * | I25: * | J25: * | K25: * | L25: * | M25: * | N25: * | O25: * | P25: * | Q25: * | R25: * | S25: *
A26: Q71 | B26: RQX | C26: HOMERTON UNIVERSITY HOSPITAL NHS FOUNDATION TRUST | D26: 70 | E26: 0.8857142857 | F26: 0.07142857143 | G26: 46 | H26: 16 | I26: 3 | J26: 2 | K26: 3 | L26: 0 | M26: 0 | N26: 28 | O26: 41 | P26: 0 | Q26: 0 | R26: 1 | S26: 0
A27: Q71 | B27: RYJ | C27: IMPERIAL COLLEGE HEALTHCARE NHS TRUST | D27: 76 | E27: 0.9342105263 | F27: 0.02631578947 | G27: 40 | H27: 31 | I27: 2 | J27: 0 | K27: 2 | L27: 1 | M27: 2 | N27: 42 | O27: 32 | P27: 0 | Q27: 0 | R27: 0 | S27: 0
A28: Q71 | B28: RJZ | C28: KING'S COLLEGE HOSPITAL NHS FOUNDATION TRUST | D28: 32 | E28: 0.875 | F28: 0.0625 | G28: 25 | H28: 3 | I28: 2 | J28: 1 | K28: 1 | L28: 0 | M28: 0 | N28: 30 | O28: 2 | P28: 0 | Q28: 0 | R28: 0 | S28: 0
A29: Q71 | B29: RAX | C29: KINGSTON HOSPITAL NHS FOUNDATION TRUST | D29: 54 | E29: 0.9814814815 | F29: 0 | G29: 37 | H29: 16 | I29: 1 | J29: 0 | K29: 0 | L29: 0 | M29: 0 | N29: 54 | O29: 0 | P29: 0 | Q29: 0 | R29: 0 | S29: 0
A30: Q71 | B30: RJ2 | C30: LEWISHAM AND GREENWICH NHS TRUST | D30: 108 | E30: 0.9537037037 | F30: 0.01851851852 | G30: 69 | H30: 34 | I30: 2 | J30: 1 | K30: 1 | L30: 1 | M30: 0 | N30: 0 | O30: 108 | P30: 0 | Q30: 0 | R30: 0 | S30: 0
A31: Q71 | B31: R1K | C31: LONDON NORTH WEST HEALTHCARE NHS TRUST | D31: 38 | E31: 0.9473684211 | F31: 0.02631578947 | G31: 32 | H31: 4 | I31: 0 | J31: 1 | K31: 0 | L31: 1 | M31: 0 | N31: 6 | O31: 32 | P31: 0 | Q31: 0 | R31: 0 | S31: 0
A32: Q71 | B32: RAP | C32: NORTH MIDDLESEX UNIVERSITY HOSPITAL NHS TRUST | D32: 33 | E32: 0.9696969697 | F32: 0 | G32: 22 | H32: 10 | I32: 0 | J32: 0 | K32: 0 | L32: 1 | M32: 0 | N32: 33 | O32: 0 | P32: 0 | Q32: 0 | R32: 0 | S32: 0
A33: Q71 | B33: RAL | C33: ROYAL FREE LONDON NHS FOUNDATION TRUST | D33: 17 | E33: 0.9411764706 | F33: 0.05882352941 | G33: 11 | H33: 5 | I33: 0 | J33: 1 | K33: 0 | L33: 0 | M33: 0 | N33: 0 | O33: 17 | P33: 0 | Q33: 0 | R33: 0 | S33: 0
A34: Q71 | B34: RJ7 | C34: ST GEORGE'S UNIVERSITY HOSPITALS NHS FOUNDATION TRUST | D34: 0 | E34: NA | F34: NA | G34: 0 | H34: 0 | I34: 0 | J34: 0 | K34: 0 | L34: 0 | M34: 0 | N34: 0 | O34: 0 | P34: 0 | Q34: 0 | R34: 0 | S34: 0
A35: Q71 | B35: RAS | C35: THE HILLINGDON HOSPITALS NHS FOUNDATION TRUST | D35: 103 | E35: 0.9514563107 | F35: 0 | G35: 69 | H35: 29 | I35: 2 | J35: 0 | K35: 0 | L35: 3 | M35: 0 | N35: 0 | O35: 103 | P35: 0 | Q35: 0 | R35: 0 | S35: 0
A36: Q71 | B36: RKE | C36: THE WHITTINGTON HOSPITAL NHS TRUST | D36: 24 | E36: 1 | F36: 0 | G36: 21 | H36: 3 | I36: 0 | J36: 0 | K36: 0 | L36: 0 | M36: 0 | N36: 13 | O36: 11 | P36: 0 | Q36: 0 | R36: 0 | S36: 0
A37: Q71 | B37: RRV | C37: UNIVERSITY COLLEGE LONDON HOSPITALS NHS FOUNDATION TRUST | D37: 45 | E37: 0.8888888889 | F37: 0.08888888889 | G37: 31 | H37: 9 | I37: 1 | J37: 2 | K37: 2 | L37: 0 | M37: 0 | N37: 0 | O37: 43 | P37: 0 | Q37: 0 | R37: 2 | S37: 0
A38: Q72 | B38: RCF | C38: AIREDALE NHS FOUNDATION TRUST | D38: 9 | E38: 1 | F38: 0 | G38: 7 | H38: 2 | I38: 0 | J38: 0 | K38: 0 | L38: 0 | M38: 0 | N38: 1 | O38: 8 | P38: 0 | Q38: 0 | R38: 0 | S38: 0
A39: Q72 | B39: RFF | C39: BARNSLEY HOSPITAL NHS FOUNDATION TRUST | D39: 57 | E39: 1 | F39: 0 | G39: 48 | H39: 9 | I39: 0 | J39: 0 | K39: 0 | L39: 0 | M39: 0 | N39: 0 | O39: 57 | P39: 0 | Q39: 0 | R39: 0 | S39: 0
A40: Q72 | B40: RAE | C40: BRADFORD TEACHING HOSPITALS NHS FOUNDATION TRUST | D40: 12 | E40: 1 | F40: 0 | G40: 9 | H40: 3 | I40: 0 | J40: 0 | K40: 0 | L40: 0 | M40: 0 | N40: 0 | O40: 12 | P40: 0 | Q40: 0 | R40: 0 | S40: 0
A41: Q72 | B41: RWY | C41: CALDERDALE AND HUDDERSFIELD NHS FOUNDATION TRUST | D41: 188 | E41: 0.9734042553 | F41: 0.005319148936 | G41: 139 | H41: 44 | I41: 4 | J41: 0 | K41: 1 | L41: 0 | M41: 6 | N41: 182 | O41: 0 | P41: 0 | Q41: 0 | R41: 0 | S41: 0
A42: Q72 | B42: RP5 | C42: DONCASTER AND BASSETLAW TEACHING HOSPITALS NHS FOUNDATION TRUST | D42: 133 | E42: 0.977443609 | F42: 0.01503759398 | G42: 102 | H42: 28 | I42: 1 | J42: 0 | K42: 2 | L42: 0 | M42: 0 | N42: 0 | O42: 133 | P42: 0 | Q42: 0 | R42: 0 | S42: 0
A43: Q72 | B43: RCD | C43: HARROGATE AND DISTRICT NHS FOUNDATION TRUST | D43: 22 | E43: 1 | F43: 0 | G43: 21 | H43: 1 | I43: 0 | J43: 0 | K43: 0 | L43: 0 | M43: 0 | N43: 0 | O43: 22 | P43: 0 | Q43: 0 | R43: 0 | S43: 0
A44: Q72 | B44: RWA | C44: HULL AND EAST YORKSHIRE HOSPITALS NHS TRUST | D44: 44 | E44: 0.9772727273 | F44: 0 | G44: 28 | H44: 15 | I44: 1 | J44: 0 | K44: 0 | L44: 0 | M44: 0 | N44: 0 | O44: 44 | P44: 0 | Q44: 0 | R44: 0 | S44: 0
A45: Q72 | B45: RR8 | C45: LEEDS TEACHING HOSPITALS NHS TRUST | D45: 21 | E45: 0.9523809524 | F45: 0 | G45: 14 | H45: 6 | I45: 0 | J45: 0 | K45: 0 | L45: 1 | M45: 0 | N45: 0 | O45: 21 | P45: 0 | Q45: 0 | R45: 0 | S45: 0
A46: Q72 | B46: RXF | C46: MID YORKSHIRE HOSPITALS NHS TRUST | D46: 127 | E46: 0.968503937 | F46: 0.02362204724 | G46: 95 | H46: 28 | I46: 1 | J46: 1 | K46: 2 | L46: 0 | M46: 0 | N46: 0 | O46: 126 | P46: 0 | Q46: 0 | R46: 1 | S46: 0
A47: Q72 | B47: RJL | C47: NORTHERN LINCOLNSHIRE AND GOOLE NHS FOUNDATION TRUST | D47: 52 | E47: 0.9423076923 | F47: 0.03846153846 | G47: 39 | H47: 10 | I47: 1 | J47: 1 | K47: 1 | L47: 0 | M47: 0 | N47: 0 | O47: 0 | P47: 52 | Q47: 0 | R47: 0 | S47: 0
A48: Q72 | B48: RHQ | C48: SHEFFIELD TEACHING HOSPITALS NHS FOUNDATION TRUST | D48: 85 | E48: 0.9647058824 | F48: 0.02352941176 | G48: 55 | H48: 27 | I48: 0 | J48: 2 | K48: 0 | L48: 1 | M48: 0 | N48: 0 | O48: 85 | P48: 0 | Q48: 0 | R48: 0 | S48: 0
A49: Q72 | B49: RFR | C49: THE ROTHERHAM NHS FOUNDATION TRUST | D49: 89 | E49: 1 | F49: 0 | G49: 75 | H49: 14 | I49: 0 | J49: 0 | K49: 0 | L49: 0 | M49: 0 | N49: 0 | O49: 89 | P49: 0 | Q49: 0 | R49: 0 | S49: 0
A50: Q72 | B50: RCB | C50: YORK TEACHING HOSPITAL NHS FOUNDATION TRUST | D50: 124 | E50: 0.9758064516 | F50: 0 | G50: 98 | H50: 23 | I50: 2 | J50: 0 | K50: 0 | L50: 1 | M50: 0 | N50: 0 | O50: 124 | P50: 0 | Q50: 0 | R50: 0 | S50: 0
A51: Q74 | B51: RLN | C51: CITY HOSPITALS SUNDERLAND NHS FOUNDATION TRUST | D51: 10 | E51: 0.8 | F51: 0.2 | G51: * | H51: * | I51: * | J51: * | K51: * | L51: * | M51: * | N51: * | O51: * | P51: * | Q51: * | R51: * | S51: *
A52: Q74 | B52: RXP | C52: COUNTY DURHAM AND DARLINGTON NHS FOUNDATION TRUST | D52: 21 | E52: 1 | F52: 0 | G52: 15 | H52: 6 | I52: 0 | J52: 0 | K52: 0 | L52: 0 | M52: 0 | N52: 0 | O52: 21 | P52: 0 | Q52: 0 | R52: 0 | S52: 0
A53: Q74 | B53: RR7 | C53: GATESHEAD HEALTH NHS FOUNDATION TRUST | D53: 1 | E53: * | F53: * | G53: * | H53: * | I53: * | J53: * | K53: * | L53: * | M53: * | N53: * | O53: * | P53: * | Q53: * | R53: * | S53: *
A54: Q74 | B54: RNL | C54: NORTH CUMBRIA UNIVERSITY HOSPITALS NHS TRUST | D54: 25 | E54: 0.92 | F54: 0.08 | G54: 23 | H54: 0 | I54: 0 | J54: 0 | K54: 2 | L54: 0 | M54: 0 | N54: 0 | O54: 25 | P54: 0 | Q54: 0 | R54: 0 | S54: 0
A55: Q74 | B55: RVW | C55: NORTH TEES AND HARTLEPOOL NHS FOUNDATION TRUST | D55: 23 | E55: 1 | F55: 0 | G55: 21 | H55: 2 | I55: 0 | J55: 0 | K55: 0 | L55: 0 | M55: 0 | N55: 0 | O55: 23 | P55: 0 | Q55: 0 | R55: 0 | S55: 0
A56: Q74 | B56: RTF | C56: NORTHUMBRIA HEALTHCARE NHS FOUNDATION TRUST | D56: 108 | E56: 0.9814814815 | F56: 0.01851851852 | G56: 96 | H56: 10 | I56: 0 | J56: 1 | K56: 1 | L56: 0 | M56: 0 | N56: 0 | O56: 108 | P56: 0 | Q56: 0 | R56: 0 | S56: 0
A57: Q74 | B57: RTR | C57: SOUTH TEES HOSPITALS NHS FOUNDATION TRUST | D57: 13 | E57: 0.9230769231 | F57: 0 | G57: 12 | H57: 0 | I57: 1 | J57: 0 | K57: 0 | L57: 0 | M57: 0 | N57: 0 | O57: 13 | P57: 0 | Q57: 0 | R57: 0 | S57: 0
A58: Q74 | B58: RE9 | C58: SOUTH TYNESIDE NHS FOUNDATION TRUST | D58: 36 | E58: 0.9722222222 | F58: 0 | G58: 22 | H58: 13 | I58: 0 | J58: 0 | K58: 0 | L58: 1 | M58: 0 | N58: 0 | O58: 36 | P58: 0 | Q58: 0 | R58: 0 | S58: 0
A59: Q74 | B59: RTD | C59: THE NEWCASTLE UPON TYNE HOSPITALS NHS FOUNDATION TRUST | D59: 0 | E59: NA | F59: NA | G59: 0 | H59: 0 | I59: 0 | J59: 0 | K59: 0 | L59: 0 | M59: 0 | N59: 0 | O59: 0 | P59: 0 | Q59: 0 | R59: 0 | S59: 0
A60: Q74 | B60: RTX | C60: UNIVERSITY HOSPITALS OF MORECAMBE BAY NHS FOUNDATION TRUST | D60: 20 | E60: 1 | F60: 0 | G60: 17 | H60: 3 | I60: 0 | J60: 0 | K60: 0 | L60: 0 | M60: 0 | N60: 0 | O60: 20 | P60: 0 | Q60: 0 | R60: 0 | S60: 0
A61: Q75 | B61: RJR | C61: COUNTESS OF CHESTER HOSPITAL NHS FOUNDATION TRUST | D61: 11 | E61: 1 | F61: 0 | G61: 10 | H61: 1 | I61: 0 | J61: 0 | K61: 0 | L61: 0 | M61: 11 | N61: 0 | O61: 0 | P61: 0 | Q61: 0 | R61: 0 | S61: 0
A62: Q75 | B62: RJN | C62: EAST CHESHIRE NHS TRUST | D62: 11 | E62: 1 | F62: 0 | G62: 10 | H62: 1 | I62: 0 | J62: 0 | K62: 0 | L62: 0 | M62: 0 | N62: 0 | O62: 11 | P62: 0 | Q62: 0 | R62: 0 | S62: 0
A63: Q75 | B63: REP | C63: LIVERPOOL WOMEN'S NHS FOUNDATION TRUST | D63: 1 | E63: * | F63: * | G63: * | H63: * | I63: * | J63: * | K63: * | L63: * | M63: * | N63: * | O63: * | P63: * | Q63: * | R63: * | S63: *
A64: Q75 | B64: RBT | C64: MID CHESHIRE HOSPITALS NHS FOUNDATION TRUST | D64: 31 | E64: 0.9677419355 | F64: 0 | G64: 22 | H64: 8 | I64: 0 | J64: 0 | K64: 0 | L64: 1 | M64: 0 | N64: 0 | O64: 31 | P64: 0 | Q64: 0 | R64: 0 | S64: 0
A65: Q75 | B65: RVY | C65: SOUTHPORT AND ORMSKIRK HOSPITAL NHS TRUST | D65: 1 | E65: * | F65: * | G65: * | H65: * | I65: * | J65: * | K65: * | L65: * | M65: * | N65: * | O65: * | P65: * | Q65: * | R65: * | S65: *
A66: Q75 | B66: RBN | C66: ST HELENS AND KNOWSLEY HOSPITAL SERVICES NHS TRUST | D66: 9 | E66: 0.8888888889 | F66: 0 | G66: 7 | H66: 1 | I66: 1 | J66: 0 | K66: 0 | L66: 0 | M66: 0 | N66: 0 | O66: 9 | P66: 0 | Q66: 0 | R66: 0 | S66: 0
A67: Q75 | B67: RWW | C67: WARRINGTON AND HALTON HOSPITALS NHS FOUNDATION TRUST | D67: 45 | E67: 0.9777777778 | F67: 0 | G67: 41 | H67: 3 | I67: 1 | J67: 0 | K67: 0 | L67: 0 | M67: 0 | N67: 0 | O67: 45 | P67: 0 | Q67: 0 | R67: 0 | S67: 0
A68: Q75 | B68: RBL | C68: WIRRAL UNIVERSITY TEACHING HOSPITAL NHS FOUNDATION TRUST | D68: 1 | E68: * | F68: * | G68: * | H68: * | I68: * | J68: * | K68: * | L68: * | M68: * | N68: * | O68: * | P68: * | Q68: * | R68: * | S68: *
A69: Q76 | B69: RJF | C69: BURTON HOSPITALS NHS FOUNDATION TRUST | D69: 8 | E69: 1 | F69: 0 | G69: 7 | H69: 1 | I69: 0 | J69: 0 | K69: 0 | L69: 0 | M69: 0 | N69: 0 | O69: 8 | P69: 0 | Q69: 0 | R69: 0 | S69: 0
A70: Q76 | B70: RFS | C70: CHESTERFIELD ROYAL HOSPITAL NHS FOUNDATION TRUST | D70: 48 | E70: 1 | F70: 0 | G70: 38 | H70: 10 | I70: 0 | J70: 0 | K70: 0 | L70: 0 | M70: 0 | N70: 0 | O70: 48 | P70: 0 | Q70: 0 | R70: 0 | S70: 0
A71: Q76 | B71: RTG | C71: DERBY TEACHING HOSPITALS NHS FOUNDATION TRUST | D71: 60 | E71: 0.9666666667 | F71: 0.01666666667 | G71: 43 | H71: 15 | I71: 0 | J71: 0 | K71: 1 | L71: 1 | M71: 2 | N71: 0 | O71: 58 | P71: 0 | Q71: 0 | R71: 0 | S71: 0
A72: Q76 | B72: RX1 | C72: NOTTINGHAM UNIVERSITY HOSPITALS NHS TRUST | D72: 151 | E72: 0.9933774834 | F72: 0 | G72: 133 | H72: 17 | I72: 1 | J72: 0 | K72: 0 | L72: 0 | M72: 0 | N72: 0 | O72: 151 | P72: 0 | Q72: 0 | R72: 0 | S72: 0
A73: Q76 | B73: RK5 | C73: SHERWOOD FOREST HOSPITALS NHS FOUNDATION TRUST | D73: 66 | E73: 0.9242424242 | F73: 0 | G73: 37 | H73: 24 | I73: 4 | J73: 0 | K73: 0 | L73: 1 | M73: 0 | N73: 0 | O73: 66 | P73: 0 | Q73: 0 | R73: 0 | S73: 0
A74: Q76 | B74: RXW | C74: SHREWSBURY AND TELFORD HOSPITAL NHS TRUST | D74: 6 | E74: 1 | F74: 0 | G74: 5 | H74: 1 | I74: 0 | J74: 0 | K74: 0 | L74: 0 | M74: 0 | N74: 0 | O74: 6 | P74: 0 | Q74: 0 | R74: 0 | S74: 0
A75: Q76 | B75: RJE | C75: UNIVERSITY HOSPITALS OF NORTH MIDLANDS NHS TRUST | D75: 34 | E75: 1 | F75: 0 | G75: 28 | H75: 6 | I75: 0 | J75: 0 | K75: 0 | L75: 0 | M75: 0 | N75: 0 | O75: 34 | P75: 0 | Q75: 0 | R75: 0 | S75: 0
A76: Q77 | B76: RQ3 | C76: BIRMINGHAM WOMEN'S AND CHILDREN'S NHS FOUNDATION TRUST | D76: 118 | E76: 0.813559322 | F76: 0.1186440678 | G76: 73 | H76: 23 | I76: 5 | J76: 8 | K76: 6 | L76: 3 | M76: 0 | N76: 0 | O76: 118 | P76: 0 | Q76: 0 | R76: 0 | S76: 0
A77: Q77 | B77: RLT | C77: GEORGE ELIOT HOSPITAL NHS TRUST | D77: 33 | E77: 0.9696969697 | F77: 0.0303030303 | G77: 28 | H77: 4 | I77: 0 | J77: 0 | K77: 1 | L77: 0 | M77: 18 | N77: 0 | O77: 15 | P77: 0 | Q77: 0 | R77: 0 | S77: 0
A78: Q77 | B78: RR1 | C78: HEART OF ENGLAND NHS FOUNDATION TRUST | D78: 12 | E78: 1 | F78: 0 | G78: 11 | H78: 1 | I78: 0 | J78: 0 | K78: 0 | L78: 0 | M78: 0 | N78: 0 | O78: 12 | P78: 0 | Q78: 0 | R78: 0 | S78: 0
A79: Q77 | B79: RXK | C79: SANDWELL AND WEST BIRMINGHAM HOSPITALS NHS TRUST | D79: 8 | E79: 0.875 | F79: 0 | G79: 3 | H79: 4 | I79: 1 | J79: 0 | K79: 0 | L79: 0 | M79: 0 | N79: 8 | O79: 0 | P79: 0 | Q79: 0 | R79: 0 | S79: 0
A80: Q77 | B80: RJC | C80: SOUTH WARWICKSHIRE NHS FOUNDATION TRUST | D80: 13 | E80: 1 | F80: 0 | G80: 6 | H80: 7 | I80: 0 | J80: 0 | K80: 0 | L80: 0 | M80: 0 | N80: 0 | O80: 13 | P80: 0 | Q80: 0 | R80: 0 | S80: 0
A81: Q77 | B81: RNA | C81: THE DUDLEY GROUP NHS FOUNDATION TRUST | D81: 48 | E81: 1 | F81: 0 | G81: 44 | H81: 4 | I81: 0 | J81: 0 | K81: 0 | L81: 0 | M81: 0 | N81: 0 | O81: 48 | P81: 0 | Q81: 0 | R81: 0 | S81: 0
A82: Q77 | B82: RL4 | C82: THE ROYAL WOLVERHAMPTON NHS TRUST | D82: 22 | E82: 1 | F82: 0 | G82: 20 | H82: 2 | I82: 0 | J82: 0 | K82: 0 | L82: 0 | M82: 0 | N82: 0 | O82: 22 | P82: 0 | Q82: 0 | R82: 0 | S82: 0
A83: Q77 | B83: RKB | C83: UNIVERSITY HOSPITALS COVENTRY AND WARWICKSHIRE NHS TRUST | D83: 67 | E83: 0.9552238806 | F83: 0.0447761194 | G83: 50 | H83: 14 | I83: 0 | J83: 2 | K83: 1 | L83: 0 | M83: 1 | N83: 0 | O83: 66 | P83: 0 | Q83: 0 | R83: 0 | S83: 0
A84: Q77 | B84: RBK | C84: WALSALL HEALTHCARE NHS TRUST | D84: 15 | E84: 0.6666666667 | F84: 0.2666666667 | G84: 8 | H84: 2 | I84: 1 | J84: 0 | K84: 4 | L84: 0 | M84: 15 | N84: 0 | O84: 0 | P84: 0 | Q84: 0 | R84: 0 | S84: 0
A85: Q77 | B85: RWP | C85: WORCESTERSHIRE ACUTE HOSPITALS NHS TRUST | D85: 96 | E85: 0.9791666667 | F85: 0.01041666667 | G85: 76 | H85: 18 | I85: 1 | J85: 0 | K85: 1 | L85: 0 | M85: 0 | N85: 0 | O85: 96 | P85: 0 | Q85: 0 | R85: 0 | S85: 0
A86: Q77 | B86: RLQ | C86: WYE VALLEY NHS TRUST | D86: 21 | E86: 1 | F86: 0 | G86: 19 | H86: 2 | I86: 0 | J86: 0 | K86: 0 | L86: 0 | M86: 0 | N86: 0 | O86: 21 | P86: 0 | Q86: 0 | R86: 0 | S86: 0
A87: Q78 | B87: RC1 | C87: BEDFORD HOSPITAL NHS TRUST | D87: 0 | E87: NA | F87: NA | G87: 0 | H87: 0 | I87: 0 | J87: 0 | K87: 0 | L87: 0 | M87: 0 | N87: 0 | O87: 0 | P87: 0 | Q87: 0 | R87: 0 | S87: 0
A88: Q78 | B88: RWH | C88: EAST AND NORTH HERTFORDSHIRE NHS TRUST | D88: 27 | E88: 0.9259259259 | F88: 0 | G88: 17 | H88: 8 | I88: 2 | J88: 0 | K88: 0 | L88: 0 | M88: 0 | N88: 27 | O88: 0 | P88: 0 | Q88: 0 | R88: 0 | S88: 0
A89: Q78 | B89: RNQ | C89: KETTERING GENERAL HOSPITAL NHS FOUNDATION TRUST | D89: 21 | E89: 1 | F89: 0 | G89: 16 | H89: 5 | I89: 0 | J89: 0 | K89: 0 | L89: 0 | M89: 0 | N89: 0 | O89: 21 | P89: 0 | Q89: 0 | R89: 0 | S89: 0
A90: Q78 | B90: RC9 | C90: LUTON AND DUNSTABLE UNIVERSITY HOSPITAL NHS FOUNDATION TRUST | D90: 63 | E90: 0.9841269841 | F90: 0 | G90: 41 | H90: 21 | I90: 1 | J90: 0 | K90: 0 | L90: 0 | M90: 0 | N90: 55 | O90: 8 | P90: 0 | Q90: 0 | R90: 0 | S90: 0
A91: Q78 | B91: RD8 | C91: MILTON KEYNES UNIVERSITY HOSPITAL NHS FOUNDATION TRUST | D91: 39 | E91: 0.9487179487 | F91: 0 | G91: 20 | H91: 17 | I91: 2 | J91: 0 | K91: 0 | L91: 0 | M91: 0 | N91: 0 | O91: 38 | P91: 0 | Q91: 0 | R91: 1 | S91: 0
A92: Q78 | B92: RNS | C92: NORTHAMPTON GENERAL HOSPITAL NHS TRUST | D92: 70 | E92: 1 | F92: 0 | G92: 57 | H92: 13 | I92: 0 | J92: 0 | K92: 0 | L92: 0 | M92: 0 | N92: 0 | O92: 0 | P92: 0 | Q92: 0 | R92: 70 | S92: 0
A93: Q78 | B93: RWD | C93: UNITED LINCOLNSHIRE HOSPITALS NHS TRUST | D93: 23 | E93: 1 | F93: 0 | G93: 20 | H93: 3 | I93: 0 | J93: 0 | K93: 0 | L93: 0 | M93: 0 | N93: 0 | O93: 23 | P93: 0 | Q93: 0 | R93: 0 | S93: 0
A94: Q78 | B94: RWE | C94: UNIVERSITY HOSPITALS OF LEICESTER NHS TRUST | D94: 135 | E94: 0.9851851852 | F94: 0.01481481481 | G94: 106 | H94: 27 | I94: 0 | J94: 2 | K94: 0 | L94: 0 | M94: 0 | N94: 36 | O94: 99 | P94: 0 | Q94: 0 | R94: 0 | S94: 0
A95: Q78 | B95: RWG | C95: WEST HERTFORDSHIRE HOSPITALS NHS TRUST | D95: 19 | E95: 0.9473684211 | F95: 0.05263157895 | G95: 12 | H95: 6 | I95: 0 | J95: 0 | K95: 1 | L95: 0 | M95: 0 | N95: 0 | O95: 19 | P95: 0 | Q95: 0 | R95: 0 | S95: 0
A96: Q79 | B96: RDD | C96: BASILDON AND THURROCK UNIVERSITY HOSPITALS NHS FOUNDATION TRUST | D96: 83 | E96: 1 | F96: 0 | G96: 70 | H96: 13 | I96: 0 | J96: 0 | K96: 0 | L96: 0 | M96: 0 | N96: 0 | O96: 83 | P96: 0 | Q96: 0 | R96: 0 | S96: 0
A97: Q79 | B97: RGT | C97: CAMBRIDGE UNIVERSITY HOSPITALS NHS FOUNDATION TRUST | D97: 37 | E97: 0.972972973 | F97: 0 | G97: 18 | H97: 18 | I97: 0 | J97: 0 | K97: 0 | L97: 1 | M97: 0 | N97: 36 | O97: 1 | P97: 0 | Q97: 0 | R97: 0 | S97: 0
A98: Q79 | B98: RDE | C98: COLCHESTER HOSPITAL UNIVERSITY NHS FOUNDATION TRUST | D98: 0 | E98: NA | F98: NA | G98: 0 | H98: 0 | I98: 0 | J98: 0 | K98: 0 | L98: 0 | M98: 0 | N98: 0 | O98: 0 | P98: 0 | Q98: 0 | R98: 0 | S98: 0
A99: Q79 | B99: RGQ | C99: IPSWICH HOSPITAL NHS TRUST | D99: 95 | E99: 0.9789473684 | F99: 0.01052631579 | G99: 82 | H99: 11 | I99: 1 | J99: 0 | K99: 1 | L99: 0 | M99: 0 | N99: 94 | O99: 0 | P99: 0 | Q99: 0 | R99: 1 | S99: 0
A100: Q79 | B100: RGP | C100: JAMES PAGET UNIVERSITY HOSPITALS NHS FOUNDATION TRUST | D100: 40 | E100: 1 | F100: 0 | G100: 39 | H100: 1 | I100: 0 | J100: 0 | K100: 0 | L100: 0 | M100: 0 | N100: 0 | O100: 40 | P100: 0 | Q100: 0 | R100: 0 | S100: 0
A101: Q79 | B101: RQ8 | C101: MID ESSEX HOSPITAL SERVICES NHS TRUST | D101: 0 | E101: NA | F101: NA | G101: 0 | H101: 0 | I101: 0 | J101: 0 | K101: 0 | L101: 0 | M101: 0 | N101: 0 | O101: 0 | P101: 0 | Q101: 0 | R101: 0 | S101: 0
A102: Q79 | B102: RM1 | C102: NORFOLK AND NORWICH UNIVERSITY HOSPITALS NHS FOUNDATION TRUST | D102: 31 | E102: 1 | F102: 0 | G102: * | H102: * | I102: * | J102: * | K102: * | L102: * | M102: * | N102: * | O102: * | P102: * | Q102: * | R102: * | S102: *
A103: Q79 | B103: RGN | C103: NORTH WEST ANGLIA NHS FOUNDATION TRUST | D103: 266 | E103: 0.984962406 | F103: 0 | G103: 218 | H103: 44 | I103: 3 | J103: 0 | K103: 0 | L103: 1 | M103: 0 | N103: 0 | O103: 266 | P103: 0 | Q103: 0 | R103: 0 | S103: 0
A104: Q79 | B104: RAJ | C104: SOUTHEND UNIVERSITY HOSPITAL NHS FOUNDATION TRUST | D104: 3 | E104: * | F104: * | G104: * | H104: * | I104: * | J104: * | K104: * | L104: * | M104: * | N104: * | O104: * | P104: * | Q104: * | R104: * | S104: *
A105: Q79 | B105: RQW | C105: THE PRINCESS ALEXANDRA HOSPITAL NHS TRUST | D105: 50 | E105: 1 | F105: 0 | G105: 38 | H105: 12 | I105: 0 | J105: 0 | K105: 0 | L105: 0 | M105: 0 | N105: 0 | O105: 0 | P105: 0 | Q105: 0 | R105: 0 | S105: 50
A106: Q79 | B106: RCX | C106: THE QUEEN ELIZABETH HOSPITAL, KING'S LYNN, NHS FOUNDATION TRUST | D106: 185 | E106: 0.972972973 | F106: 0.01081081081 | G106: 139 | H106: 41 | I106: 2 | J106: 0 | K106: 2 | L106: 1 | M106: 0 | N106: 0 | O106: 185 | P106: 0 | Q106: 0 | R106: 0 | S106: 0
A107: Q79 | B107: RGR | C107: WEST SUFFOLK NHS FOUNDATION TRUST | D107: 33 | E107: 0.9696969697 | F107: 0 | G107: 22 | H107: 10 | I107: 1 | J107: 0 | K107: 0 | L107: 0 | M107: 0 | N107: 33 | O107: 0 | P107: 0 | Q107: 0 | R107: 0 | S107: 0
A108: Q80 | B108: RVJ | C108: NORTH BRISTOL NHS TRUST | D108: 8 | E108: 1 | F108: 0 | G108: * | H108: * | I108: * | J108: * | K108: * | L108: * | M108: * | N108: * | O108: * | P108: * | Q108: * | R108: * | S108: *
A109: Q80 | B109: RBZ | C109: NORTHERN DEVON HEALTHCARE NHS TRUST | D109: 1 | E109: * | F109: * | G109: * | H109: * | I109: * | J109: * | K109: * | L109: * | M109: * | N109: * | O109: * | P109: * | Q109: * | R109: * | S109: *
A110: Q80 | B110: RK9 | C110: PLYMOUTH HOSPITALS NHS TRUST | D110: 93 | E110: 0.9892473118 | F110: 0 | G110: 69 | H110: 23 | I110: 0 | J110: 0 | K110: 0 | L110: 1 | M110: 0 | N110: 0 | O110: 93 | P110: 0 | Q110: 0 | R110: 0 | S110: 0
A111: Q80 | B111: REF | C111: ROYAL CORNWALL HOSPITALS NHS TRUST | D111: 21 | E111: 0.9523809524 | F111: 0 | G111: 15 | H111: 5 | I111: 1 | J111: 0 | K111: 0 | L111: 0 | M111: 0 | N111: 0 | O111: 21 | P111: 0 | Q111: 0 | R111: 0 | S111: 0
A112: Q80 | B112: RH8 | C112: ROYAL DEVON AND EXETER NHS FOUNDATION TRUST | D112: 0 | E112: NA | F112: NA | G112: 0 | H112: 0 | I112: 0 | J112: 0 | K112: 0 | L112: 0 | M112: 0 | N112: 0 | O112: 0 | P112: 0 | Q112: 0 | R112: 0 | S112: 0
A113: Q80 | B113: RBA | C113: TAUNTON AND SOMERSET NHS FOUNDATION TRUST | D113: 10 | E113: 0.8 | F113: 0.1 | G113: 8 | H113: 0 | I113: 1 | J113: 0 | K113: 1 | L113: 0 | M113: 0 | N113: 0 | O113: 10 | P113: 0 | Q113: 0 | R113: 0 | S113: 0
A114: Q80 | B114: RA9 | C114: TORBAY AND SOUTH DEVON NHS FOUNDATION TRUST | D114: 12 | E114: 1 | F114: 0 | G114: 11 | H114: 1 | I114: 0 | J114: 0 | K114: 0 | L114: 0 | M114: 0 | N114: 0 | O114: 12 | P114: 0 | Q114: 0 | R114: 0 | S114: 0
A115: Q80 | B115: RA7 | C115: UNIVERSITY HOSPITALS BRISTOL NHS FOUNDATION TRUST | D115: 75 | E115: 0.96 | F115: 0 | G115: 62 | H115: 10 | I115: 2 | J115: 0 | K115: 0 | L115: 1 | M115: 0 | N115: 0 | O115: 75 | P115: 0 | Q115: 0 | R115: 0 | S115: 0
A116: Q80 | B116: RA3 | C116: WESTON AREA HEALTH NHS TRUST | D116: 11 | E116: 1 | F116: 0 | G116: 9 | H116: 2 | I116: 0 | J116: 0 | K116: 0 | L116: 0 | M116: 0 | N116: 0 | O116: 11 | P116: 0 | Q116: 0 | R116: 0 | S116: 0
A117: Q80 | B117: RA4 | C117: YEOVIL DISTRICT HOSPITAL NHS FOUNDATION TRUST | D117: 99 | E117: 0.9898989899 | F117: 0.0101010101 | G117: 74 | H117: 24 | I117: 0 | J117: 1 | K117: 0 | L117: 0 | M117: 0 | N117: 0 | O117: 99 | P117: 0 | Q117: 0 | R117: 0 | S117: 0
A118: Q81 | B118: RTK | C118: ASHFORD AND ST PETER'S HOSPITALS NHS FOUNDATION TRUST | D118: 0 | E118: NA | F118: NA | G118: 0 | H118: 0 | I118: 0 | J118: 0 | K118: 0 | L118: 0 | M118: 0 | N118: 0 | O118: 0 | P118: 0 | Q118: 0 | R118: 0 | S118: 0
A119: Q81 | B119: RXH | C119: BRIGHTON AND SUSSEX UNIVERSITY HOSPITALS NHS TRUST | D119: 5 | E119: 1 | F119: 0 | G119: 5 | H119: 0 | I119: 0 | J119: 0 | K119: 0 | L119: 0 | M119: 0 | N119: 0 | O119: 5 | P119: 0 | Q119: 0 | R119: 0 | S119: 0
A120: Q81 | B120: RN7 | C120: DARTFORD AND GRAVESHAM NHS TRUST | D120: 1 | E120: * | F120: * | G120: * | H120: * | I120: * | J120: * | K120: * | L120: * | M120: * | N120: * | O120: * | P120: * | Q120: * | R120: * | S120: *
A121: Q81 | B121: RVV | C121: EAST KENT HOSPITALS UNIVERSITY NHS FOUNDATION TRUST | D121: 5 | E121: 1 | F121: 0 | G121: 3 | H121: 2 | I121: 0 | J121: 0 | K121: 0 | L121: 0 | M121: 0 | N121: 0 | O121: 0 | P121: 5 | Q121: 0 | R121: 0 | S121: 0
A122: Q81 | B122: RXC | C122: EAST SUSSEX HEALTHCARE NHS TRUST | D122: 9 | E122: 0.8888888889 | F122: 0 | G122: 7 | H122: 1 | I122: 1 | J122: 0 | K122: 0 | L122: 0 | M122: 0 | N122: 8 | O122: 0 | P122: 0 | Q122: 0 | R122: 1 | S122: 0
A123: Q81 | B123: RDU | C123: FRIMLEY HEALTH NHS FOUNDATION TRUST | D123: 124 | E123: 0.9516129032 | F123: 0.03225806452 | G123: 98 | H123: 20 | I123: 2 | J123: 2 | K123: 2 | L123: 0 | M123: 0 | N123: 0 | O123: 122 | P123: 0 | Q123: 0 | R123: 2 | S123: 0
A124: Q81 | B124: RWF | C124: MAIDSTONE AND TUNBRIDGE WELLS NHS TRUST | D124: 18 | E124: 0.9444444444 | F124: 0 | G124: 13 | H124: 4 | I124: 0 | J124: 0 | K124: 0 | L124: 1 | M124: 0 | N124: 0 | O124: 16 | P124: 0 | Q124: 0 | R124: 2 | S124: 0
A125: Q81 | B125: RPA | C125: MEDWAY NHS FOUNDATION TRUST | D125: 53 | E125: 1 | F125: 0 | G125: 48 | H125: 5 | I125: 0 | J125: 0 | K125: 0 | L125: 0 | M125: 0 | N125: 0 | O125: 0 | P125: 53 | Q125: 0 | R125: 0 | S125: 0
A126: Q81 | B126: RA2 | C126: ROYAL SURREY COUNTY HOSPITAL NHS FOUNDATION TRUST | D126: 44 | E126: 0.9545454545 | F126: 0.02272727273 | G126: 23 | H126: 19 | I126: 1 | J126: 1 | K126: 0 | L126: 0 | M126: 2 | N126: 0 | O126: 42 | P126: 0 | Q126: 0 | R126: 0 | S126: 0
A127: Q81 | B127: RTP | C127: SURREY AND SUSSEX HEALTHCARE NHS TRUST | D127: 20 | E127: 1 | F127: 0 | G127: 13 | H127: 7 | I127: 0 | J127: 0 | K127: 0 | L127: 0 | M127: 0 | N127: 0 | O127: 20 | P127: 0 | Q127: 0 | R127: 0 | S127: 0
A128: Q81 | B128: RYR | C128: WESTERN SUSSEX HOSPITALS NHS FOUNDATION TRUST | D128: 2 | E128: * | F128: * | G128: * | H128: * | I128: * | J128: * | K128: * | L128: * | M128: * | N128: * | O128: * | P128: * | Q128: * | R128: * | S128: *
A129: Q82 | B129: RXQ | C129: BUCKINGHAMSHIRE HEALTHCARE NHS TRUST | D129: 28 | E129: 1 | F129: 0 | G129: 25 | H129: 3 | I129: 0 | J129: 0 | K129: 0 | L129: 0 | M129: 0 | N129: 0 | O129: 28 | P129: 0 | Q129: 0 | R129: 0 | S129: 0
A130: Q82 | B130: RTE | C130: GLOUCESTERSHIRE HOSPITALS NHS FOUNDATION TRUST | D130: 0 | E130: NA | F130: NA | G130: 0 | H130: 0 | I130: 0 | J130: 0 | K130: 0 | L130: 0 | M130: 0 | N130: 0 | O130: 0 | P130: 0 | Q130: 0 | R130: 0 | S130: 0
A131: Q82 | B131: RN3 | C131: GREAT WESTERN HOSPITALS NHS FOUNDATION TRUST | D131: 7 | E131: 0.8571428571 | F131: 0.1428571429 | G131: * | H131: * | I131: * | J131: * | K131: * | L131: * | M131: * | N131: * | O131: * | P131: * | Q131: * | R131: * | S131: *
A132: Q82 | B132: RTH | C132: OXFORD UNIVERSITY HOSPITALS NHS FOUNDATION TRUST | D132: 91 | E132: 0.967032967 | F132: 0.01098901099 | G132: 63 | H132: 25 | I132: 2 | J132: 1 | K132: 0 | L132: 0 | M132: 0 | N132: 0 | O132: 91 | P132: 0 | Q132: 0 | R132: 0 | S132: 0
A133: Q82 | B133: RHW | C133: ROYAL BERKSHIRE NHS FOUNDATION TRUST | D133: 54 | E133: 0.9444444444 | F133: 0.03703703704 | G133: 45 | H133: 6 | I133: 1 | J133: 2 | K133: 0 | L133: 0 | M133: 0 | N133: 0 | O133: 52 | P133: 0 | Q133: 0 | R133: 2 | S133: 0
A134: Q82 | B134: RD1 | C134: ROYAL UNITED HOSPITALS BATH NHS FOUNDATION TRUST | D134: 24 | E134: 1 | F134: 0 | G134: 20 | H134: 4 | I134: 0 | J134: 0 | K134: 0 | L134: 0 | M134: 0 | N134: 0 | O134: 24 | P134: 0 | Q134: 0 | R134: 0 | S134: 0
A135: Q82 | B135: RNZ | C135: SALISBURY NHS FOUNDATION TRUST | D135: 2 | E135: * | F135: * | G135: * | H135: * | I135: * | J135: * | K135: * | L135: * | M135: * | N135: * | O135: * | P135: * | Q135: * | R135: * | S135: *
A136: Q83 | B136: RMC | C136: BOLTON NHS FOUNDATION TRUST | D136: 142 | E136: 0.985915493 | F136: 0.007042253521 | G136: 111 | H136: 29 | I136: 1 | J136: 0 | K136: 1 | L136: 0 | M136: 0 | N136: 0 | O136: 0 | P136: 142 | Q136: 0 | R136: 0 | S136: 0
A137: Q83 | B137: RY2 | C137: BRIDGEWATER COMMUNITY HEALTHCARE NHS FOUNDATION TRUST | D137: 14 | E137: 1 | F137: 0 | G137: 13 | H137: 1 | I137: 0 | J137: 0 | K137: 0 | L137: 0 | M137: 0 | N137: 0 | O137: 14 | P137: 0 | Q137: 0 | R137: 0 | S137: 0
A138: Q83 | B138: RW3 | C138: CENTRAL MANCHESTER UNIVERSITY HOSPITALS NHS FOUNDATION TRUST | D138: 101 | E138: 0.9900990099 | F138: 0.009900990099 | G138: 88 | H138: 12 | I138: 0 | J138: 1 | K138: 0 | L138: 0 | M138: 0 | N138: 28 | O138: 73 | P138: 0 | Q138: 0 | R138: 0 | S138: 0
A139: Q83 | B139: RW6 | C139: PENNINE ACUTE HOSPITALS NHS TRUST | D139: 20 | E139: 0.9 | F139: 0.1 | G139: 16 | H139: 2 | I139: 0 | J139: 0 | K139: 2 | L139: 0 | M139: 0 | N139: 0 | O139: 20 | P139: 0 | Q139: 0 | R139: 0 | S139: 0
A140: Q83 | B140: RWJ | C140: STOCKPORT NHS FOUNDATION TRUST | D140: 75 | E140: 0.96 | F140: 0.01333333333 | G140: 54 | H140: 18 | I140: 2 | J140: 0 | K140: 1 | L140: 0 | M140: 0 | N140: 0 | O140: 75 | P140: 0 | Q140: 0 | R140: 0 | S140: 0
A141: Q83 | B141: RMP | C141: TAMESIDE AND GLOSSOP INTEGRATED CARE NHS FOUNDATION TRUST | D141: 20 | E141: 0.95 | F141: 0 | G141: 16 | H141: 3 | I141: 1 | J141: 0 | K141: 0 | L141: 0 | M141: 0 | N141: 0 | O141: 20 | P141: 0 | Q141: 0 | R141: 0 | S141: 0
A142: Q83 | B142: RM2 | C142: UNIVERSITY HOSPITAL OF SOUTH MANCHESTER NHS FOUNDATION TRUST | D142: 5 | E142: 0.8 | F142: 0.2 | G142: 4 | H142: 0 | I142: 0 | J142: 0 | K142: 1 | L142: 0 | M142: 0 | N142: 0 | O142: 5 | P142: 0 | Q142: 0 | R142: 0 | S142: 0
A143: Q83 | B143: RRF | C143: WRIGHTINGTON, WIGAN AND LEIGH NHS FOUNDATION TRUST | D143: 6 | E143: 1 | F143: 0 | G143: 6 | H143: 0 | I143: 0 | J143: 0 | K143: 0 | L143: 0 | M143: 2 | N143: 0 | O143: 4 | P143: 0 | Q143: 0 | R143: 0 | S143: 0
A144: Q84 | B144: RXL | C144: BLACKPOOL TEACHING HOSPITALS NHS FOUNDATION TRUST | D144: 77 | E144: 0.961038961 | F144: 0.01298701299 | G144: 48 | H144: 26 | I144: 1 | J144: 1 | K144: 0 | L144: 1 | M144: 0 | N144: 68 | O144: 9 | P144: 0 | Q144: 0 | R144: 0 | S144: 0
A145: Q84 | B145: RXR | C145: EAST LANCASHIRE HOSPITALS NHS TRUST | D145: 83 | E145: 0.9879518072 | F145: 0.01204819277 | G145: 74 | H145: 8 | I145: 0 | J145: 0 | K145: 1 | L145: 0 | M145: 0 | N145: 0 | O145: 83 | P145: 0 | Q145: 0 | R145: 0 | S145: 0
A146: Q84 | B146: RXN | C146: LANCASHIRE TEACHING HOSPITALS NHS FOUNDATION TRUST | D146: 47 | E146: 0.914893617 | F146: 0.04255319149 | G146: 38 | H146: 5 | I146: 2 | J146: 0 | K146: 2 | L146: 0 | M146: 47 | N146: 0 | O146: 0 | P146: 0 | Q146: 0 | R146: 0 | S146: 0

Sheet Sites Q1
B6: Sort data by:
A9: Region (Geo) Code | B9: Trust Code | C9: Trust Name | D9: Site Code | E9: Site Name | F9: Total Responses | G9: Percentage Recommended | H9: Percentage Not Recommended | I9: Breakdown of Responses
I10: Extremely Likely | J10: Likely | K10: Neither | L10: Unlikely | M10: Extremely Unlikely | N10: Don't Know
E11: England | F11: 6239 | G11: 0.9665010418 | H11: 0.01650905594 | I11: 4767 | J11: 1263 | K11: 79 | L11: 43 | M11: 60 | N11: 27
E12: Selection (excluding suppressed data) | F12: =SUBTOTAL(9,F13:F298) -> 6239 | G12: =IFERROR((I12+J12)/SUM(I12:N12), "-") -> 0.9674355495 | H12: =IFERROR((L12+M12)/SUM(I12:N12), "-") -> 0.01611261872 | I12: =SUBTOTAL(9,I13:I298) -> 4521 | J12: =SUBTOTAL(9,J13:J298) -> 1183 | K12: 74 | L12: 41 | M12: 54 | N12: 23
A13: Q70 | B13: RBD | C13: DORSET COUNTY HOSPITAL NHS FOUNDATION TRUST | D13: RBD01 | E13: Dorset County Hospital - RBD01 | F13: 20 | G13: 0.95 | H13: 0.05 | I13: 14 | J13: 5 | K13: 0 | L13: 0 | M13: 1 | N13: 0
A14: Q70 | B14: RN5 | C14: HAMPSHIRE HOSPITALS NHS FOUNDATION TRUST | D14: RN542 | E14: Andover War Memorial Hospital - RN542 | F14: 27 | G14: 1 | H14: 0 | I14: 23 | J14: 4 | K14: 0 | L14: 0 | M14: 0 | N14: 0
A15: Q70 | B15: RN5 | C15: HAMPSHIRE HOSPITALS NHS FOUNDATION TRUST | D15: RN506 | E15: Basingstoke and North Hampshire Hospital - RN506 | F15: 14 | G15: 1 | H15: 0 | I15: 14 | J15: 0 | K15: 0 | L15: 0 | M15: 0 | N15: 0
A16: Q70 | B16: RN5 | C16: HAMPSHIRE HOSPITALS NHS FOUNDATION TRUST | D16: RN541 | E16: Royal Hampshire County Hospital - RN541 | F16: 8 | G16: 1 | H16: 0 | I16: 5 | J16: 3 | K16: 0 | L16: 0 | M16: 0 | N16: 0
A17: Q70 | B17: R1F | C17: ISLE OF WIGHT NHS TRUST | D17: R1F01 | E17: St Mary's Hospital - R1F01 | F17: 0 | G17: NA | H17: NA | I17: 0 | J17: 0 | K17: 0 | L17: 0 | M17: 0 | N17: 0
A18: Q70 | B18: RD3 | C18: POOLE HOSPITAL NHS FOUNDATION TRUST | D18: RD304 | E18: Poole General Hospital NHS Trust HQ - RD304 | F18: 45 | G18: 0.8888888889 | H18: 0.04444444444 | I18: 27 | J18: 13 | K18: 3 | L18: 1 | M18: 1 | N18: 0
A19: Q70 | B19: RHU | C19: PORTSMOUTH HOSPITALS NHS TRUST | D19: RHU10 | E19: Gosport War Memorial Hospital - RHU10 | F19: 20 | G19: 1 | H19: 0 | I19: 17 | J19: 3 | K19: 0 | L19: 0 | M19: 0 | N19: 0
A20: Q70 | B20: RHU | C20: PORTSMOUTH HOSPITALS NHS TRUST | D20: RHU04 | E20: Petersfield Community Hospital - RHU04 | F20: 4 | G20: * | H20: * | I20: * | J20: * | K20: * | L20: * | M20: * | N20: *
A21: Q70 | B21: RHU | C21: PORTSMOUTH HOSPITALS NHS TRUST | D21: RHU03 | E21: Queen Alexandra Hospital - RHU03 | F21: 5 | G21: 1 | H21: 0 | I21: * | J21: * | K21: * | L21: * | M21: * | N21: *
A22: Q70 | B22: RHU | C22: PORTSMOUTH HOSPITALS NHS TRUST | D22: RHU02 | E22: St Mary's Hospital - RHU02 | F22: 21 | G22: 1 | H22: 0 | I22: 19 | J22: 2 | K22: 0 | L22: 0 | M22: 0 | N22: 0
A23: Q70 | B23: RDZ | C23: THE ROYAL BOURNEMOUTH AND CHRISTCHURCH HOSPITALS NHS FOUNDATION TRUST | D23: RDZ20 | E23: Royal Bournemouth General Hospital - RDZ20 | F23: 140 | G23: 0.9857142857 | H23: 0 | I23: 117 | J23: 21 | K23: 2 | L23: 0 | M23: 0 | N23: 0
A24: Q70 | B24: RHM | C24: UNIVERSITY HOSPITAL SOUTHAMPTON NHS FOUNDATION TRUST | D24: RHM12 | E24: Princess Anne Hospital - RHM12 | F24: 160 | G24: 0.975 | H24: 0.0125 | I24: 125 | J24: 31 | K24: 2 | L24: 2 | M24: 0 | N24: 0
A25: Q71 | B25: RF4 | C25: BARKING, HAVERING AND REDBRIDGE UNIVERSITY HOSPITALS NHS TRUST | D25: RF4QH | E25: Queen's Hospital - RF4QH | F25: 198 | G25: 0.9898989899 | H25: 0 | I25: 165 | J25: 31 | K25: 2 | L25: 0 | M25: 0 | N25: 0
A26: Q71 | B26: R1H | C26: BARTS HEALTH NHS TRUST | D26: R1HNH | E26: Newham General Hospital - R1HNH | F26: 23 | G26: 1 | H26: 0 | I26: 22 | J26: 1 | K26: 0 | L26: 0 | M26: 0 | N26: 0
A27: Q71 | B27: R1H | C27: BARTS HEALTH NHS TRUST | D27: R1H12 | E27: The Royal London Hospital - R1H12 | F27: 29 | G27: 0.7586206897 | H27: 0.1379310345 | I27: 9 | J27: 13 | K27: 0 | L27: 3 | M27: 1 | N27: 3
A28: Q71 | B28: R1H | C28: BARTS HEALTH NHS TRUST | D28: R1HKH | E28: Whipps Cross University Hospital - R1HKH | F28: 0 | G28: NA | H28: NA | I28: 0 | J28: 0 | K28: 0 | L28: 0 | M28: 0 | N28: 0
A29: Q71 | B29: RQM | C29: CHELSEA AND WESTMINSTER HOSPITAL NHS FOUNDATION TRUST | D29: RQM01 | E29: Chelsea and Westminster Hospital - RQM01 | F29: 48 | G29: 0.8958333333 | H29: 0.1041666667 | I29: 30 | J29: 13 | K29: 0 | L29: 2 | M29: 3 | N29: 0
A30: Q71 | B30: RQM | C30: CHELSEA AND WESTMINSTER HOSPITAL NHS FOUNDATION TRUST | D30: RQM91 | E30: West Middlesex University Hospital - RQM91 | F30: 38 | G30: 0.8684210526 | H30: 0.1052631579 | I30: 23 | J30: 10 | K30: 1 | L30: 1 | M30: 3 | N30: 0
A31: Q71 | B31: RJ6 | C31: CROYDON HEALTH SERVICES NHS TRUST | D31: RJ611 | E31: Croydon University Hospital - RJ611 | F31: 42 | G31: 0.9761904762 | H31: 0.02380952381 | I31: 35 | J31: 6 | K31: 0 | L31: 0 | M31: 1 | N31: 0
A32: Q71 | B32: RVR | C32: EPSOM AND ST HELIER UNIVERSITY HOSPITALS NHS TRUST | D32: RVR50 | E32: Epsom Hospital - RVR50 | F32: 2 | G32: * | H32: * | I32: * | J32: * | K32: * | L32: * | M32: * | N32: *
A33: Q71 | B33: RVR | C33: EPSOM AND ST HELIER UNIVERSITY HOSPITALS NHS TRUST | D33: RVRXXX | E33: Non-hospital site - RVRXXX | F33: 2 | G33: * | H33: * | I33: * | J33: * | K33: * | L33: * | M33: * | N33: *
A34: Q71 | B34: RVR | C34: EPSOM AND ST HELIER UNIVERSITY HOSPITALS NHS TRUST | D34: RVR05 | E34: St Helier Hospital - RVR05 | F34: 6 | G34: 1 | H34: 0 | I34: 4 | J34: 2 | K34: 0 | L34: 0 | M34: 0 | N34: 0
A35: Q71 | B35: RJ1 | C35: GUY'S AND ST THOMAS' NHS FOUNDATION TRUST | D35: RJ122 | E35: St Thomas' Hospital - RJ122 | F35: 4 | G35: * | H35: * | I35: * | J35: * | K35: * | L35: * | M35: * | N35: *
A36: Q71 | B36: RQX | C36: HOMERTON UNIVERSITY HOSPITAL NHS FOUNDATION TRUST | D36: RQXM1 | E36: Homerton University Hospital - RQXM1 | F36: 70 | G36: 0.8857142857 | H36: 0.07142857143 | I36: 46 | J36: 16 | K36: 3 | L36: 2 | M36: 3 | N36: 0
A37: Q71 | B37: RYJ | C37: IMPERIAL COLLEGE HEALTHCARE NHS TRUST | D37: RYJ04 | E37: Queen Charlotte's Hospital - RYJ04 | F37: 32 | G37: 0.9375 | H37: 0.03125 | I37: 18 | J37: 12 | K37: 1 | L37: 0 | M37: 1 | N37: 0
A38: Q71 | B38: RYJ | C38: IMPERIAL COLLEGE HEALTHCARE NHS TRUST | D38: RYJ01 | E38: St Mary's Hospital (HQ) - RYJ01 | F38: 44 | G38: 0.9318181818 | H38: 0.02272727273 | I38: 22 | J38: 19 | K38: 1 | L38: 0 | M38: 1 | N38: 1
A39: Q71 | B39: RJZ | C39: KING'S COLLEGE HOSPITAL NHS FOUNDATION TRUST | D39: RJZ01 | E39: King's College Hospital (Denmark Hill) - RJZ01 | F39: 27 | G39: 0.8518518519 | H39: 0.07407407407 | I39: 20 | J39: 3 | K39: 2 | L39: 1 | M39: 1 | N39: 0
A40: Q71 | B40: RJZ | C40: KING'S COLLEGE HOSPITAL NHS FOUNDATION TRUST | D40: RJZ30 | E40: Princess Royal University Hospital - RJZ30 | F40: 5 | G40: 1 | H40: 0 | I40: 5 | J40: 0 | K40: 0 | L40: 0 | M40: 0 | N40: 0
A41: Q71 | B41: RAX | C41: KINGSTON HOSPITAL NHS FOUNDATION TRUST | D41: RAX01 | E41: Kingston Hospital - RAX01 | F41: 43 | G41: 1 | H41: 0 | I41: 29 | J41: 14 | K41: 0 | L41: 0 | M41: 0 | N41: 0
A42: Q71 | B42: RAX | C42: KINGSTON HOSPITAL NHS FOUNDATION TRUST | D42: RAXXXX | E42: Non-hospital site - RAXXXX | F42: 11 | G42: 0.9090909091 | H42: 0 | I42: 8 | J42: 2 | K42: 1 | L42: 0 | M42: 0 | N42: 0
A43: Q71 | B43: RJ2 | C43: LEWISHAM AND GREENWICH NHS TRUST | D43: RJ2XXX | E43: Non-hospital site - RJ2XXX | F43: 77 | G43: 0.974025974 | H43: 0.01298701299 | I43: 52 | J43: 23 | K43: 1 | L43: 1 | M43: 0 | N43: 0
A44: Q71 | B44: RJ2 | C44: LEWISHAM AND GREENWICH NHS TRUST | D44: RJ231 | E44: Queen Elizabeth Hospital - RJ231 | F44: 3 | G44: * | H44: * | I44: * | J44: * | K44: * | L44: * | M44: * | N44: *
A45: Q71 | B45: RJ2 | C45: LEWISHAM AND GREENWICH NHS TRUST | D45: RJ224 | E45: University Hospital Lewisham - RJ224 | F45: 28 | G45: 0.9285714286 | H45: 0.03571428571 | I45: * | J45: * | K45: * | L45: * | M45: * | N45: *
A46: Q71 | B46: R1K | C46: LONDON NORTH WEST HEALTHCARE NHS TRUST | D46: R1K02 | E46: Central Middlesex Hospital - R1K02 | F46: 6 | G46: 0.8333333333 | H46: 0.1666666667 | I46: 3 | J46: 2 | K46: 0 | L46: 1 | M46: 0 | N46: 0
A47: Q71 | B47: R1K | C47: LONDON NORTH WEST HEALTHCARE NHS TRUST | D47: R1K04 | E47: Ealing Hospital - R1K04 | F47: 0 | G47: NA | H47: NA | I47: 0 | J47: 0 | K47: 0 | L47: 0 | M47: 0 | N47: 0
A48: Q71 | B48: R1K | C48: LONDON NORTH WEST HEALTHCARE NHS TRUST | D48: R1KXXX | E48: Non-hospital site - R1KXXX | F48: 17 | G48: 0.9411764706 | H48: 0 | I48: 16 | J48: 0 | K48: 0 | L48: 0 | M48: 0 | N48: 1
A49: Q71 | B49: R1K | C49: LONDON NORTH WEST HEALTHCARE NHS TRUST | D49: R1K01 | E49: Northwick Park Hospital - R1K01 | F49: 15 | G49: 1 | H49: 0 | I49: 13 | J49: 2 | K49: 0 | L49: 0 | M49: 0 | N49: 0
A50: Q71 | B50: RAP | C50: NORTH MIDDLESEX UNIVERSITY HOSPITAL NHS TRUST | D50: RAPNM | E50: North Middlesex Hospital - RAPNM | F50: 33 | G50: 0.9696969697 | H50: 0 | I50: 22 | J50: 10 | K50: 0 | L50: 0 | M50: 0 | N50: 1
A51: Q71 | B51: RAL | C51: ROYAL FREE LONDON NHS FOUNDATION TRUST | D51: RAL26 | E51: Barnet Hospital - RAL26 | F51: 9 | G51: 1 | H51: 0 | I51: 4 | J51: 5 | K51: 0 | L51: 0 | M51: 0 | N51: 0
A52: Q71 | B52: RAL | C52: ROYAL FREE LONDON NHS FOUNDATION TRUST | D52: RAL01 | E52: Royal Free Hospital - RAL01 | F52: 8 | G52: 0.875 | H52: 0.125 | I52: 7 | J52: 0 | K52: 0 | L52: 1 | M52: 0 | N52: 0
A53: Q71 | B53: RJ7 | C53: ST GEORGE'S UNIVERSITY HOSPITALS NHS FOUNDATION TRUST | D53: RJ701 | E53: St George's Hospital (Tooting) - RJ701 | F53: 0 | G53: NA | H53: NA | I53: 0 | J53: 0 | K53: 0 | L53: 0 | M53: 0 | N53: 0
A54: Q71 | B54: RAS | C54: THE HILLINGDON HOSPITALS NHS FOUNDATION TRUST | D54: RAS01 | E54: Hillingdon Hospital - RAS01 | F54: 103 | G54: 0.9514563107 | H54: 0 | I54: 69 | J54: 29 | K54: 2 | L54: 0 | M54: 0 | N54: 3
A55: Q71 | B55: RKE | C55: THE WHITTINGTON HOSPITAL NHS TRUST | D55: RKEXXX | E55: Non-hospital site - RKEXXX | F55: 23 | G55: 1 | H55: 0 | I55: * | J55: * | K55: * | L55: * | M55: * | N55: *
A56: Q71 | B56: RKE | C56: THE WHITTINGTON HOSPITAL NHS TRUST | D56: RKEQ4 | E56: The Whittington Hospital - RKEQ4 | F56: 1 | G56: * | H56: * | I56: * | J56: * | K56: * | L56: * | M56: * | N56: *
A57: Q71 | B57: RRV | C57: UNIVERSITY COLLEGE LONDON HOSPITALS NHS FOUNDATION TRUST | D57: RRV03 | E57: University College Hospital - RRV03 | F57: 45 | G57: 0.8888888889 | H57: 0.08888888889 | I57: 31 | J57: 9 | K57: 1 | L57: 2 | M57: 2 | N57: 0
A58: Q72 | B58: RCF | C58: AIREDALE NHS FOUNDATION TRUST | D58: RCF22 | E58: Airedale General Hospital - RCF22 | F58: 9 | G58: 1 | H58: 0 | I58: 7 | J58: 2 | K58: 0 | L58: 0 | M58: 0 | N58: 0
A59: Q72 | B59: RFF | C59: BARNSLEY HOSPITAL NHS FOUNDATION TRUST | D59: RFFAA | E59: Barnsley Hospital NHS Foundation Trust HQ - RFFAA | F59: 57 | G59: 1 | H59: 0 | I59: 48 | J59: 9 | K59: 0 | L59: 0 | M59: 0 | N59: 0
A60: Q72 | B60: RAE | C60: BRADFORD TEACHING HOSPITALS NHS FOUNDATION TRUST | D60: RAE01 | E60: Bradford Royal Infirmary - RAE01 | F60: 12 | G60: 1 | H60: 0 | I60: 9 | J60: 3 | K60: 0 | L60: 0 | M60: 0 | N60: 0
A61: Q72 | B61: RAE | C61: BRADFORD TEACHING HOSPITALS NHS FOUNDATION TRUST | D61: RAEXXX | E61: Non-hospital site - RAEXXX | F61: 0 | G61: NA | H61: NA | I61: 0 | J61: 0 | K61: 0 | L61: 0 | M61: 0 | N61: 0
A62: Q72 | B62: RWY | C62: CALDERDALE AND HUDDERSFIELD NHS FOUNDATION TRUST | D62: RWYXXX | E62: Non-hospital site - RWYXXX | F62: 188 | G62: 0.9734042553 | H62: 0.005319148936 | I62: 139 | J62: 44 | K62: 4 | L62: 0 | M62: 1 | N62: 0
A63: Q72 | B63: RP5 | C63: DONCASTER AND BASSETLAW TEACHING HOSPITALS NHS FOUNDATION TRUST | D63: RP5BA | E63: Bassetlaw Hospital - RP5BA | F63: 97 | G63: 0.9896907216 | H63: 0.01030927835 | I63: 75 | J63: 21 | K63: 0 | L63: 0 | M63: 1 | N63: 0
A64: Q72 | B64: RP5 | C64: DONCASTER AND BASSETLAW TEACHING HOSPITALS NHS FOUNDATION TRUST | D64: RP5DR | E64: Doncaster Royal Infirmary - RP5DR | F64: 5 | G64: 1 | H64: 0 | I64: 2 | J64: 3 | K64: 0 | L64: 0 | M64: 0 | N64: 0
A65: Q72 | B65: RP5 | C65: DONCASTER AND BASSETLAW TEACHING HOSPITALS NHS FOUNDATION TRUST | D65: RP5XXX | E65: Non-hospital site - RP5XXX | F65: 31 | G65: 0.935483871 | H65: 0.03225806452 | I65: 25 | J65: 4 | K65: 1 | L65: 0 | M65: 1 | N65: 0
A66: Q72 | B66: RCD | C66: HARROGATE AND DISTRICT NHS FOUNDATION TRUST | D66: RCD01 | E66: Harrogate District Hospital - RCD01 | F66: 8 | G66: 1 | H66: 0 | I66: 8 | J66: 0 | K66: 0 | L66: 0 | M66: 0 | N66: 0
A67: Q72 | B67: RCD | C67: HARROGATE AND DISTRICT NHS FOUNDATION TRUST | D67: RCDXXX | E67: Non-hospital site - RCDXXX | F67: 14 | G67: 1 | H67: 0 | I67: 13 | J67: 1 | K67: 0 | L67: 0 | M67: 0 | N67: 0
A68: Q72 | B68: RWA | C68: HULL AND EAST YORKSHIRE HOSPITALS NHS TRUST | D68: RWA01 | E68: Hull Royal Infirmary - RWA01 | F68: 44 | G68: 0.9772727273 | H68: 0 | I68: 28 | J68: 15 | K68: 1 | L68: 0 | M68: 0 | N68: 0
A69: Q72 | B69: RR8 | C69: LEEDS TEACHING HOSPITALS NHS TRUST | D69: RR801 | E69: Leeds General Infirmary - RR801 | F69: 2 | G69: * | H69: * | I69: * | J69: * | K69: * | L69: * | M69: * | N69: *
A70: Q72 | B70: RR8 | C70: LEEDS TEACHING HOSPITALS NHS TRUST | D70: RR8XXX | E70: Non-Hospital Site - RR8XXX | F70: 19 | G70: 0.9473684211 | H70: 0 | I70: * | J70: * | K70: * | L70: * | M70: * | N70: *
A71: Q72 | B71: RR8 | C71: LEEDS TEACHING HOSPITALS NHS TRUST | D71: RR813 | E71: St James's University Hospital - RR813 | F71: 0 | G71: NA | H71: NA | I71: 0 | J71: 0 | K71: 0 | L71: 0 | M71: 0 | N71: 0
A72: Q72 | B72: RXF | C72: MID YORKSHIRE HOSPITALS NHS TRUST | D72: RXF10 | E72: Dewsbury and District Hospital - RXF10 | F72: 7 | G72: 0.7142857143 | H72: 0.2857142857 | I72: 4 | J72: 1 | K72: 0 | L72: 1 | M72: 1 | N72: 0
A73: Q72 | B73: RXF | C73: MID YORKSHIRE HOSPITALS NHS TRUST | D73: RXFXXX | E73: Non-hospital site - RXFXXX | F73: 85 | G73: 1 | H73: 0 | I73: 68 | J73: 17 | K73: 0 | L73: 0 | M73: 0 | N73: 0
A74: Q72 | B74: RXF | C74: MID YORKSHIRE HOSPITALS NHS TRUST | D74: RXF05 | E74: Pinderfields General Hospital - RXF05 | F74: 14 | G74: 0.9285714286 | H74: 0 | I74: 10 | J74: 3 | K74: 1 | L74: 0 | M74: 0 | N74: 0
A75: Q72 | B75: RXF | C75: MID YORKSHIRE HOSPITALS NHS TRUST | D75: RXF03 | E75: Pontefract General Infirmary - RXF03 | F75: 21 | G75: 0.9523809524 | H75: 0.04761904762 | I75: 13 | J75: 7 | K75: 0 | L75: 0 | M75: 1 | N75: 0
A76: Q72 | B76: RJL | C76: NORTHERN LINCOLNSHIRE AND GOOLE NHS FOUNDATION TRUST | D76: RJL30 | E76: Diana, Princess Of Wales Hospital - RJL30 | F76: 3 | G76: * | H76: * | I76: * | J76: * | K76: * | L76: * | M76: * | N76: *
A77: Q72 | B77: RJL | C77: NORTHERN LINCOLNSHIRE AND GOOLE NHS FOUNDATION TRUST | D77: RJL32 | E77: Scunthorpe General Hospital - RJL32 | F77: 49 | G77: 0.9795918367 | H77: 0.02040816327 | I77: * | J77: * | K77: * | L77: * | M77: * | N77: *
A78: Q72 | B78: RHQ | C78: SHEFFIELD TEACHING HOSPITALS NHS FOUNDATION TRUST | D78: RHQHH | E78: Royal Hallamshire Hospital - RHQHH | F78: 85 | G78: 0.9647058824 | H78: 0.02352941176 | I78: 55 | J78: 27 | K78: 0 | L78: 2 | M78: 0 | N78: 1
A79: Q72 | B79: RFR | C79: THE ROTHERHAM NHS FOUNDATION TRUST | D79: RFRPA | E79: Rotherham District General Hospital - RFRPA | F79: 89 | G79: 1 | H79: 0 | I79: 75 | J79: 14 | K79: 0 | L79: 0 | M79: 0 | N79: 0
A80: Q72 | B80: RCB | C80: YORK TEACHING HOSPITAL NHS FOUNDATION TRUST | D80: RCBCA | E80: Scarborough General Hospital - RCBCA | F80: 81 | G80: 0.987654321 | H80: 0 | I80: 62 | J80: 18 | K80: 1 | L80: 0 | M80: 0 | N80: 0
A81: Q72 | B81: RCB | C81: YORK TEACHING HOSPITAL NHS FOUNDATION TRUST | D81: RCB55 | E81: York Hospital - RCB55 | F81: 43 | G81: 0.9534883721 | H81: 0 | I81: 36 | J81: 5 | K81: 1 | L81: 0 | M81: 0 | N81: 1
A82: Q74 | B82: RLN | C82: CITY HOSPITALS SUNDERLAND NHS FOUNDATION TRUST | D82: RLNGL | E82: Sunderland Royal Hospital - RLNGL | F82: 10 | G82: 0.8 | H82: 0.2 | I82: * | J82: * | K82: * | L82: * | M82: * | N82: *
A83: Q74 | B83: RXP | C83: COUNTY DURHAM AND DARLINGTON NHS FOUNDATION TRUST | D83: RXPCP | E83: University Hospital Of North Durham - RXPCP | F83: 21 | G83: 1 | H83: 0 | I83: 15 | J83: 6 | K83: 0 | L83: 0 | M83: 0 | N83: 0
A84: Q74 | B84: RR7 | C84: GATESHEAD HEALTH NHS FOUNDATION TRUST | D84: RR7EN | E84: Queen Elizabeth Hospital - RR7EN | F84: 1 | G84: * | H84: * | I84: * | J84: * | K84: * | L84: * | M84: * | N84: *
A85: Q74 | B85: RNL | C85: NORTH CUMBRIA UNIVERSITY HOSPITALS NHS TRUST | D85: RNLXXX | E85: Non-hospital site - RNLXXX | F85: 25 | G85: 0.92 | H85: 0.08 | I85: 23 | J85: 0 | K85: 0 | L85: 0 | M85: 2 | N85: 0
A86: Q74 | B86: RVW | C86: NORTH TEES AND HARTLEPOOL NHS FOUNDATION TRUST | D86: RVWXXX | E86: Non-hospital site - RVWXXX | F86: 23 | G86: 1 | H86: 0 | I86: 21 | J86: 2 | K86: 0 | L86: 0 | M86: 0 | N86: 0
A87: Q74 | B87: RTF | C87: NORTHUMBRIA HEALTHCARE NHS FOUNDATION TRUST | D87: RTFXXX | E87: Non-hospital site - RTFXXX | F87: 108 | G87: 0.9814814815 | H87: 0.01851851852 | I87: 96 | J87: 10 | K87: 0 | L87: 1 | M87: 1 | N87: 0
A88: Q74 | B88: RTR | C88: SOUTH TEES HOSPITALS NHS FOUNDATION TRUST | D88: RTRXXX | E88: Non-hospital site - RTRXXX | F88: 13 | G88: 0.9230769231 | H88: 0 | I88: 12 | J88: 0 | K88: 1 | L88: 0 | M88: 0 | N88: 0
A89: Q74 | B89: RE9 | C89: SOUTH TYNESIDE NHS FOUNDATION TRUST | D89: RE9GA | E89: South Tyneside District Hospital - RE9GA | F89: 36 | G89: 0.9722222222 | H89: 0 | I89: 22 | J89: 13 | K89: 0 | L89: 0 | M89: 0 | N89: 1
A90: Q74 | B90: RTD | C90: THE NEWCASTLE UPON TYNE HOSPITALS NHS FOUNDATION TRUST | D90: RTD02 | E90: The Royal Victoria Infirmary - RTD02 | F90: 0 | G90: NA | H90: NA | I90: 0 | J90: 0 | K90: 0 | L90: 0 | M90: 0 | N90: 0
A91: Q74 | B91: RTX | C91: UNIVERSITY HOSPITALS OF MORECAMBE BAY NHS FOUNDATION TRUST | D91: RTXBU | E91: Furness General Hospital - RTXBU | F91: 8 | G91: 1 | H91: 0 | I91: 7 | J91: 1 | K91: 0 | L91: 0 | M91: 0 | N91: 0
A92: Q74 | B92: RTX | C92: UNIVERSITY HOSPITALS OF MORECAMBE BAY NHS FOUNDATION TRUST | D92: RTX02 | E92: Royal Lancaster Infirmary - RTX02 | F92: 12 | G92: 1 | H92: 0 | I92: 10 | J92: 2 | K92: 0 | L92: 0 | M92: 0 | N92: 0
A93: Q75 | B93: RJR | C93: COUNTESS OF CHESTER HOSPITAL NHS FOUNDATION TRUST | D93: RJR05 | E93: Countess Of Chester Hospital - RJR05 | F93: 11 | G93: 1 | H93: 0 | I93: 10 | J93: 1 | K93: 0 | L93: 0 | M93: 0 | N93: 0
A94: Q75 | B94: RJR | C94: COUNTESS OF CHESTER HOSPITAL NHS FOUNDATION TRUST | D94: RJRXXX | E94: Non-hospital site - RJRXXX | F94: 0 | G94: NA | H94: NA | I94: 0 | J94: 0 | K94: 0 | L94: 0 | M94: 0 | N94: 0
A95: Q75 | B95: RJN | C95: EAST CHESHIRE NHS TRUST | D95: RJN71 | E95: Macclesfield District General Hospital - RJN71 | F95: 11 | G95: 1 | H95: 0 | I95: 10 | J95: 1 | K95: 0 | L95: 0 | M95: 0 | N95: 0
A96: Q75 | B96: REP | C96: LIVERPOOL WOMEN'S NHS FOUNDATION TRUST | D96: REP01 | E96: Liverpool Womens Hospital - REP01 | F96: 1 | G96: * | H96: * | I96: * | J96: * | K96: * | L96: * | M96: * | N96: *
A97: Q75 | B97: RBT | C97: MID CHESHIRE HOSPITALS NHS FOUNDATION TRUST | D97: RBT20 | E97: Leighton Hospital - RBT20 | F97: 31 | G97: 0.9677419355 | H97: 0 | I97: 22 | J97: 8 | K97: 0 | L97: 0 | M97: 0 | N97: 1
A98: Q75 | B98: RVY | C98: SOUTHPORT AND ORMSKIRK HOSPITAL NHS TRUST | D98: RVYXXX | E98: Non-hospital site - RVYXXX | F98: 1 | G98: * | H98: * | I98: * | J98: * | K98: * | L98: * | M98: * | N98: *
A99: Q75 | B99: RBN | C99: ST HELENS AND KNOWSLEY HOSPITAL SERVICES NHS TRUST | D99: RBN01 | E99: Whiston Hospital - RBN01 | F99: 9 | G99: 0.8888888889 | H99: 0 | I99: 7 | J99: 1 | K99: 1 | L99: 0 | M99: 0 | N99: 0
A100: Q75 | B100: RWW | C100: WARRINGTON AND HALTON HOSPITALS NHS FOUNDATION TRUST | D100: RWWWH | E100: Warrington Hospital - RWWWH | F100: 45 | G100: 0.9777777778 | H100: 0 | I100: 41 | J100: 3 | K100: 1 | L100: 0 | M100: 0 | N100: 0
A101: Q75 | B101: RBL | C101: WIRRAL UNIVERSITY TEACHING HOSPITAL NHS FOUNDATION TRUST | D101: RBL14 | E101: Arrowe Park Hospital - RBL14 | F101: 1 | G101: * | H101: * | I101: * | J101: * | K101: * | L101: * | M101: * | N101: *
A102: Q76 | B102: RJF | C102: BURTON HOSPITALS NHS FOUNDATION TRUST | D102: RJF02 | E102: Queen's Hospital, Burton Upon Trent - RJF02 | F102: 8 | G102: 1 | H102: 0 | I102: 7 | J102: 1 | K102: 0 | L102: 0 | M102: 0 | N102: 0
A103: Q76 | B103: RFS | C103: CHESTERFIELD ROYAL HOSPITAL NHS FOUNDATION TRUST | D103: RFSDA | E103: Chesterfield Royal Hospital - RFSDA | F103: 48 | G103: 1 | H103: 0 | I103: 38 | J103: 10 | K103: 0 | L103: 0 | M103: 0 | N103: 0
A104: Q76 | B104: RTG | C104: DERBY TEACHING HOSPITALS NHS FOUNDATION TRUST | D104: RTGFG | E104: Royal Derby Hospital - RTGFG | F104: 60 | G104: 0.9666666667 | H104: 0.01666666667 | I104: 43 | J104: 15 | K104: 0 | L104: 0 | M104: 1 | N104: 1
A105: Q76 | B105: RX1 | C105: NOTTINGHAM UNIVERSITY HOSPITALS NHS TRUST | D105: RX1XXX | E105: Non-hospital site - RX1XXX | F105: 151 | G105: 0.9933774834 | H105: 0 | I105: 133 | J105: 17 | K105: 1 | L105: 0 | M105: 0 | N105: 0
A106: Q76 | B106: RK5 | C106: SHERWOOD FOREST HOSPITALS NHS FOUNDATION TRUST | D106: RK5BC | E106: King's Mill Hospital - RK5BC | F106: 66 | G106: 0.9242424242 | H106: 0 | I106: 37 | J106: 24 | K106: 4 | L106: 0 | M106: 0 | N106: 1
A107: Q76 | B107: RXW | C107: SHREWSBURY AND TELFORD HOSPITAL NHS TRUST | D107: RXWXXX | E107: Non-hospital site - RXWXXX | F107: 6 | G107: 1 | H107: 0 | I107: 5 | J107: 1 | K107: 0 | L107: 0 | M107: 0 | N107: 0
A108: Q76 | B108: RJE | C108: UNIVERSITY HOSPITALS OF NORTH MIDLANDS NHS TRUST | D108: RJE09 | E108: County Hospital - RJE09 | F108: 13 | G108: 1 | H108: 0 | I108: 12 | J108: 1 | K108: 0 | L108: 0 | M108: 0 | N108: 0
A109: Q76 | B109: RJE | C109: UNIVERSITY HOSPITALS OF NORTH MIDLANDS NHS TRUST | D109: RJE01 | E109: Royal Stoke University Hospital - RJE01 | F109: 21 | G109: 1 | H109: 0 | I109: 16 | J109: 5 | K109: 0 | L109: 0 | M109: 0 | N109: 0
A110: Q77 | B110: RQ3 | C110: BIRMINGHAM WOMEN'S AND CHILDREN'S NHS FOUNDATION TRUST | D110: RQ370 | E110: Birmingham Women's Hospital - RQ370 | F110: 118 | G110: 0.813559322 | H110: 0.1186440678 | I110: 73 | J110: 23 | K110: 5 | L110: 8 | M110: 6 | N110: 3
A111: Q77 | B111: RLT | C111: GEORGE ELIOT HOSPITAL NHS TRUST | D111: RLT01 | E111: George Eliot Hospital - Acute Services - RLT01 | F111: 33 | G111: 0.9696969697 | H111: 0.0303030303 | I111: 28 | J111: 4 | K111: 0 | L111: 0 | M111: 1 | N111: 0
A112: Q77 | B112: RR1 | C112: HEART OF ENGLAND NHS FOUNDATION TRUST | D112: RR105 | E112: Good Hope Hospital - RR105 | F112: 12 | G112: 1 | H112: 0 | I112: 11 | J112: 1 | K112: 0 | L112: 0 | M112: 0 | N112: 0
A113: Q77 | B113: RR1 | C113: HEART OF ENGLAND NHS FOUNDATION TRUST | D113: RR101 | E113: Heartlands Hospital - RR101 | F113: 0 | G113: NA | H113: NA | I113: 0 | J113: 0 | K113: 0 | L113: 0 | M113: 0 | N113: 0
A114: Q77 | B114: RR1 | C114: HEART OF ENGLAND NHS FOUNDATION TRUST | D114: RR109 | E114: Solihull Hospital - RR109 | F114: 0 | G114: NA | H114: NA | I114: 0 | J114: 0 | K114: 0 | L114: 0 | M114: 0 | N114: 0
A115: Q77 | B115: RXK | C115: SANDWELL AND WEST BIRMINGHAM HOSPITALS NHS TRUST | D115: RXK02 | E115: City Hospital - RXK02 | F115: 8 | G115: 0.875 | H115: 0 | I115: 3 | J115: 4 | K115: 1 | L115: 0 | M115: 0 | N115: 0
A116: Q77 | B116: RXK | C116: SANDWELL AND WEST BIRMINGHAM HOSPITALS NHS TRUST | D116: RXK01 | E116: Sandwell General Hospital - RXK01 | F116: 0 | G116: NA | H116: NA | I116: 0 | J116: 0 | K116: 0 | L116: 0 | M116: 0 | N116: 0
A117: Q77 | B117: RJC | C117: SOUTH WARWICKSHIRE NHS FOUNDATION TRUST | D117: RJCXXX | E117: Non-hospital site - RJCXXX | F117: 13 | G117: 1 | H117: 0 | I117: 6 | J117: 7 | K117: 0 | L117: 0 | M117: 0 | N117: 0
A118: Q77 | B118: RNA | C118: THE DUDLEY GROUP NHS FOUNDATION TRUST | D118: RNAXXX | E118: Non-hospital site - RNAXXX | F118: 28 | G118: 1 | H118: 0 | I118: 28 | J118: 0 | K118: 0 | L118: 0 | M118: 0 | N118: 0
A119: Q77 | B119: RNA | C119: THE DUDLEY GROUP NHS FOUNDATION TRUST | D119: RNA01 | E119: Russells Hall Hospital - RNA01 | F119: 20 | G119: 1 | H119: 0 | I119: 16 | J119: 4 | K119: 0 | L119: 0 | M119: 0 | N119: 0
A120: Q77 | B120: RL4 | C120: THE ROYAL WOLVERHAMPTON NHS TRUST | D120: RL403 | E120: New Cross Hospital - RL403 | F120: 22 | G120: 1 | H120: 0 | I120: 20 | J120: 2 | K120: 0 | L120: 0 | M120: 0 | N120: 0
A121: Q77 | B121: RKB | C121: UNIVERSITY HOSPITALS COVENTRY AND WARWICKSHIRE NHS TRUST | D121: RKB03 | E121: Hospital Of St Cross - RKB03 | F121: 0 | G121: NA | H121: NA | I121: 0 | J121: 0 | K121: 0 | L121: 0 | M121: 0 | N121: 0
A122: Q77 | B122: RKB | C122: UNIVERSITY HOSPITALS COVENTRY AND WARWICKSHIRE NHS TRUST | D122: RKBXXX | E122: Non-hospital site - RKBXXX | F122: 47 | G122: 0.9574468085 | H122: 0.04255319149 | I122: 35 | J122: 10 | K122: 0 | L122: 2 | M122: 0 | N122: 0
A123: Q77 | B123: RKB | C123: UNIVERSITY HOSPITALS COVENTRY AND WARWICKSHIRE NHS TRUST | D123: RKB01 | E123: University Hospital (Coventry) - RKB01 | F123: 20 | G123: 0.95 | H123: 0.05 | I123: 15 | J123: 4 | K123: 0 | L123: 0 | M123: 1 | N123: 0
A124: Q77 | B124: RBK | C124: WALSALL HEALTHCARE NHS TRUST | D124: RBK02 | E124: Manor Hospital - RBK02 | F124: 15 | G124: 0.6666666667 | H124: 0.2666666667 | I124: 8 | J124: 2 | K124: 1 | L124: 0 | M124: 4 | N124: 0
A125: Q77 | B125: RWP | C125: WORCESTERSHIRE ACUTE HOSPITALS NHS TRUST | D125: RWP01 | E125: Alexandra Hospital - RWP01 | F125: 40 | G125: 1 | H125: 0 | I125: 31 | J125: 9 | K125: 0 | L125: 0 | M125: 0 | N125: 0
A126: Q77 | B126: RWP | C126: WORCESTERSHIRE ACUTE HOSPITALS NHS TRUST | D126: RWP31 | E126: Kidderminster Hospital - RWP31 | F126: 21 | G126: 0.9523809524 | H126: 0 | I126: 17 | J126: 3 | K126: 1 | L126: 0 | M126: 0 | N126: 0
A127: Q77 | B127: RWP | C127: WORCESTERSHIRE ACUTE HOSPITALS NHS TRUST | D127: RWP50 | E127: Worcestershire Royal Hospital - RWP50 | F127: 35 | G127: 0.9714285714 | H127: 0.02857142857 | I127: 28 | J127: 6 | K127: 0 | L127: 0 | M127: 1 | N127: 0
A128: Q77 | B128: RLQ | C128: WYE VALLEY NHS TRUST | D128: RLQ01 | E128: Hereford County Hospital - RLQ01 | F128: 21 | G128: 1 | H128: 0 | I128: 19 | J128: 2 | K128: 0 | L128: 0 | M128: 0 | N128: 0
A129: Q78 | B129: RC1 | C129: BEDFORD HOSPITAL NHS TRUST | D129: RC110 | E129: Bedford Hospital South Wing - RC110 | F129: 0 | G129: NA | H129: NA | I129: 0 | J129: 0 | K129: 0 | L129: 0 | M129: 0 | N129: 0
A130: Q78 | B130: RWH | C130: EAST AND NORTH HERTFORDSHIRE NHS TRUST | D130: RWH01 | E130: Lister Hospital - RWH01 | F130: 27 | G130: 0.9259259259 | H130: 0 | I130: 17 | J130: 8 | K130: 2 | L130: 0 | M130: 0 | N130: 0
A131: Q78 | B131: RWH | C131: EAST AND NORTH HERTFORDSHIRE NHS TRUST | D131: RWHXXX | E131: Non-hospital site - RWHXXX | F131: 0 | G131: NA | H131: NA | I131: 0 | J131: 0 | K131: 0 | L131: 0 | M131: 0 | N131: 0
A132: Q78 | B132: RNQ | C132: KETTERING GENERAL HOSPITAL NHS FOUNDATION TRUST | D132: RNQ51 | E132: Kettering General Hospital - RNQ51 | F132: 21 | G132: 1 | H132: 0 | I132: 16 | J132: 5 | K132: 0 | L132: 0 | M132: 0 | N132: 0
A133: Q78 | B133: RC9 | C133: LUTON AND DUNSTABLE UNIVERSITY HOSPITAL NHS FOUNDATION TRUST | D133: RC971 | E133: Luton and Dunstable Hospital - RC971 | F133: 63 | G133: 0.9841269841 | H133: 0 | I133: 41 | J133: 21 | K133: 1 | L133: 0 | M133: 0 | N133: 0
A134: Q78 | B134: RD8 | C134: MILTON KEYNES UNIVERSITY HOSPITAL NHS FOUNDATION TRUST | D134: RD816 | E134: Milton Keynes Hospital - RD816 | F134: 39 | G134: 0.9487179487 | H134: 0 | I134: 20 | J134: 17 | K134: 2 | L134: 0 | M134: 0 | N134: 0
A135: Q78 | B135: RNS | C135: NORTHAMPTON GENERAL HOSPITAL NHS TRUST | D135: RNS01 | E135: Northampton General Hospital (Acute) - RNS01 | F135: 70 | G135: 1 | H135: 0 | I135: 57 | J135: 13 | K135: 0 | L135: 0 | M135: 0 | N135: 0
A136: Q78 | B136: RWD | C136: UNITED LINCOLNSHIRE HOSPITALS NHS TRUST | D136: RWDLP | E136: Grantham and District Hospital - RWDLP | F136: 0 | G136: NA | H136: NA | I136: 0 | J136: 0 | K136: 0 | L136: 0 | M136: 0 | N136: 0
A137: Q78 | B137: RWD | C137: UNITED LINCOLNSHIRE HOSPITALS NHS TRUST | D137: RWDDA | E137: Lincoln County Hospital - RWDDA | F137: 23 | G137: 1 | H137: 0 | I137: 20 | J137: 3 | K137: 0 | L137: 0 | M137: 0 | N137: 0
A138: Q78 | B138: RWD | C138: UNITED LINCOLNSHIRE HOSPITALS NHS TRUST | D138: RWDXXX | E138: Non-hospital site - RWDXXX | F138: 0 | G138: NA | H138: NA | I138: 0 | J138: 0 | K138: 0 | L138: 0 | M138: 0 | N138: 0
A139: Q78 | B139: RWD | C139: UNITED LINCOLNSHIRE HOSPITALS NHS TRUST | D139: RWDLA | E139: Pilgrim Hospital - RWDLA | F139: 0 | G139: NA | H139: NA | I139: 0 | J139: 0 | K139: 0 | L139: 0 | M139: 0 | N139: 0
A140: Q78 | B140: RWE | C140: UNIVERSITY HOSPITALS OF LEICESTER NHS TRUST | D140: RWEAK | E140: Leicester General Hospital - RWEAK | F140: 6 | G140: 1 | H140: 0 | I140: 3 | J140: 3 | K140: 0 | L140: 0 | M140: 0 | N140: 0
A141: Q78 | B141: RWE | C141: UNIVERSITY HOSPITALS OF LEICESTER NHS TRUST | D141: RWEAA | E141: Leicester Royal Infirmary - RWEAA | F141: 20 | G141: 0.95 | H141: 0.05 | I141: 15 | J141: 4 | K141: 0 | L141: 1 | M141: 0 | N141: 0
A142: Q78 | B142: RWE | C142: UNIVERSITY HOSPITALS OF LEICESTER NHS TRUST | D142: RWEXXX | E142: Non-hospital site - RWEXXX | F142: 109 | G142: 0.9908256881 | H142: 0.009174311927 | I142: 88 | J142: 20 | K142: 0 | L142: 1 | M142: 0 | N142: 0
A143: Q78 | B143: RWG | C143: WEST HERTFORDSHIRE HOSPITALS NHS TRUST | D143: RWG02 | E143: Watford General Hospital - RWG02 | F143: 19 | G143: 0.9473684211 | H143: 0.05263157895 | I143: 12 | J143: 6 | K143: 0 | L143: 0 | M143: 1 | N143: 0
A144: Q79 | B144: RDD | C144: BASILDON AND THURROCK UNIVERSITY HOSPITALS NHS FOUNDATION TRUST | D144: RDDH0 | E144: Basildon University Hospital - RDDH0 | F144: 83 | G144: 1 | H144: 0 | I144: 70 | J144: 13 | K144: 0 | L144: 0 | M144: 0 | N144: 0
A145: Q79 | B145: RGT | C145: CAMBRIDGE UNIVERSITY HOSPITALS NHS FOUNDATION TRUST | D145: RGT32 | E145: Rosie Hospital - RGT32 | F145: 37 | G145: 0.972972973 | H145: 0 | I145: 18 | J145: 18 | K145: 0 | L145: 0 | M145: 0 | N145: 1
A146: Q79 | B146: RDE | C146: COLCHESTER HOSPITAL UNIVERSITY NHS FOUNDATION TRUST | D146: RDEE4 | E146: Colchester General Hospital - RDEE4 | F146: 0 | G146: NA | H146: NA | I146: 0 | J146: 0 | K146: 0 | L146: 0 | M146: 0 | N146: 0
A147: Q79 | B147: RGQ | C147: IPSWICH HOSPITAL NHS TRUST | D147: RGQ02 | E147: The Ipswich Hospital NHS Trust - RGQ02 | F147: 95 | G147: 0.9789473684 | H147: 0.01052631579 | I147: 82 | J147: 11 | K147: 1 | L147: 0 | M147: 1 | N147: 0
A148: Q79 | B148: RGP | C148: JAMES PAGET UNIVERSITY HOSPITALS NHS FOUNDATION TRUST | D148: RGP75 | E148: James Paget University Hospital - RGP75 | F148: 40 | G148: 1 | H148: 0 | I148: 39 | J148: 1 | K148: 0 | L148: 0 | M148: 0 | N148: 0
A149: Q79 | B149: RQ8 | C149: MID ESSEX HOSPITAL SERVICES NHS TRUST | D149: RQ8L0 | E149: Broomfield Hospital - RQ8L0 | F149: 0 | G149: NA | H149: NA | I149: 0 | J149: 0 | K149: 0 | L149: 0 | M149: 0 | N149: 0
A150: Q79 | B150: RM1 | C150: NORFOLK AND NORWICH UNIVERSITY HOSPITALS NHS FOUNDATION TRUST | D150: RM102 | E150: Norfolk and Norwich University Hospital - RM102 | F150: 31 | G150: 1 | H150: 0 | I150: * | J150: * | K150: * | L150: * | M150: * | N150: *
A151: Q79 | B151: RGN | C151: NORTH WEST ANGLIA NHS FOUNDATION TRUST | D151: RGN90 | E151: Hinchingbrooke Hospital - RGN90 | F151: 11 | G151: 1 | H151: 0 | I151: 9 | J151: 2 | K151: 0 | L151: 0 | M151: 0 | N151: 0
A152: Q79 | B152: RGN | C152: NORTH WEST ANGLIA NHS FOUNDATION TRUST | D152: RGN80 | E152: Peterborough City Hospital - RGN80 | F152: 255 | G152: 0.9843137255 | H152: 0 | I152: 209 | J152: 42 | K152: 3 | L152: 0 | M152: 0 | N152: 1
A153: Q79 | B153: RAJ | C153: SOUTHEND UNIVERSITY HOSPITAL NHS FOUNDATION TRUST | D153: RAJ01 | E153: Southend Hospital - RAJ01 | F153: 3 | G153: * | H153: * | I153: * | J153: * | K153: * | L153: * | M153: * | N153: *
A154: Q79 | B154: RQW | C154: THE PRINCESS ALEXANDRA HOSPITAL NHS TRUST | D154: RQWG0 | E154: Princess Alexandra Hospital - RQWG0 | F154: 50 | G154: 1 | H154: 0 | I154: 38 | J154: 12 | K154: 0 | L154: 0 | M154: 0 | N154: 0
A155: Q79 | B155: RCX | C155: THE QUEEN ELIZABETH HOSPITAL, KING'S LYNN, NHS FOUNDATION TRUST | D155: RCXXXX | E155: Non-hospital site - RCXXXX | F155: 37 | G155: 1 | H155: 0 | I155: 32 | J155: 5 | K155: 0 | L155: 0 | M155: 0 | N155: 0
A156: Q79 | B156: RCX | C156: THE QUEEN ELIZABETH HOSPITAL, KING'S LYNN, NHS FOUNDATION TRUST | D156: RCX66 | E156: North Cambridgeshire Hospital - RCX66 | F156: 10 | G156: 1 | H156: 0 | I156: 7 | J156: 3 | K156: 0 | L156: 0 | M156: 0 | N156: 0
A157: Q79 | B157: RCX | C157: THE QUEEN ELIZABETH HOSPITAL, KING'S LYNN, NHS FOUNDATION TRUST | D157: RCX70 | E157: The Queen Elizabeth Hospital - RCX70 | F157: 138 | G157: 0.9637681159 | H157: 0.01449275362 | I157: 100 | J157: 33 | K157: 2 | L157: 0 | M157: 2 | N157: 1
A158: Q79 | B158: RGR | C158: WEST SUFFOLK NHS FOUNDATION TRUST | D158: RGR50 | E158: West Suffolk Hospital - RGR50 | F158: 33 | G158: 0.9696969697 | H158: 0 | I158: 22 | J158: 10 | K158: 1 | L158: 0 | M158: 0 | N158: 0
A159: Q80 | B159: RVJ | C159: NORTH BRISTOL NHS TRUST | D159: RVJ01 | E159: Southmead Hospital - RVJ01 | F159: 8 | G159: 1 | H159: 0 | I159: * | J159: * | K159: * | L159: * | M159: * | N159: *
A160: Q80 | B160: RBZ | C160: NORTHERN DEVON HEALTHCARE NHS TRUST | D160: RBZ12 | E160: North Devon District Hospital - RBZ12 | F160: 1 | G160: * | H160: * | I160: * | J160: * | K160: * | L160: * | M160: * | N160: *
A161: Q80 | B161: RK9 | C161: PLYMOUTH HOSPITALS NHS TRUST | D161: RK950 | E161: Derriford Hospital - RK950 | F161: 10 | G161: 1 | H161: 0 | I161: 7 | J161: 3 | K161: 0 | L161: 0 | M161: 0 | N161: 0
A162: Q80 | B162: RK9 | C162: PLYMOUTH HOSPITALS NHS TRUST | D162: RK9XXX | E162: Non-hospital site - RK9XXX | F162: 83 | G162: 0.9879518072 | H162: 0 | I162: 62 | J162: 20 | K162: 0 | L162: 0 | M162: 0 | N162: 1
A163: Q80 | B163: REF | C163: ROYAL CORNWALL HOSPITALS NHS TRUST | D163: REF12 | E163: Royal Cornwall Hospital (Treliske) - REF12 | F163: 21 | G163: 0.9523809524 | H163: 0 | I163: 15 | J163: 5 | K163: 1 | L163: 0 | M163: 0 | N163: 0
A164: Q80 | B164: RH8 | C164: ROYAL DEVON AND EXETER NHS FOUNDATION TRUST | D164: RH854 | E164: Honiton Hospital - RH 854 | F164: 0 | G164: NA | H164: NA | I164: 0 | J164: 0 | K164: 0 | L164: 0 | M164: 0 | N164: 0
A165: Q80 | B165: RH8 | C165: ROYAL DEVON AND EXETER NHS FOUNDATION TRUST | D165: RH833 | E165: Okehampton Community Hospital - RH833 | F165: 0 | G165: NA | H165: NA | I165: 0 | J165: 0 | K165: 0 | L165: 0 | M165: 0 | N165: 0
A166: Q80 | B166: RH8 | C166: ROYAL DEVON AND EXETER NHS FOUNDATION TRUST | D166: RH801 | E166: Royal Devon and Exeter Hospital (Wonford) - RH801 | F166: 0 | G166: NA | H166: NA | I166: 0 | J166: 0 | K166: 0 | L166: 0 | M166: 0 | N166: 0
A167: Q80 | B167: RH8 | C167: ROYAL DEVON AND EXETER NHS FOUNDATION TRUST | D167: RH853 | E167: Tiverton and District Hospital - RH853 | F167: 0 | G167: NA | H167: NA | I167: 0 | J167: 0 | K167: 0 | L167: 0 | M167: 0 | N167: 0
A168: Q80 | B168: RBA | C168: TAUNTON AND SOMERSET NHS FOUNDATION TRUST | D168: RBAC3 | E168: Bridgwater Hospital - RBAC3 | F168: 0 | G168: NA | H168: NA | I168: 0 | J168: 0 | K168: 0 | L168: 0 | M168: 0 | N168: 0
A169: Q80 | B169: RBA | C169: TAUNTON AND SOMERSET NHS FOUNDATION TRUST | D169: RBA11 | E169: Musgrove Park Hospital - RBA11 | F169: 6 | G169: 0.6666666667 | H169: 0.1666666667 | I169: * | J169: * | K169: * | L169: * | M169: * | N169: *
A170: Q80 | B170: RBA | C170: TAUNTON AND SOMERSET NHS FOUNDATION TRUST | D170: RBAXXX | E170: Non-hospital site - RBAXXX | F170: 4 | G170: * | H170: * | I170: * | J170: * | K170: * | L170: * | M170: * | N170: *
A171: Q80 | B171: RA9 | C171: TORBAY AND SOUTH DEVON NHS FOUNDATION TRUST | D171: RA901 | E171: Torbay Hospital - RA901 | F171: 12 | G171: 1 | H171: 0 | I171: 11 | J171: 1 | K171: 0 | L171: 0 | M171: 0 | N171: 0
A172: Q80 | B172: RA7 | C172: UNIVERSITY HOSPITALS BRISTOL NHS FOUNDATION TRUST | D172: RA707 | E172: St Michael's Hospital - RA707 | F172: 75 | G172: 0.96 | H172: 0 | I172: 62 | J172: 10 | K172: 2 | L172: 0 | M172: 0 | N172: 1
A173: Q80 | B173: RA3 | C173: WESTON AREA HEALTH NHS TRUST | D173: RA301 | E173: Weston General Hospital - RA301 | F173: 11 | G173: 1 | H173: 0 | I173: 9 | J173: 2 | K173: 0 | L173: 0 | M173: 0 | N173: 0
A174: Q80 | B174: RA4 | C174: YEOVIL DISTRICT HOSPITAL NHS FOUNDATION TRUST | D174: RA430 | E174: Yeovil District Hospital - RA430 | F174: 99 | G174: 0.9898989899 | H174: 0.0101010101 | I174: 74 | J174: 24 | K174: 0 | L174: 1 | M174: 0 | N174: 0
A175: Q81 | B175: RTK | C175: ASHFORD AND ST PETER'S HOSPITALS NHS FOUNDATION TRUST | D175: RTK01 | E175: St Peter's Hospital - RTK01 | F175: 0 | G175: NA | H175: NA | I175: 0 | J175: 0 | K175: 0 | L175: 0 | M175: 0 | N175: 0
A176: Q81 | B176: RXH | C176: BRIGHTON AND SUSSEX UNIVERSITY HOSPITALS NHS TRUST | D176: RXH01 | E176: Royal Sussex County Hospital - RXH01 | F176: 5 | G176: 1 | H176: 0 | I176: 5 | J176: 0 | K176: 0 | L176: 0 | M176: 0 | N176: 0
A177: Q81 | B177: RN7 | C177: DARTFORD AND GRAVESHAM NHS TRUST | D177: RN707 | E177: Darent Valley Hospital - RN707 | F177: 1 | G177: * | H177: * | I177: * | J177: * | K177: * | L177: * | M177: * | N177: *
A178: Q81 | B178: RVV | C178: EAST KENT HOSPITALS UNIVERSITY NHS FOUNDATION TRUST | D178: RVVXXX | E178: Non-hospital site - RVVXXX | F178: 5 | G178: 1 | H178: 0 | I178: 3 | J178: 2 | K178: 0 | L178: 0 | M178: 0 | N178: 0
A179: Q81 | B179: RXC | C179: EAST SUSSEX HEALTHCARE NHS TRUST | D179: RXC01 | E179: Conquest Hospital - RXC01 | F179: 1 | G179: * | H179: * | I179: * | J179: * | K179: * | L179: * | M179: * | N179: *
A180: Q81 | B180: RXC | C180: EAST SUSSEX HEALTHCARE NHS TRUST | D180: RXC14 | E180: Crowborough Birthing Centre - RXC14 | F180: 0 | G180: NA | H180: NA | I180: 0 | J180: 0 | K180: 0 | L180: 0 | M180: 0 | N180: 0
A181: Q81 | B181: RXC | C181: EAST SUSSEX HEALTHCARE NHS TRUST | D181: RXC02 | E181: Eastbourne District General Hospital - RXC02 | F181: 8 | G181: 1 | H181: 0 | I181: * | J181: * | K181: * | L181: * | M181: * | N181: *
A182: Q81 | B182: RXC | C182: EAST SUSSEX HEALTHCARE NHS TRUST | D182: RXCXXX | E182: Non-hospital site - RXCXXX | F182: 0 | G182: NA | H182: NA | I182: 0 | J182: 0 | K182: 0 | L182: 0 | M182: 0 | N182: 0
A183: Q81 | B183: RDU | C183: FRIMLEY HEALTH NHS FOUNDATION TRUST | D183: RDU01 | E183: Frimley Park Hospital - RDU01 | F183: 68 | G183: 1 | H183: 0 | I183: 57 | J183: 11 | K183: 0 | L183: 0 | M183: 0 | N183: 0
A184: Q81 | B184: RDU | C184: FRIMLEY HEALTH NHS FOUNDATION TRUST | D184: RDUXXX | E184: Non-hospital site - RDUXXX | F184: 13 | G184: 0.9230769231 | H184: 0.07692307692 | I184: 11 | J184: 1 | K184: 0 | L184: 0 | M184: 1 | N184: 0
A185: Q81 | B185: RDU | C185: FRIMLEY HEALTH NHS FOUNDATION TRUST | D185: RDU50 | E185: Wexham Park Hospital - RDU50 | F185: 43 | G185: 0.8837209302 | H185: 0.06976744186 | I185: 30 | J185: 8 | K185: 2 | L185: 2 | M185: 1 | N185: 0
A186: Q81 | B186: RWF | C186: MAIDSTONE AND TUNBRIDGE WELLS NHS TRUST | D186: RWF03 | E186: Maidstone District General Hospital - RWF03 | F186: 0 | G186: NA | H186: NA | I186: 0 | J186: 0 | K186: 0 | L186: 0 | M186: 0 | N186: 0
A187: Q81 | B187: RWF | C187: MAIDSTONE AND TUNBRIDGE WELLS NHS TRUST | D187: RWFXXX | E187: Non-hospital site - RWFXXX | F187: 3 | G187: * | H187: * | I187: * | J187: * | K187: * | L187: * | M187: * | N187: *
A188: Q81 | B188: RWF | C188: MAIDSTONE AND TUNBRIDGE WELLS NHS TRUST | D188: RWFTW | E188: The Tunbridge Wells Hospital - RWFTW | F188: 15 | G188: 0.9333333333 | H188: 0 | I188: * | J188: * | K188: * | L188: * | M188: * | N188: *
A189: Q81 | B189: RPA | C189: MEDWAY NHS FOUNDATION TRUST | D189: RPA02 | E189: Medway Maritime Hospital - RPA02 | F189: 53 | G189: 1 | H189: 0 | I189: 48 | J189: 5 | K189: 0 | L189: 0 | M189: 0 | N189: 0
A190: Q81 | B190: RA2 | C190: ROYAL SURREY COUNTY HOSPITAL NHS FOUNDATION TRUST | D190: RA201 | E190: Royal Surrey County Hospital - RA201 | F190: 44 | G190: 0.9545454545 | H190: 0.02272727273 | I190: 23 | J190: 19 | K190: 1 | L190: 1 | M190: 0 | N190: 0
A191: Q81 | B191: RTP | C191: SURREY AND SUSSEX HEALTHCARE NHS TRUST | D191: RTP04 | E191: East Surrey Hospital - RTP04 | F191: 20 | G191: 1 | H191: 0 | I191: 13 | J191: 7 | K191: 0 | L191: 0 | M191: 0 | N191: 0
A192: Q81 | B192: RYR | C192: WESTERN SUSSEX HOSPITALS NHS FOUNDATION TRUST | D192: RYR16 | E192: St Richard's Hospital - RYR16 | F192: 1 | G192: * | H192: * | I192: * | J192: * | K192: * | L192: * | M192: * | N192: *
A193: Q81 | B193: RYR | C193: WESTERN SUSSEX HOSPITALS NHS FOUNDATION TRUST | D193: RYR18 | E193: Worthing Hospital - RYR18 | F193: 1 | G193: * | H193: * | I193: * | J193: * | K193: * | L193: * | M193: * | N193: *
A194: Q82 | B194: RXQ | C194: BUCKINGHAMSHIRE HEALTHCARE NHS TRUST | D194: RXQ02 | E194: Stoke Mandeville Hospital - RXQ02 | F194: 28 | G194: 1 | H194: 0 | I194: 25 | J194: 3 | K194: 0 | L194: 0 | M194: 0 | N194: 0
A195: Q82 | B195: RTE | C195: GLOUCESTERSHIRE HOSPITALS NHS FOUNDATION TRUST | D195: RTE01 | E195: Cheltenham General Hospital - RTE01 | F195: 0 | G195: NA | H195: NA | I195: 0 | J195: 0 | K195: 0 | L195: 0 | M195: 0 | N195: 0
A196: Q82 | B196: RTE | C196: GLOUCESTERSHIRE HOSPITALS NHS FOUNDATION TRUST | D196: RTE03 | E196: Gloucestershire Royal Hospital - RTE03 | F196: 0 | G196: NA | H196: NA | I196: 0 | J196: 0 | K196: 0 | L196: 0 | M196: 0 | N196: 0
A197: Q82 | B197: RTE | C197: GLOUCESTERSHIRE HOSPITALS NHS FOUNDATION TRUST | D197: RTEXXX | E197: Non-hospital site - RTEXXX | F197: 0 | G197: NA | H197: NA | I197: 0 | J197: 0 | K197: 0 | L197: 0 | M197: 0 | N197: 0
A198: Q82 | B198: RN3 | C198: GREAT WESTERN HOSPITALS NHS FOUNDATION TRUST | D198: RN3XXX | E198: Non-hospital site - RN3XXX | F198: 5 | G198: 1 | H198: 0 | I198: * | J198: * | K198: * | L198: * | M198: * | N198: *
A199: Q82 | B199: RN3 | C199: GREAT WESTERN HOSPITALS NHS FOUNDATION TRUST | D199: RN325 | E199: The Great Western Hospital - RN325 | F199: 2 | G199: * | H199: * | I199: * | J199: * | K199: * | L199: * | M199: * | N199: *
A200: Q82 | B200: RTH | C200: OXFORD UNIVERSITY HOSPITALS NHS FOUNDATION TRUST | D200: RTH08 | E200: John Radcliffe Hospital - RTH08 | F200: 91 | G200: 0.967032967 | H200: 0.01098901099 | I200: 63 | J200: 25 | K200: 2 | L200: 1 | M200: 0 | N200: 0
A201: Q82 | B201: RHW | C201: ROYAL BERKSHIRE NHS FOUNDATION TRUST | D201: RHW01 | E201: Royal Berkshire Hospital - RHW01 | F201: 54 | G201: 0.9444444444 | H201: 0.03703703704 | I201: 45 | J201: 6 | K201: 1 | L201: 2 | M201: 0 | N201: 0
A202: Q82 | B202: RD1 | C202: ROYAL UNITED HOSPITALS BATH NHS FOUNDATION TRUST | D202: RD102 | E202: Chippenham Community Hospital -RD102 | F202: 8 | G202: 1 | H202: 0 | I202: 7 | J202: 1 | K202: 0 | L202: 0 | M202: 0 | N202: 0
A203: Q82 | B203: RD1 | C203: ROYAL UNITED HOSPITALS BATH NHS FOUNDATION TRUST | D203: RD121 | E203: Frome Community Hospital - RD121 | F203: 6 | G203: 1 | H203: 0 | I203: * | J203: * | K203: * | L203: * | M203: * | N203: *
A204: Q82 | B204: RD1 | C204: ROYAL UNITED HOSPITALS BATH NHS FOUNDATION TRUST | D204: RD129 | E204: Paulton Memorial Hospital - RD129 | F204: 0 | G204: NA | H204: NA | I204: 0 | J204: 0 | K204: 0 | L204: 0 | M204: 0 | N204: 0
A205: Q82 | B205: RD1 | C205: ROYAL UNITED HOSPITALS BATH NHS FOUNDATION TRUST | D205: RD130 | E205: Princess Anne Wing RUH - RD130 | F205: 1 | G205: * | H205: * | I205: * | J205: * | K205: * | L205: * | M205: * | N205: *
A206: Q82 | B206: RD1 | C206: ROYAL UNITED HOSPITALS BATH NHS FOUNDATION TRUST | D206: RD167 | E206: Shepton Mallet Community Hospital - RD167 | F206: 0 | G206: NA | H206: NA | I206: 0 | J206: 0 | K206: 0 | L206: 0 | M206: 0 | N206: 0
A207: Q82 | B207: RD1 | C207: ROYAL UNITED HOSPITALS BATH NHS FOUNDATION TRUST | D207: RD108 | E207: Trowbridge Community Hospital - RD108 | F207: 9 | G207: 1 | H207: 0 | I207: 7 | J207: 2 | K207: 0 | L207: 0 | M207: 0 | N207: 0
... 16 more rows

Sheet Region (Geography) Q2
B6: Sort data by:
A9: Region (Geo) Code | B9: Region (Geography) | C9: Total Responses | D9: Total Eligible | E9: Response Rate | F9: Percentage Recommended | G9: Percentage Not Recommended | H9: Breakdown of Responses
H10: Extremely Likely | I10: Likely | J10: Neither | K10: Unlikely | L10: Extremely Unlikely | M10: Don't Know
B11: England | C11: 11580 | D11: 48505 | E11: 0.2387382744 | F11: 0.9635578584 | G11: 0.01044905009 | H11: 9423 | I11: 1735 | J11: 152 | K11: 56 | L11: 65 | M11: 149
B12: Selection (excluding suppressed data) | C12: =SUBTOTAL(9,C13:C40) -> 11580 | D12: =SUBTOTAL(9,D13:D40) -> 48505 | E12: =IFERROR(C12/D12, "NA") -> 0.2387382744 | F12: =IFERROR((H12+I12)/SUM(H12:M12), "-") -> 0.9635578584 | G12: =IFERROR((K12+L12)/SUM(H12:M12), "-") -> 0.01044905009 | H12: =SUBTOTAL(9,H13:H40) -> 9423 | I12: =SUBTOTAL(9,I13:I40) -> 1735 | J12: 152 | K12: 56 | L12: 65 | M12: 149
A13: Q72 | B13: NHS England Yorkshire & Humber | C13: 1415 | D13: 4999 | E13: 0.2830566113 | F13: 0.9469964664 | G13: 0.008480565371 | H13: 1145 | I13: 195 | J13: 17 | K13: 6 | L13: 6 | M13: 46
A14: Q74 | B14: NHS England Cumbria & North East | C14: 439 | D14: 2051 | E14: 0.2140419308 | F14: 0.9772209567 | G14: 0.004555808656 | H14: 382 | I14: 47 | J14: 5 | K14: 2 | L14: 0 | M14: 3
A15: Q75 | B15: NHS England Cheshire & Merseyside | C15: 339 | D15: 2256 | E15: 0.1502659574 | F15: 0.9852507375 | G15: 0.002949852507 | H15: 288 | I15: 46 | J15: 2 | K15: 0 | L15: 1 | M15: 2
A16: Q83 | B16: NHS England Greater Manchester | C16: 551 | D16: 3085 | E16: 0.1786061588 | F16: 0.9637023593 | G16: 0.01814882033 | H16: 460 | I16: 71 | J16: 8 | K16: 2 | L16: 8 | M16: 2
A17: Q84 | B17: NHS England Lancashire | C17: 292 | D17: 936 | E17: 0.311965812 | F17: 0.9863013699 | G17: 0.006849315068 | H17: 247 | I17: 41 | J17: 2 | K17: 0 | L17: 2 | M17: 0
A18: Q76 | B18: NHS England North Midlands | C18: 690 | D18: 2699 | E18: 0.2556502408 | F18: 0.9797101449 | G18: 0.001449275362 | H18: 568 | I18: 108 | J18: 9 | K18: 0 | L18: 1 | M18: 4
A19: Q77 | B19: NHS England West Midlands | C19: 592 | D19: 3816 | E19: 0.1551362683 | F19: 0.9662162162 | G19: 0.008445945946 | H19: 506 | I19: 66 | J19: 8 | K19: 1 | L19: 4 | M19: 7
A20: Q78 | B20: NHS England Central Midlands | C20: 952 | D20: 3350 | E20: 0.2841791045 | F20: 0.9464285714 | G20: 0.01785714286 | H20: 717 | I20: 184 | J20: 20 | K20: 7 | L20: 10 | M20: 14
A21: Q79 | B21: NHS England East | C21: 939 | D21: 3589 | E21: 0.2616327668 | F21: 0.9659211928 | G21: 0.00851970181 | H21: 798 | I21: 109 | J21: 10 | K21: 4 | L21: 4 | M21: 14
A22: Q80 | B22: NHS England South West | C22: 400 | D22: 2598 | E22: 0.1539645881 | F22: 0.98 | G22: 0.0075 | H22: 350 | I22: 42 | J22: 2 | K22: 2 | L22: 1 | M22: 3
A23: Q81 | B23: NHS England South East | C23: 1484 | D23: 4481 | E23: 0.3311760768 | F23: 0.9737196765 | G23: 0.006064690027 | H23: 1269 | I23: 176 | J23: 8 | K23: 7 | L23: 2 | M23: 22
A24: Q82 | B24: NHS England South Central | C24: 691 | D24: 2677 | E24: 0.2581247665 | F24: 0.9739507959 | G24: 0.008683068017 | H24: 574 | I24: 99 | J24: 8 | K24: 5 | L24: 1 | M24: 4
A25: Q70 | B25: NHS England Wessex | C25: 595 | D25: 1943 | E25: 0.3062274833 | F25: 0.9764705882 | G25: 0.01008403361 | H25: 507 | I25: 74 | J25: 6 | K25: 3 | L25: 3 | M25: 2
A26: Q71 | B26: NHS England London | C26: 2201 | D26: 10025 | E26: 0.2195511222 | F26: 0.9491140391 | G26: 0.01771921854 | H26: 1612 | I26: 477 | J26: 47 | K26: 17 | L26: 22 | M26: 26

Sheet Trusts Q2
B6: Sort data by:
A9: Region (Geo) Code | B9: Trust Code | C9: Trust Name | D9: Total Responses | E9: Total Eligible | F9: Response Rate | G9: Percentage Recommended | H9: Percentage Not Recommended | I9: Breakdown of Responses | O9: Mode of Collection
I10: Extremely Likely | J10: Likely | K10: Neither | L10: Unlikely | M10: Extremely Unlikely | N10: Don't Know | O10: SMS/Text / Smartphone App | P10: Electronic tablet/kiosk at point of discharge | Q10: Paper / postcard at point of discharge | R10: Paper survey sent to the patients home | S10: Telephone survey once patient is home | T10: Online survey once patient is home | U10: Other
C11: England | D11: 11580 | E11: 48505 | F11: 0.2387382744 | G11: 0.9635578584 | H11: 0.01044905009 | I11: 9423 | J11: 1735 | K11: 152 | L11: 56 | M11: 65 | N11: 149 | O11: 1094 | P11: 2628 | Q11: 6935 | R11: 562 | S11: 8 | T11: 177 | U11: 176
C12: Selection (excluding suppressed data) | D12: =SUBTOTAL(9,D13:D299) -> 11580 | E12: =SUBTOTAL(9,E13:E299) -> 48505 | F12: =IFERROR(D12/E12, "NA") -> 0.2387382744 | G12: =IFERROR((I12+J12)/SUM(I12:N12), "-") -> 0.9634305616 | H12: =IFERROR((L12+M12)/SUM(I12:N12), "-") -> 0.01053548106 | I12: =SUBTOTAL(9,I13:I299) -> 9335 | J12: =SUBTOTAL(9,J13:J299) -> 1730 | K12: 151 | L12: 56 | M12: 65 | N12: 148 | O12: 1094 | P12: 2617 | Q12: 6851 | R12: 562 | S12: 8 | T12: 177 | U12: 176
A13: Q70 | B13: RBD | C13: DORSET COUNTY HOSPITAL NHS FOUNDATION TRUST | D13: 49 | E13: 156 | F13: 0.3141025641 | G13: 0.8979591837 | H13: 0.0612244898 | I13: 40 | J13: 4 | K13: 1 | L13: 1 | M13: 2 | N13: 1 | O13: 49 | P13: 0 | Q13: 0 | R13: 0 | S13: 0 | T13: 0 | U13: 0
A14: Q70 | B14: RN5 | C14: HAMPSHIRE HOSPITALS NHS FOUNDATION TRUST | D14: 147 | E14: 412 | F14: 0.3567961165 | G14: 0.9863945578 | H14: 0 | I14: 133 | J14: 12 | K14: 2 | L14: 0 | M14: 0 | N14: 0 | O14: 0 | P14: 0 | Q14: 147 | R14: 0 | S14: 0 | T14: 0 | U14: 0
A15: Q70 | B15: R1F | C15: ISLE OF WIGHT NHS TRUST | D15: 14 | E15: 92 | F15: 0.152173913 | G15: 1 | H15: 0 | I15: 14 | J15: 0 | K15: 0 | L15: 0 | M15: 0 | N15: 0 | O15: 0 | P15: 0 | Q15: 14 | R15: 0 | S15: 0 | T15: 0 | U15: 0
A16: Q70 | B16: RD3 | C16: POOLE HOSPITAL NHS FOUNDATION TRUST | D16: 126 | E16: 340 | F16: 0.3705882353 | G16: 0.9761904762 | H16: 0.007936507937 | I16: 98 | J16: 25 | K16: 2 | L16: 0 | M16: 1 | N16: 0 | O16: 126 | P16: 0 | Q16: 0 | R16: 0 | S16: 0 | T16: 0 | U16: 0
A17: Q70 | B17: RHU | C17: PORTSMOUTH HOSPITALS NHS TRUST | D17: 89 | E17: 439 | F17: 0.2027334852 | G17: 0.9887640449 | H17: 0 | I17: 76 | J17: 12 | K17: 0 | L17: 0 | M17: 0 | N17: 1 | O17: 0 | P17: 0 | Q17: 89 | R17: 0 | S17: 0 | T17: 0 | U17: 0
A18: Q70 | B18: RDZ | C18: THE ROYAL BOURNEMOUTH AND CHRISTCHURCH HOSPITALS NHS FOUNDATION TRUST | D18: 11 | E18: 35 | F18: 0.3142857143 | G18: 1 | H18: 0 | I18: 11 | J18: 0 | K18: 0 | L18: 0 | M18: 0 | N18: 0 | O18: 0 | P18: 0 | Q18: 11 | R18: 0 | S18: 0 | T18: 0 | U18: 0
A19: Q70 | B19: RHM | C19: UNIVERSITY HOSPITAL SOUTHAMPTON NHS FOUNDATION TRUST | D19: 159 | E19: 469 | F19: 0.3390191898 | G19: 0.9811320755 | H19: 0.01257861635 | I19: 135 | J19: 21 | K19: 1 | L19: 2 | M19: 0 | N19: 0 | O19: 0 | P19: 0 | Q19: 156 | R19: 0 | S19: 0 | T19: 3 | U19: 0
A20: Q71 | B20: RF4 | C20: BARKING, HAVERING AND REDBRIDGE UNIVERSITY HOSPITALS NHS TRUST | D20: 165 | E20: 651 | F20: 0.2534562212 | G20: 0.9696969697 | H20: 0 | I20: 137 | J20: 23 | K20: 0 | L20: 0 | M20: 0 | N20: 5 | O20: 0 | P20: 0 | Q20: 164 | R20: 0 | S20: 0 | T20: 1 | U20: 0
A21: Q71 | B21: R1H | C21: BARTS HEALTH NHS TRUST | D21: 228 | E21: 1345 | F21: 0.1695167286 | G21: 0.9824561404 | H21: 0.008771929825 | I21: 178 | J21: 46 | K21: 1 | L21: 0 | M21: 2 | N21: 1 | O21: 0 | P21: 54 | Q21: 166 | R21: 0 | S21: 0 | T21: 8 | U21: 0
A22: Q71 | B22: RQM | C22: CHELSEA AND WESTMINSTER HOSPITAL NHS FOUNDATION TRUST | D22: 148 | E22: 823 | F22: 0.1798298906 | G22: 0.9662162162 | H22: 0.02027027027 | I22: 124 | J22: 19 | K22: 2 | L22: 2 | M22: 1 | N22: 0 | O22: 126 | P22: 0 | Q22: 22 | R22: 0 | S22: 0 | T22: 0 | U22: 0
A23: Q71 | B23: RJ6 | C23: CROYDON HEALTH SERVICES NHS TRUST | D23: 79 | E23: 323 | F23: 0.2445820433 | G23: 0.9873417722 | H23: 0.01265822785 | I23: 66 | J23: 12 | K23: 0 | L23: 1 | M23: 0 | N23: 0 | O23: 0 | P23: 0 | Q23: 79 | R23: 0 | S23: 0 | T23: 0 | U23: 0
A24: Q71 | B24: RVR | C24: EPSOM AND ST HELIER UNIVERSITY HOSPITALS NHS TRUST | D24: 50 | E24: 425 | F24: 0.1176470588 | G24: 0.98 | H24: 0.02 | I24: 48 | J24: 1 | K24: 0 | L24: 0 | M24: 1 | N24: 0 | O24: 25 | P24: 0 | Q24: 25 | R24: 0 | S24: 0 | T24: 0 | U24: 0
A25: Q71 | B25: RJ1 | C25: GUY'S AND ST THOMAS' NHS FOUNDATION TRUST | D25: 42 | E25: 490 | F25: 0.08571428571 | G25: 0.9761904762 | H25: 0.02380952381 | I25: 32 | J25: 9 | K25: 0 | L25: 1 | M25: 0 | N25: 0 | O25: 0 | P25: 0 | Q25: 42 | R25: 0 | S25: 0 | T25: 0 | U25: 0
A26: Q71 | B26: RQX | C26: HOMERTON UNIVERSITY HOSPITAL NHS FOUNDATION TRUST | D26: 44 | E26: 422 | F26: 0.1042654028 | G26: 1 | H26: 0 | I26: 40 | J26: 4 | K26: 0 | L26: 0 | M26: 0 | N26: 0 | O26: 0 | P26: 44 | Q26: 0 | R26: 0 | S26: 0 | T26: 0 | U26: 0
A27: Q71 | B27: RYJ | C27: IMPERIAL COLLEGE HEALTHCARE NHS TRUST | D27: 250 | E27: 747 | F27: 0.3346720214 | G27: 0.964 | H27: 0.008 | I27: 176 | J27: 65 | K27: 6 | L27: 0 | M27: 2 | N27: 1 | O27: 0 | P27: 212 | Q27: 38 | R27: 0 | S27: 0 | T27: 0 | U27: 0
A28: Q71 | B28: RJZ | C28: KING'S COLLEGE HOSPITAL NHS FOUNDATION TRUST | D28: 4 | E28: 607 | F28: 0.006589785832 | G28: * | H28: * | I28: * | J28: * | K28: * | L28: * | M28: * | N28: * | O28: * | P28: * | Q28: * | R28: * | S28: * | T28: * | U28: *
A29: Q71 | B29: RAX | C29: KINGSTON HOSPITAL NHS FOUNDATION TRUST | D29: 60 | E29: 448 | F29: 0.1339285714 | G29: 0.9666666667 | H29: 0 | I29: 47 | J29: 11 | K29: 2 | L29: 0 | M29: 0 | N29: 0 | O29: 0 | P29: 60 | Q29: 0 | R29: 0 | S29: 0 | T29: 0 | U29: 0
A30: Q71 | B30: RJ2 | C30: LEWISHAM AND GREENWICH NHS TRUST | D30: 260 | E30: 630 | F30: 0.4126984127 | G30: 0.95 | H30: 0.007692307692 | I30: 185 | J30: 62 | K30: 9 | L30: 0 | M30: 2 | N30: 2 | O30: 0 | P30: 0 | Q30: 260 | R30: 0 | S30: 0 | T30: 0 | U30: 0
A31: Q71 | B31: R1K | C31: LONDON NORTH WEST HEALTHCARE NHS TRUST | D31: 241 | E31: 450 | F31: 0.5355555556 | G31: 0.867219917 | H31: 0.04979253112 | I31: 105 | J31: 104 | K31: 14 | L31: 10 | M31: 2 | N31: 6 | O31: 0 | P31: 53 | Q31: 188 | R31: 0 | S31: 0 | T31: 0 | U31: 0
A32: Q71 | B32: RAP | C32: NORTH MIDDLESEX UNIVERSITY HOSPITAL NHS TRUST | D32: 154 | E32: 371 | F32: 0.4150943396 | G32: 0.8246753247 | H32: 0.07142857143 | I32: 104 | J32: 23 | K32: 6 | L32: 2 | M32: 9 | N32: 10 | O32: 0 | P32: 154 | Q32: 0 | R32: 0 | S32: 0 | T32: 0 | U32: 0
A33: Q71 | B33: RAL | C33: ROYAL FREE LONDON NHS FOUNDATION TRUST | D33: 142 | E33: 732 | F33: 0.193989071 | G33: 0.9718309859 | H33: 0.01408450704 | I33: 97 | J33: 41 | K33: 2 | L33: 0 | M33: 2 | N33: 0 | O33: 0 | P33: 0 | Q33: 142 | R33: 0 | S33: 0 | T33: 0 | U33: 0
A34: Q71 | B34: RJ7 | C34: ST GEORGE'S UNIVERSITY HOSPITALS NHS FOUNDATION TRUST | D34: 9 | E34: 400 | F34: 0.0225 | G34: 0.8888888889 | H34: 0 | I34: * | J34: * | K34: * | L34: * | M34: * | N34: * | O34: * | P34: * | Q34: * | R34: * | S34: * | T34: * | U34: *
A35: Q71 | B35: RAS | C35: THE HILLINGDON HOSPITALS NHS FOUNDATION TRUST | D35: 96 | E35: 350 | F35: 0.2742857143 | G35: 0.9895833333 | H35: 0 | I35: 77 | J35: 18 | K35: 1 | L35: 0 | M35: 0 | N35: 0 | O35: 0 | P35: 0 | Q35: 95 | R35: 0 | S35: 0 | T35: 1 | U35: 0
A36: Q71 | B36: RKE | C36: THE WHITTINGTON HOSPITAL NHS TRUST | D36: 115 | E36: 298 | F36: 0.3859060403 | G36: 0.9565217391 | H36: 0.008695652174 | I36: 85 | J36: 25 | K36: 4 | L36: 1 | M36: 0 | N36: 0 | O36: 0 | P36: 115 | Q36: 0 | R36: 0 | S36: 0 | T36: 0 | U36: 0
A37: Q71 | B37: RRV | C37: UNIVERSITY COLLEGE LONDON HOSPITALS NHS FOUNDATION TRUST | D37: 114 | E37: 513 | F37: 0.2222222222 | G37: 0.9912280702 | H37: 0.008771929825 | I37: 100 | J37: 13 | K37: 0 | L37: 0 | M37: 1 | N37: 0 | O37: 0 | P37: 0 | Q37: 114 | R37: 0 | S37: 0 | T37: 0 | U37: 0
A38: Q72 | B38: RCF | C38: AIREDALE NHS FOUNDATION TRUST | D38: 44 | E38: 190 | F38: 0.2315789474 | G38: 0.9772727273 | H38: 0 | I38: 40 | J38: 3 | K38: 1 | L38: 0 | M38: 0 | N38: 0 | O38: 0 | P38: 1 | Q38: 42 | R38: 0 | S38: 0 | T38: 1 | U38: 0
A39: Q72 | B39: RFF | C39: BARNSLEY HOSPITAL NHS FOUNDATION TRUST | D39: 52 | E39: 246 | F39: 0.2113821138 | G39: 0.9615384615 | H39: 0 | I39: 45 | J39: 5 | K39: 2 | L39: 0 | M39: 0 | N39: 0 | O39: 0 | P39: 0 | Q39: 52 | R39: 0 | S39: 0 | T39: 0 | U39: 0
A40: Q72 | B40: RAE | C40: BRADFORD TEACHING HOSPITALS NHS FOUNDATION TRUST | D40: 77 | E40: 483 | F40: 0.1594202899 | G40: 1 | H40: 0 | I40: 72 | J40: 5 | K40: 0 | L40: 0 | M40: 0 | N40: 0 | O40: 0 | P40: 4 | Q40: 73 | R40: 0 | S40: 0 | T40: 0 | U40: 0
A41: Q72 | B41: RWY | C41: CALDERDALE AND HUDDERSFIELD NHS FOUNDATION TRUST | D41: 233 | E41: 451 | F41: 0.5166297118 | G41: 0.7939914163 | H41: 0 | I41: 149 | J41: 36 | K41: 5 | L41: 0 | M41: 0 | N41: 43 | O41: 0 | P41: 233 | Q41: 0 | R41: 0 | S41: 0 | T41: 0 | U41: 0
A42: Q72 | B42: RP5 | C42: DONCASTER AND BASSETLAW TEACHING HOSPITALS NHS FOUNDATION TRUST | D42: 203 | E42: 403 | F42: 0.5037220844 | G42: 0.9950738916 | H42: 0 | I42: 158 | J42: 44 | K42: 1 | L42: 0 | M42: 0 | N42: 0 | O42: 0 | P42: 0 | Q42: 203 | R42: 0 | S42: 0 | T42: 0 | U42: 0
A43: Q72 | B43: RCD | C43: HARROGATE AND DISTRICT NHS FOUNDATION TRUST | D43: 20 | E43: 135 | F43: 0.1481481481 | G43: 1 | H43: 0 | I43: 19 | J43: 1 | K43: 0 | L43: 0 | M43: 0 | N43: 0 | O43: 0 | P43: 0 | Q43: 20 | R43: 0 | S43: 0 | T43: 0 | U43: 0
A44: Q72 | B44: RWA | C44: HULL AND EAST YORKSHIRE HOSPITALS NHS TRUST | D44: 29 | E44: 434 | F44: 0.0668202765 | G44: 0.9655172414 | H44: 0 | I44: 24 | J44: 4 | K44: 0 | L44: 0 | M44: 0 | N44: 1 | O44: 0 | P44: 0 | Q44: 29 | R44: 0 | S44: 0 | T44: 0 | U44: 0
A45: Q72 | B45: RR8 | C45: LEEDS TEACHING HOSPITALS NHS TRUST | D45: 249 | E45: 772 | F45: 0.3225388601 | G45: 0.9437751004 | H45: 0.03614457831 | I45: 204 | J45: 31 | K45: 4 | L45: 4 | M45: 5 | N45: 1 | O45: 163 | P45: 0 | Q45: 86 | R45: 0 | S45: 0 | T45: 0 | U45: 0
A46: Q72 | B46: RXF | C46: MID YORKSHIRE HOSPITALS NHS TRUST | D46: 177 | E46: 428 | F46: 0.4135514019 | G46: 0.9830508475 | H46: 0.005649717514 | I46: 148 | J46: 26 | K46: 1 | L46: 1 | M46: 0 | N46: 1 | O46: 0 | P46: 0 | Q46: 176 | R46: 0 | S46: 0 | T46: 1 | U46: 0
A47: Q72 | B47: RJL | C47: NORTHERN LINCOLNSHIRE AND GOOLE NHS FOUNDATION TRUST | D47: 38 | E47: 337 | F47: 0.1127596439 | G47: 1 | H47: 0 | I47: 35 | J47: 3 | K47: 0 | L47: 0 | M47: 0 | N47: 0 | O47: 0 | P47: 0 | Q47: 0 | R47: 38 | S47: 0 | T47: 0 | U47: 0
A48: Q72 | B48: RHQ | C48: SHEFFIELD TEACHING HOSPITALS NHS FOUNDATION TRUST | D48: 135 | E48: 562 | F48: 0.2402135231 | G48: 0.9777777778 | H48: 0.007407407407 | I48: 114 | J48: 18 | K48: 2 | L48: 1 | M48: 0 | N48: 0 | O48: 0 | P48: 0 | Q48: 133 | R48: 0 | S48: 0 | T48: 2 | U48: 0
A49: Q72 | B49: RFR | C49: THE ROTHERHAM NHS FOUNDATION TRUST | D49: 61 | E49: 206 | F49: 0.2961165049 | G49: 0.9836065574 | H49: 0.01639344262 | I49: 55 | J49: 5 | K49: 0 | L49: 0 | M49: 1 | N49: 0 | O49: 0 | P49: 0 | Q49: 61 | R49: 0 | S49: 0 | T49: 0 | U49: 0
A50: Q72 | B50: RCB | C50: YORK TEACHING HOSPITAL NHS FOUNDATION TRUST | D50: 97 | E50: 352 | F50: 0.2755681818 | G50: 0.9896907216 | H50: 0 | I50: 82 | J50: 14 | K50: 1 | L50: 0 | M50: 0 | N50: 0 | O50: 0 | P50: 0 | Q50: 97 | R50: 0 | S50: 0 | T50: 0 | U50: 0
A51: Q74 | B51: RLN | C51: CITY HOSPITALS SUNDERLAND NHS FOUNDATION TRUST | D51: 42 | E51: 223 | F51: 0.1883408072 | G51: 1 | H51: 0 | I51: 40 | J51: 2 | K51: 0 | L51: 0 | M51: 0 | N51: 0 | O51: 0 | P51: 0 | Q51: 42 | R51: 0 | S51: 0 | T51: 0 | U51: 0
A52: Q74 | B52: RXP | C52: COUNTY DURHAM AND DARLINGTON NHS FOUNDATION TRUST | D52: 33 | E52: 176 | F52: 0.1875 | G52: 1 | H52: 0 | I52: 30 | J52: 3 | K52: 0 | L52: 0 | M52: 0 | N52: 0 | O52: 0 | P52: 0 | Q52: 33 | R52: 0 | S52: 0 | T52: 0 | U52: 0
A53: Q74 | B53: RR7 | C53: GATESHEAD HEALTH NHS FOUNDATION TRUST | D53: 44 | E53: 126 | F53: 0.3492063492 | G53: 0.9318181818 | H53: 0.02272727273 | I53: 35 | J53: 6 | K53: 2 | L53: 1 | M53: 0 | N53: 0 | O53: 0 | P53: 13 | Q53: 31 | R53: 0 | S53: 0 | T53: 0 | U53: 0
A54: Q74 | B54: RNL | C54: NORTH CUMBRIA UNIVERSITY HOSPITALS NHS TRUST | D54: 62 | E54: 202 | F54: 0.3069306931 | G54: 0.9838709677 | H54: 0 | I54: 48 | J54: 13 | K54: 1 | L54: 0 | M54: 0 | N54: 0 | O54: 0 | P54: 0 | Q54: 62 | R54: 0 | S54: 0 | T54: 0 | U54: 0
A55: Q74 | B55: RVW | C55: NORTH TEES AND HARTLEPOOL NHS FOUNDATION TRUST | D55: 17 | E55: 209 | F55: 0.08133971292 | G55: 0.9411764706 | H55: 0.05882352941 | I55: 13 | J55: 3 | K55: 0 | L55: 1 | M55: 0 | N55: 0 | O55: 0 | P55: 0 | Q55: 17 | R55: 0 | S55: 0 | T55: 0 | U55: 0
A56: Q74 | B56: RTF | C56: NORTHUMBRIA HEALTHCARE NHS FOUNDATION TRUST | D56: 31 | E56: 179 | F56: 0.1731843575 | G56: 1 | H56: 0 | I56: 29 | J56: 2 | K56: 0 | L56: 0 | M56: 0 | N56: 0 | O56: 0 | P56: 0 | Q56: 31 | R56: 0 | S56: 0 | T56: 0 | U56: 0
A57: Q74 | B57: RTR | C57: SOUTH TEES HOSPITALS NHS FOUNDATION TRUST | D57: 21 | E57: 341 | F57: 0.06158357771 | G57: 1 | H57: 0 | I57: 21 | J57: 0 | K57: 0 | L57: 0 | M57: 0 | N57: 0 | O57: 0 | P57: 0 | Q57: 21 | R57: 0 | S57: 0 | T57: 0 | U57: 0
A58: Q74 | B58: RE9 | C58: SOUTH TYNESIDE NHS FOUNDATION TRUST | D58: 21 | E58: 92 | F58: 0.2282608696 | G58: 0.9047619048 | H58: 0 | I58: 19 | J58: 0 | K58: 0 | L58: 0 | M58: 0 | N58: 2 | O58: 0 | P58: 0 | Q58: 21 | R58: 0 | S58: 0 | T58: 0 | U58: 0
A59: Q74 | B59: RTD | C59: THE NEWCASTLE UPON TYNE HOSPITALS NHS FOUNDATION TRUST | D59: 157 | E59: 492 | F59: 0.3191056911 | G59: 0.9872611465 | H59: 0 | I59: 138 | J59: 17 | K59: 1 | L59: 0 | M59: 0 | N59: 1 | O59: 0 | P59: 0 | Q59: 157 | R59: 0 | S59: 0 | T59: 0 | U59: 0
A60: Q74 | B60: RTX | C60: UNIVERSITY HOSPITALS OF MORECAMBE BAY NHS FOUNDATION TRUST | D60: 11 | E60: 11 | F60: 1 | G60: 0.9090909091 | H60: 0 | I60: 9 | J60: 1 | K60: 1 | L60: 0 | M60: 0 | N60: 0 | O60: 0 | P60: 0 | Q60: 11 | R60: 0 | S60: 0 | T60: 0 | U60: 0
A61: Q75 | B61: RJR | C61: COUNTESS OF CHESTER HOSPITAL NHS FOUNDATION TRUST | D61: 42 | E61: 231 | F61: 0.1818181818 | G61: 0.9523809524 | H61: 0 | I61: 32 | J61: 8 | K61: 2 | L61: 0 | M61: 0 | N61: 0 | O61: 28 | P61: 0 | Q61: 0 | R61: 14 | S61: 0 | T61: 0 | U61: 0
A62: Q75 | B62: RJN | C62: EAST CHESHIRE NHS TRUST | D62: 11 | E62: 135 | F62: 0.08148148148 | G62: 1 | H62: 0 | I62: * | J62: * | K62: * | L62: * | M62: * | N62: * | O62: * | P62: * | Q62: * | R62: * | S62: * | T62: * | U62: *
A63: Q75 | B63: REP | C63: LIVERPOOL WOMEN'S NHS FOUNDATION TRUST | D63: 1 | E63: 675 | F63: 0.001481481481 | G63: * | H63: * | I63: * | J63: * | K63: * | L63: * | M63: * | N63: * | O63: * | P63: * | Q63: * | R63: * | S63: * | T63: * | U63: *
A64: Q75 | B64: RBT | C64: MID CHESHIRE HOSPITALS NHS FOUNDATION TRUST | D64: 16 | E64: 227 | F64: 0.0704845815 | G64: 1 | H64: 0 | I64: 14 | J64: 2 | K64: 0 | L64: 0 | M64: 0 | N64: 0 | O64: 0 | P64: 0 | Q64: 16 | R64: 0 | S64: 0 | T64: 0 | U64: 0
A65: Q75 | B65: RVY | C65: SOUTHPORT AND ORMSKIRK HOSPITAL NHS TRUST | D65: 22 | E65: 207 | F65: 0.1062801932 | G65: 1 | H65: 0 | I65: 16 | J65: 6 | K65: 0 | L65: 0 | M65: 0 | N65: 0 | O65: 0 | P65: 10 | Q65: 12 | R65: 0 | S65: 0 | T65: 0 | U65: 0
A66: Q75 | B66: RBN | C66: ST HELENS AND KNOWSLEY HOSPITAL SERVICES NHS TRUST | D66: 39 | E66: 327 | F66: 0.119266055 | G66: 0.9743589744 | H66: 0 | I66: 33 | J66: 5 | K66: 0 | L66: 0 | M66: 0 | N66: 1 | O66: 0 | P66: 0 | Q66: 39 | R66: 0 | S66: 0 | T66: 0 | U66: 0
A67: Q75 | B67: RWW | C67: WARRINGTON AND HALTON HOSPITALS NHS FOUNDATION TRUST | D67: 54 | E67: 210 | F67: 0.2571428571 | G67: 0.962962963 | H67: 0.01851851852 | I67: 50 | J67: 2 | K67: 0 | L67: 0 | M67: 1 | N67: 1 | O67: 0 | P67: 0 | Q67: 54 | R67: 0 | S67: 0 | T67: 0 | U67: 0
A68: Q75 | B68: RBL | C68: WIRRAL UNIVERSITY TEACHING HOSPITAL NHS FOUNDATION TRUST | D68: 154 | E68: 244 | F68: 0.631147541 | G68: 1 | H68: 0 | I68: 132 | J68: 22 | K68: 0 | L68: 0 | M68: 0 | N68: 0 | O68: 0 | P68: 0 | Q68: 154 | R68: 0 | S68: 0 | T68: 0 | U68: 0
A69: Q76 | B69: RJF | C69: BURTON HOSPITALS NHS FOUNDATION TRUST | D69: 94 | E69: 233 | F69: 0.4034334764 | G69: 0.9893617021 | H69: 0 | I69: 87 | J69: 6 | K69: 1 | L69: 0 | M69: 0 | N69: 0 | O69: 0 | P69: 0 | Q69: 94 | R69: 0 | S69: 0 | T69: 0 | U69: 0
A70: Q76 | B70: RFS | C70: CHESTERFIELD ROYAL HOSPITAL NHS FOUNDATION TRUST | D70: 39 | E70: 203 | F70: 0.1921182266 | G70: 0.8461538462 | H70: 0 | I70: 25 | J70: 8 | K70: 3 | L70: 0 | M70: 0 | N70: 3 | O70: 0 | P70: 39 | Q70: 0 | R70: 0 | S70: 0 | T70: 0 | U70: 0
A71: Q76 | B71: RTG | C71: DERBY TEACHING HOSPITALS NHS FOUNDATION TRUST | D71: 243 | E71: 440 | F71: 0.5522727273 | G71: 0.975308642 | H71: 0.004115226337 | I71: 178 | J71: 59 | K71: 4 | L71: 0 | M71: 1 | N71: 1 | O71: 0 | P71: 0 | Q71: 243 | R71: 0 | S71: 0 | T71: 0 | U71: 0
A72: Q76 | B72: RX1 | C72: NOTTINGHAM UNIVERSITY HOSPITALS NHS TRUST | D72: 142 | E72: 677 | F72: 0.2097488922 | G72: 1 | H72: 0 | I72: 119 | J72: 23 | K72: 0 | L72: 0 | M72: 0 | N72: 0 | O72: 0 | P72: 0 | Q72: 3 | R72: 0 | S72: 0 | T72: 139 | U72: 0
A73: Q76 | B73: RK5 | C73: SHERWOOD FOREST HOSPITALS NHS FOUNDATION TRUST | D73: 71 | E73: 283 | F73: 0.2508833922 | G73: 0.985915493 | H73: 0 | I73: 61 | J73: 9 | K73: 1 | L73: 0 | M73: 0 | N73: 0 | O73: 0 | P73: 5 | Q73: 66 | R73: 0 | S73: 0 | T73: 0 | U73: 0
A74: Q76 | B74: RXW | C74: SHREWSBURY AND TELFORD HOSPITAL NHS TRUST | D74: 49 | E74: 363 | F74: 0.1349862259 | G74: 1 | H74: 0 | I74: 48 | J74: 1 | K74: 0 | L74: 0 | M74: 0 | N74: 0 | O74: 0 | P74: 0 | Q74: 49 | R74: 0 | S74: 0 | T74: 0 | U74: 0
A75: Q76 | B75: RJE | C75: UNIVERSITY HOSPITALS OF NORTH MIDLANDS NHS TRUST | D75: 52 | E75: 500 | F75: 0.104 | G75: 1 | H75: 0 | I75: 50 | J75: 2 | K75: 0 | L75: 0 | M75: 0 | N75: 0 | O75: 0 | P75: 0 | Q75: 52 | R75: 0 | S75: 0 | T75: 0 | U75: 0
A76: Q77 | B76: RQ3 | C76: BIRMINGHAM WOMEN'S AND CHILDREN'S NHS FOUNDATION TRUST | D76: 1 | E76: 647 | F76: 0.001545595054 | G76: * | H76: * | I76: * | J76: * | K76: * | L76: * | M76: * | N76: * | O76: * | P76: * | Q76: * | R76: * | S76: * | T76: * | U76: *
A77: Q77 | B77: RLT | C77: GEORGE ELIOT HOSPITAL NHS TRUST | D77: 76 | E77: 161 | F77: 0.4720496894 | G77: 0.9736842105 | H77: 0.01315789474 | I77: 68 | J77: 6 | K77: 1 | L77: 0 | M77: 1 | N77: 0 | O77: 64 | P77: 0 | Q77: 12 | R77: 0 | S77: 0 | T77: 0 | U77: 0
A78: Q77 | B78: RR1 | C78: HEART OF ENGLAND NHS FOUNDATION TRUST | D78: 21 | E78: 517 | F78: 0.04061895551 | G78: 0.9523809524 | H78: 0 | I78: * | J78: * | K78: * | L78: * | M78: * | N78: * | O78: * | P78: * | Q78: * | R78: * | S78: * | T78: * | U78: *
A79: Q77 | B79: RXK | C79: SANDWELL AND WEST BIRMINGHAM HOSPITALS NHS TRUST | D79: 50 | E79: 460 | F79: 0.1086956522 | G79: 0.82 | H79: 0.04 | I79: 18 | J79: 23 | K79: 4 | L79: 1 | M79: 1 | N79: 3 | O79: 0 | P79: 50 | Q79: 0 | R79: 0 | S79: 0 | T79: 0 | U79: 0
A80: Q77 | B80: RJC | C80: SOUTH WARWICKSHIRE NHS FOUNDATION TRUST | D80: 28 | E80: 226 | F80: 0.1238938053 | G80: 0.9642857143 | H80: 0 | I80: 22 | J80: 5 | K80: 0 | L80: 0 | M80: 0 | N80: 1 | O80: 0 | P80: 0 | Q80: 28 | R80: 0 | S80: 0 | T80: 0 | U80: 0
A81: Q77 | B81: RNA | C81: THE DUDLEY GROUP NHS FOUNDATION TRUST | D81: 124 | E81: 378 | F81: 0.328042328 | G81: 0.9919354839 | H81: 0 | I81: 113 | J81: 10 | K81: 0 | L81: 0 | M81: 0 | N81: 1 | O81: 0 | P81: 0 | Q81: 124 | R81: 0 | S81: 0 | T81: 0 | U81: 0
A82: Q77 | B82: RL4 | C82: THE ROYAL WOLVERHAMPTON NHS TRUST | D82: 49 | E82: 370 | F82: 0.1324324324 | G82: 1 | H82: 0 | I82: 49 | J82: 0 | K82: 0 | L82: 0 | M82: 0 | N82: 0 | O82: 0 | P82: 0 | Q82: 48 | R82: 0 | S82: 0 | T82: 1 | U82: 0
A83: Q77 | B83: RKB | C83: UNIVERSITY HOSPITALS COVENTRY AND WARWICKSHIRE NHS TRUST | D83: 67 | E83: 500 | F83: 0.134 | G83: 0.9850746269 | H83: 0.01492537313 | I83: 58 | J83: 8 | K83: 0 | L83: 0 | M83: 1 | N83: 0 | O83: 2 | P83: 0 | Q83: 65 | R83: 0 | S83: 0 | T83: 0 | U83: 0
A84: Q77 | B84: RBK | C84: WALSALL HEALTHCARE NHS TRUST | D84: 22 | E84: 226 | F84: 0.09734513274 | G84: 0.9545454545 | H84: 0.04545454545 | I84: 20 | J84: 1 | K84: 0 | L84: 0 | M84: 1 | N84: 0 | O84: 13 | P84: 0 | Q84: 9 | R84: 0 | S84: 0 | T84: 0 | U84: 0
A85: Q77 | B85: RWP | C85: WORCESTERSHIRE ACUTE HOSPITALS NHS TRUST | D85: 88 | E85: 201 | F85: 0.4378109453 | G85: 1 | H85: 0 | I85: 85 | J85: 3 | K85: 0 | L85: 0 | M85: 0 | N85: 0 | O85: 0 | P85: 0 | Q85: 88 | R85: 0 | S85: 0 | T85: 0 | U85: 0
A86: Q77 | B86: RLQ | C86: WYE VALLEY NHS TRUST | D86: 66 | E86: 130 | F86: 0.5076923077 | G86: 0.9393939394 | H86: 0 | I86: 52 | J86: 10 | K86: 2 | L86: 0 | M86: 0 | N86: 2 | O86: 0 | P86: 66 | Q86: 0 | R86: 0 | S86: 0 | T86: 0 | U86: 0
A87: Q78 | B87: RC1 | C87: BEDFORD HOSPITAL NHS TRUST | D87: 38 | E87: 73 | F87: 0.5205479452 | G87: 0.9736842105 | H87: 0.02631578947 | I87: 32 | J87: 5 | K87: 0 | L87: 0 | M87: 1 | N87: 0 | O87: 38 | P87: 0 | Q87: 0 | R87: 0 | S87: 0 | T87: 0 | U87: 0
A88: Q78 | B88: RWH | C88: EAST AND NORTH HERTFORDSHIRE NHS TRUST | D88: 214 | E88: 413 | F88: 0.5181598063 | G88: 0.9813084112 | H88: 0 | I88: 160 | J88: 50 | K88: 3 | L88: 0 | M88: 0 | N88: 1 | O88: 0 | P88: 214 | Q88: 0 | R88: 0 | S88: 0 | T88: 0 | U88: 0
A89: Q78 | B89: RNQ | C89: KETTERING GENERAL HOSPITAL NHS FOUNDATION TRUST | D89: 43 | E89: 292 | F89: 0.147260274 | G89: 1 | H89: 0 | I89: 39 | J89: 4 | K89: 0 | L89: 0 | M89: 0 | N89: 0 | O89: 0 | P89: 0 | Q89: 43 | R89: 0 | S89: 0 | T89: 0 | U89: 0
A90: Q78 | B90: RC9 | C90: LUTON AND DUNSTABLE UNIVERSITY HOSPITAL NHS FOUNDATION TRUST | D90: 33 | E90: 408 | F90: 0.08088235294 | G90: 0.9393939394 | H90: 0 | I90: 20 | J90: 11 | K90: 2 | L90: 0 | M90: 0 | N90: 0 | O90: 0 | P90: 11 | Q90: 22 | R90: 0 | S90: 0 | T90: 0 | U90: 0
A91: Q78 | B91: RD8 | C91: MILTON KEYNES UNIVERSITY HOSPITAL NHS FOUNDATION TRUST | D91: 7 | E91: 262 | F91: 0.02671755725 | G91: 1 | H91: 0 | I91: 7 | J91: 0 | K91: 0 | L91: 0 | M91: 0 | N91: 0 | O91: 0 | P91: 0 | Q91: 7 | R91: 0 | S91: 0 | T91: 0 | U91: 0
A92: Q78 | B92: RNS | C92: NORTHAMPTON GENERAL HOSPITAL NHS TRUST | D92: 23 | E92: 358 | F92: 0.06424581006 | G92: 1 | H92: 0 | I92: 22 | J92: 1 | K92: 0 | L92: 0 | M92: 0 | N92: 0 | O92: 0 | P92: 0 | Q92: 18 | R92: 0 | S92: 0 | T92: 5 | U92: 0
A93: Q78 | B93: RWD | C93: UNITED LINCOLNSHIRE HOSPITALS NHS TRUST | D93: 15 | E93: 438 | F93: 0.03424657534 | G93: 1 | H93: 0 | I93: 12 | J93: 3 | K93: 0 | L93: 0 | M93: 0 | N93: 0 | O93: 0 | P93: 0 | Q93: 15 | R93: 0 | S93: 0 | T93: 0 | U93: 0
A94: Q78 | B94: RWE | C94: UNIVERSITY HOSPITALS OF LEICESTER NHS TRUST | D94: 472 | E94: 726 | F94: 0.650137741 | G94: 0.9216101695 | H94: 0.03177966102 | I94: 346 | J94: 89 | K94: 9 | L94: 7 | M94: 8 | N94: 13 | O94: 0 | P94: 472 | Q94: 0 | R94: 0 | S94: 0 | T94: 0 | U94: 0
A95: Q78 | B95: RWG | C95: WEST HERTFORDSHIRE HOSPITALS NHS TRUST | D95: 107 | E95: 380 | F95: 0.2815789474 | G95: 0.9345794393 | H95: 0.009345794393 | I95: 79 | J95: 21 | K95: 6 | L95: 0 | M95: 1 | N95: 0 | O95: 0 | P95: 0 | Q95: 106 | R95: 0 | S95: 0 | T95: 1 | U95: 0
A96: Q79 | B96: RDD | C96: BASILDON AND THURROCK UNIVERSITY HOSPITALS NHS FOUNDATION TRUST | D96: 19 | E96: 147 | F96: 0.1292517007 | G96: 0.9473684211 | H96: 0 | I96: 15 | J96: 3 | K96: 1 | L96: 0 | M96: 0 | N96: 0 | O96: 0 | P96: 0 | Q96: 19 | R96: 0 | S96: 0 | T96: 0 | U96: 0
A97: Q79 | B97: RGT | C97: CAMBRIDGE UNIVERSITY HOSPITALS NHS FOUNDATION TRUST | D97: 289 | E97: 440 | F97: 0.6568181818 | G97: 0.9653979239 | H97: 0.01038062284 | I97: 233 | J97: 46 | K97: 5 | L97: 1 | M97: 2 | N97: 2 | O97: 0 | P97: 288 | Q97: 1 | R97: 0 | S97: 0 | T97: 0 | U97: 0
A98: Q79 | B98: RDE | C98: COLCHESTER HOSPITAL UNIVERSITY NHS FOUNDATION TRUST | D98: 39 | E98: 272 | F98: 0.1433823529 | G98: 0.9487179487 | H98: 0 | I98: 30 | J98: 7 | K98: 2 | L98: 0 | M98: 0 | N98: 0 | O98: 0 | P98: 0 | Q98: 39 | R98: 0 | S98: 0 | T98: 0 | U98: 0
A99: Q79 | B99: RGQ | C99: IPSWICH HOSPITAL NHS TRUST | D99: 108 | E99: 294 | F99: 0.3673469388 | G99: 0.9814814815 | H99: 0.01851851852 | I99: 91 | J99: 15 | K99: 0 | L99: 1 | M99: 1 | N99: 0 | O99: 0 | P99: 108 | Q99: 0 | R99: 0 | S99: 0 | T99: 0 | U99: 0
A100: Q79 | B100: RGP | C100: JAMES PAGET UNIVERSITY HOSPITALS NHS FOUNDATION TRUST | D100: 26 | E100: 171 | F100: 0.1520467836 | G100: 1 | H100: 0 | I100: 26 | J100: 0 | K100: 0 | L100: 0 | M100: 0 | N100: 0 | O100: 0 | P100: 0 | Q100: 26 | R100: 0 | S100: 0 | T100: 0 | U100: 0
A101: Q79 | B101: RQ8 | C101: MID ESSEX HOSPITAL SERVICES NHS TRUST | D101: 32 | E101: 269 | F101: 0.1189591078 | G101: 0.90625 | H101: 0.09375 | I101: 26 | J101: 3 | K101: 0 | L101: 2 | M101: 1 | N101: 0 | O101: 28 | P101: 0 | Q101: 0 | R101: 0 | S101: 4 | T101: 0 | U101: 0
A102: Q79 | B102: RM1 | C102: NORFOLK AND NORWICH UNIVERSITY HOSPITALS NHS FOUNDATION TRUST | D102: 30 | E102: 473 | F102: 0.06342494715 | G102: 1 | H102: 0 | I102: 30 | J102: 0 | K102: 0 | L102: 0 | M102: 0 | N102: 0 | O102: 0 | P102: 28 | Q102: 2 | R102: 0 | S102: 0 | T102: 0 | U102: 0
A103: Q79 | B103: RGN | C103: NORTH WEST ANGLIA NHS FOUNDATION TRUST | D103: 149 | E103: 555 | F103: 0.2684684685 | G103: 0.9798657718 | H103: 0 | I103: 135 | J103: 11 | K103: 1 | L103: 0 | M103: 0 | N103: 2 | O103: 0 | P103: 0 | Q103: 148 | R103: 0 | S103: 0 | T103: 1 | U103: 0
A104: Q79 | B104: RAJ | C104: SOUTHEND UNIVERSITY HOSPITAL NHS FOUNDATION TRUST | D104: 10 | E104: 249 | F104: 0.04016064257 | G104: 0.9 | H104: 0 | I104: 9 | J104: 0 | K104: 1 | L104: 0 | M104: 0 | N104: 0 | O104: 1 | P104: 0 | Q104: 9 | R104: 0 | S104: 0 | T104: 0 | U104: 0
A105: Q79 | B105: RQW | C105: THE PRINCESS ALEXANDRA HOSPITAL NHS TRUST | D105: 176 | E105: 305 | F105: 0.5770491803 | G105: 0.9488636364 | H105: 0 | I105: 148 | J105: 19 | K105: 0 | L105: 0 | M105: 0 | N105: 9 | O105: 0 | P105: 0 | Q105: 0 | R105: 0 | S105: 0 | T105: 0 | U105: 176
A106: Q79 | B106: RCX | C106: THE QUEEN ELIZABETH HOSPITAL, KING'S LYNN, NHS FOUNDATION TRUST | D106: 30 | E106: 179 | F106: 0.1675977654 | G106: 0.9666666667 | H106: 0 | I106: 26 | J106: 3 | K106: 0 | L106: 0 | M106: 0 | N106: 1 | O106: 0 | P106: 0 | Q106: 29 | R106: 0 | S106: 0 | T106: 1 | U106: 0
A107: Q79 | B107: RGR | C107: WEST SUFFOLK NHS FOUNDATION TRUST | D107: 31 | E107: 235 | F107: 0.1319148936 | G107: 1 | H107: 0 | I107: 29 | J107: 2 | K107: 0 | L107: 0 | M107: 0 | N107: 0 | O107: 0 | P107: 0 | Q107: 31 | R107: 0 | S107: 0 | T107: 0 | U107: 0
A108: Q80 | B108: RVJ | C108: NORTH BRISTOL NHS TRUST | D108: 83 | E108: 528 | F108: 0.1571969697 | G108: 0.9638554217 | H108: 0.02409638554 | I108: 75 | J108: 5 | K108: 1 | L108: 1 | M108: 1 | N108: 0 | O108: 81 | P108: 0 | Q108: 2 | R108: 0 | S108: 0 | T108: 0 | U108: 0
A109: Q80 | B109: RBZ | C109: NORTHERN DEVON HEALTHCARE NHS TRUST | D109: 3 | E109: 118 | F109: 0.02542372881 | G109: * | H109: * | I109: * | J109: * | K109: * | L109: * | M109: * | N109: * | O109: * | P109: * | Q109: * | R109: * | S109: * | T109: * | U109: *
A110: Q80 | B110: RK9 | C110: PLYMOUTH HOSPITALS NHS TRUST | D110: 131 | E110: 328 | F110: 0.3993902439 | G110: 0.9923664122 | H110: 0 | I110: 117 | J110: 13 | K110: 0 | L110: 0 | M110: 0 | N110: 1 | O110: 0 | P110: 67 | Q110: 63 | R110: 0 | S110: 0 | T110: 1 | U110: 0
A111: Q80 | B111: REF | C111: ROYAL CORNWALL HOSPITALS NHS TRUST | D111: 47 | E111: 321 | F111: 0.1464174455 | G111: 1 | H111: 0 | I111: 40 | J111: 7 | K111: 0 | L111: 0 | M111: 0 | N111: 0 | O111: 0 | P111: 0 | Q111: 47 | R111: 0 | S111: 0 | T111: 0 | U111: 0
A112: Q80 | B112: RH8 | C112: ROYAL DEVON AND EXETER NHS FOUNDATION TRUST | D112: 1 | E112: 324 | F112: 0.003086419753 | G112: * | H112: * | I112: * | J112: * | K112: * | L112: * | M112: * | N112: * | O112: * | P112: * | Q112: * | R112: * | S112: * | T112: * | U112: *
A113: Q80 | B113: RBA | C113: TAUNTON AND SOMERSET NHS FOUNDATION TRUST | D113: 19 | E113: 268 | F113: 0.07089552239 | G113: 0.9473684211 | H113: 0.05263157895 | I113: 16 | J113: 2 | K113: 0 | L113: 1 | M113: 0 | N113: 0 | O113: 0 | P113: 0 | Q113: 19 | R113: 0 | S113: 0 | T113: 0 | U113: 0
A114: Q80 | B114: RA9 | C114: TORBAY AND SOUTH DEVON NHS FOUNDATION TRUST | D114: 10 | E114: 170 | F114: 0.05882352941 | G114: 1 | H114: 0 | I114: 9 | J114: 1 | K114: 0 | L114: 0 | M114: 0 | N114: 0 | O114: 0 | P114: 0 | Q114: 10 | R114: 0 | S114: 0 | T114: 0 | U114: 0
A115: Q80 | B115: RA7 | C115: UNIVERSITY HOSPITALS BRISTOL NHS FOUNDATION TRUST | D115: 96 | E115: 411 | F115: 0.2335766423 | G115: 0.96875 | H115: 0 | I115: 81 | J115: 12 | K115: 1 | L115: 0 | M115: 0 | N115: 2 | O115: 0 | P115: 0 | Q115: 96 | R115: 0 | S115: 0 | T115: 0 | U115: 0
A116: Q80 | B116: RA3 | C116: WESTON AREA HEALTH NHS TRUST | D116: 7 | E116: 19 | F116: 0.3684210526 | G116: 1 | H116: 0 | I116: 6 | J116: 1 | K116: 0 | L116: 0 | M116: 0 | N116: 0 | O116: 0 | P116: 0 | Q116: 7 | R116: 0 | S116: 0 | T116: 0 | U116: 0
A117: Q80 | B117: RA4 | C117: YEOVIL DISTRICT HOSPITAL NHS FOUNDATION TRUST | D117: 3 | E117: 111 | F117: 0.02702702703 | G117: * | H117: * | I117: * | J117: * | K117: * | L117: * | M117: * | N117: * | O117: * | P117: * | Q117: * | R117: * | S117: * | T117: * | U117: *
A118: Q81 | B118: RTK | C118: ASHFORD AND ST PETER'S HOSPITALS NHS FOUNDATION TRUST | D118: 22 | E118: 332 | F118: 0.06626506024 | G118: 0.9545454545 | H118: 0 | I118: 19 | J118: 2 | K118: 0 | L118: 0 | M118: 0 | N118: 1 | O118: 0 | P118: 0 | Q118: 22 | R118: 0 | S118: 0 | T118: 0 | U118: 0
A119: Q81 | B119: RXH | C119: BRIGHTON AND SUSSEX UNIVERSITY HOSPITALS NHS TRUST | D119: 95 | E119: 425 | F119: 0.2235294118 | G119: 0.9684210526 | H119: 0.01052631579 | I119: 80 | J119: 12 | K119: 2 | L119: 0 | M119: 1 | N119: 0 | O119: 95 | P119: 0 | Q119: 0 | R119: 0 | S119: 0 | T119: 0 | U119: 0
A120: Q81 | B120: RN7 | C120: DARTFORD AND GRAVESHAM NHS TRUST | D120: 89 | E120: 333 | F120: 0.2672672673 | G120: 1 | H120: 0 | I120: 73 | J120: 16 | K120: 0 | L120: 0 | M120: 0 | N120: 0 | O120: 0 | P120: 0 | Q120: 89 | R120: 0 | S120: 0 | T120: 0 | U120: 0
A121: Q81 | B121: RVV | C121: EAST KENT HOSPITALS UNIVERSITY NHS FOUNDATION TRUST | D121: 358 | E121: 590 | F121: 0.606779661 | G121: 0.9776536313 | H121: 0.01117318436 | I121: 314 | J121: 36 | K121: 0 | L121: 4 | M121: 0 | N121: 4 | O121: 0 | P121: 0 | Q121: 0 | R121: 358 | S121: 0 | T121: 0 | U121: 0
A122: Q81 | B122: RXC | C122: EAST SUSSEX HEALTHCARE NHS TRUST | D122: 113 | E122: 261 | F122: 0.4329501916 | G122: 0.982300885 | H122: 0.008849557522 | I122: 83 | J122: 28 | K122: 0 | L122: 0 | M122: 1 | N122: 1 | O122: 0 | P122: 112 | Q122: 0 | R122: 0 | S122: 0 | T122: 1 | U122: 0
A123: Q81 | B123: RDU | C123: FRIMLEY HEALTH NHS FOUNDATION TRUST | D123: 204 | E123: 766 | F123: 0.2663185379 | G123: 0.9754901961 | H123: 0.004901960784 | I123: 180 | J123: 19 | K123: 3 | L123: 1 | M123: 0 | N123: 1 | O123: 0 | P123: 0 | Q123: 203 | R123: 0 | S123: 0 | T123: 1 | U123: 0
A124: Q81 | B124: RWF | C124: MAIDSTONE AND TUNBRIDGE WELLS NHS TRUST | D124: 204 | E124: 456 | F124: 0.4473684211 | G124: 0.9264705882 | H124: 0 | I124: 172 | J124: 17 | K124: 2 | L124: 0 | M124: 0 | N124: 13 | O124: 0 | P124: 0 | Q124: 200 | R124: 0 | S124: 0 | T124: 4 | U124: 0
A125: Q81 | B125: RPA | C125: MEDWAY NHS FOUNDATION TRUST | D125: 111 | E125: 274 | F125: 0.4051094891 | G125: 1 | H125: 0 | I125: 102 | J125: 9 | K125: 0 | L125: 0 | M125: 0 | N125: 0 | O125: 0 | P125: 0 | Q125: 0 | R125: 111 | S125: 0 | T125: 0 | U125: 0
A126: Q81 | B126: RA2 | C126: ROYAL SURREY COUNTY HOSPITAL NHS FOUNDATION TRUST | D126: 23 | E126: 263 | F126: 0.08745247148 | G126: 1 | H126: 0 | I126: 23 | J126: 0 | K126: 0 | L126: 0 | M126: 0 | N126: 0 | O126: 10 | P126: 0 | Q126: 13 | R126: 0 | S126: 0 | T126: 0 | U126: 0
A127: Q81 | B127: RTP | C127: SURREY AND SUSSEX HEALTHCARE NHS TRUST | D127: 92 | E127: 377 | F127: 0.2440318302 | G127: 0.9673913043 | H127: 0.01086956522 | I127: 72 | J127: 17 | K127: 1 | L127: 1 | M127: 0 | N127: 1 | O127: 0 | P127: 0 | Q127: 89 | R127: 0 | S127: 0 | T127: 3 | U127: 0
A128: Q81 | B128: RYR | C128: WESTERN SUSSEX HOSPITALS NHS FOUNDATION TRUST | D128: 173 | E128: 404 | F128: 0.4282178218 | G128: 0.9884393064 | H128: 0.005780346821 | I128: 151 | J128: 20 | K128: 0 | L128: 1 | M128: 0 | N128: 1 | O128: 0 | P128: 0 | Q128: 172 | R128: 0 | S128: 0 | T128: 1 | U128: 0
A129: Q82 | B129: RXQ | C129: BUCKINGHAMSHIRE HEALTHCARE NHS TRUST | D129: 233 | E129: 519 | F129: 0.4489402697 | G129: 0.974248927 | H129: 0.004291845494 | I129: 185 | J129: 42 | K129: 5 | L129: 1 | M129: 0 | N129: 0 | O129: 0 | P129: 0 | Q129: 233 | R129: 0 | S129: 0 | T129: 0 | U129: 0
A130: Q82 | B130: RTE | C130: GLOUCESTERSHIRE HOSPITALS NHS FOUNDATION TRUST | D130: 73 | E130: 287 | F130: 0.2543554007 | G130: 0.9452054795 | H130: 0.04109589041 | I130: 60 | J130: 9 | K130: 1 | L130: 2 | M130: 1 | N130: 0 | O130: 70 | P130: 0 | Q130: 0 | R130: 0 | S130: 3 | T130: 0 | U130: 0
A131: Q82 | B131: RN3 | C131: GREAT WESTERN HOSPITALS NHS FOUNDATION TRUST | D131: 37 | E131: 361 | F131: 0.1024930748 | G131: 1 | H131: 0 | I131: * | J131: * | K131: * | L131: * | M131: * | N131: * | O131: * | P131: * | Q131: * | R131: * | S131: * | T131: * | U131: *
A132: Q82 | B132: RTH | C132: OXFORD UNIVERSITY HOSPITALS NHS FOUNDATION TRUST | D132: 108 | E132: 560 | F132: 0.1928571429 | G132: 0.9907407407 | H132: 0 | I132: 94 | J132: 13 | K132: 1 | L132: 0 | M132: 0 | N132: 0 | O132: 0 | P132: 0 | Q132: 107 | R132: 0 | S132: 0 | T132: 1 | U132: 0
A133: Q82 | B133: RHW | C133: ROYAL BERKSHIRE NHS FOUNDATION TRUST | D133: 168 | E133: 400 | F133: 0.42 | G133: 0.9583333333 | H133: 0.0119047619 | I133: 131 | J133: 30 | K133: 1 | L133: 2 | M133: 0 | N133: 4 | O133: 0 | P133: 88 | Q133: 80 | R133: 0 | S133: 0 | T133: 0 | U133: 0
A134: Q82 | B134: RD1 | C134: ROYAL UNITED HOSPITALS BATH NHS FOUNDATION TRUST | D134: 68 | E134: 359 | F134: 0.1894150418 | G134: 1 | H134: 0 | I134: 65 | J134: 3 | K134: 0 | L134: 0 | M134: 0 | N134: 0 | O134: 0 | P134: 0 | Q134: 68 | R134: 0 | S134: 0 | T134: 0 | U134: 0
A135: Q82 | B135: RNZ | C135: SALISBURY NHS FOUNDATION TRUST | D135: 4 | E135: 191 | F135: 0.02094240838 | G135: * | H135: * | I135: * | J135: * | K135: * | L135: * | M135: * | N135: * | O135: * | P135: * | Q135: * | R135: * | S135: * | T135: * | U135: *
A136: Q83 | B136: RMC | C136: BOLTON NHS FOUNDATION TRUST | D136: 93 | E136: 558 | F136: 0.1666666667 | G136: 0.9247311828 | H136: 0.06451612903 | I136: 81 | J136: 5 | K136: 1 | L136: 1 | M136: 5 | N136: 0 | O136: 52 | P136: 0 | Q136: 0 | R136: 41 | S136: 0 | T136: 0 | U136: 0
A137: Q83 | B137: RY2 | C137: BRIDGEWATER COMMUNITY HEALTHCARE NHS FOUNDATION TRUST | D137: 0 | E137: 0 | F137: NA | G137: NA | H137: NA | I137: 0 | J137: 0 | K137: 0 | L137: 0 | M137: 0 | N137: 0 | O137: 0 | P137: 0 | Q137: 0 | R137: 0 | S137: 0 | T137: 0 | U137: 0
A138: Q83 | B138: RW3 | C138: CENTRAL MANCHESTER UNIVERSITY HOSPITALS NHS FOUNDATION TRUST | D138: 20 | E138: 755 | F138: 0.02649006623 | G138: 1 | H138: 0 | I138: 15 | J138: 5 | K138: 0 | L138: 0 | M138: 0 | N138: 0 | O138: 0 | P138: 4 | Q138: 16 | R138: 0 | S138: 0 | T138: 0 | U138: 0
A139: Q83 | B139: RW6 | C139: PENNINE ACUTE HOSPITALS NHS TRUST | D139: 99 | E139: 741 | F139: 0.1336032389 | G139: 0.898989899 | H139: 0.0404040404 | I139: 79 | J139: 10 | K139: 4 | L139: 1 | M139: 3 | N139: 2 | O139: 27 | P139: 0 | Q139: 72 | R139: 0 | S139: 0 | T139: 0 | U139: 0
A140: Q83 | B140: RWJ | C140: STOCKPORT NHS FOUNDATION TRUST | D140: 150 | E140: 277 | F140: 0.5415162455 | G140: 1 | H140: 0 | I140: 129 | J140: 21 | K140: 0 | L140: 0 | M140: 0 | N140: 0 | O140: 0 | P140: 0 | Q140: 150 | R140: 0 | S140: 0 | T140: 0 | U140: 0
A141: Q83 | B141: RMP | C141: TAMESIDE AND GLOSSOP INTEGRATED CARE NHS FOUNDATION TRUST | D141: 71 | E141: 198 | F141: 0.3585858586 | G141: 0.985915493 | H141: 0 | I141: 49 | J141: 21 | K141: 1 | L141: 0 | M141: 0 | N141: 0 | O141: 0 | P141: 64 | Q141: 7 | R141: 0 | S141: 0 | T141: 0 | U141: 0
A142: Q83 | B142: RM2 | C142: UNIVERSITY HOSPITAL OF SOUTH MANCHESTER NHS FOUNDATION TRUST | D142: 47 | E142: 350 | F142: 0.1342857143 | G142: 1 | H142: 0 | I142: 47 | J142: 0 | K142: 0 | L142: 0 | M142: 0 | N142: 0 | O142: 0 | P142: 0 | Q142: 47 | R142: 0 | S142: 0 | T142: 0 | U142: 0
A143: Q83 | B143: RRF | C143: WRIGHTINGTON, WIGAN AND LEIGH NHS FOUNDATION TRUST | D143: 71 | E143: 206 | F143: 0.3446601942 | G143: 0.9718309859 | H143: 0 | I143: 60 | J143: 9 | K143: 2 | L143: 0 | M143: 0 | N143: 0 | O143: 0 | P143: 0 | Q143: 71 | R143: 0 | S143: 0 | T143: 0 | U143: 0
A144: Q84 | B144: RXL | C144: BLACKPOOL TEACHING HOSPITALS NHS FOUNDATION TRUST | D144: 91 | E144: 255 | F144: 0.3568627451 | G144: 1 | H144: 0 | I144: 71 | J144: 20 | K144: 0 | L144: 0 | M144: 0 | N144: 0 | O144: 0 | P144: 48 | Q144: 43 | R144: 0 | S144: 0 | T144: 0 | U144: 0
A145: Q84 | B145: RXR | C145: EAST LANCASHIRE HOSPITALS NHS TRUST | D145: 152 | E145: 428 | F145: 0.3551401869 | G145: 0.9802631579 | H145: 0.006578947368 | I145: 132 | J145: 17 | K145: 2 | L145: 0 | M145: 1 | N145: 0 | O145: 48 | P145: 0 | Q145: 104 | R145: 0 | S145: 0 | T145: 0 | U145: 0
A146: Q84 | B146: RXN | C146: LANCASHIRE TEACHING HOSPITALS NHS FOUNDATION TRUST | D146: 49 | E146: 253 | F146: 0.1936758893 | G146: 0.9795918367 | H146: 0.02040816327 | I146: 44 | J146: 4 | K146: 0 | L146: 0 | M146: 1 | N146: 0 | O146: 48 | P146: 0 | Q146: 0 | R146: 0 | S146: 1 | T146: 0 | U146: 0

Sheet Sites Q2
B6: Sort data by:
A9: Region (Geo) Code | B9: Trust Code | C9: Trust Name | D9: Site Code | E9: Site Name | F9: Total Responses | G9: Total Eligible | H9: Response Rate | I9: Percentage Recommended | J9: Percentage Not Recommended | K9: Breakdown of Responses
K10: Extremely Likely | L10: Likely | M10: Neither | N10: Unlikely | O10: Extremely Unlikely | P10: Don't Know
E11: England | F11: 11580 | G11: 48505 | H11: 0.2387382744 | I11: 0.9635578584 | J11: 0.01044905009 | K11: 9423 | L11: 1735 | M11: 152 | N11: 56 | O11: 65 | P11: 149
E12: Selection (excluding suppressed data) | F12: =SUBTOTAL(9,F13:F298) -> 11580 | G12: =SUBTOTAL(9,G13:G298) -> 48505 | H12: =IFERROR(F12/G12, "NA") -> 0.2387382744 | I12: =IFERROR((K12+L12)/SUM(K12:P12), "-") -> 0.9598485603 | J12: =IFERROR((N12+O12)/SUM(K12:P12), "-") -> 0.01165686958 | K12: =SUBTOTAL(9,K13:K298) -> 8139 | L12: =SUBTOTAL(9,L13:L298) -> 1495 | M12: 141 | N12: 54 | O12: 63 | P12: 145
A13: Q70 | B13: RBD | C13: DORSET COUNTY HOSPITAL NHS FOUNDATION TRUST | D13: RBD01 | E13: Dorset County Hospital - RBD01 | F13: 49 | G13: 156 | H13: 0.3141025641 | I13: 0.8979591837 | J13: 0.0612244898 | K13: 40 | L13: 4 | M13: 1 | N13: 1 | O13: 2 | P13: 1
A14: Q70 | B14: RN5 | C14: HAMPSHIRE HOSPITALS NHS FOUNDATION TRUST | D14: RN542 | E14: Andover War Memorial Hospital - RN542 | F14: 12 | G14: 14 | H14: 0.8571428571 | I14: 1 | J14: 0 | K14: 11 | L14: 1 | M14: 0 | N14: 0 | O14: 0 | P14: 0
A15: Q70 | B15: RN5 | C15: HAMPSHIRE HOSPITALS NHS FOUNDATION TRUST | D15: RN506 | E15: Basingstoke and North Hampshire Hospital - RN506 | F15: 88 | G15: 208 | H15: 0.4230769231 | I15: 0.9886363636 | J15: 0 | K15: 82 | L15: 5 | M15: 1 | N15: 0 | O15: 0 | P15: 0
A16: Q70 | B16: RN5 | C16: HAMPSHIRE HOSPITALS NHS FOUNDATION TRUST | D16: RN541 | E16: Royal Hampshire County Hospital - RN541 | F16: 47 | G16: 190 | H16: 0.2473684211 | I16: 0.9787234043 | J16: 0 | K16: 40 | L16: 6 | M16: 1 | N16: 0 | O16: 0 | P16: 0
A17: Q70 | B17: R1F | C17: ISLE OF WIGHT NHS TRUST | D17: R1F01 | E17: St Mary's Hospital - R1F01 | F17: 14 | G17: 92 | H17: 0.152173913 | I17: 1 | J17: 0 | K17: 14 | L17: 0 | M17: 0 | N17: 0 | O17: 0 | P17: 0
A18: Q70 | B18: RD3 | C18: POOLE HOSPITAL NHS FOUNDATION TRUST | D18: RD304 | E18: Poole General Hospital NHS Trust HQ - RD304 | F18: 126 | G18: 340 | H18: 0.3705882353 | I18: 0.9761904762 | J18: 0.007936507937 | K18: 98 | L18: 25 | M18: 2 | N18: 0 | O18: 1 | P18: 0
A19: Q70 | B19: RHU | C19: PORTSMOUTH HOSPITALS NHS TRUST | D19: RHU10 | E19: Gosport War Memorial Hospital - RHU10 | F19: 1 | G19: 1 | H19: 1 | I19: * | J19: * | K19: * | L19: * | M19: * | N19: * | O19: * | P19: *
A20: Q70 | B20: RHU | C20: PORTSMOUTH HOSPITALS NHS TRUST | D20: RHU04 | E20: Petersfield Community Hospital - RHU04 | F20: 0 | G20: 0 | H20: NA | I20: NA | J20: NA | K20: 0 | L20: 0 | M20: 0 | N20: 0 | O20: 0 | P20: 0
A21: Q70 | B21: RHU | C21: PORTSMOUTH HOSPITALS NHS TRUST | D21: RHU03 | E21: Queen Alexandra Hospital - RHU03 | F21: 88 | G21: 436 | H21: 0.2018348624 | I21: 0.9886363636 | J21: 0 | K21: * | L21: * | M21: * | N21: * | O21: * | P21: *
A22: Q70 | B22: RHU | C22: PORTSMOUTH HOSPITALS NHS TRUST | D22: RHU02 | E22: St Mary's Hospital - RHU02 | F22: 0 | G22: 2 | H22: 0 | I22: NA | J22: NA | K22: 0 | L22: 0 | M22: 0 | N22: 0 | O22: 0 | P22: 0
A23: Q70 | B23: RDZ | C23: THE ROYAL BOURNEMOUTH AND CHRISTCHURCH HOSPITALS NHS FOUNDATION TRUST | D23: RDZ20 | E23: Royal Bournemouth General Hospital - RDZ20 | F23: 11 | G23: 35 | H23: 0.3142857143 | I23: 1 | J23: 0 | K23: 11 | L23: 0 | M23: 0 | N23: 0 | O23: 0 | P23: 0
A24: Q70 | B24: RHM | C24: UNIVERSITY HOSPITAL SOUTHAMPTON NHS FOUNDATION TRUST | D24: RHM12 | E24: Princess Anne Hospital - RHM12 | F24: 159 | G24: 469 | H24: 0.3390191898 | I24: 0.9811320755 | J24: 0.01257861635 | K24: 135 | L24: 21 | M24: 1 | N24: 2 | O24: 0 | P24: 0
A25: Q71 | B25: RF4 | C25: BARKING, HAVERING AND REDBRIDGE UNIVERSITY HOSPITALS NHS TRUST | D25: RF4QH | E25: Queen's Hospital - RF4QH | F25: 165 | G25: 651 | H25: 0.2534562212 | I25: 0.9696969697 | J25: 0 | K25: 137 | L25: 23 | M25: 0 | N25: 0 | O25: 0 | P25: 5
A26: Q71 | B26: R1H | C26: BARTS HEALTH NHS TRUST | D26: R1HNH | E26: Newham General Hospital - R1HNH | F26: 131 | G26: 530 | H26: 0.2471698113 | I26: 0.9923664122 | J26: 0 | K26: 99 | L26: 31 | M26: 1 | N26: 0 | O26: 0 | P26: 0
A27: Q71 | B27: R1H | C27: BARTS HEALTH NHS TRUST | D27: R1H12 | E27: The Royal London Hospital - R1H12 | F27: 60 | G27: 424 | H27: 0.141509434 | I27: 0.95 | J27: 0.03333333333 | K27: 48 | L27: 9 | M27: 0 | N27: 0 | O27: 2 | P27: 1
A28: Q71 | B28: R1H | C28: BARTS HEALTH NHS TRUST | D28: R1HKH | E28: Whipps Cross University Hospital - R1HKH | F28: 37 | G28: 391 | H28: 0.09462915601 | I28: 1 | J28: 0 | K28: 31 | L28: 6 | M28: 0 | N28: 0 | O28: 0 | P28: 0
A29: Q71 | B29: RQM | C29: CHELSEA AND WESTMINSTER HOSPITAL NHS FOUNDATION TRUST | D29: RQM01 | E29: Chelsea and Westminster Hospital - RQM01 | F29: 61 | G29: 400 | H29: 0.1525 | I29: 0.9508196721 | J29: 0.01639344262 | K29: 47 | L29: 11 | M29: 2 | N29: 0 | O29: 1 | P29: 0
A30: Q71 | B30: RQM | C30: CHELSEA AND WESTMINSTER HOSPITAL NHS FOUNDATION TRUST | D30: RQM91 | E30: West Middlesex University Hospital - RQM91 | F30: 87 | G30: 423 | H30: 0.2056737589 | I30: 0.9770114943 | J30: 0.02298850575 | K30: 77 | L30: 8 | M30: 0 | N30: 2 | O30: 0 | P30: 0
A31: Q71 | B31: RJ6 | C31: CROYDON HEALTH SERVICES NHS TRUST | D31: RJ611 | E31: Croydon University Hospital - RJ611 | F31: 79 | G31: 323 | H31: 0.2445820433 | I31: 0.9873417722 | J31: 0.01265822785 | K31: 66 | L31: 12 | M31: 0 | N31: 1 | O31: 0 | P31: 0
A32: Q71 | B32: RVR | C32: EPSOM AND ST HELIER UNIVERSITY HOSPITALS NHS TRUST | D32: RVR50 | E32: Epsom Hospital - RVR50 | F32: 9 | G32: 181 | H32: 0.04972375691 | I32: 1 | J32: 0 | K32: 9 | L32: 0 | M32: 0 | N32: 0 | O32: 0 | P32: 0
A33: Q71 | B33: RVR | C33: EPSOM AND ST HELIER UNIVERSITY HOSPITALS NHS TRUST | D33: RVRXXX | E33: Non-hospital site - RVRXXX | F33: 0 | G33: 9 | H33: 0 | I33: NA | J33: NA | K33: 0 | L33: 0 | M33: 0 | N33: 0 | O33: 0 | P33: 0
A34: Q71 | B34: RVR | C34: EPSOM AND ST HELIER UNIVERSITY HOSPITALS NHS TRUST | D34: RVR05 | E34: St Helier Hospital - RVR05 | F34: 41 | G34: 235 | H34: 0.1744680851 | I34: 0.9756097561 | J34: 0.0243902439 | K34: 39 | L34: 1 | M34: 0 | N34: 0 | O34: 1 | P34: 0
A35: Q71 | B35: RJ1 | C35: GUY'S AND ST THOMAS' NHS FOUNDATION TRUST | D35: RJ1XXX | E35: Non-hospital site - RJ1XXX | F35: 1 | G35: 15 | H35: 0.06666666667 | I35: * | J35: * | K35: * | L35: * | M35: * | N35: * | O35: * | P35: *
A36: Q71 | B36: RJ1 | C36: GUY'S AND ST THOMAS' NHS FOUNDATION TRUST | D36: RJ122 | E36: St Thomas' Hospital - RJ122 | F36: 41 | G36: 475 | H36: 0.08631578947 | I36: 0.9756097561 | J36: 0.0243902439 | K36: * | L36: * | M36: * | N36: * | O36: * | P36: *
A37: Q71 | B37: RQX | C37: HOMERTON UNIVERSITY HOSPITAL NHS FOUNDATION TRUST | D37: RQXM1 | E37: Homerton University Hospital - RQXM1 | F37: 44 | G37: 422 | H37: 0.1042654028 | I37: 1 | J37: 0 | K37: 40 | L37: 4 | M37: 0 | N37: 0 | O37: 0 | P37: 0
A38: Q71 | B38: RYJ | C38: IMPERIAL COLLEGE HEALTHCARE NHS TRUST | D38: RYJ04 | E38: Queen Charlotte's Hospital - RYJ04 | F38: 85 | G38: 476 | H38: 0.1785714286 | I38: 1 | J38: 0 | K38: 74 | L38: 11 | M38: 0 | N38: 0 | O38: 0 | P38: 0
A39: Q71 | B39: RYJ | C39: IMPERIAL COLLEGE HEALTHCARE NHS TRUST | D39: RYJ01 | E39: St Mary's Hospital (HQ) - RYJ01 | F39: 165 | G39: 271 | H39: 0.6088560886 | I39: 0.9454545455 | J39: 0.01212121212 | K39: 102 | L39: 54 | M39: 6 | N39: 0 | O39: 2 | P39: 1
A40: Q71 | B40: RJZ | C40: KING'S COLLEGE HOSPITAL NHS FOUNDATION TRUST | D40: RJZ01 | E40: King's College Hospital (Denmark Hill) - RJZ01 | F40: 3 | G40: 504 | H40: 0.005952380952 | I40: * | J40: * | K40: * | L40: * | M40: * | N40: * | O40: * | P40: *
A41: Q71 | B41: RJZ | C41: KING'S COLLEGE HOSPITAL NHS FOUNDATION TRUST | D41: RJZ30 | E41: Princess Royal University Hospital - RJZ30 | F41: 1 | G41: 103 | H41: 0.009708737864 | I41: * | J41: * | K41: * | L41: * | M41: * | N41: * | O41: * | P41: *
A42: Q71 | B42: RAX | C42: KINGSTON HOSPITAL NHS FOUNDATION TRUST | D42: RAX01 | E42: Kingston Hospital - RAX01 | F42: 60 | G42: 448 | H42: 0.1339285714 | I42: 0.9666666667 | J42: 0 | K42: 47 | L42: 11 | M42: 2 | N42: 0 | O42: 0 | P42: 0
A43: Q71 | B43: RJ2 | C43: LEWISHAM AND GREENWICH NHS TRUST | D43: RJ2XXX | E43: Non-hospital site - RJ2XXX | F43: 1 | G43: 12 | H43: 0.08333333333 | I43: * | J43: * | K43: * | L43: * | M43: * | N43: * | O43: * | P43: *
A44: Q71 | B44: RJ2 | C44: LEWISHAM AND GREENWICH NHS TRUST | D44: RJ231 | E44: Queen Elizabeth Hospital - RJ231 | F44: 90 | G44: 344 | H44: 0.261627907 | I44: 0.9777777778 | J44: 0 | K44: * | L44: * | M44: * | N44: * | O44: * | P44: *
A45: Q71 | B45: RJ2 | C45: LEWISHAM AND GREENWICH NHS TRUST | D45: RJ224 | E45: University Hospital Lewisham - RJ224 | F45: 169 | G45: 274 | H45: 0.6167883212 | I45: 0.9349112426 | J45: 0.01183431953 | K45: 118 | L45: 40 | M45: 7 | N45: 0 | O45: 2 | P45: 2
A46: Q71 | B46: R1K | C46: LONDON NORTH WEST HEALTHCARE NHS TRUST | D46: R1K04 | E46: Ealing Hospital - R1K04 | F46: 0 | G46: 0 | H46: NA | I46: NA | J46: NA | K46: 0 | L46: 0 | M46: 0 | N46: 0 | O46: 0 | P46: 0
A47: Q71 | B47: R1K | C47: LONDON NORTH WEST HEALTHCARE NHS TRUST | D47: R1KXXX | E47: Non-hospital site - R1KXXX | F47: 0 | G47: 5 | H47: 0 | I47: NA | J47: NA | K47: 0 | L47: 0 | M47: 0 | N47: 0 | O47: 0 | P47: 0
A48: Q71 | B48: R1K | C48: LONDON NORTH WEST HEALTHCARE NHS TRUST | D48: R1K01 | E48: Northwick Park Hospital - R1K01 | F48: 241 | G48: 445 | H48: 0.5415730337 | I48: 0.867219917 | J48: 0.04979253112 | K48: 105 | L48: 104 | M48: 14 | N48: 10 | O48: 2 | P48: 6
A49: Q71 | B49: RAP | C49: NORTH MIDDLESEX UNIVERSITY HOSPITAL NHS TRUST | D49: RAPNM | E49: North Middlesex Hospital - RAPNM | F49: 154 | G49: 371 | H49: 0.4150943396 | I49: 0.8246753247 | J49: 0.07142857143 | K49: 104 | L49: 23 | M49: 6 | N49: 2 | O49: 9 | P49: 10
A50: Q71 | B50: RAL | C50: ROYAL FREE LONDON NHS FOUNDATION TRUST | D50: RAL26 | E50: Barnet Hospital - RAL26 | F50: 89 | G50: 467 | H50: 0.1905781585 | I50: 0.9775280899 | J50: 0.01123595506 | K50: 64 | L50: 23 | M50: 1 | N50: 0 | O50: 1 | P50: 0
A51: Q71 | B51: RAL | C51: ROYAL FREE LONDON NHS FOUNDATION TRUST | D51: RAL01 | E51: Royal Free Hospital - RAL01 | F51: 53 | G51: 265 | H51: 0.2 | I51: 0.9622641509 | J51: 0.01886792453 | K51: 33 | L51: 18 | M51: 1 | N51: 0 | O51: 1 | P51: 0
A52: Q71 | B52: RJ7 | C52: ST GEORGE'S UNIVERSITY HOSPITALS NHS FOUNDATION TRUST | D52: RJ701 | E52: St George's Hospital (Tooting) - RJ701 | F52: 9 | G52: 400 | H52: 0.0225 | I52: 0.8888888889 | J52: 0 | K52: * | L52: * | M52: * | N52: * | O52: * | P52: *
A53: Q71 | B53: RAS | C53: THE HILLINGDON HOSPITALS NHS FOUNDATION TRUST | D53: RAS01 | E53: Hillingdon Hospital - RAS01 | F53: 94 | G53: 348 | H53: 0.2701149425 | I53: 0.9893617021 | J53: 0 | K53: * | L53: * | M53: * | N53: * | O53: * | P53: *
A54: Q71 | B54: RAS | C54: THE HILLINGDON HOSPITALS NHS FOUNDATION TRUST | D54: RASXXX | E54: Non-hospital site - RASXXX | F54: 2 | G54: 2 | H54: 1 | I54: * | J54: * | K54: * | L54: * | M54: * | N54: * | O54: * | P54: *
A55: Q71 | B55: RKE | C55: THE WHITTINGTON HOSPITAL NHS TRUST | D55: RKEXXX | E55: Non-hospital site - RKEXXX | F55: 0 | G55: 7 | H55: 0 | I55: NA | J55: NA | K55: 0 | L55: 0 | M55: 0 | N55: 0 | O55: 0 | P55: 0
A56: Q71 | B56: RKE | C56: THE WHITTINGTON HOSPITAL NHS TRUST | D56: RKEQ4 | E56: The Whittington Hospital - RKEQ4 | F56: 115 | G56: 291 | H56: 0.3951890034 | I56: 0.9565217391 | J56: 0.008695652174 | K56: 85 | L56: 25 | M56: 4 | N56: 1 | O56: 0 | P56: 0
A57: Q71 | B57: RRV | C57: UNIVERSITY COLLEGE LONDON HOSPITALS NHS FOUNDATION TRUST | D57: RRV03 | E57: University College Hospital - RRV03 | F57: 114 | G57: 513 | H57: 0.2222222222 | I57: 0.9912280702 | J57: 0.008771929825 | K57: 100 | L57: 13 | M57: 0 | N57: 0 | O57: 1 | P57: 0
A58: Q72 | B58: RCF | C58: AIREDALE NHS FOUNDATION TRUST | D58: RCF22 | E58: Airedale General Hospital - RCF22 | F58: 44 | G58: 190 | H58: 0.2315789474 | I58: 0.9772727273 | J58: 0 | K58: 40 | L58: 3 | M58: 1 | N58: 0 | O58: 0 | P58: 0
A59: Q72 | B59: RFF | C59: BARNSLEY HOSPITAL NHS FOUNDATION TRUST | D59: RFFAA | E59: Barnsley Hospital NHS Foundation Trust HQ - RFFAA | F59: 52 | G59: 246 | H59: 0.2113821138 | I59: 0.9615384615 | J59: 0 | K59: 45 | L59: 5 | M59: 2 | N59: 0 | O59: 0 | P59: 0
A60: Q72 | B60: RAE | C60: BRADFORD TEACHING HOSPITALS NHS FOUNDATION TRUST | D60: RAE01 | E60: Bradford Royal Infirmary - RAE01 | F60: 77 | G60: 483 | H60: 0.1594202899 | I60: 1 | J60: 0 | K60: 72 | L60: 5 | M60: 0 | N60: 0 | O60: 0 | P60: 0
A61: Q72 | B61: RWY | C61: CALDERDALE AND HUDDERSFIELD NHS FOUNDATION TRUST | D61: RWY02 | E61: Calderdale Royal Hospital - RWY02 | F61: 213 | G61: 427 | H61: 0.4988290398 | I61: 0.7746478873 | J61: 0 | K61: 130 | L61: 35 | M61: 5 | N61: 0 | O61: 0 | P61: 43
A62: Q72 | B62: RWY | C62: CALDERDALE AND HUDDERSFIELD NHS FOUNDATION TRUST | D62: RWY01 | E62: Huddersfield Royal Infirmary - RWY01 | F62: 20 | G62: 24 | H62: 0.8333333333 | I62: 1 | J62: 0 | K62: 19 | L62: 1 | M62: 0 | N62: 0 | O62: 0 | P62: 0
A63: Q72 | B63: RWY | C63: CALDERDALE AND HUDDERSFIELD NHS FOUNDATION TRUST | D63: RWYXXX | E63: Non-hospital site - RWYXXX | F63: 0 | G63: 0 | H63: NA | I63: NA | J63: NA | K63: 0 | L63: 0 | M63: 0 | N63: 0 | O63: 0 | P63: 0
A64: Q72 | B64: RP5 | C64: DONCASTER AND BASSETLAW TEACHING HOSPITALS NHS FOUNDATION TRUST | D64: RP5BA | E64: Bassetlaw Hospital - RP5BA | F64: 123 | G64: 135 | H64: 0.9111111111 | I64: 1 | J64: 0 | K64: 84 | L64: 39 | M64: 0 | N64: 0 | O64: 0 | P64: 0
A65: Q72 | B65: RP5 | C65: DONCASTER AND BASSETLAW TEACHING HOSPITALS NHS FOUNDATION TRUST | D65: RP5DR | E65: Doncaster Royal Infirmary - RP5DR | F65: 80 | G65: 265 | H65: 0.3018867925 | I65: 0.9875 | J65: 0 | K65: 74 | L65: 5 | M65: 1 | N65: 0 | O65: 0 | P65: 0
A66: Q72 | B66: RP5 | C66: DONCASTER AND BASSETLAW TEACHING HOSPITALS NHS FOUNDATION TRUST | D66: RP5XXX | E66: Non-hospital site - RP5XXX | F66: 0 | G66: 3 | H66: 0 | I66: NA | J66: NA | K66: 0 | L66: 0 | M66: 0 | N66: 0 | O66: 0 | P66: 0
A67: Q72 | B67: RCD | C67: HARROGATE AND DISTRICT NHS FOUNDATION TRUST | D67: RCD01 | E67: Harrogate District Hospital - RCD01 | F67: 20 | G67: 135 | H67: 0.1481481481 | I67: 1 | J67: 0 | K67: 19 | L67: 1 | M67: 0 | N67: 0 | O67: 0 | P67: 0
A68: Q72 | B68: RWA | C68: HULL AND EAST YORKSHIRE HOSPITALS NHS TRUST | D68: RWA01 | E68: Hull Royal Infirmary - RWA01 | F68: 29 | G68: 434 | H68: 0.0668202765 | I68: 0.9655172414 | J68: 0 | K68: 24 | L68: 4 | M68: 0 | N68: 0 | O68: 0 | P68: 1
A69: Q72 | B69: RR8 | C69: LEEDS TEACHING HOSPITALS NHS TRUST | D69: RR801 | E69: Leeds General Infirmary - RR801 | F69: 155 | G69: 391 | H69: 0.3964194373 | I69: 0.9548387097 | J69: 0.02580645161 | K69: 133 | L69: 15 | M69: 3 | N69: 1 | O69: 3 | P69: 0
A70: Q72 | B70: RR8 | C70: LEEDS TEACHING HOSPITALS NHS TRUST | D70: RR8XXX | E70: Non-Hospital Site - RR8XXX | F70: 0 | G70: 10 | H70: 0 | I70: NA | J70: NA | K70: 0 | L70: 0 | M70: 0 | N70: 0 | O70: 0 | P70: 0
A71: Q72 | B71: RR8 | C71: LEEDS TEACHING HOSPITALS NHS TRUST | D71: RR813 | E71: St James's University Hospital - RR813 | F71: 94 | G71: 371 | H71: 0.2533692722 | I71: 0.9255319149 | J71: 0.05319148936 | K71: 71 | L71: 16 | M71: 1 | N71: 3 | O71: 2 | P71: 1
A72: Q72 | B72: RXF | C72: MID YORKSHIRE HOSPITALS NHS TRUST | D72: RXF10 | E72: Dewsbury and District Hospital - RXF10 | F72: 14 | G72: 16 | H72: 0.875 | I72: 1 | J72: 0 | K72: 14 | L72: 0 | M72: 0 | N72: 0 | O72: 0 | P72: 0
A73: Q72 | B73: RXF | C73: MID YORKSHIRE HOSPITALS NHS TRUST | D73: RXFXXX | E73: Non-hospital site - RXFXXX | F73: 0 | G73: 4 | H73: 0 | I73: NA | J73: NA | K73: 0 | L73: 0 | M73: 0 | N73: 0 | O73: 0 | P73: 0
A74: Q72 | B74: RXF | C74: MID YORKSHIRE HOSPITALS NHS TRUST | D74: RXF05 | E74: Pinderfields General Hospital - RXF05 | F74: 148 | G74: 389 | H74: 0.3804627249 | I74: 0.9797297297 | J74: 0.006756756757 | K74: 119 | L74: 26 | M74: 1 | N74: 1 | O74: 0 | P74: 1
A75: Q72 | B75: RXF | C75: MID YORKSHIRE HOSPITALS NHS TRUST | D75: RXF03 | E75: Pontefract General Infirmary - RXF03 | F75: 15 | G75: 19 | H75: 0.7894736842 | I75: 1 | J75: 0 | K75: 15 | L75: 0 | M75: 0 | N75: 0 | O75: 0 | P75: 0
A76: Q72 | B76: RJL | C76: NORTHERN LINCOLNSHIRE AND GOOLE NHS FOUNDATION TRUST | D76: RJL30 | E76: Diana, Princess Of Wales Hospital - RJL30 | F76: 35 | G76: 205 | H76: 0.1707317073 | I76: 1 | J76: 0 | K76: * | L76: * | M76: * | N76: * | O76: * | P76: *
A77: Q72 | B77: RJL | C77: NORTHERN LINCOLNSHIRE AND GOOLE NHS FOUNDATION TRUST | D77: RJL32 | E77: Scunthorpe General Hospital - RJL32 | F77: 3 | G77: 132 | H77: 0.02272727273 | I77: * | J77: * | K77: * | L77: * | M77: * | N77: * | O77: * | P77: *
A78: Q72 | B78: RHQ | C78: SHEFFIELD TEACHING HOSPITALS NHS FOUNDATION TRUST | D78: RHQHH | E78: Royal Hallamshire Hospital - RHQHH | F78: 135 | G78: 562 | H78: 0.2402135231 | I78: 0.9777777778 | J78: 0.007407407407 | K78: 114 | L78: 18 | M78: 2 | N78: 1 | O78: 0 | P78: 0
A79: Q72 | B79: RFR | C79: THE ROTHERHAM NHS FOUNDATION TRUST | D79: RFRPA | E79: Rotherham District General Hospital - RFRPA | F79: 61 | G79: 206 | H79: 0.2961165049 | I79: 0.9836065574 | J79: 0.01639344262 | K79: 55 | L79: 5 | M79: 0 | N79: 0 | O79: 1 | P79: 0
A80: Q72 | B80: RCB | C80: YORK TEACHING HOSPITAL NHS FOUNDATION TRUST | D80: RCBCA | E80: Scarborough General Hospital - RCBCA | F80: 28 | G80: 112 | H80: 0.25 | I80: 1 | J80: 0 | K80: 23 | L80: 5 | M80: 0 | N80: 0 | O80: 0 | P80: 0
A81: Q72 | B81: RCB | C81: YORK TEACHING HOSPITAL NHS FOUNDATION TRUST | D81: RCB55 | E81: York Hospital - RCB55 | F81: 69 | G81: 240 | H81: 0.2875 | I81: 0.9855072464 | J81: 0 | K81: 59 | L81: 9 | M81: 1 | N81: 0 | O81: 0 | P81: 0
A82: Q74 | B82: RLN | C82: CITY HOSPITALS SUNDERLAND NHS FOUNDATION TRUST | D82: RLNGL | E82: Sunderland Royal Hospital - RLNGL | F82: 42 | G82: 223 | H82: 0.1883408072 | I82: 1 | J82: 0 | K82: 40 | L82: 2 | M82: 0 | N82: 0 | O82: 0 | P82: 0
A83: Q74 | B83: RXP | C83: COUNTY DURHAM AND DARLINGTON NHS FOUNDATION TRUST | D83: RXPDA | E83: Darlington Memorial Hospital - RXPDA | F83: 32 | G83: 171 | H83: 0.1871345029 | I83: 1 | J83: 0 | K83: * | L83: * | M83: * | N83: * | O83: * | P83: *
A84: Q74 | B84: RXP | C84: COUNTY DURHAM AND DARLINGTON NHS FOUNDATION TRUST | D84: RXPXXX | E84: Non-hospital site - RXPXXX | F84: 1 | G84: 5 | H84: 0.2 | I84: * | J84: * | K84: * | L84: * | M84: * | N84: * | O84: * | P84: *
A85: Q74 | B85: RR7 | C85: GATESHEAD HEALTH NHS FOUNDATION TRUST | D85: RR7EN | E85: Queen Elizabeth Hospital - RR7EN | F85: 44 | G85: 126 | H85: 0.3492063492 | I85: 0.9318181818 | J85: 0.02272727273 | K85: 35 | L85: 6 | M85: 2 | N85: 1 | O85: 0 | P85: 0
A86: Q74 | B86: RNL | C86: NORTH CUMBRIA UNIVERSITY HOSPITALS NHS TRUST | D86: RNLAY | E86: Cumberland Infirmary - RNLAY | F86: 15 | G86: 115 | H86: 0.1304347826 | I86: 1 | J86: 0 | K86: 12 | L86: 3 | M86: 0 | N86: 0 | O86: 0 | P86: 0
A87: Q74 | B87: RNL | C87: NORTH CUMBRIA UNIVERSITY HOSPITALS NHS TRUST | D87: RNLXXX | E87: Non-hospital site - RNLXXX | F87: 0 | G87: 1 | H87: 0 | I87: NA | J87: NA | K87: 0 | L87: 0 | M87: 0 | N87: 0 | O87: 0 | P87: 0
A88: Q74 | B88: RNL | C88: NORTH CUMBRIA UNIVERSITY HOSPITALS NHS TRUST | D88: RNLBE | E88: Penrith Hospital - RNLBE | F88: 0 | G88: 0 | H88: NA | I88: NA | J88: NA | K88: 0 | L88: 0 | M88: 0 | N88: 0 | O88: 0 | P88: 0
A89: Q74 | B89: RNL | C89: NORTH CUMBRIA UNIVERSITY HOSPITALS NHS TRUST | D89: RNLBX | E89: West Cumberland Hospital - RNLBX | F89: 47 | G89: 86 | H89: 0.5465116279 | I89: 0.9787234043 | J89: 0 | K89: 36 | L89: 10 | M89: 1 | N89: 0 | O89: 0 | P89: 0
A90: Q74 | B90: RVW | C90: NORTH TEES AND HARTLEPOOL NHS FOUNDATION TRUST | D90: RVWAE | E90: University Hospital Of North Tees - RVWAE | F90: 17 | G90: 209 | H90: 0.08133971292 | I90: 0.9411764706 | J90: 0.05882352941 | K90: 13 | L90: 3 | M90: 0 | N90: 1 | O90: 0 | P90: 0
A91: Q74 | B91: RTF | C91: NORTHUMBRIA HEALTHCARE NHS FOUNDATION TRUST | D91: RTFDJ | E91: Alnwick Infirmary - RTFDJ | F91: 0 | G91: 2 | H91: 0 | I91: NA | J91: NA | K91: 0 | L91: 0 | M91: 0 | N91: 0 | O91: 0 | P91: 0
A92: Q74 | B92: RTF | C92: NORTHUMBRIA HEALTHCARE NHS FOUNDATION TRUST | D92: RTFDH | E92: Berwick Infirmary - RTFDH | F92: 0 | G92: 0 | H92: NA | I92: NA | J92: NA | K92: 0 | L92: 0 | M92: 0 | N92: 0 | O92: 0 | P92: 0
A93: Q74 | B93: RTF | C93: NORTHUMBRIA HEALTHCARE NHS FOUNDATION TRUST | D93: RTFDR | E93: Hexham General Hospital - RTFDR | F93: 1 | G93: 4 | H93: 0.25 | I93: * | J93: * | K93: * | L93: * | M93: * | N93: * | O93: * | P93: *
A94: Q74 | B94: RTF | C94: NORTHUMBRIA HEALTHCARE NHS FOUNDATION TRUST | D94: RTFXXX | E94: Non-hospital site - RTFXXX | F94: 0 | G94: 1 | H94: 0 | I94: NA | J94: NA | K94: 0 | L94: 0 | M94: 0 | N94: 0 | O94: 0 | P94: 0
A95: Q74 | B95: RTF | C95: NORTHUMBRIA HEALTHCARE NHS FOUNDATION TRUST | D95: RTF86 | E95: The Northumbria - RTF86 | F95: 30 | G95: 172 | H95: 0.1744186047 | I95: 1 | J95: 0 | K95: * | L95: * | M95: * | N95: * | O95: * | P95: *
A96: Q74 | B96: RTR | C96: SOUTH TEES HOSPITALS NHS FOUNDATION TRUST | D96: RTR45 | E96: Friarage Hospital Site - RTR45 | F96: 6 | G96: 21 | H96: 0.2857142857 | I96: 1 | J96: 0 | K96: 6 | L96: 0 | M96: 0 | N96: 0 | O96: 0 | P96: 0
A97: Q74 | B97: RTR | C97: SOUTH TEES HOSPITALS NHS FOUNDATION TRUST | D97: RTRAT | E97: The James Cook University Hospital - RTRAT | F97: 15 | G97: 320 | H97: 0.046875 | I97: 1 | J97: 0 | K97: 15 | L97: 0 | M97: 0 | N97: 0 | O97: 0 | P97: 0
A98: Q74 | B98: RE9 | C98: SOUTH TYNESIDE NHS FOUNDATION TRUST | D98: RE9GA | E98: South Tyneside District Hospital - RE9GA | F98: 21 | G98: 92 | H98: 0.2282608696 | I98: 0.9047619048 | J98: 0 | K98: 19 | L98: 0 | M98: 0 | N98: 0 | O98: 0 | P98: 2
A99: Q74 | B99: RTD | C99: THE NEWCASTLE UPON TYNE HOSPITALS NHS FOUNDATION TRUST | D99: RTD02 | E99: The Royal Victoria Infirmary - RTD02 | F99: 157 | G99: 492 | H99: 0.3191056911 | I99: 0.9872611465 | J99: 0 | K99: 138 | L99: 17 | M99: 1 | N99: 0 | O99: 0 | P99: 1
A100: Q74 | B100: RTX | C100: UNIVERSITY HOSPITALS OF MORECAMBE BAY NHS FOUNDATION TRUST | D100: RTXBU | E100: Furness General Hospital - RTXBU | F100: 11 | G100: 11 | H100: 1 | I100: 0.9090909091 | J100: 0 | K100: 9 | L100: 1 | M100: 1 | N100: 0 | O100: 0 | P100: 0
A101: Q75 | B101: RJR | C101: COUNTESS OF CHESTER HOSPITAL NHS FOUNDATION TRUST | D101: RJR05 | E101: Countess Of Chester Hospital - RJR05 | F101: 42 | G101: 231 | H101: 0.1818181818 | I101: 0.9523809524 | J101: 0 | K101: 32 | L101: 8 | M101: 2 | N101: 0 | O101: 0 | P101: 0
A102: Q75 | B102: RJN | C102: EAST CHESHIRE NHS TRUST | D102: RJN71 | E102: Macclesfield District General Hospital - RJN71 | F102: 11 | G102: 135 | H102: 0.08148148148 | I102: 1 | J102: 0 | K102: * | L102: * | M102: * | N102: * | O102: * | P102: *
A103: Q75 | B103: REP | C103: LIVERPOOL WOMEN'S NHS FOUNDATION TRUST | D103: REP01 | E103: Liverpool Womens Hospital - REP01 | F103: 1 | G103: 675 | H103: 0.001481481481 | I103: * | J103: * | K103: * | L103: * | M103: * | N103: * | O103: * | P103: *
A104: Q75 | B104: RBT | C104: MID CHESHIRE HOSPITALS NHS FOUNDATION TRUST | D104: RBT20 | E104: Leighton Hospital - RBT20 | F104: 16 | G104: 227 | H104: 0.0704845815 | I104: 1 | J104: 0 | K104: 14 | L104: 2 | M104: 0 | N104: 0 | O104: 0 | P104: 0
A105: Q75 | B105: RVY | C105: SOUTHPORT AND ORMSKIRK HOSPITAL NHS TRUST | D105: RVY02 | E105: Ormskirk and District General Hospital - RVY02 | F105: 22 | G105: 207 | H105: 0.1062801932 | I105: 1 | J105: 0 | K105: 16 | L105: 6 | M105: 0 | N105: 0 | O105: 0 | P105: 0
A106: Q75 | B106: RBN | C106: ST HELENS AND KNOWSLEY HOSPITAL SERVICES NHS TRUST | D106: RBN01 | E106: Whiston Hospital - RBN01 | F106: 39 | G106: 327 | H106: 0.119266055 | I106: 0.9743589744 | J106: 0 | K106: 33 | L106: 5 | M106: 0 | N106: 0 | O106: 0 | P106: 1
A107: Q75 | B107: RWW | C107: WARRINGTON AND HALTON HOSPITALS NHS FOUNDATION TRUST | D107: RWWWH | E107: Warrington Hospital - RWWWH | F107: 54 | G107: 210 | H107: 0.2571428571 | I107: 0.962962963 | J107: 0.01851851852 | K107: 50 | L107: 2 | M107: 0 | N107: 0 | O107: 1 | P107: 1
A108: Q75 | B108: RBL | C108: WIRRAL UNIVERSITY TEACHING HOSPITAL NHS FOUNDATION TRUST | D108: RBL14 | E108: Arrowe Park Hospital - RBL14 | F108: 154 | G108: 244 | H108: 0.631147541 | I108: 1 | J108: 0 | K108: 132 | L108: 22 | M108: 0 | N108: 0 | O108: 0 | P108: 0
A109: Q76 | B109: RJF | C109: BURTON HOSPITALS NHS FOUNDATION TRUST | D109: RJF02 | E109: Queen's Hospital, Burton Upon Trent - RJF02 | F109: 94 | G109: 233 | H109: 0.4034334764 | I109: 0.9893617021 | J109: 0 | K109: 87 | L109: 6 | M109: 1 | N109: 0 | O109: 0 | P109: 0
A110: Q76 | B110: RFS | C110: CHESTERFIELD ROYAL HOSPITAL NHS FOUNDATION TRUST | D110: RFSDA | E110: Chesterfield Royal Hospital - RFSDA | F110: 39 | G110: 203 | H110: 0.1921182266 | I110: 0.8461538462 | J110: 0 | K110: 25 | L110: 8 | M110: 3 | N110: 0 | O110: 0 | P110: 3
A111: Q76 | B111: RTG | C111: DERBY TEACHING HOSPITALS NHS FOUNDATION TRUST | D111: RTGFG | E111: Royal Derby Hospital - RTGFG | F111: 243 | G111: 440 | H111: 0.5522727273 | I111: 0.975308642 | J111: 0.004115226337 | K111: 178 | L111: 59 | M111: 4 | N111: 0 | O111: 1 | P111: 1
A112: Q76 | B112: RX1 | C112: NOTTINGHAM UNIVERSITY HOSPITALS NHS TRUST | D112: RX1XXX | E112: Non-hospital site - RX1XXX | F112: 3 | G112: 14 | H112: 0.2142857143 | I112: * | J112: * | K112: * | L112: * | M112: * | N112: * | O112: * | P112: *
A113: Q76 | B113: RX1 | C113: NOTTINGHAM UNIVERSITY HOSPITALS NHS TRUST | D113: RX1CC | E113: Nottingham University Hospitals NHS Trust - City Campus - RX1CC | F113: 94 | G113: 385 | H113: 0.2441558442 | I113: 1 | J113: 0 | K113: 78 | L113: 16 | M113: 0 | N113: 0 | O113: 0 | P113: 0
A114: Q76 | B114: RX1 | C114: NOTTINGHAM UNIVERSITY HOSPITALS NHS TRUST | D114: RX1RA | E114: Nottingham University Hospitals NHS Trust - Queen's Medical Centre Campus - RX1RA | F114: 45 | G114: 278 | H114: 0.1618705036 | I114: 1 | J114: 0 | K114: * | L114: * | M114: * | N114: * | O114: * | P114: *
A115: Q76 | B115: RK5 | C115: SHERWOOD FOREST HOSPITALS NHS FOUNDATION TRUST | D115: RK5BC | E115: King's Mill Hospital - RK5BC | F115: 71 | G115: 274 | H115: 0.2591240876 | I115: 0.985915493 | J115: 0 | K115: 61 | L115: 9 | M115: 1 | N115: 0 | O115: 0 | P115: 0
A116: Q76 | B116: RK5 | C116: SHERWOOD FOREST HOSPITALS NHS FOUNDATION TRUST | D116: RK5XXX | E116: Non-hospital site - RK5XXX | F116: 0 | G116: 9 | H116: 0 | I116: NA | J116: NA | K116: 0 | L116: 0 | M116: 0 | N116: 0 | O116: 0 | P116: 0
A117: Q76 | B117: RXW | C117: SHREWSBURY AND TELFORD HOSPITAL NHS TRUST | D117: RXWMB | E117: Bridgnorth Hospital (Maternity) - RXWMB | F117: 3 | G117: 7 | H117: 0.4285714286 | I117: * | J117: * | K117: * | L117: * | M117: * | N117: * | O117: * | P117: *
A118: Q76 | B118: RXW | C118: SHREWSBURY AND TELFORD HOSPITAL NHS TRUST | D118: RXWML | E118: Ludlow Hospital (Maternity) - RXWML | F118: 2 | G118: 3 | H118: 0.6666666667 | I118: * | J118: * | K118: * | L118: * | M118: * | N118: * | O118: * | P118: *
A119: Q76 | B119: RXW | C119: SHREWSBURY AND TELFORD HOSPITAL NHS TRUST | D119: RXWXXX | E119: Non-hospital site - RXWXXX | F119: 0 | G119: 2 | H119: 0 | I119: NA | J119: NA | K119: 0 | L119: 0 | M119: 0 | N119: 0 | O119: 0 | P119: 0
A120: Q76 | B120: RXW | C120: SHREWSBURY AND TELFORD HOSPITAL NHS TRUST | D120: RXWMJ | E120: Robert Jones & Agnes Hunt Orthopaedic & District Hospital - RXWMJ | F120: 2 | G120: 4 | H120: 0.5 | I120: * | J120: * | K120: * | L120: * | M120: * | N120: * | O120: * | P120: *
A121: Q76 | B121: RXW | C121: SHREWSBURY AND TELFORD HOSPITAL NHS TRUST | D121: RXWAS | E121: Royal Shrewsbury Hospital - RXWAS | F121: 5 | G121: 8 | H121: 0.625 | I121: 1 | J121: 0 | K121: 5 | L121: 0 | M121: 0 | N121: 0 | O121: 0 | P121: 0
A122: Q76 | B122: RXW | C122: SHREWSBURY AND TELFORD HOSPITAL NHS TRUST | D122: RXWAT | E122: The Princess Royal Hospital - RXWAT | F122: 37 | G122: 339 | H122: 0.1091445428 | I122: 1 | J122: 0 | K122: 36 | L122: 1 | M122: 0 | N122: 0 | O122: 0 | P122: 0
A123: Q76 | B123: RJE | C123: UNIVERSITY HOSPITALS OF NORTH MIDLANDS NHS TRUST | D123: RJE09 | E123: County Hospital - RJE09 | F123: 2 | G123: 5 | H123: 0.4 | I123: * | J123: * | K123: * | L123: * | M123: * | N123: * | O123: * | P123: *
A124: Q76 | B124: RJE | C124: UNIVERSITY HOSPITALS OF NORTH MIDLANDS NHS TRUST | D124: RJEXXX | E124: Non-hospital site - RJEXXX | F124: 0 | G124: 1 | H124: 0 | I124: NA | J124: NA | K124: 0 | L124: 0 | M124: 0 | N124: 0 | O124: 0 | P124: 0
A125: Q76 | B125: RJE | C125: UNIVERSITY HOSPITALS OF NORTH MIDLANDS NHS TRUST | D125: RJE01 | E125: Royal Stoke University Hospital - RJE01 | F125: 50 | G125: 494 | H125: 0.1012145749 | I125: 1 | J125: 0 | K125: * | L125: * | M125: * | N125: * | O125: * | P125: *
A126: Q77 | B126: RQ3 | C126: BIRMINGHAM WOMEN'S AND CHILDREN'S NHS FOUNDATION TRUST | D126: RQ370 | E126: Birmingham Women's Hospital - RQ370 | F126: 1 | G126: 647 | H126: 0.001545595054 | I126: * | J126: * | K126: * | L126: * | M126: * | N126: * | O126: * | P126: *
A127: Q77 | B127: RLT | C127: GEORGE ELIOT HOSPITAL NHS TRUST | D127: RLT01 | E127: George Eliot Hospital - Acute Services - RLT01 | F127: 76 | G127: 161 | H127: 0.4720496894 | I127: 0.9736842105 | J127: 0.01315789474 | K127: 68 | L127: 6 | M127: 1 | N127: 0 | O127: 1 | P127: 0
A128: Q77 | B128: RR1 | C128: HEART OF ENGLAND NHS FOUNDATION TRUST | D128: RR105 | E128: Good Hope Hospital - RR105 | F128: 14 | G128: 35 | H128: 0.4 | I128: 0.9285714286 | J128: 0 | K128: 13 | L128: 0 | M128: 1 | N128: 0 | O128: 0 | P128: 0
A129: Q77 | B129: RR1 | C129: HEART OF ENGLAND NHS FOUNDATION TRUST | D129: RR101 | E129: Heartlands Hospital - RR101 | F129: 1 | G129: 470 | H129: 0.002127659574 | I129: * | J129: * | K129: * | L129: * | M129: * | N129: * | O129: * | P129: *
A130: Q77 | B130: RR1 | C130: HEART OF ENGLAND NHS FOUNDATION TRUST | D130: RR109 | E130: Solihull Hospital - RR109 | F130: 6 | G130: 12 | H130: 0.5 | I130: 1 | J130: 0 | K130: * | L130: * | M130: * | N130: * | O130: * | P130: *
A131: Q77 | B131: RXK | C131: SANDWELL AND WEST BIRMINGHAM HOSPITALS NHS TRUST | D131: RXK02 | E131: City Hospital - RXK02 | F131: 50 | G131: 460 | H131: 0.1086956522 | I131: 0.82 | J131: 0.04 | K131: 18 | L131: 23 | M131: 4 | N131: 1 | O131: 1 | P131: 3
A132: Q77 | B132: RJC | C132: SOUTH WARWICKSHIRE NHS FOUNDATION TRUST | D132: RJCXXX | E132: Non-hospital site - RJCXXX | F132: 0 | G132: 3 | H132: 0 | I132: NA | J132: NA | K132: 0 | L132: 0 | M132: 0 | N132: 0 | O132: 0 | P132: 0
A133: Q77 | B133: RJC | C133: SOUTH WARWICKSHIRE NHS FOUNDATION TRUST | D133: RJC02 | E133: Warwick Hospital - RJC02 | F133: 28 | G133: 223 | H133: 0.1255605381 | I133: 0.9642857143 | J133: 0 | K133: 22 | L133: 5 | M133: 0 | N133: 0 | O133: 0 | P133: 1
A134: Q77 | B134: RNA | C134: THE DUDLEY GROUP NHS FOUNDATION TRUST | D134: RNA01 | E134: Russells Hall Hospital - RNA01 | F134: 124 | G134: 378 | H134: 0.328042328 | I134: 0.9919354839 | J134: 0 | K134: 113 | L134: 10 | M134: 0 | N134: 0 | O134: 0 | P134: 1
A135: Q77 | B135: RL4 | C135: THE ROYAL WOLVERHAMPTON NHS TRUST | D135: RL403 | E135: New Cross Hospital - RL403 | F135: 49 | G135: 370 | H135: 0.1324324324 | I135: 1 | J135: 0 | K135: 49 | L135: 0 | M135: 0 | N135: 0 | O135: 0 | P135: 0
A136: Q77 | B136: RKB | C136: UNIVERSITY HOSPITALS COVENTRY AND WARWICKSHIRE NHS TRUST | D136: RKB03 | E136: Hospital Of St Cross - RKB03 | F136: 0 | G136: 0 | H136: NA | I136: NA | J136: NA | K136: 0 | L136: 0 | M136: 0 | N136: 0 | O136: 0 | P136: 0
A137: Q77 | B137: RKB | C137: UNIVERSITY HOSPITALS COVENTRY AND WARWICKSHIRE NHS TRUST | D137: RKBXXX | E137: Non-hospital site - RKBXXX | F137: 1 | G137: 3 | H137: 0.3333333333 | I137: * | J137: * | K137: * | L137: * | M137: * | N137: * | O137: * | P137: *
A138: Q77 | B138: RKB | C138: UNIVERSITY HOSPITALS COVENTRY AND WARWICKSHIRE NHS TRUST | D138: RKB01 | E138: University Hospital (Coventry) - RKB01 | F138: 66 | G138: 497 | H138: 0.1327967807 | I138: 0.9848484848 | J138: 0.01515151515 | K138: * | L138: * | M138: * | N138: * | O138: * | P138: *
A139: Q77 | B139: RBK | C139: WALSALL HEALTHCARE NHS TRUST | D139: RBK02 | E139: Manor Hospital - RBK02 | F139: 22 | G139: 226 | H139: 0.09734513274 | I139: 0.9545454545 | J139: 0.04545454545 | K139: 20 | L139: 1 | M139: 0 | N139: 0 | O139: 1 | P139: 0
A140: Q77 | B140: RWP | C140: WORCESTERSHIRE ACUTE HOSPITALS NHS TRUST | D140: RWP50 | E140: Worcestershire Royal Hospital - RWP50 | F140: 88 | G140: 201 | H140: 0.4378109453 | I140: 1 | J140: 0 | K140: 85 | L140: 3 | M140: 0 | N140: 0 | O140: 0 | P140: 0
A141: Q77 | B141: RLQ | C141: WYE VALLEY NHS TRUST | D141: RLQ01 | E141: Hereford County Hospital - RLQ01 | F141: 66 | G141: 130 | H141: 0.5076923077 | I141: 0.9393939394 | J141: 0 | K141: 52 | L141: 10 | M141: 2 | N141: 0 | O141: 0 | P141: 2
A142: Q78 | B142: RC1 | C142: BEDFORD HOSPITAL NHS TRUST | D142: RC110 | E142: Bedford Hospital South Wing - RC110 | F142: 38 | G142: 73 | H142: 0.5205479452 | I142: 0.9736842105 | J142: 0.02631578947 | K142: 32 | L142: 5 | M142: 0 | N142: 0 | O142: 1 | P142: 0
A143: Q78 | B143: RWH | C143: EAST AND NORTH HERTFORDSHIRE NHS TRUST | D143: RWH01 | E143: Lister Hospital - RWH01 | F143: 211 | G143: 397 | H143: 0.5314861461 | I143: 0.981042654 | J143: 0 | K143: * | L143: * | M143: * | N143: * | O143: * | P143: *
A144: Q78 | B144: RWH | C144: EAST AND NORTH HERTFORDSHIRE NHS TRUST | D144: RWHXXX | E144: Non-hospital site - RWHXXX | F144: 3 | G144: 16 | H144: 0.1875 | I144: * | J144: * | K144: * | L144: * | M144: * | N144: * | O144: * | P144: *
A145: Q78 | B145: RNQ | C145: KETTERING GENERAL HOSPITAL NHS FOUNDATION TRUST | D145: RNQ51 | E145: Kettering General Hospital - RNQ51 | F145: 43 | G145: 292 | H145: 0.147260274 | I145: 1 | J145: 0 | K145: 39 | L145: 4 | M145: 0 | N145: 0 | O145: 0 | P145: 0
A146: Q78 | B146: RC9 | C146: LUTON AND DUNSTABLE UNIVERSITY HOSPITAL NHS FOUNDATION TRUST | D146: RC971 | E146: Luton and Dunstable Hospital - RC971 | F146: 33 | G146: 408 | H146: 0.08088235294 | I146: 0.9393939394 | J146: 0 | K146: 20 | L146: 11 | M146: 2 | N146: 0 | O146: 0 | P146: 0
A147: Q78 | B147: RD8 | C147: MILTON KEYNES UNIVERSITY HOSPITAL NHS FOUNDATION TRUST | D147: RD816 | E147: Milton Keynes Hospital - RD816 | F147: 7 | G147: 262 | H147: 0.02671755725 | I147: 1 | J147: 0 | K147: 7 | L147: 0 | M147: 0 | N147: 0 | O147: 0 | P147: 0
A148: Q78 | B148: RNS | C148: NORTHAMPTON GENERAL HOSPITAL NHS TRUST | D148: RNS01 | E148: Northampton General Hospital (Acute) - RNS01 | F148: 23 | G148: 358 | H148: 0.06424581006 | I148: 1 | J148: 0 | K148: 22 | L148: 1 | M148: 0 | N148: 0 | O148: 0 | P148: 0
A149: Q78 | B149: RWD | C149: UNITED LINCOLNSHIRE HOSPITALS NHS TRUST | D149: RWDLP | E149: Grantham and District Hospital - RWDLP | F149: 0 | G149: 8 | H149: 0 | I149: NA | J149: NA | K149: 0 | L149: 0 | M149: 0 | N149: 0 | O149: 0 | P149: 0
A150: Q78 | B150: RWD | C150: UNITED LINCOLNSHIRE HOSPITALS NHS TRUST | D150: RWDDA | E150: Lincoln County Hospital - RWDDA | F150: 7 | G150: 276 | H150: 0.02536231884 | I150: 1 | J150: 0 | K150: 5 | L150: 2 | M150: 0 | N150: 0 | O150: 0 | P150: 0
A151: Q78 | B151: RWD | C151: UNITED LINCOLNSHIRE HOSPITALS NHS TRUST | D151: RWDXXX | E151: Non-hospital site - RWDXXX | F151: 0 | G151: 0 | H151: NA | I151: NA | J151: NA | K151: 0 | L151: 0 | M151: 0 | N151: 0 | O151: 0 | P151: 0
A152: Q78 | B152: RWD | C152: UNITED LINCOLNSHIRE HOSPITALS NHS TRUST | D152: RWDLA | E152: Pilgrim Hospital - RWDLA | F152: 8 | G152: 154 | H152: 0.05194805195 | I152: 1 | J152: 0 | K152: 7 | L152: 1 | M152: 0 | N152: 0 | O152: 0 | P152: 0
A153: Q78 | B153: RWE | C153: UNIVERSITY HOSPITALS OF LEICESTER NHS TRUST | D153: RWEAK | E153: Leicester General Hospital - RWEAK | F153: 180 | G153: 269 | H153: 0.6691449814 | I153: 0.9611111111 | J153: 0.01111111111 | K153: 138 | L153: 35 | M153: 1 | N153: 1 | O153: 1 | P153: 4
A154: Q78 | B154: RWE | C154: UNIVERSITY HOSPITALS OF LEICESTER NHS TRUST | D154: RWEAA | E154: Leicester Royal Infirmary - RWEAA | F154: 271 | G154: 430 | H154: 0.6302325581 | I154: 0.8966789668 | J154: 0.0479704797 | K154: 195 | L154: 48 | M154: 8 | N154: 6 | O154: 7 | P154: 7
A155: Q78 | B155: RWE | C155: UNIVERSITY HOSPITALS OF LEICESTER NHS TRUST | D155: RWEXXX | E155: Non-hospital site - RWEXXX | F155: 15 | G155: 19 | H155: 0.7894736842 | I155: 0.8666666667 | J155: 0 | K155: 9 | L155: 4 | M155: 0 | N155: 0 | O155: 0 | P155: 2
A156: Q78 | B156: RWE | C156: UNIVERSITY HOSPITALS OF LEICESTER NHS TRUST | D156: RWE10 | E156: St Mary's Hospital - RWE10 | F156: 6 | G156: 8 | H156: 0.75 | I156: 1 | J156: 0 | K156: 4 | L156: 2 | M156: 0 | N156: 0 | O156: 0 | P156: 0
A157: Q78 | B157: RWG | C157: WEST HERTFORDSHIRE HOSPITALS NHS TRUST | D157: RWG02 | E157: Watford General Hospital - RWG02 | F157: 107 | G157: 380 | H157: 0.2815789474 | I157: 0.9345794393 | J157: 0.009345794393 | K157: 79 | L157: 21 | M157: 6 | N157: 0 | O157: 1 | P157: 0
A158: Q79 | B158: RDD | C158: BASILDON AND THURROCK UNIVERSITY HOSPITALS NHS FOUNDATION TRUST | D158: RDDH0 | E158: Basildon University Hospital - RDDH0 | F158: 19 | G158: 147 | H158: 0.1292517007 | I158: 0.9473684211 | J158: 0 | K158: 15 | L158: 3 | M158: 1 | N158: 0 | O158: 0 | P158: 0
A159: Q79 | B159: RGT | C159: CAMBRIDGE UNIVERSITY HOSPITALS NHS FOUNDATION TRUST | D159: RGT32 | E159: Rosie Hospital - RGT32 | F159: 289 | G159: 440 | H159: 0.6568181818 | I159: 0.9653979239 | J159: 0.01038062284 | K159: 233 | L159: 46 | M159: 5 | N159: 1 | O159: 2 | P159: 2
A160: Q79 | B160: RDE | C160: COLCHESTER HOSPITAL UNIVERSITY NHS FOUNDATION TRUST | D160: RDEE2 | E160: Clacton and District Hospital - RDEE2 | F160: 0 | G160: 6 | H160: 0 | I160: NA | J160: NA | K160: 0 | L160: 0 | M160: 0 | N160: 0 | O160: 0 | P160: 0
A161: Q79 | B161: RDE | C161: COLCHESTER HOSPITAL UNIVERSITY NHS FOUNDATION TRUST | D161: RDEE4 | E161: Colchester General Hospital - RDEE4 | F161: 39 | G161: 260 | H161: 0.15 | I161: 0.9487179487 | J161: 0 | K161: 30 | L161: 7 | M161: 2 | N161: 0 | O161: 0 | P161: 0
A162: Q79 | B162: RDE | C162: COLCHESTER HOSPITAL UNIVERSITY NHS FOUNDATION TRUST | D162: RDEEE | E162: Harwich Maternity - RDEEE | F162: 0 | G162: 0 | H162: NA | I162: NA | J162: NA | K162: 0 | L162: 0 | M162: 0 | N162: 0 | O162: 0 | P162: 0
A163: Q79 | B163: RDE | C163: COLCHESTER HOSPITAL UNIVERSITY NHS FOUNDATION TRUST | D163: RDEXXX | E163: Non-hospital site - RDEXXX | F163: 0 | G163: 6 | H163: 0 | I163: NA | J163: NA | K163: 0 | L163: 0 | M163: 0 | N163: 0 | O163: 0 | P163: 0
A164: Q79 | B164: RGQ | C164: IPSWICH HOSPITAL NHS TRUST | D164: RGQ02 | E164: The Ipswich Hospital NHS Trust - RGQ02 | F164: 108 | G164: 294 | H164: 0.3673469388 | I164: 0.9814814815 | J164: 0.01851851852 | K164: 91 | L164: 15 | M164: 0 | N164: 1 | O164: 1 | P164: 0
A165: Q79 | B165: RGP | C165: JAMES PAGET UNIVERSITY HOSPITALS NHS FOUNDATION TRUST | D165: RGP75 | E165: James Paget University Hospital - RGP75 | F165: 26 | G165: 171 | H165: 0.1520467836 | I165: 1 | J165: 0 | K165: 26 | L165: 0 | M165: 0 | N165: 0 | O165: 0 | P165: 0
A166: Q79 | B166: RQ8 | C166: MID ESSEX HOSPITAL SERVICES NHS TRUST | D166: RQ8L0 | E166: Broomfield Hospital - RQ8L0 | F166: 32 | G166: 269 | H166: 0.1189591078 | I166: 0.90625 | J166: 0.09375 | K166: 26 | L166: 3 | M166: 0 | N166: 2 | O166: 1 | P166: 0
A167: Q79 | B167: RM1 | C167: NORFOLK AND NORWICH UNIVERSITY HOSPITALS NHS FOUNDATION TRUST | D167: RM102 | E167: Norfolk and Norwich University Hospital - RM102 | F167: 30 | G167: 473 | H167: 0.06342494715 | I167: 1 | J167: 0 | K167: 30 | L167: 0 | M167: 0 | N167: 0 | O167: 0 | P167: 0
A168: Q79 | B168: RGN | C168: NORTH WEST ANGLIA NHS FOUNDATION TRUST | D168: RGN90 | E168: Hinchingbrooke Hospital - RGN90 | F168: 54 | G168: 169 | H168: 0.3195266272 | I168: 1 | J168: 0 | K168: 50 | L168: 4 | M168: 0 | N168: 0 | O168: 0 | P168: 0
A169: Q79 | B169: RGN | C169: NORTH WEST ANGLIA NHS FOUNDATION TRUST | D169: RGN80 | E169: Peterborough City Hospital - RGN80 | F169: 95 | G169: 386 | H169: 0.2461139896 | I169: 0.9684210526 | J169: 0 | K169: 85 | L169: 7 | M169: 1 | N169: 0 | O169: 0 | P169: 2
A170: Q79 | B170: RAJ | C170: SOUTHEND UNIVERSITY HOSPITAL NHS FOUNDATION TRUST | D170: RAJ01 | E170: Southend Hospital - RAJ01 | F170: 10 | G170: 249 | H170: 0.04016064257 | I170: 0.9 | J170: 0 | K170: 9 | L170: 0 | M170: 1 | N170: 0 | O170: 0 | P170: 0
A171: Q79 | B171: RQW | C171: THE PRINCESS ALEXANDRA HOSPITAL NHS TRUST | D171: RQWG0 | E171: Princess Alexandra Hospital - RQWG0 | F171: 176 | G171: 305 | H171: 0.5770491803 | I171: 0.9488636364 | J171: 0 | K171: 148 | L171: 19 | M171: 0 | N171: 0 | O171: 0 | P171: 9
A172: Q79 | B172: RCX | C172: THE QUEEN ELIZABETH HOSPITAL, KING'S LYNN, NHS FOUNDATION TRUST | D172: RCXXXX | E172: Non-hospital site - RCXXXX | F172: 1 | G172: 4 | H172: 0.25 | I172: * | J172: * | K172: * | L172: * | M172: * | N172: * | O172: * | P172: *
A173: Q79 | B173: RCX | C173: THE QUEEN ELIZABETH HOSPITAL, KING'S LYNN, NHS FOUNDATION TRUST | D173: RCX70 | E173: The Queen Elizabeth Hospital - RCX70 | F173: 29 | G173: 175 | H173: 0.1657142857 | I173: 0.9655172414 | J173: 0 | K173: * | L173: * | M173: * | N173: * | O173: * | P173: *
A174: Q79 | B174: RGR | C174: WEST SUFFOLK NHS FOUNDATION TRUST | D174: RGR50 | E174: West Suffolk Hospital - RGR50 | F174: 31 | G174: 235 | H174: 0.1319148936 | I174: 1 | J174: 0 | K174: 29 | L174: 2 | M174: 0 | N174: 0 | O174: 0 | P174: 0
A175: Q80 | B175: RVJ | C175: NORTH BRISTOL NHS TRUST | D175: RVJ21 | E175: Cossham Hospital - RVJ21 | F175: 7 | G175: 35 | H175: 0.2 | I175: 1 | J175: 0 | K175: * | L175: * | M175: * | N175: * | O175: * | P175: *
A176: Q80 | B176: RVJ | C176: NORTH BRISTOL NHS TRUST | D176: RVJXXX | E176: Non-hospital site - RVJXXX | F176: 2 | G176: 10 | H176: 0.2 | I176: * | J176: * | K176: * | L176: * | M176: * | N176: * | O176: * | P176: *
A177: Q80 | B177: RVJ | C177: NORTH BRISTOL NHS TRUST | D177: RVJ01 | E177: Southmead Hospital - RVJ01 | F177: 74 | G177: 483 | H177: 0.1532091097 | I177: 0.9594594595 | J177: 0.02702702703 | K177: 66 | L177: 5 | M177: 1 | N177: 1 | O177: 1 | P177: 0
A178: Q80 | B178: RBZ | C178: NORTHERN DEVON HEALTHCARE NHS TRUST | D178: RBZ12 | E178: North Devon District Hospital - RBZ12 | F178: 3 | G178: 118 | H178: 0.02542372881 | I178: * | J178: * | K178: * | L178: * | M178: * | N178: * | O178: * | P178: *
A179: Q80 | B179: RK9 | C179: PLYMOUTH HOSPITALS NHS TRUST | D179: RK950 | E179: Derriford Hospital - RK950 | F179: 123 | G179: 316 | H179: 0.3892405063 | I179: 0.9918699187 | J179: 0 | K179: 109 | L179: 13 | M179: 0 | N179: 0 | O179: 0 | P179: 1
A180: Q80 | B180: RK9 | C180: PLYMOUTH HOSPITALS NHS TRUST | D180: RK9XXX | E180: Non-hospital site - RK9XXX | F180: 8 | G180: 12 | H180: 0.6666666667 | I180: 1 | J180: 0 | K180: 8 | L180: 0 | M180: 0 | N180: 0 | O180: 0 | P180: 0
A181: Q80 | B181: REF | C181: ROYAL CORNWALL HOSPITALS NHS TRUST | D181: REFXXX | E181: Non-hospital site - REFXXX | F181: 1 | G181: 41 | H181: 0.0243902439 | I181: * | J181: * | K181: * | L181: * | M181: * | N181: * | O181: * | P181: *
A182: Q80 | B182: REF | C182: ROYAL CORNWALL HOSPITALS NHS TRUST | D182: REF12 | E182: Royal Cornwall Hospital (Treliske) - REF12 | F182: 46 | G182: 280 | H182: 0.1642857143 | I182: 1 | J182: 0 | K182: * | L182: * | M182: * | N182: * | O182: * | P182: *
A183: Q80 | B183: RH8 | C183: ROYAL DEVON AND EXETER NHS FOUNDATION TRUST | D183: RH854 | E183: Honiton Hospital - RH 854 | F183: 0 | G183: 4 | H183: 0 | I183: NA | J183: NA | K183: 0 | L183: 0 | M183: 0 | N183: 0 | O183: 0 | P183: 0
A184: Q80 | B184: RH8 | C184: ROYAL DEVON AND EXETER NHS FOUNDATION TRUST | D184: RH833 | E184: Okehampton Community Hospital - RH833 | F184: 0 | G184: 3 | H184: 0 | I184: NA | J184: NA | K184: 0 | L184: 0 | M184: 0 | N184: 0 | O184: 0 | P184: 0
A185: Q80 | B185: RH8 | C185: ROYAL DEVON AND EXETER NHS FOUNDATION TRUST | D185: RH801 | E185: Royal Devon and Exeter Hospital (Wonford) - RH801 | F185: 1 | G185: 309 | H185: 0.003236245955 | I185: * | J185: * | K185: * | L185: * | M185: * | N185: * | O185: * | P185: *
A186: Q80 | B186: RH8 | C186: ROYAL DEVON AND EXETER NHS FOUNDATION TRUST | D186: RH853 | E186: Tiverton and District Hospital - RH853 | F186: 0 | G186: 8 | H186: 0 | I186: NA | J186: NA | K186: 0 | L186: 0 | M186: 0 | N186: 0 | O186: 0 | P186: 0
A187: Q80 | B187: RBA | C187: TAUNTON AND SOMERSET NHS FOUNDATION TRUST | D187: RBAC3 | E187: Bridgwater Hospital - RBAC3 | F187: 0 | G187: 0 | H187: NA | I187: NA | J187: NA | K187: 0 | L187: 0 | M187: 0 | N187: 0 | O187: 0 | P187: 0
A188: Q80 | B188: RBA | C188: TAUNTON AND SOMERSET NHS FOUNDATION TRUST | D188: RBA11 | E188: Musgrove Park Hospital - RBA11 | F188: 19 | G188: 259 | H188: 0.07335907336 | I188: 0.9473684211 | J188: 0.05263157895 | K188: 16 | L188: 2 | M188: 0 | N188: 1 | O188: 0 | P188: 0
A189: Q80 | B189: RBA | C189: TAUNTON AND SOMERSET NHS FOUNDATION TRUST | D189: RBAXXX | E189: Non-hospital site - RBAXXX | F189: 0 | G189: 9 | H189: 0 | I189: NA | J189: NA | K189: 0 | L189: 0 | M189: 0 | N189: 0 | O189: 0 | P189: 0
A190: Q80 | B190: RA9 | C190: TORBAY AND SOUTH DEVON NHS FOUNDATION TRUST | D190: RA957 | E190: Newton Abbot Community Hospital - RA957 | F190: 1 | G190: 7 | H190: 0.1428571429 | I190: * | J190: * | K190: * | L190: * | M190: * | N190: * | O190: * | P190: *
A191: Q80 | B191: RA9 | C191: TORBAY AND SOUTH DEVON NHS FOUNDATION TRUST | D191: RA9XXX | E191: Non-hospital site - RA9XXX | F191: 0 | G191: 7 | H191: 0 | I191: NA | J191: NA | K191: 0 | L191: 0 | M191: 0 | N191: 0 | O191: 0 | P191: 0
A192: Q80 | B192: RA9 | C192: TORBAY AND SOUTH DEVON NHS FOUNDATION TRUST | D192: RA901 | E192: Torbay Hospital - RA901 | F192: 9 | G192: 156 | H192: 0.05769230769 | I192: 1 | J192: 0 | K192: * | L192: * | M192: * | N192: * | O192: * | P192: *
A193: Q80 | B193: RA7 | C193: UNIVERSITY HOSPITALS BRISTOL NHS FOUNDATION TRUST | D193: RA707 | E193: St Michael's Hospital - RA707 | F193: 96 | G193: 411 | H193: 0.2335766423 | I193: 0.96875 | J193: 0 | K193: 81 | L193: 12 | M193: 1 | N193: 0 | O193: 0 | P193: 2
A194: Q80 | B194: RA3 | C194: WESTON AREA HEALTH NHS TRUST | D194: RA301 | E194: Weston General Hospital - RA301 | F194: 7 | G194: 19 | H194: 0.3684210526 | I194: 1 | J194: 0 | K194: 6 | L194: 1 | M194: 0 | N194: 0 | O194: 0 | P194: 0
A195: Q80 | B195: RA4 | C195: YEOVIL DISTRICT HOSPITAL NHS FOUNDATION TRUST | D195: RA430 | E195: Yeovil District Hospital - RA430 | F195: 3 | G195: 111 | H195: 0.02702702703 | I195: * | J195: * | K195: * | L195: * | M195: * | N195: * | O195: * | P195: *
A196: Q81 | B196: RTK | C196: ASHFORD AND ST PETER'S HOSPITALS NHS FOUNDATION TRUST | D196: RTK01 | E196: St Peter's Hospital - RTK01 | F196: 22 | G196: 332 | H196: 0.06626506024 | I196: 0.9545454545 | J196: 0 | K196: 19 | L196: 2 | M196: 0 | N196: 0 | O196: 0 | P196: 1
A197: Q81 | B197: RXH | C197: BRIGHTON AND SUSSEX UNIVERSITY HOSPITALS NHS TRUST | D197: RXHXXX | E197: Non-hospital site - RXHXXX | F197: 0 | G197: 16 | H197: 0 | I197: NA | J197: NA | K197: 0 | L197: 0 | M197: 0 | N197: 0 | O197: 0 | P197: 0
A198: Q81 | B198: RXH | C198: BRIGHTON AND SUSSEX UNIVERSITY HOSPITALS NHS TRUST | D198: RXH09 | E198: Princess Royal Hospital - RXH09 | F198: 41 | G198: 167 | H198: 0.245508982 | I198: 0.9756097561 | J198: 0.0243902439 | K198: 36 | L198: 4 | M198: 0 | N198: 0 | O198: 1 | P198: 0
A199: Q81 | B199: RXH | C199: BRIGHTON AND SUSSEX UNIVERSITY HOSPITALS NHS TRUST | D199: RXH01 | E199: Royal Sussex County Hospital - RXH01 | F199: 54 | G199: 242 | H199: 0.2231404959 | I199: 0.962962963 | J199: 0 | K199: 44 | L199: 8 | M199: 2 | N199: 0 | O199: 0 | P199: 0
A200: Q81 | B200: RN7 | C200: DARTFORD AND GRAVESHAM NHS TRUST | D200: RN707 | E200: Darent Valley Hospital - RN707 | F200: 89 | G200: 333 | H200: 0.2672672673 | I200: 1 | J200: 0 | K200: 73 | L200: 16 | M200: 0 | N200: 0 | O200: 0 | P200: 0
A201: Q81 | B201: RVV | C201: EAST KENT HOSPITALS UNIVERSITY NHS FOUNDATION TRUST | D201: RVVXXX | E201: Non-hospital site - RVVXXX | F201: 179 | G201: 23 | H201: 7.782608696 | I201: 0.9776536313 | J201: 0.01117318436 | K201: 157 | L201: 18 | M201: 0 | N201: 2 | O201: 0 | P201: 2
A202: Q81 | B202: RVV | C202: EAST KENT HOSPITALS UNIVERSITY NHS FOUNDATION TRUST | D202: RVV09 | E202: Queen Elizabeth The Queen Mother Hospital - RVV09 | F202: 66 | G202: 231 | H202: 0.2857142857 | I202: 0.9545454545 | J202: 0.01515151515 | K202: 56 | L202: 7 | M202: 0 | N202: 1 | O202: 0 | P202: 2
A203: Q81 | B203: RVV | C203: EAST KENT HOSPITALS UNIVERSITY NHS FOUNDATION TRUST | D203: RVV01 | E203: William Harvey Hospital (Ashford) - RVV01 | F203: 113 | G203: 336 | H203: 0.3363095238 | I203: 0.9911504425 | J203: 0.008849557522 | K203: 101 | L203: 11 | M203: 0 | N203: 1 | O203: 0 | P203: 0
A204: Q81 | B204: RXC | C204: EAST SUSSEX HEALTHCARE NHS TRUST | D204: RXC01 | E204: Conquest Hospital - RXC01 | F204: 88 | G204: 233 | H204: 0.3776824034 | I204: 0.9772727273 | J204: 0.01136363636 | K204: 59 | L204: 27 | M204: 0 | N204: 0 | O204: 1 | P204: 1
A205: Q81 | B205: RXC | C205: EAST SUSSEX HEALTHCARE NHS TRUST | D205: RXC02 | E205: Eastbourne District General Hospital - RXC02 | F205: 23 | G205: 23 | H205: 1 | I205: 1 | J205: 0 | K205: * | L205: * | M205: * | N205: * | O205: * | P205: *
A206: Q81 | B206: RXC | C206: EAST SUSSEX HEALTHCARE NHS TRUST | D206: RXCXXX | E206: Non-hospital site - RXCXXX | F206: 2 | G206: 5 | H206: 0.4 | I206: * | J206: * | K206: * | L206: * | M206: * | N206: * | O206: * | P206: *
A207: Q81 | B207: RDU | C207: FRIMLEY HEALTH NHS FOUNDATION TRUST | D207: RDU01 | E207: Frimley Park Hospital - RDU01 | F207: 177 | G207: 422 | H207: 0.4194312796 | I207: 0.9774011299 | J207: 0.005649717514 | K207: 159 | L207: 14 | M207: 2 | N207: 1 | O207: 0 | P207: 1
... 51 more rows

Sheet Region (Geography) Q3
B6: Sort data by:
A9: Region (Geo) Code | B9: Region (Geography) | C9: Total Responses | D9: Percentage Recommended | E9: Percentage Not Recommended | F9: Breakdown of Responses
F10: Extremely Likely | G10: Likely | H10: Neither | I10: Unlikely | J10: Extremely Unlikely | K10: Don't Know
B11: England | C11: 11535 | D11: 0.9505851756 | E11: 0.01863892501 | F11: 8568 | G11: 2397 | H11: 219 | I11: 115 | J11: 100 | K11: 136
B12: Selection (excluding suppressed data) | C12: =SUBTOTAL(9,C13:C40) -> 11535 | D12: =IFERROR((F12+G12)/SUM(F12:K12), "-") -> 0.9505851756 | E12: =IFERROR((I12+J12)/SUM(F12:K12), "-") -> 0.01863892501 | F12: =SUBTOTAL(9,F13:F40) -> 8568 | G12: =SUBTOTAL(9,G13:G40) -> 2397 | H12: 219 | I12: 115 | J12: 100 | K12: 136
A13: Q72 | B13: NHS England Yorkshire & Humber | C13: 959 | D13: 0.9718456726 | E13: 0.01042752868 | F13: 752 | G13: 180 | H13: 11 | I13: 7 | J13: 3 | K13: 6
A14: Q74 | B14: NHS England Cumbria & North East | C14: 470 | D14: 0.9829787234 | E14: 0.008510638298 | F14: 399 | G14: 63 | H14: 4 | I14: 2 | J14: 2 | K14: 0
A15: Q75 | B15: NHS England Cheshire & Merseyside | C15: 341 | D15: 0.9677419355 | E15: 0.0146627566 | F15: 276 | G15: 54 | H15: 4 | I15: 3 | J15: 2 | K15: 2
A16: Q83 | B16: NHS England Greater Manchester | C16: 924 | D16: 0.9491341991 | E16: 0.02380952381 | F16: 717 | G16: 160 | H16: 20 | I16: 8 | J16: 14 | K16: 5
A17: Q84 | B17: NHS England Lancashire | C17: 215 | D17: 0.9348837209 | E17: 0.03255813953 | F17: 160 | G17: 41 | H17: 7 | I17: 3 | J17: 4 | K17: 0
A18: Q76 | B18: NHS England North Midlands | C18: 697 | D18: 0.9799139168 | E18: 0.004304160689 | F18: 536 | G18: 147 | H18: 8 | I18: 1 | J18: 2 | K18: 3
A19: Q77 | B19: NHS England West Midlands | C19: 946 | D19: 0.94397463 | E19: 0.02748414376 | F19: 654 | G19: 239 | H19: 18 | I19: 11 | J19: 15 | K19: 9
A20: Q78 | B20: NHS England Central Midlands | C20: 1092 | D20: 0.9203296703 | E20: 0.02747252747 | F20: 743 | G20: 262 | H20: 35 | I20: 16 | J20: 14 | K20: 22
A21: Q79 | B21: NHS England East | C21: 1074 | D21: 0.95716946 | E21: 0.01303538175 | F21: 833 | G21: 195 | H21: 18 | I21: 8 | J21: 6 | K21: 14
A22: Q80 | B22: NHS England South West | C22: 478 | D22: 0.9623430962 | E22: 0.01673640167 | F22: 367 | G22: 93 | H22: 9 | I22: 2 | J22: 6 | K22: 1
A23: Q81 | B23: NHS England South East | C23: 1335 | D23: 0.9528089888 | E23: 0.01048689139 | F23: 1089 | G23: 183 | H23: 14 | I23: 11 | J23: 3 | K23: 35
A24: Q82 | B24: NHS England South Central | C24: 477 | D24: 0.9601677149 | E24: 0.01257861635 | F24: 348 | G24: 110 | H24: 6 | I24: 5 | J24: 1 | K24: 7
A25: Q70 | B25: NHS England Wessex | C25: 650 | D25: 0.9538461538 | E25: 0.02461538462 | F25: 512 | G25: 108 | H25: 8 | I25: 8 | J25: 8 | K25: 6
A26: Q71 | B26: NHS England London | C26: 1877 | D26: 0.9291422483 | E26: 0.02663825253 | F26: 1182 | G26: 562 | H26: 57 | I26: 30 | J26: 20 | K26: 26

Sheet Trusts Q3
B6: Sort data by:
A9: Region (Geo) Code | B9: Trust Code | C9: Trust Name | D9: Total Responses | E9: Percentage Recommended | F9: Percentage Not Recommended | G9: Breakdown of Responses | M9: Mode of Collection
G10: Extremely Likely | H10: Likely | I10: Neither | J10: Unlikely | K10: Extremely Unlikely | L10: Don't Know | M10: SMS/Text / Smartphone App | N10: Electronic tablet/kiosk at point of discharge | O10: Paper / postcard at point of discharge | P10: Paper survey sent to the patients home | Q10: Telephone survey once patient is home | R10: Online survey once patient is home | S10: Other
C11: England | D11: 11535 | E11: 0.9505851756 | F11: 0.01863892501 | G11: 8568 | H11: 2397 | I11: 219 | J11: 115 | K11: 100 | L11: 136 | M11: 936 | N11: 2478 | O11: 7094 | P11: 663 | Q11: 1 | R11: 170 | S11: 193
C12: Selection (excluding suppressed data) | D12: =SUBTOTAL(9,D13:D299) -> 11535 | E12: =IFERROR((G12+H12)/SUM(G12:L12), "-") -> 0.9504907496 | F12: =IFERROR((J12+K12)/SUM(G12:L12), "-") -> 0.01867454182 | G12: =SUBTOTAL(9,G13:G299) -> 8550 | H12: =SUBTOTAL(9,H13:H299) -> 2393 | I12: 219 | J12: 115 | K12: 100 | L12: 136 | M12: 936 | N12: 2475 | O12: 7075 | P12: 663 | Q12: 1 | R12: 170 | S12: 193
A13: Q70 | B13: RBD | C13: DORSET COUNTY HOSPITAL NHS FOUNDATION TRUST | D13: 44 | E13: 0.9090909091 | F13: 0.06818181818 | G13: 34 | H13: 6 | I13: 0 | J13: 1 | K13: 2 | L13: 1 | M13: 44 | N13: 0 | O13: 0 | P13: 0 | Q13: 0 | R13: 0 | S13: 0
A14: Q70 | B14: RN5 | C14: HAMPSHIRE HOSPITALS NHS FOUNDATION TRUST | D14: 165 | E14: 0.9818181818 | F14: 0 | G14: 142 | H14: 20 | I14: 2 | J14: 0 | K14: 0 | L14: 1 | M14: 0 | N14: 0 | O14: 165 | P14: 0 | Q14: 0 | R14: 0 | S14: 0
A15: Q70 | B15: R1F | C15: ISLE OF WIGHT NHS TRUST | D15: 15 | E15: 1 | F15: 0 | G15: 13 | H15: 2 | I15: 0 | J15: 0 | K15: 0 | L15: 0 | M15: 0 | N15: 0 | O15: 15 | P15: 0 | Q15: 0 | R15: 0 | S15: 0
A16: Q70 | B16: RD3 | C16: POOLE HOSPITAL NHS FOUNDATION TRUST | D16: 117 | E16: 0.905982906 | F16: 0.05128205128 | G16: 80 | H16: 26 | I16: 3 | J16: 1 | K16: 5 | L16: 2 | M16: 88 | N16: 0 | O16: 29 | P16: 0 | Q16: 0 | R16: 0 | S16: 0
A17: Q70 | B17: RHU | C17: PORTSMOUTH HOSPITALS NHS TRUST | D17: 149 | E17: 0.9530201342 | F17: 0.02684563758 | G17: 122 | H17: 20 | I17: 1 | J17: 4 | K17: 0 | L17: 2 | M17: 0 | N17: 0 | O17: 148 | P17: 0 | Q17: 0 | R17: 1 | S17: 0
A18: Q70 | B18: RDZ | C18: THE ROYAL BOURNEMOUTH AND CHRISTCHURCH HOSPITALS NHS FOUNDATION TRUST | D18: 0 | E18: NA | F18: NA | G18: 0 | H18: 0 | I18: 0 | J18: 0 | K18: 0 | L18: 0 | M18: 0 | N18: 0 | O18: 0 | P18: 0 | Q18: 0 | R18: 0 | S18: 0
A19: Q70 | B19: RHM | C19: UNIVERSITY HOSPITAL SOUTHAMPTON NHS FOUNDATION TRUST | D19: 160 | E19: 0.96875 | F19: 0.01875 | G19: 121 | H19: 34 | I19: 2 | J19: 2 | K19: 1 | L19: 0 | M19: 0 | N19: 0 | O19: 157 | P19: 0 | Q19: 0 | R19: 3 | S19: 0
A20: Q71 | B20: RF4 | C20: BARKING, HAVERING AND REDBRIDGE UNIVERSITY HOSPITALS NHS TRUST | D20: 193 | E20: 0.9689119171 | F20: 0.00518134715 | G20: 131 | H20: 56 | I20: 1 | J20: 1 | K20: 0 | L20: 4 | M20: 0 | N20: 0 | O20: 193 | P20: 0 | Q20: 0 | R20: 0 | S20: 0
A21: Q71 | B21: R1H | C21: BARTS HEALTH NHS TRUST | D21: 120 | E21: 0.9416666667 | F21: 0.025 | G21: 74 | H21: 39 | I21: 2 | J21: 2 | K21: 1 | L21: 2 | M21: 0 | N21: 66 | O21: 54 | P21: 0 | Q21: 0 | R21: 0 | S21: 0
A22: Q71 | B22: RQM | C22: CHELSEA AND WESTMINSTER HOSPITAL NHS FOUNDATION TRUST | D22: 179 | E22: 0.905027933 | F22: 0.06145251397 | G22: 135 | H22: 27 | I22: 6 | J22: 6 | K22: 5 | L22: 0 | M22: 152 | N22: 0 | O22: 27 | P22: 0 | Q22: 0 | R22: 0 | S22: 0
A23: Q71 | B23: RJ6 | C23: CROYDON HEALTH SERVICES NHS TRUST | D23: 227 | E23: 0.9207048458 | F23: 0.03524229075 | G23: 138 | H23: 71 | I23: 8 | J23: 6 | K23: 2 | L23: 2 | M23: 0 | N23: 0 | O23: 227 | P23: 0 | Q23: 0 | R23: 0 | S23: 0
A24: Q71 | B24: RVR | C24: EPSOM AND ST HELIER UNIVERSITY HOSPITALS NHS TRUST | D24: 27 | E24: 1 | F24: 0 | G24: 24 | H24: 3 | I24: 0 | J24: 0 | K24: 0 | L24: 0 | M24: 0 | N24: 0 | O24: 27 | P24: 0 | Q24: 0 | R24: 0 | S24: 0
A25: Q71 | B25: RJ1 | C25: GUY'S AND ST THOMAS' NHS FOUNDATION TRUST | D25: 35 | E25: 0.9142857143 | F25: 0.02857142857 | G25: 16 | H25: 16 | I25: 1 | J25: 1 | K25: 0 | L25: 1 | M25: 0 | N25: 0 | O25: 35 | P25: 0 | Q25: 0 | R25: 0 | S25: 0
A26: Q71 | B26: RQX | C26: HOMERTON UNIVERSITY HOSPITAL NHS FOUNDATION TRUST | D26: 91 | E26: 0.9010989011 | F26: 0.04395604396 | G26: 52 | H26: 30 | I26: 4 | J26: 0 | K26: 4 | L26: 1 | M26: 0 | N26: 91 | O26: 0 | P26: 0 | Q26: 0 | R26: 0 | S26: 0
A27: Q71 | B27: RYJ | C27: IMPERIAL COLLEGE HEALTHCARE NHS TRUST | D27: 183 | E27: 0.9234972678 | F27: 0.02732240437 | G27: 89 | H27: 80 | I27: 8 | J27: 4 | K27: 1 | L27: 1 | M27: 1 | N27: 146 | O27: 36 | P27: 0 | Q27: 0 | R27: 0 | S27: 0
A28: Q71 | B28: RJZ | C28: KING'S COLLEGE HOSPITAL NHS FOUNDATION TRUST | D28: 104 | E28: 0.9519230769 | F28: 0.01923076923 | G28: 72 | H28: 27 | I28: 2 | J28: 1 | K28: 1 | L28: 1 | M28: 0 | N28: 97 | O28: 7 | P28: 0 | Q28: 0 | R28: 0 | S28: 0
A29: Q71 | B29: RAX | C29: KINGSTON HOSPITAL NHS FOUNDATION TRUST | D29: 45 | E29: 0.9777777778 | F29: 0 | G29: 34 | H29: 10 | I29: 1 | J29: 0 | K29: 0 | L29: 0 | M29: 0 | N29: 45 | O29: 0 | P29: 0 | Q29: 0 | R29: 0 | S29: 0
A30: Q71 | B30: RJ2 | C30: LEWISHAM AND GREENWICH NHS TRUST | D30: 192 | E30: 0.8854166667 | F30: 0.02604166667 | G30: 105 | H30: 65 | I30: 10 | J30: 3 | K30: 2 | L30: 7 | M30: 0 | N30: 0 | O30: 192 | P30: 0 | Q30: 0 | R30: 0 | S30: 0
A31: Q71 | B31: R1K | C31: LONDON NORTH WEST HEALTHCARE NHS TRUST | D31: 0 | E31: NA | F31: NA | G31: 0 | H31: 0 | I31: 0 | J31: 0 | K31: 0 | L31: 0 | M31: 0 | N31: 0 | O31: 0 | P31: 0 | Q31: 0 | R31: 0 | S31: 0
A32: Q71 | B32: RAP | C32: NORTH MIDDLESEX UNIVERSITY HOSPITAL NHS TRUST | D32: 7 | E32: 0.7142857143 | F32: 0.1428571429 | G32: 2 | H32: 3 | I32: 0 | J32: 0 | K32: 1 | L32: 1 | M32: 0 | N32: 7 | O32: 0 | P32: 0 | Q32: 0 | R32: 0 | S32: 0
A33: Q71 | B33: RAL | C33: ROYAL FREE LONDON NHS FOUNDATION TRUST | D33: 142 | E33: 0.9507042254 | F33: 0.02112676056 | G33: 89 | H33: 46 | I33: 4 | J33: 2 | K33: 1 | L33: 0 | M33: 0 | N33: 0 | O33: 142 | P33: 0 | Q33: 0 | R33: 0 | S33: 0
A34: Q71 | B34: RJ7 | C34: ST GEORGE'S UNIVERSITY HOSPITALS NHS FOUNDATION TRUST | D34: 34 | E34: 0.9411764706 | F34: 0 | G34: 19 | H34: 13 | I34: 2 | J34: 0 | K34: 0 | L34: 0 | M34: 0 | N34: 34 | O34: 0 | P34: 0 | Q34: 0 | R34: 0 | S34: 0
A35: Q71 | B35: RAS | C35: THE HILLINGDON HOSPITALS NHS FOUNDATION TRUST | D35: 53 | E35: 1 | F35: 0 | G35: 39 | H35: 14 | I35: 0 | J35: 0 | K35: 0 | L35: 0 | M35: 0 | N35: 0 | O35: 53 | P35: 0 | Q35: 0 | R35: 0 | S35: 0
A36: Q71 | B36: RKE | C36: THE WHITTINGTON HOSPITAL NHS TRUST | D36: 115 | E36: 0.8782608696 | F36: 0.04347826087 | G36: 63 | H36: 38 | I36: 5 | J36: 4 | K36: 1 | L36: 4 | M36: 0 | N36: 115 | O36: 0 | P36: 0 | Q36: 0 | R36: 0 | S36: 0
A37: Q71 | B37: RRV | C37: UNIVERSITY COLLEGE LONDON HOSPITALS NHS FOUNDATION TRUST | D37: 130 | E37: 0.9538461538 | F37: 0.007692307692 | G37: 100 | H37: 24 | I37: 3 | J37: 0 | K37: 1 | L37: 2 | M37: 0 | N37: 0 | O37: 130 | P37: 0 | Q37: 0 | R37: 0 | S37: 0
A38: Q72 | B38: RCF | C38: AIREDALE NHS FOUNDATION TRUST | D38: 20 | E38: 0.9 | F38: 0 | G38: 16 | H38: 2 | I38: 2 | J38: 0 | K38: 0 | L38: 0 | M38: 0 | N38: 1 | O38: 19 | P38: 0 | Q38: 0 | R38: 0 | S38: 0
A39: Q72 | B39: RFF | C39: BARNSLEY HOSPITAL NHS FOUNDATION TRUST | D39: 52 | E39: 1 | F39: 0 | G39: 44 | H39: 8 | I39: 0 | J39: 0 | K39: 0 | L39: 0 | M39: 0 | N39: 0 | O39: 52 | P39: 0 | Q39: 0 | R39: 0 | S39: 0
A40: Q72 | B40: RAE | C40: BRADFORD TEACHING HOSPITALS NHS FOUNDATION TRUST | D40: 13 | E40: 0.8461538462 | F40: 0.07692307692 | G40: 5 | H40: 6 | I40: 0 | J40: 1 | K40: 0 | L40: 1 | M40: 0 | N40: 9 | O40: 4 | P40: 0 | Q40: 0 | R40: 0 | S40: 0
A41: Q72 | B41: RWY | C41: CALDERDALE AND HUDDERSFIELD NHS FOUNDATION TRUST | D41: 225 | E41: 0.9733333333 | F41: 0 | G41: 174 | H41: 45 | I41: 5 | J41: 0 | K41: 0 | L41: 1 | M41: 0 | N41: 225 | O41: 0 | P41: 0 | Q41: 0 | R41: 0 | S41: 0
A42: Q72 | B42: RP5 | C42: DONCASTER AND BASSETLAW TEACHING HOSPITALS NHS FOUNDATION TRUST | D42: 129 | E42: 0.984496124 | F42: 0.01550387597 | G42: 99 | H42: 28 | I42: 0 | J42: 2 | K42: 0 | L42: 0 | M42: 0 | N42: 0 | O42: 129 | P42: 0 | Q42: 0 | R42: 0 | S42: 0
A43: Q72 | B43: RCD | C43: HARROGATE AND DISTRICT NHS FOUNDATION TRUST | D43: 21 | E43: 1 | F43: 0 | G43: 20 | H43: 1 | I43: 0 | J43: 0 | K43: 0 | L43: 0 | M43: 0 | N43: 0 | O43: 21 | P43: 0 | Q43: 0 | R43: 0 | S43: 0
A44: Q72 | B44: RWA | C44: HULL AND EAST YORKSHIRE HOSPITALS NHS TRUST | D44: 17 | E44: 1 | F44: 0 | G44: 16 | H44: 1 | I44: 0 | J44: 0 | K44: 0 | L44: 0 | M44: 0 | N44: 0 | O44: 17 | P44: 0 | Q44: 0 | R44: 0 | S44: 0
A45: Q72 | B45: RR8 | C45: LEEDS TEACHING HOSPITALS NHS TRUST | D45: 75 | E45: 0.9733333333 | F45: 0 | G45: 57 | H45: 16 | I45: 1 | J45: 0 | K45: 0 | L45: 1 | M45: 0 | N45: 0 | O45: 75 | P45: 0 | Q45: 0 | R45: 0 | S45: 0
A46: Q72 | B46: RXF | C46: MID YORKSHIRE HOSPITALS NHS TRUST | D46: 66 | E46: 1 | F46: 0 | G46: 45 | H46: 21 | I46: 0 | J46: 0 | K46: 0 | L46: 0 | M46: 0 | N46: 0 | O46: 66 | P46: 0 | Q46: 0 | R46: 0 | S46: 0
A47: Q72 | B47: RJL | C47: NORTHERN LINCOLNSHIRE AND GOOLE NHS FOUNDATION TRUST | D47: 43 | E47: 0.9534883721 | F47: 0.04651162791 | G47: 33 | H47: 8 | I47: 0 | J47: 1 | K47: 1 | L47: 0 | M47: 0 | N47: 0 | O47: 0 | P47: 43 | Q47: 0 | R47: 0 | S47: 0
A48: Q72 | B48: RHQ | C48: SHEFFIELD TEACHING HOSPITALS NHS FOUNDATION TRUST | D48: 137 | E48: 0.9343065693 | F48: 0.02189781022 | G48: 114 | H48: 14 | I48: 3 | J48: 1 | K48: 2 | L48: 3 | M48: 0 | N48: 0 | O48: 136 | P48: 0 | Q48: 0 | R48: 1 | S48: 0
A49: Q72 | B49: RFR | C49: THE ROTHERHAM NHS FOUNDATION TRUST | D49: 77 | E49: 1 | F49: 0 | G49: 61 | H49: 16 | I49: 0 | J49: 0 | K49: 0 | L49: 0 | M49: 0 | N49: 0 | O49: 77 | P49: 0 | Q49: 0 | R49: 0 | S49: 0
A50: Q72 | B50: RCB | C50: YORK TEACHING HOSPITAL NHS FOUNDATION TRUST | D50: 84 | E50: 0.9761904762 | F50: 0.02380952381 | G50: 68 | H50: 14 | I50: 0 | J50: 2 | K50: 0 | L50: 0 | M50: 0 | N50: 0 | O50: 84 | P50: 0 | Q50: 0 | R50: 0 | S50: 0
A51: Q74 | B51: RLN | C51: CITY HOSPITALS SUNDERLAND NHS FOUNDATION TRUST | D51: 42 | E51: 1 | F51: 0 | G51: 40 | H51: 2 | I51: 0 | J51: 0 | K51: 0 | L51: 0 | M51: 0 | N51: 0 | O51: 42 | P51: 0 | Q51: 0 | R51: 0 | S51: 0
A52: Q74 | B52: RXP | C52: COUNTY DURHAM AND DARLINGTON NHS FOUNDATION TRUST | D52: 42 | E52: 1 | F52: 0 | G52: 32 | H52: 10 | I52: 0 | J52: 0 | K52: 0 | L52: 0 | M52: 0 | N52: 0 | O52: 42 | P52: 0 | Q52: 0 | R52: 0 | S52: 0
A53: Q74 | B53: RR7 | C53: GATESHEAD HEALTH NHS FOUNDATION TRUST | D53: 40 | E53: 0.975 | F53: 0 | G53: 32 | H53: 7 | I53: 1 | J53: 0 | K53: 0 | L53: 0 | M53: 0 | N53: 13 | O53: 27 | P53: 0 | Q53: 0 | R53: 0 | S53: 0
A54: Q74 | B54: RNL | C54: NORTH CUMBRIA UNIVERSITY HOSPITALS NHS TRUST | D54: 79 | E54: 0.9873417722 | F54: 0 | G54: 65 | H54: 13 | I54: 1 | J54: 0 | K54: 0 | L54: 0 | M54: 0 | N54: 0 | O54: 62 | P54: 0 | Q54: 0 | R54: 0 | S54: 17
A55: Q74 | B55: RVW | C55: NORTH TEES AND HARTLEPOOL NHS FOUNDATION TRUST | D55: 18 | E55: 0.8888888889 | F55: 0.1111111111 | G55: 12 | H55: 4 | I55: 0 | J55: 1 | K55: 1 | L55: 0 | M55: 0 | N55: 0 | O55: 18 | P55: 0 | Q55: 0 | R55: 0 | S55: 0
A56: Q74 | B56: RTF | C56: NORTHUMBRIA HEALTHCARE NHS FOUNDATION TRUST | D56: 31 | E56: 1 | F56: 0 | G56: 29 | H56: 2 | I56: 0 | J56: 0 | K56: 0 | L56: 0 | M56: 0 | N56: 0 | O56: 31 | P56: 0 | Q56: 0 | R56: 0 | S56: 0
A57: Q74 | B57: RTR | C57: SOUTH TEES HOSPITALS NHS FOUNDATION TRUST | D57: 20 | E57: 1 | F57: 0 | G57: 20 | H57: 0 | I57: 0 | J57: 0 | K57: 0 | L57: 0 | M57: 0 | N57: 0 | O57: 20 | P57: 0 | Q57: 0 | R57: 0 | S57: 0
A58: Q74 | B58: RE9 | C58: SOUTH TYNESIDE NHS FOUNDATION TRUST | D58: 21 | E58: 1 | F58: 0 | G58: 19 | H58: 2 | I58: 0 | J58: 0 | K58: 0 | L58: 0 | M58: 0 | N58: 0 | O58: 21 | P58: 0 | Q58: 0 | R58: 0 | S58: 0
A59: Q74 | B59: RTD | C59: THE NEWCASTLE UPON TYNE HOSPITALS NHS FOUNDATION TRUST | D59: 158 | E59: 0.9746835443 | F59: 0.01265822785 | G59: 135 | H59: 19 | I59: 2 | J59: 1 | K59: 1 | L59: 0 | M59: 0 | N59: 0 | O59: 158 | P59: 0 | Q59: 0 | R59: 0 | S59: 0
A60: Q74 | B60: RTX | C60: UNIVERSITY HOSPITALS OF MORECAMBE BAY NHS FOUNDATION TRUST | D60: 19 | E60: 1 | F60: 0 | G60: 15 | H60: 4 | I60: 0 | J60: 0 | K60: 0 | L60: 0 | M60: 0 | N60: 0 | O60: 19 | P60: 0 | Q60: 0 | R60: 0 | S60: 0
A61: Q75 | B61: RJR | C61: COUNTESS OF CHESTER HOSPITAL NHS FOUNDATION TRUST | D61: 62 | E61: 0.935483871 | F61: 0.04838709677 | G61: 47 | H61: 11 | I61: 1 | J61: 2 | K61: 1 | L61: 0 | M61: 32 | N61: 0 | O61: 0 | P61: 30 | Q61: 0 | R61: 0 | S61: 0
A62: Q75 | B62: RJN | C62: EAST CHESHIRE NHS TRUST | D62: 16 | E62: 1 | F62: 0 | G62: 14 | H62: 2 | I62: 0 | J62: 0 | K62: 0 | L62: 0 | M62: 0 | N62: 0 | O62: 16 | P62: 0 | Q62: 0 | R62: 0 | S62: 0
A63: Q75 | B63: REP | C63: LIVERPOOL WOMEN'S NHS FOUNDATION TRUST | D63: 5 | E63: 0.8 | F63: 0.2 | G63: 3 | H63: 1 | I63: 0 | J63: 1 | K63: 0 | L63: 0 | M63: 0 | N63: 0 | O63: 5 | P63: 0 | Q63: 0 | R63: 0 | S63: 0
A64: Q75 | B64: RBT | C64: MID CHESHIRE HOSPITALS NHS FOUNDATION TRUST | D64: 19 | E64: 1 | F64: 0 | G64: 15 | H64: 4 | I64: 0 | J64: 0 | K64: 0 | L64: 0 | M64: 0 | N64: 0 | O64: 19 | P64: 0 | Q64: 0 | R64: 0 | S64: 0
A65: Q75 | B65: RVY | C65: SOUTHPORT AND ORMSKIRK HOSPITAL NHS TRUST | D65: 21 | E65: 1 | F65: 0 | G65: 16 | H65: 5 | I65: 0 | J65: 0 | K65: 0 | L65: 0 | M65: 0 | N65: 7 | O65: 14 | P65: 0 | Q65: 0 | R65: 0 | S65: 0
A66: Q75 | B66: RBN | C66: ST HELENS AND KNOWSLEY HOSPITAL SERVICES NHS TRUST | D66: 32 | E66: 0.875 | F66: 0.03125 | G66: 21 | H66: 7 | I66: 1 | J66: 0 | K66: 1 | L66: 2 | M66: 0 | N66: 0 | O66: 32 | P66: 0 | Q66: 0 | R66: 0 | S66: 0
A67: Q75 | B67: RWW | C67: WARRINGTON AND HALTON HOSPITALS NHS FOUNDATION TRUST | D67: 54 | E67: 0.9814814815 | F67: 0 | G67: 44 | H67: 9 | I67: 1 | J67: 0 | K67: 0 | L67: 0 | M67: 0 | N67: 0 | O67: 54 | P67: 0 | Q67: 0 | R67: 0 | S67: 0
A68: Q75 | B68: RBL | C68: WIRRAL UNIVERSITY TEACHING HOSPITAL NHS FOUNDATION TRUST | D68: 132 | E68: 0.9924242424 | F68: 0 | G68: 116 | H68: 15 | I68: 1 | J68: 0 | K68: 0 | L68: 0 | M68: 0 | N68: 0 | O68: 132 | P68: 0 | Q68: 0 | R68: 0 | S68: 0
A69: Q76 | B69: RJF | C69: BURTON HOSPITALS NHS FOUNDATION TRUST | D69: 92 | E69: 0.9891304348 | F69: 0.01086956522 | G69: 83 | H69: 8 | I69: 0 | J69: 0 | K69: 1 | L69: 0 | M69: 1 | N69: 0 | O69: 91 | P69: 0 | Q69: 0 | R69: 0 | S69: 0
A70: Q76 | B70: RFS | C70: CHESTERFIELD ROYAL HOSPITAL NHS FOUNDATION TRUST | D70: 35 | E70: 0.9714285714 | F70: 0 | G70: 26 | H70: 8 | I70: 1 | J70: 0 | K70: 0 | L70: 0 | M70: 0 | N70: 31 | O70: 4 | P70: 0 | Q70: 0 | R70: 0 | S70: 0
A71: Q76 | B71: RTG | C71: DERBY TEACHING HOSPITALS NHS FOUNDATION TRUST | D71: 177 | E71: 0.9774011299 | F71: 0.005649717514 | G71: 122 | H71: 51 | I71: 1 | J71: 0 | K71: 1 | L71: 2 | M71: 1 | N71: 0 | O71: 176 | P71: 0 | Q71: 0 | R71: 0 | S71: 0
A72: Q76 | B72: RX1 | C72: NOTTINGHAM UNIVERSITY HOSPITALS NHS TRUST | D72: 149 | E72: 0.966442953 | F72: 0.006711409396 | G72: 104 | H72: 40 | I72: 4 | J72: 1 | K72: 0 | L72: 0 | M72: 0 | N72: 0 | O72: 0 | P72: 0 | Q72: 0 | R72: 149 | S72: 0
A73: Q76 | B73: RK5 | C73: SHERWOOD FOREST HOSPITALS NHS FOUNDATION TRUST | D73: 72 | E73: 0.9861111111 | F73: 0 | G73: 61 | H73: 10 | I73: 1 | J73: 0 | K73: 0 | L73: 0 | M73: 0 | N73: 0 | O73: 72 | P73: 0 | Q73: 0 | R73: 0 | S73: 0
A74: Q76 | B74: RXW | C74: SHREWSBURY AND TELFORD HOSPITAL NHS TRUST | D74: 114 | E74: 1 | F74: 0 | G74: 102 | H74: 12 | I74: 0 | J74: 0 | K74: 0 | L74: 0 | M74: 0 | N74: 0 | O74: 114 | P74: 0 | Q74: 0 | R74: 0 | S74: 0
A75: Q76 | B75: RJE | C75: UNIVERSITY HOSPITALS OF NORTH MIDLANDS NHS TRUST | D75: 58 | E75: 0.9655172414 | F75: 0 | G75: 38 | H75: 18 | I75: 1 | J75: 0 | K75: 0 | L75: 1 | M75: 0 | N75: 0 | O75: 58 | P75: 0 | Q75: 0 | R75: 0 | S75: 0
A76: Q77 | B76: RQ3 | C76: BIRMINGHAM WOMEN'S AND CHILDREN'S NHS FOUNDATION TRUST | D76: 0 | E76: NA | F76: NA | G76: 0 | H76: 0 | I76: 0 | J76: 0 | K76: 0 | L76: 0 | M76: 0 | N76: 0 | O76: 0 | P76: 0 | Q76: 0 | R76: 0 | S76: 0
A77: Q77 | B77: RLT | C77: GEORGE ELIOT HOSPITAL NHS TRUST | D77: 156 | E77: 0.9487179487 | F77: 0.01923076923 | G77: 116 | H77: 32 | I77: 3 | J77: 1 | K77: 2 | L77: 2 | M77: 61 | N77: 0 | O77: 95 | P77: 0 | Q77: 0 | R77: 0 | S77: 0
A78: Q77 | B78: RR1 | C78: HEART OF ENGLAND NHS FOUNDATION TRUST | D78: 137 | E78: 0.9343065693 | F78: 0.03649635036 | G78: 65 | H78: 63 | I78: 3 | J78: 4 | K78: 1 | L78: 1 | M78: 0 | N78: 0 | O78: 137 | P78: 0 | Q78: 0 | R78: 0 | S78: 0
A79: Q77 | B79: RXK | C79: SANDWELL AND WEST BIRMINGHAM HOSPITALS NHS TRUST | D79: 58 | E79: 0.9137931034 | F79: 0 | G79: 29 | H79: 24 | I79: 4 | J79: 0 | K79: 0 | L79: 1 | M79: 0 | N79: 58 | O79: 0 | P79: 0 | Q79: 0 | R79: 0 | S79: 0
A80: Q77 | B80: RJC | C80: SOUTH WARWICKSHIRE NHS FOUNDATION TRUST | D80: 72 | E80: 0.9583333333 | F80: 0.01388888889 | G80: 57 | H80: 12 | I80: 0 | J80: 1 | K80: 0 | L80: 2 | M80: 0 | N80: 0 | O80: 70 | P80: 0 | Q80: 0 | R80: 2 | S80: 0
A81: Q77 | B81: RNA | C81: THE DUDLEY GROUP NHS FOUNDATION TRUST | D81: 123 | E81: 0.9756097561 | F81: 0.0162601626 | G81: 111 | H81: 9 | I81: 1 | J81: 2 | K81: 0 | L81: 0 | M81: 0 | N81: 0 | O81: 123 | P81: 0 | Q81: 0 | R81: 0 | S81: 0
A82: Q77 | B82: RL4 | C82: THE ROYAL WOLVERHAMPTON NHS TRUST | D82: 124 | E82: 0.9032258065 | F82: 0.07258064516 | G82: 87 | H82: 25 | I82: 2 | J82: 2 | K82: 7 | L82: 1 | M82: 56 | N82: 0 | O82: 68 | P82: 0 | Q82: 0 | R82: 0 | S82: 0
A83: Q77 | B83: RKB | C83: UNIVERSITY HOSPITALS COVENTRY AND WARWICKSHIRE NHS TRUST | D83: 165 | E83: 0.9757575758 | F83: 0.01212121212 | G83: 108 | H83: 53 | I83: 0 | J83: 0 | K83: 2 | L83: 2 | M83: 0 | N83: 0 | O83: 165 | P83: 0 | Q83: 0 | R83: 0 | S83: 0
A84: Q77 | B84: RBK | C84: WALSALL HEALTHCARE NHS TRUST | D84: 19 | E84: 0.6315789474 | F84: 0.2105263158 | G84: 9 | H84: 3 | I84: 3 | J84: 1 | K84: 3 | L84: 0 | M84: 19 | N84: 0 | O84: 0 | P84: 0 | Q84: 0 | R84: 0 | S84: 0
A85: Q77 | B85: RWP | C85: WORCESTERSHIRE ACUTE HOSPITALS NHS TRUST | D85: 37 | E85: 0.9459459459 | F85: 0 | G85: 30 | H85: 5 | I85: 2 | J85: 0 | K85: 0 | L85: 0 | M85: 0 | N85: 0 | O85: 37 | P85: 0 | Q85: 0 | R85: 0 | S85: 0
A86: Q77 | B86: RLQ | C86: WYE VALLEY NHS TRUST | D86: 55 | E86: 1 | F86: 0 | G86: 42 | H86: 13 | I86: 0 | J86: 0 | K86: 0 | L86: 0 | M86: 0 | N86: 55 | O86: 0 | P86: 0 | Q86: 0 | R86: 0 | S86: 0
A87: Q78 | B87: RC1 | C87: BEDFORD HOSPITAL NHS TRUST | D87: 60 | E87: 0.9666666667 | F87: 0.01666666667 | G87: 49 | H87: 9 | I87: 1 | J87: 0 | K87: 1 | L87: 0 | M87: 60 | N87: 0 | O87: 0 | P87: 0 | Q87: 0 | R87: 0 | S87: 0
A88: Q78 | B88: RWH | C88: EAST AND NORTH HERTFORDSHIRE NHS TRUST | D88: 214 | E88: 0.8878504673 | F88: 0.02336448598 | G88: 127 | H88: 63 | I88: 12 | J88: 5 | K88: 0 | L88: 7 | M88: 0 | N88: 214 | O88: 0 | P88: 0 | Q88: 0 | R88: 0 | S88: 0
A89: Q78 | B89: RNQ | C89: KETTERING GENERAL HOSPITAL NHS FOUNDATION TRUST | D89: 42 | E89: 0.9761904762 | F89: 0.02380952381 | G89: 35 | H89: 6 | I89: 0 | J89: 0 | K89: 1 | L89: 0 | M89: 0 | N89: 0 | O89: 42 | P89: 0 | Q89: 0 | R89: 0 | S89: 0
A90: Q78 | B90: RC9 | C90: LUTON AND DUNSTABLE UNIVERSITY HOSPITAL NHS FOUNDATION TRUST | D90: 39 | E90: 0.9743589744 | F90: 0.02564102564 | G90: 31 | H90: 7 | I90: 0 | J90: 1 | K90: 0 | L90: 0 | M90: 0 | N90: 28 | O90: 11 | P90: 0 | Q90: 0 | R90: 0 | S90: 0
A91: Q78 | B91: RD8 | C91: MILTON KEYNES UNIVERSITY HOSPITAL NHS FOUNDATION TRUST | D91: 43 | E91: 0.9534883721 | F91: 0 | G91: 32 | H91: 9 | I91: 2 | J91: 0 | K91: 0 | L91: 0 | M91: 0 | N91: 0 | O91: 39 | P91: 0 | Q91: 0 | R91: 4 | S91: 0
A92: Q78 | B92: RNS | C92: NORTHAMPTON GENERAL HOSPITAL NHS TRUST | D92: 63 | E92: 0.9841269841 | F92: 0 | G92: 55 | H92: 7 | I92: 1 | J92: 0 | K92: 0 | L92: 0 | M92: 0 | N92: 0 | O92: 63 | P92: 0 | Q92: 0 | R92: 0 | S92: 0
A93: Q78 | B93: RWD | C93: UNITED LINCOLNSHIRE HOSPITALS NHS TRUST | D93: 58 | E93: 0.8103448276 | F93: 0.1206896552 | G93: 38 | H93: 9 | I93: 3 | J93: 5 | K93: 2 | L93: 1 | M93: 0 | N93: 0 | O93: 58 | P93: 0 | Q93: 0 | R93: 0 | S93: 0
A94: Q78 | B94: RWE | C94: UNIVERSITY HOSPITALS OF LEICESTER NHS TRUST | D94: 420 | E94: 0.9166666667 | F94: 0.02619047619 | G94: 275 | H94: 110 | I94: 12 | J94: 4 | K94: 7 | L94: 12 | M94: 0 | N94: 420 | O94: 0 | P94: 0 | Q94: 0 | R94: 0 | S94: 0
A95: Q78 | B95: RWG | C95: WEST HERTFORDSHIRE HOSPITALS NHS TRUST | D95: 153 | E95: 0.9346405229 | F95: 0.02614379085 | G95: 101 | H95: 42 | I95: 4 | J95: 1 | K95: 3 | L95: 2 | M95: 0 | N95: 0 | O95: 152 | P95: 0 | Q95: 0 | R95: 1 | S95: 0
A96: Q79 | B96: RDD | C96: BASILDON AND THURROCK UNIVERSITY HOSPITALS NHS FOUNDATION TRUST | D96: 155 | E96: 0.9483870968 | F96: 0.01290322581 | G96: 115 | H96: 32 | I96: 3 | J96: 1 | K96: 1 | L96: 3 | M96: 0 | N96: 0 | O96: 155 | P96: 0 | Q96: 0 | R96: 0 | S96: 0
A97: Q79 | B97: RGT | C97: CAMBRIDGE UNIVERSITY HOSPITALS NHS FOUNDATION TRUST | D97: 161 | E97: 0.9689440994 | F97: 0.01242236025 | G97: 116 | H97: 40 | I97: 3 | J97: 2 | K97: 0 | L97: 0 | M97: 0 | N97: 158 | O97: 3 | P97: 0 | Q97: 0 | R97: 0 | S97: 0
A98: Q79 | B98: RDE | C98: COLCHESTER HOSPITAL UNIVERSITY NHS FOUNDATION TRUST | D98: 66 | E98: 0.9393939394 | F98: 0.01515151515 | G98: 38 | H98: 24 | I98: 2 | J98: 1 | K98: 0 | L98: 1 | M98: 0 | N98: 0 | O98: 66 | P98: 0 | Q98: 0 | R98: 0 | S98: 0
A99: Q79 | B99: RGQ | C99: IPSWICH HOSPITAL NHS TRUST | D99: 105 | E99: 0.9619047619 | F99: 0 | G99: 80 | H99: 21 | I99: 4 | J99: 0 | K99: 0 | L99: 0 | M99: 0 | N99: 103 | O99: 0 | P99: 0 | Q99: 0 | R99: 2 | S99: 0
A100: Q79 | B100: RGP | C100: JAMES PAGET UNIVERSITY HOSPITALS NHS FOUNDATION TRUST | D100: 35 | E100: 1 | F100: 0 | G100: 30 | H100: 5 | I100: 0 | J100: 0 | K100: 0 | L100: 0 | M100: 0 | N100: 0 | O100: 35 | P100: 0 | Q100: 0 | R100: 0 | S100: 0
A101: Q79 | B101: RQ8 | C101: MID ESSEX HOSPITAL SERVICES NHS TRUST | D101: 57 | E101: 0.9122807018 | F101: 0.08771929825 | G101: 48 | H101: 4 | I101: 0 | J101: 1 | K101: 4 | L101: 0 | M101: 57 | N101: 0 | O101: 0 | P101: 0 | Q101: 0 | R101: 0 | S101: 0
A102: Q79 | B102: RM1 | C102: NORFOLK AND NORWICH UNIVERSITY HOSPITALS NHS FOUNDATION TRUST | D102: 41 | E102: 1 | F102: 0 | G102: 39 | H102: 2 | I102: 0 | J102: 0 | K102: 0 | L102: 0 | M102: 0 | N102: 39 | O102: 2 | P102: 0 | Q102: 0 | R102: 0 | S102: 0
A103: Q79 | B103: RGN | C103: NORTH WEST ANGLIA NHS FOUNDATION TRUST | D103: 200 | E103: 0.97 | F103: 0.015 | G103: 164 | H103: 30 | I103: 2 | J103: 2 | K103: 1 | L103: 1 | M103: 0 | N103: 0 | O103: 198 | P103: 0 | Q103: 0 | R103: 2 | S103: 0
A104: Q79 | B104: RAJ | C104: SOUTHEND UNIVERSITY HOSPITAL NHS FOUNDATION TRUST | D104: 7 | E104: 1 | F104: 0 | G104: * | H104: * | I104: * | J104: * | K104: * | L104: * | M104: * | N104: * | O104: * | P104: * | Q104: * | R104: * | S104: *
A105: Q79 | B105: RQW | C105: THE PRINCESS ALEXANDRA HOSPITAL NHS TRUST | D105: 176 | E105: 0.9488636364 | F105: 0 | G105: 148 | H105: 19 | I105: 0 | J105: 0 | K105: 0 | L105: 9 | M105: 0 | N105: 0 | O105: 0 | P105: 0 | Q105: 0 | R105: 0 | S105: 176
A106: Q79 | B106: RCX | C106: THE QUEEN ELIZABETH HOSPITAL, KING'S LYNN, NHS FOUNDATION TRUST | D106: 68 | E106: 0.9264705882 | F106: 0.01470588235 | G106: 45 | H106: 18 | I106: 4 | J106: 1 | K106: 0 | L106: 0 | M106: 0 | N106: 0 | O106: 68 | P106: 0 | Q106: 0 | R106: 0 | S106: 0
A107: Q79 | B107: RGR | C107: WEST SUFFOLK NHS FOUNDATION TRUST | D107: 3 | E107: * | F107: * | G107: * | H107: * | I107: * | J107: * | K107: * | L107: * | M107: * | N107: * | O107: * | P107: * | Q107: * | R107: * | S107: *
A108: Q80 | B108: RVJ | C108: NORTH BRISTOL NHS TRUST | D108: 91 | E108: 0.9340659341 | F108: 0.05494505495 | G108: 73 | H108: 12 | I108: 1 | J108: 1 | K108: 4 | L108: 0 | M108: 75 | N108: 0 | O108: 16 | P108: 0 | Q108: 0 | R108: 0 | S108: 0
A109: Q80 | B109: RBZ | C109: NORTHERN DEVON HEALTHCARE NHS TRUST | D109: 18 | E109: 1 | F109: 0 | G109: 15 | H109: 3 | I109: 0 | J109: 0 | K109: 0 | L109: 0 | M109: 0 | N109: 0 | O109: 18 | P109: 0 | Q109: 0 | R109: 0 | S109: 0
A110: Q80 | B110: RK9 | C110: PLYMOUTH HOSPITALS NHS TRUST | D110: 75 | E110: 0.9733333333 | F110: 0 | G110: 48 | H110: 25 | I110: 2 | J110: 0 | K110: 0 | L110: 0 | M110: 0 | N110: 58 | O110: 17 | P110: 0 | Q110: 0 | R110: 0 | S110: 0
A111: Q80 | B111: REF | C111: ROYAL CORNWALL HOSPITALS NHS TRUST | D111: 50 | E111: 0.9 | F111: 0.04 | G111: 38 | H111: 7 | I111: 3 | J111: 1 | K111: 1 | L111: 0 | M111: 0 | N111: 0 | O111: 50 | P111: 0 | Q111: 0 | R111: 0 | S111: 0
A112: Q80 | B112: RH8 | C112: ROYAL DEVON AND EXETER NHS FOUNDATION TRUST | D112: 1 | E112: * | F112: * | G112: * | H112: * | I112: * | J112: * | K112: * | L112: * | M112: * | N112: * | O112: * | P112: * | Q112: * | R112: * | S112: *
A113: Q80 | B113: RBA | C113: TAUNTON AND SOMERSET NHS FOUNDATION TRUST | D113: 73 | E113: 1 | F113: 0 | G113: 60 | H113: 13 | I113: 0 | J113: 0 | K113: 0 | L113: 0 | M113: 0 | N113: 0 | O113: 73 | P113: 0 | Q113: 0 | R113: 0 | S113: 0
A114: Q80 | B114: RA9 | C114: TORBAY AND SOUTH DEVON NHS FOUNDATION TRUST | D114: 5 | E114: 1 | F114: 0 | G114: * | H114: * | I114: * | J114: * | K114: * | L114: * | M114: * | N114: * | O114: * | P114: * | Q114: * | R114: * | S114: *
A115: Q80 | B115: RA7 | C115: UNIVERSITY HOSPITALS BRISTOL NHS FOUNDATION TRUST | D115: 87 | E115: 0.9655172414 | F115: 0 | G115: 67 | H115: 17 | I115: 2 | J115: 0 | K115: 0 | L115: 1 | M115: 0 | N115: 0 | O115: 87 | P115: 0 | Q115: 0 | R115: 0 | S115: 0
A116: Q80 | B116: RA3 | C116: WESTON AREA HEALTH NHS TRUST | D116: 13 | E116: 1 | F116: 0 | G116: 12 | H116: 1 | I116: 0 | J116: 0 | K116: 0 | L116: 0 | M116: 0 | N116: 0 | O116: 13 | P116: 0 | Q116: 0 | R116: 0 | S116: 0
A117: Q80 | B117: RA4 | C117: YEOVIL DISTRICT HOSPITAL NHS FOUNDATION TRUST | D117: 65 | E117: 0.9692307692 | F117: 0.01538461538 | G117: 50 | H117: 13 | I117: 1 | J117: 0 | K117: 1 | L117: 0 | M117: 0 | N117: 35 | O117: 30 | P117: 0 | Q117: 0 | R117: 0 | S117: 0
A118: Q81 | B118: RTK | C118: ASHFORD AND ST PETER'S HOSPITALS NHS FOUNDATION TRUST | D118: 0 | E118: NA | F118: NA | G118: 0 | H118: 0 | I118: 0 | J118: 0 | K118: 0 | L118: 0 | M118: 0 | N118: 0 | O118: 0 | P118: 0 | Q118: 0 | R118: 0 | S118: 0
A119: Q81 | B119: RXH | C119: BRIGHTON AND SUSSEX UNIVERSITY HOSPITALS NHS TRUST | D119: 63 | E119: 0.9047619048 | F119: 0.04761904762 | G119: 50 | H119: 7 | I119: 3 | J119: 2 | K119: 1 | L119: 0 | M119: 63 | N119: 0 | O119: 0 | P119: 0 | Q119: 0 | R119: 0 | S119: 0
A120: Q81 | B120: RN7 | C120: DARTFORD AND GRAVESHAM NHS TRUST | D120: 89 | E120: 1 | F120: 0 | G120: 73 | H120: 16 | I120: 0 | J120: 0 | K120: 0 | L120: 0 | M120: 0 | N120: 0 | O120: 89 | P120: 0 | Q120: 0 | R120: 0 | S120: 0
A121: Q81 | B121: RVV | C121: EAST KENT HOSPITALS UNIVERSITY NHS FOUNDATION TRUST | D121: 201 | E121: 0.9402985075 | F121: 0.009950248756 | G121: 169 | H121: 20 | I121: 0 | J121: 2 | K121: 0 | L121: 10 | M121: 0 | N121: 0 | O121: 0 | P121: 201 | Q121: 0 | R121: 0 | S121: 0
A122: Q81 | B122: RXC | C122: EAST SUSSEX HEALTHCARE NHS TRUST | D122: 111 | E122: 0.981981982 | F122: 0.009009009009 | G122: 81 | H122: 28 | I122: 0 | J122: 0 | K122: 1 | L122: 1 | M122: 0 | N122: 110 | O122: 0 | P122: 0 | Q122: 0 | R122: 1 | S122: 0
A123: Q81 | B123: RDU | C123: FRIMLEY HEALTH NHS FOUNDATION TRUST | D123: 164 | E123: 0.8780487805 | F123: 0.006097560976 | G123: 125 | H123: 19 | I123: 4 | J123: 1 | K123: 0 | L123: 15 | M123: 0 | N123: 0 | O123: 164 | P123: 0 | Q123: 0 | R123: 0 | S123: 0
A124: Q81 | B124: RWF | C124: MAIDSTONE AND TUNBRIDGE WELLS NHS TRUST | D124: 169 | E124: 0.9585798817 | F124: 0 | G124: 145 | H124: 17 | I124: 0 | J124: 0 | K124: 0 | L124: 7 | M124: 0 | N124: 0 | O124: 167 | P124: 0 | Q124: 0 | R124: 2 | S124: 0
A125: Q81 | B125: RPA | C125: MEDWAY NHS FOUNDATION TRUST | D125: 145 | E125: 0.9793103448 | F125: 0.006896551724 | G125: 126 | H125: 16 | I125: 2 | J125: 1 | K125: 0 | L125: 0 | M125: 0 | N125: 0 | O125: 0 | P125: 145 | Q125: 0 | R125: 0 | S125: 0
A126: Q81 | B126: RA2 | C126: ROYAL SURREY COUNTY HOSPITAL NHS FOUNDATION TRUST | D126: 124 | E126: 0.9435483871 | F126: 0.03225806452 | G126: 100 | H126: 17 | I126: 3 | J126: 3 | K126: 1 | L126: 0 | M126: 74 | N126: 0 | O126: 50 | P126: 0 | Q126: 0 | R126: 0 | S126: 0
A127: Q81 | B127: RTP | C127: SURREY AND SUSSEX HEALTHCARE NHS TRUST | D127: 96 | E127: 0.9583333333 | F127: 0.01041666667 | G127: 69 | H127: 23 | I127: 2 | J127: 1 | K127: 0 | L127: 1 | M127: 0 | N127: 0 | O127: 96 | P127: 0 | Q127: 0 | R127: 0 | S127: 0
A128: Q81 | B128: RYR | C128: WESTERN SUSSEX HOSPITALS NHS FOUNDATION TRUST | D128: 173 | E128: 0.9884393064 | F128: 0.005780346821 | G128: 151 | H128: 20 | I128: 0 | J128: 1 | K128: 0 | L128: 1 | M128: 0 | N128: 0 | O128: 172 | P128: 0 | Q128: 0 | R128: 1 | S128: 0
A129: Q82 | B129: RXQ | C129: BUCKINGHAMSHIRE HEALTHCARE NHS TRUST | D129: 188 | E129: 0.9787234043 | F129: 0.01063829787 | G129: 140 | H129: 44 | I129: 2 | J129: 2 | K129: 0 | L129: 0 | M129: 0 | N129: 0 | O129: 188 | P129: 0 | Q129: 0 | R129: 0 | S129: 0
A130: Q82 | B130: RTE | C130: GLOUCESTERSHIRE HOSPITALS NHS FOUNDATION TRUST | D130: 0 | E130: NA | F130: NA | G130: 0 | H130: 0 | I130: 0 | J130: 0 | K130: 0 | L130: 0 | M130: 0 | N130: 0 | O130: 0 | P130: 0 | Q130: 0 | R130: 0 | S130: 0
A131: Q82 | B131: RN3 | C131: GREAT WESTERN HOSPITALS NHS FOUNDATION TRUST | D131: 5 | E131: 1 | F131: 0 | G131: * | H131: * | I131: * | J131: * | K131: * | L131: * | M131: * | N131: * | O131: * | P131: * | Q131: * | R131: * | S131: *
A132: Q82 | B132: RTH | C132: OXFORD UNIVERSITY HOSPITALS NHS FOUNDATION TRUST | D132: 103 | E132: 0.8932038835 | F132: 0.009708737864 | G132: 74 | H132: 18 | I132: 3 | J132: 1 | K132: 0 | L132: 7 | M132: 0 | N132: 0 | O132: 102 | P132: 0 | Q132: 0 | R132: 1 | S132: 0
A133: Q82 | B133: RHW | C133: ROYAL BERKSHIRE NHS FOUNDATION TRUST | D133: 129 | E133: 0.976744186 | F133: 0.01550387597 | G133: 84 | H133: 42 | I133: 1 | J133: 1 | K133: 1 | L133: 0 | M133: 0 | N133: 84 | O133: 45 | P133: 0 | Q133: 0 | R133: 0 | S133: 0
A134: Q82 | B134: RD1 | C134: ROYAL UNITED HOSPITALS BATH NHS FOUNDATION TRUST | D134: 51 | E134: 0.9803921569 | F134: 0.01960784314 | G134: 46 | H134: 4 | I134: 0 | J134: 1 | K134: 0 | L134: 0 | M134: 0 | N134: 0 | O134: 51 | P134: 0 | Q134: 0 | R134: 0 | S134: 0
A135: Q82 | B135: RNZ | C135: SALISBURY NHS FOUNDATION TRUST | D135: 1 | E135: * | F135: * | G135: * | H135: * | I135: * | J135: * | K135: * | L135: * | M135: * | N135: * | O135: * | P135: * | Q135: * | R135: * | S135: *
A136: Q83 | B136: RMC | C136: BOLTON NHS FOUNDATION TRUST | D136: 150 | E136: 0.9266666667 | F136: 0.04 | G136: 103 | H136: 36 | I136: 5 | J136: 1 | K136: 5 | L136: 0 | M136: 26 | N136: 0 | O136: 0 | P136: 124 | Q136: 0 | R136: 0 | S136: 0
A137: Q83 | B137: RY2 | C137: BRIDGEWATER COMMUNITY HEALTHCARE NHS FOUNDATION TRUST | D137: 0 | E137: NA | F137: NA | G137: 0 | H137: 0 | I137: 0 | J137: 0 | K137: 0 | L137: 0 | M137: 0 | N137: 0 | O137: 0 | P137: 0 | Q137: 0 | R137: 0 | S137: 0
A138: Q83 | B138: RW3 | C138: CENTRAL MANCHESTER UNIVERSITY HOSPITALS NHS FOUNDATION TRUST | D138: 386 | E138: 0.981865285 | F138: 0.00518134715 | G138: 313 | H138: 66 | I138: 2 | J138: 1 | K138: 1 | L138: 3 | M138: 0 | N138: 130 | O138: 256 | P138: 0 | Q138: 0 | R138: 0 | S138: 0
A139: Q83 | B139: RW6 | C139: PENNINE ACUTE HOSPITALS NHS TRUST | D139: 139 | E139: 0.8705035971 | F139: 0.08633093525 | G139: 98 | H139: 23 | I139: 5 | J139: 5 | K139: 7 | L139: 1 | M139: 59 | N139: 0 | O139: 80 | P139: 0 | Q139: 0 | R139: 0 | S139: 0
A140: Q83 | B140: RWJ | C140: STOCKPORT NHS FOUNDATION TRUST | D140: 120 | E140: 0.9666666667 | F140: 0.008333333333 | G140: 104 | H140: 12 | I140: 2 | J140: 1 | K140: 0 | L140: 1 | M140: 0 | N140: 0 | O140: 0 | P140: 120 | Q140: 0 | R140: 0 | S140: 0
A141: Q83 | B141: RMP | C141: TAMESIDE AND GLOSSOP INTEGRATED CARE NHS FOUNDATION TRUST | D141: 53 | E141: 0.8867924528 | F141: 0.01886792453 | G141: 31 | H141: 16 | I141: 5 | J141: 0 | K141: 1 | L141: 0 | M141: 0 | N141: 42 | O141: 11 | P141: 0 | Q141: 0 | R141: 0 | S141: 0
A142: Q83 | B142: RM2 | C142: UNIVERSITY HOSPITAL OF SOUTH MANCHESTER NHS FOUNDATION TRUST | D142: 10 | E142: 1 | F142: 0 | G142: 8 | H142: 2 | I142: 0 | J142: 0 | K142: 0 | L142: 0 | M142: 0 | N142: 0 | O142: 10 | P142: 0 | Q142: 0 | R142: 0 | S142: 0
A143: Q83 | B143: RRF | C143: WRIGHTINGTON, WIGAN AND LEIGH NHS FOUNDATION TRUST | D143: 66 | E143: 0.9848484848 | F143: 0 | G143: 60 | H143: 5 | I143: 1 | J143: 0 | K143: 0 | L143: 0 | M143: 0 | N143: 0 | O143: 66 | P143: 0 | Q143: 0 | R143: 0 | S143: 0
A144: Q84 | B144: RXL | C144: BLACKPOOL TEACHING HOSPITALS NHS FOUNDATION TRUST | D144: 91 | E144: 0.9450549451 | F144: 0.02197802198 | G144: 58 | H144: 28 | I144: 3 | J144: 2 | K144: 0 | L144: 0 | M144: 0 | N144: 54 | O144: 37 | P144: 0 | Q144: 0 | R144: 0 | S144: 0
A145: Q84 | B145: RXR | C145: EAST LANCASHIRE HOSPITALS NHS TRUST | D145: 75 | E145: 0.9066666667 | F145: 0.05333333333 | G145: 59 | H145: 9 | I145: 3 | J145: 0 | K145: 4 | L145: 0 | M145: 19 | N145: 0 | O145: 56 | P145: 0 | Q145: 0 | R145: 0 | S145: 0
A146: Q84 | B146: RXN | C146: LANCASHIRE TEACHING HOSPITALS NHS FOUNDATION TRUST | D146: 49 | E146: 0.9591836735 | F146: 0.02040816327 | G146: 43 | H146: 4 | I146: 1 | J146: 1 | K146: 0 | L146: 0 | M146: 48 | N146: 0 | O146: 0 | P146: 0 | Q146: 1 | R146: 0 | S146: 0

Sheet Sites Q3
B6: Sort data by:
A9: Region (Geo) Code | B9: Trust Code | C9: Trust Name | D9: Site Code | E9: Site Name | F9: Total Responses | G9: Percentage Recommended | H9: Percentage Not Recommended | I9: Breakdown of Responses
I10: Extremely Likely | J10: Likely | K10: Neither | L10: Unlikely | M10: Extremely Unlikely | N10: Don't Know
E11: England | F11: 11535 | G11: 0.9505851756 | H11: 0.01863892501 | I11: 8568 | J11: 2397 | K11: 219 | L11: 115 | M11: 100 | N11: 136
E12: Selection (excluding suppressed data) | F12: =SUBTOTAL(9,F13:F298) -> 11535 | G12: =IFERROR((I12+J12)/SUM(I12:N12), "-") -> 0.9505046073 | H12: =IFERROR((L12+M12)/SUM(I12:N12), "-") -> 0.01878016674 | I12: =SUBTOTAL(9,I13:I298) -> 8449 | J12: =SUBTOTAL(9,J13:J298) -> 2382 | K12: 217 | L12: 114 | M12: 100 | N12: 133
A13: Q70 | B13: RBD | C13: DORSET COUNTY HOSPITAL NHS FOUNDATION TRUST | D13: RBD01 | E13: Dorset County Hospital - RBD01 | F13: 44 | G13: 0.9090909091 | H13: 0.06818181818 | I13: 34 | J13: 6 | K13: 0 | L13: 1 | M13: 2 | N13: 1
A14: Q70 | B14: RN5 | C14: HAMPSHIRE HOSPITALS NHS FOUNDATION TRUST | D14: RN542 | E14: Andover War Memorial Hospital - RN542 | F14: 0 | G14: NA | H14: NA | I14: 0 | J14: 0 | K14: 0 | L14: 0 | M14: 0 | N14: 0
A15: Q70 | B15: RN5 | C15: HAMPSHIRE HOSPITALS NHS FOUNDATION TRUST | D15: RN506 | E15: Basingstoke and North Hampshire Hospital - RN506 | F15: 114 | G15: 0.9736842105 | H15: 0 | I15: 100 | J15: 11 | K15: 2 | L15: 0 | M15: 0 | N15: 1
A16: Q70 | B16: RN5 | C16: HAMPSHIRE HOSPITALS NHS FOUNDATION TRUST | D16: RN541 | E16: Royal Hampshire County Hospital - RN541 | F16: 51 | G16: 1 | H16: 0 | I16: 42 | J16: 9 | K16: 0 | L16: 0 | M16: 0 | N16: 0
A17: Q70 | B17: R1F | C17: ISLE OF WIGHT NHS TRUST | D17: R1F01 | E17: St Mary's Hospital - R1F01 | F17: 15 | G17: 1 | H17: 0 | I17: 13 | J17: 2 | K17: 0 | L17: 0 | M17: 0 | N17: 0
A18: Q70 | B18: RD3 | C18: POOLE HOSPITAL NHS FOUNDATION TRUST | D18: RD304 | E18: Poole General Hospital NHS Trust HQ - RD304 | F18: 117 | G18: 0.905982906 | H18: 0.05128205128 | I18: 80 | J18: 26 | K18: 3 | L18: 1 | M18: 5 | N18: 2
A19: Q70 | B19: RHU | C19: PORTSMOUTH HOSPITALS NHS TRUST | D19: RHU10 | E19: Gosport War Memorial Hospital - RHU10 | F19: 3 | G19: * | H19: * | I19: * | J19: * | K19: * | L19: * | M19: * | N19: *
A20: Q70 | B20: RHU | C20: PORTSMOUTH HOSPITALS NHS TRUST | D20: RHU04 | E20: Petersfield Community Hospital - RHU04 | F20: 0 | G20: NA | H20: NA | I20: 0 | J20: 0 | K20: 0 | L20: 0 | M20: 0 | N20: 0
A21: Q70 | B21: RHU | C21: PORTSMOUTH HOSPITALS NHS TRUST | D21: RHU03 | E21: Queen Alexandra Hospital - RHU03 | F21: 145 | G21: 0.9517241379 | H21: 0.0275862069 | I21: 118 | J21: 20 | K21: 1 | L21: 4 | M21: 0 | N21: 2
A22: Q70 | B22: RHU | C22: PORTSMOUTH HOSPITALS NHS TRUST | D22: RHU02 | E22: St Mary's Hospital - RHU02 | F22: 1 | G22: * | H22: * | I22: * | J22: * | K22: * | L22: * | M22: * | N22: *
A23: Q70 | B23: RDZ | C23: THE ROYAL BOURNEMOUTH AND CHRISTCHURCH HOSPITALS NHS FOUNDATION TRUST | D23: RDZ20 | E23: Royal Bournemouth General Hospital - RDZ20 | F23: 0 | G23: NA | H23: NA | I23: 0 | J23: 0 | K23: 0 | L23: 0 | M23: 0 | N23: 0
A24: Q70 | B24: RHM | C24: UNIVERSITY HOSPITAL SOUTHAMPTON NHS FOUNDATION TRUST | D24: RHM12 | E24: Princess Anne Hospital - RHM12 | F24: 160 | G24: 0.96875 | H24: 0.01875 | I24: 121 | J24: 34 | K24: 2 | L24: 2 | M24: 1 | N24: 0
A25: Q71 | B25: RF4 | C25: BARKING, HAVERING AND REDBRIDGE UNIVERSITY HOSPITALS NHS TRUST | D25: RF4QH | E25: Queen's Hospital - RF4QH | F25: 193 | G25: 0.9689119171 | H25: 0.00518134715 | I25: 131 | J25: 56 | K25: 1 | L25: 1 | M25: 0 | N25: 4
A26: Q71 | B26: R1H | C26: BARTS HEALTH NHS TRUST | D26: R1HNH | E26: Newham General Hospital - R1HNH | F26: 74 | G26: 0.972972973 | H26: 0.01351351351 | I26: 51 | J26: 21 | K26: 1 | L26: 1 | M26: 0 | N26: 0
A27: Q71 | B27: R1H | C27: BARTS HEALTH NHS TRUST | D27: R1H12 | E27: The Royal London Hospital - R1H12 | F27: 29 | G27: 0.8275862069 | H27: 0.06896551724 | I27: 13 | J27: 11 | K27: 1 | L27: 1 | M27: 1 | N27: 2
A28: Q71 | B28: R1H | C28: BARTS HEALTH NHS TRUST | D28: R1HKH | E28: Whipps Cross University Hospital - R1HKH | F28: 17 | G28: 1 | H28: 0 | I28: 10 | J28: 7 | K28: 0 | L28: 0 | M28: 0 | N28: 0
A29: Q71 | B29: RQM | C29: CHELSEA AND WESTMINSTER HOSPITAL NHS FOUNDATION TRUST | D29: RQM01 | E29: Chelsea and Westminster Hospital - RQM01 | F29: 117 | G29: 0.9230769231 | H29: 0.05128205128 | I29: 88 | J29: 20 | K29: 3 | L29: 4 | M29: 2 | N29: 0
A30: Q71 | B30: RQM | C30: CHELSEA AND WESTMINSTER HOSPITAL NHS FOUNDATION TRUST | D30: RQM91 | E30: West Middlesex University Hospital - RQM91 | F30: 62 | G30: 0.8709677419 | H30: 0.08064516129 | I30: 47 | J30: 7 | K30: 3 | L30: 2 | M30: 3 | N30: 0
A31: Q71 | B31: RJ6 | C31: CROYDON HEALTH SERVICES NHS TRUST | D31: RJ611 | E31: Croydon University Hospital - RJ611 | F31: 227 | G31: 0.9207048458 | H31: 0.03524229075 | I31: 138 | J31: 71 | K31: 8 | L31: 6 | M31: 2 | N31: 2
A32: Q71 | B32: RVR | C32: EPSOM AND ST HELIER UNIVERSITY HOSPITALS NHS TRUST | D32: RVR50 | E32: Epsom Hospital - RVR50 | F32: 21 | G32: 1 | H32: 0 | I32: 19 | J32: 2 | K32: 0 | L32: 0 | M32: 0 | N32: 0
A33: Q71 | B33: RVR | C33: EPSOM AND ST HELIER UNIVERSITY HOSPITALS NHS TRUST | D33: RVR05 | E33: St Helier Hospital - RVR05 | F33: 6 | G33: 1 | H33: 0 | I33: 5 | J33: 1 | K33: 0 | L33: 0 | M33: 0 | N33: 0
A34: Q71 | B34: RJ1 | C34: GUY'S AND ST THOMAS' NHS FOUNDATION TRUST | D34: RJ122 | E34: St Thomas' Hospital - RJ122 | F34: 35 | G34: 0.9142857143 | H34: 0.02857142857 | I34: 16 | J34: 16 | K34: 1 | L34: 1 | M34: 0 | N34: 1
A35: Q71 | B35: RQX | C35: HOMERTON UNIVERSITY HOSPITAL NHS FOUNDATION TRUST | D35: RQXM1 | E35: Homerton University Hospital - RQXM1 | F35: 91 | G35: 0.9010989011 | H35: 0.04395604396 | I35: 52 | J35: 30 | K35: 4 | L35: 0 | M35: 4 | N35: 1
A36: Q71 | B36: RYJ | C36: IMPERIAL COLLEGE HEALTHCARE NHS TRUST | D36: RYJ04 | E36: Queen Charlotte's Hospital - RYJ04 | F36: 50 | G36: 0.96 | H36: 0 | I36: 33 | J36: 15 | K36: 2 | L36: 0 | M36: 0 | N36: 0
A37: Q71 | B37: RYJ | C37: IMPERIAL COLLEGE HEALTHCARE NHS TRUST | D37: RYJ01 | E37: St Mary's Hospital (HQ) - RYJ01 | F37: 133 | G37: 0.9097744361 | H37: 0.03759398496 | I37: 56 | J37: 65 | K37: 6 | L37: 4 | M37: 1 | N37: 1
A38: Q71 | B38: RJZ | C38: KING'S COLLEGE HOSPITAL NHS FOUNDATION TRUST | D38: RJZ01 | E38: King's College Hospital (Denmark Hill) - RJZ01 | F38: 10 | G38: 0.8 | H38: 0.1 | I38: 7 | J38: 1 | K38: 1 | L38: 1 | M38: 0 | N38: 0
A39: Q71 | B39: RJZ | C39: KING'S COLLEGE HOSPITAL NHS FOUNDATION TRUST | D39: RJZ30 | E39: Princess Royal University Hospital - RJZ30 | F39: 94 | G39: 0.9680851064 | H39: 0.01063829787 | I39: 65 | J39: 26 | K39: 1 | L39: 0 | M39: 1 | N39: 1
A40: Q71 | B40: RAX | C40: KINGSTON HOSPITAL NHS FOUNDATION TRUST | D40: RAX01 | E40: Kingston Hospital - RAX01 | F40: 45 | G40: 0.9777777778 | H40: 0 | I40: 34 | J40: 10 | K40: 1 | L40: 0 | M40: 0 | N40: 0
A41: Q71 | B41: RJ2 | C41: LEWISHAM AND GREENWICH NHS TRUST | D41: RJ231 | E41: Queen Elizabeth Hospital - RJ231 | F41: 59 | G41: 0.8983050847 | H41: 0.05084745763 | I41: 37 | J41: 16 | K41: 2 | L41: 2 | M41: 1 | N41: 1
A42: Q71 | B42: RJ2 | C42: LEWISHAM AND GREENWICH NHS TRUST | D42: RJ224 | E42: University Hospital Lewisham - RJ224 | F42: 133 | G42: 0.8796992481 | H42: 0.01503759398 | I42: 68 | J42: 49 | K42: 8 | L42: 1 | M42: 1 | N42: 6
A43: Q71 | B43: R1K | C43: LONDON NORTH WEST HEALTHCARE NHS TRUST | D43: R1K04 | E43: Ealing Hospital - R1K04 | F43: 0 | G43: NA | H43: NA | I43: 0 | J43: 0 | K43: 0 | L43: 0 | M43: 0 | N43: 0
A44: Q71 | B44: RAP | C44: NORTH MIDDLESEX UNIVERSITY HOSPITAL NHS TRUST | D44: RAPNM | E44: North Middlesex Hospital - RAPNM | F44: 7 | G44: 0.7142857143 | H44: 0.1428571429 | I44: 2 | J44: 3 | K44: 0 | L44: 0 | M44: 1 | N44: 1
A45: Q71 | B45: RAL | C45: ROYAL FREE LONDON NHS FOUNDATION TRUST | D45: RAL26 | E45: Barnet Hospital - RAL26 | F45: 89 | G45: 0.9662921348 | H45: 0 | I45: 62 | J45: 24 | K45: 3 | L45: 0 | M45: 0 | N45: 0
A46: Q71 | B46: RAL | C46: ROYAL FREE LONDON NHS FOUNDATION TRUST | D46: RAL01 | E46: Royal Free Hospital - RAL01 | F46: 53 | G46: 0.9245283019 | H46: 0.05660377358 | I46: 27 | J46: 22 | K46: 1 | L46: 2 | M46: 1 | N46: 0
A47: Q71 | B47: RJ7 | C47: ST GEORGE'S UNIVERSITY HOSPITALS NHS FOUNDATION TRUST | D47: RJ701 | E47: St George's Hospital (Tooting) - RJ701 | F47: 34 | G47: 0.9411764706 | H47: 0 | I47: 19 | J47: 13 | K47: 2 | L47: 0 | M47: 0 | N47: 0
A48: Q71 | B48: RAS | C48: THE HILLINGDON HOSPITALS NHS FOUNDATION TRUST | D48: RAS01 | E48: Hillingdon Hospital - RAS01 | F48: 53 | G48: 1 | H48: 0 | I48: 39 | J48: 14 | K48: 0 | L48: 0 | M48: 0 | N48: 0
A49: Q71 | B49: RKE | C49: THE WHITTINGTON HOSPITAL NHS TRUST | D49: RKEQ4 | E49: The Whittington Hospital - RKEQ4 | F49: 115 | G49: 0.8782608696 | H49: 0.04347826087 | I49: 63 | J49: 38 | K49: 5 | L49: 4 | M49: 1 | N49: 4
A50: Q71 | B50: RRV | C50: UNIVERSITY COLLEGE LONDON HOSPITALS NHS FOUNDATION TRUST | D50: RRV03 | E50: University College Hospital - RRV03 | F50: 130 | G50: 0.9538461538 | H50: 0.007692307692 | I50: 100 | J50: 24 | K50: 3 | L50: 0 | M50: 1 | N50: 2
A51: Q72 | B51: RCF | C51: AIREDALE NHS FOUNDATION TRUST | D51: RCF22 | E51: Airedale General Hospital - RCF22 | F51: 20 | G51: 0.9 | H51: 0 | I51: 16 | J51: 2 | K51: 2 | L51: 0 | M51: 0 | N51: 0
A52: Q72 | B52: RFF | C52: BARNSLEY HOSPITAL NHS FOUNDATION TRUST | D52: RFFAA | E52: Barnsley Hospital NHS Foundation Trust HQ - RFFAA | F52: 52 | G52: 1 | H52: 0 | I52: 44 | J52: 8 | K52: 0 | L52: 0 | M52: 0 | N52: 0
A53: Q72 | B53: RAE | C53: BRADFORD TEACHING HOSPITALS NHS FOUNDATION TRUST | D53: RAE01 | E53: Bradford Royal Infirmary - RAE01 | F53: 13 | G53: 0.8461538462 | H53: 0.07692307692 | I53: 5 | J53: 6 | K53: 0 | L53: 1 | M53: 0 | N53: 1
A54: Q72 | B54: RWY | C54: CALDERDALE AND HUDDERSFIELD NHS FOUNDATION TRUST | D54: RWY02 | E54: Calderdale Royal Hospital - RWY02 | F54: 205 | G54: 0.9707317073 | H54: 0 | I54: 155 | J54: 44 | K54: 5 | L54: 0 | M54: 0 | N54: 1
A55: Q72 | B55: RWY | C55: CALDERDALE AND HUDDERSFIELD NHS FOUNDATION TRUST | D55: RWY01 | E55: Huddersfield Royal Infirmary - RWY01 | F55: 20 | G55: 1 | H55: 0 | I55: 19 | J55: 1 | K55: 0 | L55: 0 | M55: 0 | N55: 0
A56: Q72 | B56: RP5 | C56: DONCASTER AND BASSETLAW TEACHING HOSPITALS NHS FOUNDATION TRUST | D56: RP5BA | E56: Bassetlaw Hospital - RP5BA | F56: 40 | G56: 1 | H56: 0 | I56: 37 | J56: 3 | K56: 0 | L56: 0 | M56: 0 | N56: 0
A57: Q72 | B57: RP5 | C57: DONCASTER AND BASSETLAW TEACHING HOSPITALS NHS FOUNDATION TRUST | D57: RP5DR | E57: Doncaster Royal Infirmary - RP5DR | F57: 89 | G57: 0.9775280899 | H57: 0.02247191011 | I57: 62 | J57: 25 | K57: 0 | L57: 2 | M57: 0 | N57: 0
A58: Q72 | B58: RCD | C58: HARROGATE AND DISTRICT NHS FOUNDATION TRUST | D58: RCD01 | E58: Harrogate District Hospital - RCD01 | F58: 21 | G58: 1 | H58: 0 | I58: 20 | J58: 1 | K58: 0 | L58: 0 | M58: 0 | N58: 0
A59: Q72 | B59: RWA | C59: HULL AND EAST YORKSHIRE HOSPITALS NHS TRUST | D59: RWA01 | E59: Hull Royal Infirmary - RWA01 | F59: 17 | G59: 1 | H59: 0 | I59: 16 | J59: 1 | K59: 0 | L59: 0 | M59: 0 | N59: 0
A60: Q72 | B60: RR8 | C60: LEEDS TEACHING HOSPITALS NHS TRUST | D60: RR801 | E60: Leeds General Infirmary - RR801 | F60: 75 | G60: 0.9733333333 | H60: 0 | I60: 57 | J60: 16 | K60: 1 | L60: 0 | M60: 0 | N60: 1
A61: Q72 | B61: RR8 | C61: LEEDS TEACHING HOSPITALS NHS TRUST | D61: RR813 | E61: St James's University Hospital - RR813 | F61: 0 | G61: NA | H61: NA | I61: 0 | J61: 0 | K61: 0 | L61: 0 | M61: 0 | N61: 0
A62: Q72 | B62: RXF | C62: MID YORKSHIRE HOSPITALS NHS TRUST | D62: RXF05 | E62: Pinderfields General Hospital - RXF05 | F62: 66 | G62: 1 | H62: 0 | I62: 45 | J62: 21 | K62: 0 | L62: 0 | M62: 0 | N62: 0
A63: Q72 | B63: RJL | C63: NORTHERN LINCOLNSHIRE AND GOOLE NHS FOUNDATION TRUST | D63: RJL30 | E63: Diana, Princess Of Wales Hospital - RJL30 | F63: 0 | G63: NA | H63: NA | I63: 0 | J63: 0 | K63: 0 | L63: 0 | M63: 0 | N63: 0
A64: Q72 | B64: RJL | C64: NORTHERN LINCOLNSHIRE AND GOOLE NHS FOUNDATION TRUST | D64: RJL32 | E64: Scunthorpe General Hospital - RJL32 | F64: 43 | G64: 0.9534883721 | H64: 0.04651162791 | I64: 33 | J64: 8 | K64: 0 | L64: 1 | M64: 1 | N64: 0
A65: Q72 | B65: RHQ | C65: SHEFFIELD TEACHING HOSPITALS NHS FOUNDATION TRUST | D65: RHQHH | E65: Royal Hallamshire Hospital - RHQHH | F65: 137 | G65: 0.9343065693 | H65: 0.02189781022 | I65: 114 | J65: 14 | K65: 3 | L65: 1 | M65: 2 | N65: 3
A66: Q72 | B66: RFR | C66: THE ROTHERHAM NHS FOUNDATION TRUST | D66: RFRPA | E66: Rotherham District General Hospital - RFRPA | F66: 77 | G66: 1 | H66: 0 | I66: 61 | J66: 16 | K66: 0 | L66: 0 | M66: 0 | N66: 0
A67: Q72 | B67: RCB | C67: YORK TEACHING HOSPITAL NHS FOUNDATION TRUST | D67: RCBCA | E67: Scarborough General Hospital - RCBCA | F67: 24 | G67: 1 | H67: 0 | I67: 21 | J67: 3 | K67: 0 | L67: 0 | M67: 0 | N67: 0
A68: Q72 | B68: RCB | C68: YORK TEACHING HOSPITAL NHS FOUNDATION TRUST | D68: RCB55 | E68: York Hospital - RCB55 | F68: 60 | G68: 0.9666666667 | H68: 0.03333333333 | I68: 47 | J68: 11 | K68: 0 | L68: 2 | M68: 0 | N68: 0
A69: Q74 | B69: RLN | C69: CITY HOSPITALS SUNDERLAND NHS FOUNDATION TRUST | D69: RLNGL | E69: Sunderland Royal Hospital - RLNGL | F69: 42 | G69: 1 | H69: 0 | I69: 40 | J69: 2 | K69: 0 | L69: 0 | M69: 0 | N69: 0
A70: Q74 | B70: RXP | C70: COUNTY DURHAM AND DARLINGTON NHS FOUNDATION TRUST | D70: RXPDA | E70: Darlington Memorial Hospital - RXPDA | F70: 26 | G70: 1 | H70: 0 | I70: 18 | J70: 8 | K70: 0 | L70: 0 | M70: 0 | N70: 0
A71: Q74 | B71: RXP | C71: COUNTY DURHAM AND DARLINGTON NHS FOUNDATION TRUST | D71: RXPCP | E71: University Hospital Of North Durham - RXPCP | F71: 16 | G71: 1 | H71: 0 | I71: 14 | J71: 2 | K71: 0 | L71: 0 | M71: 0 | N71: 0
A72: Q74 | B72: RR7 | C72: GATESHEAD HEALTH NHS FOUNDATION TRUST | D72: RR7EN | E72: Queen Elizabeth Hospital - RR7EN | F72: 40 | G72: 0.975 | H72: 0 | I72: 32 | J72: 7 | K72: 1 | L72: 0 | M72: 0 | N72: 0
A73: Q74 | B73: RNL | C73: NORTH CUMBRIA UNIVERSITY HOSPITALS NHS TRUST | D73: RNLAY | E73: Cumberland Infirmary - RNLAY | F73: 24 | G73: 1 | H73: 0 | I73: 21 | J73: 3 | K73: 0 | L73: 0 | M73: 0 | N73: 0
A74: Q74 | B74: RNL | C74: NORTH CUMBRIA UNIVERSITY HOSPITALS NHS TRUST | D74: RNLBX | E74: West Cumberland Hospital - RNLBX | F74: 55 | G74: 0.9818181818 | H74: 0 | I74: 44 | J74: 10 | K74: 1 | L74: 0 | M74: 0 | N74: 0
A75: Q74 | B75: RVW | C75: NORTH TEES AND HARTLEPOOL NHS FOUNDATION TRUST | D75: RVWAE | E75: University Hospital Of North Tees - RVWAE | F75: 18 | G75: 0.8888888889 | H75: 0.1111111111 | I75: 12 | J75: 4 | K75: 0 | L75: 1 | M75: 1 | N75: 0
A76: Q74 | B76: RTF | C76: NORTHUMBRIA HEALTHCARE NHS FOUNDATION TRUST | D76: RTFDJ | E76: Alnwick Infirmary - RTFDJ | F76: 0 | G76: NA | H76: NA | I76: 0 | J76: 0 | K76: 0 | L76: 0 | M76: 0 | N76: 0
A77: Q74 | B77: RTF | C77: NORTHUMBRIA HEALTHCARE NHS FOUNDATION TRUST | D77: RTFDH | E77: Berwick Infirmary - RTFDH | F77: 0 | G77: NA | H77: NA | I77: 0 | J77: 0 | K77: 0 | L77: 0 | M77: 0 | N77: 0
A78: Q74 | B78: RTF | C78: NORTHUMBRIA HEALTHCARE NHS FOUNDATION TRUST | D78: RTFDR | E78: Hexham General Hospital - RTFDR | F78: 1 | G78: * | H78: * | I78: * | J78: * | K78: * | L78: * | M78: * | N78: *
A79: Q74 | B79: RTF | C79: NORTHUMBRIA HEALTHCARE NHS FOUNDATION TRUST | D79: RTF86 | E79: The Northumbria - RTF86 | F79: 30 | G79: 1 | H79: 0 | I79: * | J79: * | K79: * | L79: * | M79: * | N79: *
A80: Q74 | B80: RTR | C80: SOUTH TEES HOSPITALS NHS FOUNDATION TRUST | D80: RTR45 | E80: Friarage Hospital Site - RTR45 | F80: 6 | G80: 1 | H80: 0 | I80: 6 | J80: 0 | K80: 0 | L80: 0 | M80: 0 | N80: 0
A81: Q74 | B81: RTR | C81: SOUTH TEES HOSPITALS NHS FOUNDATION TRUST | D81: RTRAT | E81: The James Cook University Hospital - RTRAT | F81: 14 | G81: 1 | H81: 0 | I81: 14 | J81: 0 | K81: 0 | L81: 0 | M81: 0 | N81: 0
A82: Q74 | B82: RE9 | C82: SOUTH TYNESIDE NHS FOUNDATION TRUST | D82: RE9GA | E82: South Tyneside District Hospital - RE9GA | F82: 21 | G82: 1 | H82: 0 | I82: 19 | J82: 2 | K82: 0 | L82: 0 | M82: 0 | N82: 0
A83: Q74 | B83: RTD | C83: THE NEWCASTLE UPON TYNE HOSPITALS NHS FOUNDATION TRUST | D83: RTD02 | E83: The Royal Victoria Infirmary - RTD02 | F83: 158 | G83: 0.9746835443 | H83: 0.01265822785 | I83: 135 | J83: 19 | K83: 2 | L83: 1 | M83: 1 | N83: 0
A84: Q74 | B84: RTX | C84: UNIVERSITY HOSPITALS OF MORECAMBE BAY NHS FOUNDATION TRUST | D84: RTXBU | E84: Furness General Hospital - RTXBU | F84: 18 | G84: 1 | H84: 0 | I84: * | J84: * | K84: * | L84: * | M84: * | N84: *
A85: Q74 | B85: RTX | C85: UNIVERSITY HOSPITALS OF MORECAMBE BAY NHS FOUNDATION TRUST | D85: RTX02 | E85: Royal Lancaster Infirmary - RTX02 | F85: 1 | G85: * | H85: * | I85: * | J85: * | K85: * | L85: * | M85: * | N85: *
A86: Q75 | B86: RJR | C86: COUNTESS OF CHESTER HOSPITAL NHS FOUNDATION TRUST | D86: RJR05 | E86: Countess Of Chester Hospital - RJR05 | F86: 62 | G86: 0.935483871 | H86: 0.04838709677 | I86: 47 | J86: 11 | K86: 1 | L86: 2 | M86: 1 | N86: 0
A87: Q75 | B87: RJN | C87: EAST CHESHIRE NHS TRUST | D87: RJN71 | E87: Macclesfield District General Hospital - RJN71 | F87: 16 | G87: 1 | H87: 0 | I87: 14 | J87: 2 | K87: 0 | L87: 0 | M87: 0 | N87: 0
A88: Q75 | B88: REP | C88: LIVERPOOL WOMEN'S NHS FOUNDATION TRUST | D88: REP01 | E88: Liverpool Womens Hospital - REP01 | F88: 5 | G88: 0.8 | H88: 0.2 | I88: 3 | J88: 1 | K88: 0 | L88: 1 | M88: 0 | N88: 0
A89: Q75 | B89: RBT | C89: MID CHESHIRE HOSPITALS NHS FOUNDATION TRUST | D89: RBT20 | E89: Leighton Hospital - RBT20 | F89: 19 | G89: 1 | H89: 0 | I89: 15 | J89: 4 | K89: 0 | L89: 0 | M89: 0 | N89: 0
A90: Q75 | B90: RVY | C90: SOUTHPORT AND ORMSKIRK HOSPITAL NHS TRUST | D90: RVY02 | E90: Ormskirk and District General Hospital - RVY02 | F90: 21 | G90: 1 | H90: 0 | I90: 16 | J90: 5 | K90: 0 | L90: 0 | M90: 0 | N90: 0
A91: Q75 | B91: RBN | C91: ST HELENS AND KNOWSLEY HOSPITAL SERVICES NHS TRUST | D91: RBN01 | E91: Whiston Hospital - RBN01 | F91: 32 | G91: 0.875 | H91: 0.03125 | I91: 21 | J91: 7 | K91: 1 | L91: 0 | M91: 1 | N91: 2
A92: Q75 | B92: RWW | C92: WARRINGTON AND HALTON HOSPITALS NHS FOUNDATION TRUST | D92: RWWWH | E92: Warrington Hospital - RWWWH | F92: 54 | G92: 0.9814814815 | H92: 0 | I92: 44 | J92: 9 | K92: 1 | L92: 0 | M92: 0 | N92: 0
A93: Q75 | B93: RBL | C93: WIRRAL UNIVERSITY TEACHING HOSPITAL NHS FOUNDATION TRUST | D93: RBL14 | E93: Arrowe Park Hospital - RBL14 | F93: 132 | G93: 0.9924242424 | H93: 0 | I93: 116 | J93: 15 | K93: 1 | L93: 0 | M93: 0 | N93: 0
A94: Q76 | B94: RJF | C94: BURTON HOSPITALS NHS FOUNDATION TRUST | D94: RJF02 | E94: Queen's Hospital, Burton Upon Trent - RJF02 | F94: 92 | G94: 0.9891304348 | H94: 0.01086956522 | I94: 83 | J94: 8 | K94: 0 | L94: 0 | M94: 1 | N94: 0
A95: Q76 | B95: RFS | C95: CHESTERFIELD ROYAL HOSPITAL NHS FOUNDATION TRUST | D95: RFSDA | E95: Chesterfield Royal Hospital - RFSDA | F95: 35 | G95: 0.9714285714 | H95: 0 | I95: 26 | J95: 8 | K95: 1 | L95: 0 | M95: 0 | N95: 0
A96: Q76 | B96: RTG | C96: DERBY TEACHING HOSPITALS NHS FOUNDATION TRUST | D96: RTGFG | E96: Royal Derby Hospital - RTGFG | F96: 177 | G96: 0.9774011299 | H96: 0.005649717514 | I96: 122 | J96: 51 | K96: 1 | L96: 0 | M96: 1 | N96: 2
A97: Q76 | B97: RX1 | C97: NOTTINGHAM UNIVERSITY HOSPITALS NHS TRUST | D97: RX1CC | E97: Nottingham University Hospitals NHS Trust - City Campus - RX1CC | F97: 104 | G97: 0.9615384615 | H97: 0.009615384615 | I97: 72 | J97: 28 | K97: 3 | L97: 1 | M97: 0 | N97: 0
A98: Q76 | B98: RX1 | C98: NOTTINGHAM UNIVERSITY HOSPITALS NHS TRUST | D98: RX1RA | E98: Nottingham University Hospitals NHS Trust - Queen's Medical Centre Campus - RX1RA | F98: 45 | G98: 0.9777777778 | H98: 0 | I98: 32 | J98: 12 | K98: 1 | L98: 0 | M98: 0 | N98: 0
A99: Q76 | B99: RK5 | C99: SHERWOOD FOREST HOSPITALS NHS FOUNDATION TRUST | D99: RK5BC | E99: King's Mill Hospital - RK5BC | F99: 72 | G99: 0.9861111111 | H99: 0 | I99: 61 | J99: 10 | K99: 1 | L99: 0 | M99: 0 | N99: 0
A100: Q76 | B100: RXW | C100: SHREWSBURY AND TELFORD HOSPITAL NHS TRUST | D100: RXWMB | E100: Bridgnorth Hospital (Maternity) - RXWMB | F100: 9 | G100: 1 | H100: 0 | I100: 9 | J100: 0 | K100: 0 | L100: 0 | M100: 0 | N100: 0
A101: Q76 | B101: RXW | C101: SHREWSBURY AND TELFORD HOSPITAL NHS TRUST | D101: RXWML | E101: Ludlow Hospital (Maternity) - RXWML | F101: 7 | G101: 1 | H101: 0 | I101: 7 | J101: 0 | K101: 0 | L101: 0 | M101: 0 | N101: 0
A102: Q76 | B102: RXW | C102: SHREWSBURY AND TELFORD HOSPITAL NHS TRUST | D102: RXWMJ | E102: Robert Jones & Agnes Hunt Orthopaedic & District Hospital - RXWMJ | F102: 12 | G102: 1 | H102: 0 | I102: 12 | J102: 0 | K102: 0 | L102: 0 | M102: 0 | N102: 0
A103: Q76 | B103: RXW | C103: SHREWSBURY AND TELFORD HOSPITAL NHS TRUST | D103: RXWAS | E103: Royal Shrewsbury Hospital - RXWAS | F103: 15 | G103: 1 | H103: 0 | I103: 12 | J103: 3 | K103: 0 | L103: 0 | M103: 0 | N103: 0
A104: Q76 | B104: RXW | C104: SHREWSBURY AND TELFORD HOSPITAL NHS TRUST | D104: RXWAT | E104: The Princess Royal Hospital - RXWAT | F104: 71 | G104: 1 | H104: 0 | I104: 62 | J104: 9 | K104: 0 | L104: 0 | M104: 0 | N104: 0
A105: Q76 | B105: RJE | C105: UNIVERSITY HOSPITALS OF NORTH MIDLANDS NHS TRUST | D105: RJE01 | E105: Royal Stoke University Hospital - RJE01 | F105: 58 | G105: 0.9655172414 | H105: 0 | I105: 38 | J105: 18 | K105: 1 | L105: 0 | M105: 0 | N105: 1
A106: Q77 | B106: RQ3 | C106: BIRMINGHAM WOMEN'S AND CHILDREN'S NHS FOUNDATION TRUST | D106: RQ370 | E106: Birmingham Women's Hospital - RQ370 | F106: 0 | G106: NA | H106: NA | I106: 0 | J106: 0 | K106: 0 | L106: 0 | M106: 0 | N106: 0
A107: Q77 | B107: RLT | C107: GEORGE ELIOT HOSPITAL NHS TRUST | D107: RLT01 | E107: George Eliot Hospital - Acute Services - RLT01 | F107: 156 | G107: 0.9487179487 | H107: 0.01923076923 | I107: 116 | J107: 32 | K107: 3 | L107: 1 | M107: 2 | N107: 2
A108: Q77 | B108: RR1 | C108: HEART OF ENGLAND NHS FOUNDATION TRUST | D108: RR105 | E108: Good Hope Hospital - RR105 | F108: 13 | G108: 1 | H108: 0 | I108: 10 | J108: 3 | K108: 0 | L108: 0 | M108: 0 | N108: 0
A109: Q77 | B109: RR1 | C109: HEART OF ENGLAND NHS FOUNDATION TRUST | D109: RR101 | E109: Heartlands Hospital - RR101 | F109: 118 | G109: 0.9237288136 | H109: 0.04237288136 | I109: 49 | J109: 60 | K109: 3 | L109: 4 | M109: 1 | N109: 1
A110: Q77 | B110: RR1 | C110: HEART OF ENGLAND NHS FOUNDATION TRUST | D110: RR109 | E110: Solihull Hospital - RR109 | F110: 6 | G110: 1 | H110: 0 | I110: 6 | J110: 0 | K110: 0 | L110: 0 | M110: 0 | N110: 0
A111: Q77 | B111: RXK | C111: SANDWELL AND WEST BIRMINGHAM HOSPITALS NHS TRUST | D111: RXK02 | E111: City Hospital - RXK02 | F111: 58 | G111: 0.9137931034 | H111: 0 | I111: 29 | J111: 24 | K111: 4 | L111: 0 | M111: 0 | N111: 1
A112: Q77 | B112: RJC | C112: SOUTH WARWICKSHIRE NHS FOUNDATION TRUST | D112: RJC02 | E112: Warwick Hospital - RJC02 | F112: 72 | G112: 0.9583333333 | H112: 0.01388888889 | I112: 57 | J112: 12 | K112: 0 | L112: 1 | M112: 0 | N112: 2
A113: Q77 | B113: RNA | C113: THE DUDLEY GROUP NHS FOUNDATION TRUST | D113: RNA01 | E113: Russells Hall Hospital - RNA01 | F113: 123 | G113: 0.9756097561 | H113: 0.0162601626 | I113: 111 | J113: 9 | K113: 1 | L113: 2 | M113: 0 | N113: 0
A114: Q77 | B114: RL4 | C114: THE ROYAL WOLVERHAMPTON NHS TRUST | D114: RL403 | E114: New Cross Hospital - RL403 | F114: 124 | G114: 0.9032258065 | H114: 0.07258064516 | I114: 87 | J114: 25 | K114: 2 | L114: 2 | M114: 7 | N114: 1
A115: Q77 | B115: RKB | C115: UNIVERSITY HOSPITALS COVENTRY AND WARWICKSHIRE NHS TRUST | D115: RKB01 | E115: University Hospital (Coventry) - RKB01 | F115: 165 | G115: 0.9757575758 | H115: 0.01212121212 | I115: 108 | J115: 53 | K115: 0 | L115: 0 | M115: 2 | N115: 2
A116: Q77 | B116: RBK | C116: WALSALL HEALTHCARE NHS TRUST | D116: RBK02 | E116: Manor Hospital - RBK02 | F116: 19 | G116: 0.6315789474 | H116: 0.2105263158 | I116: 9 | J116: 3 | K116: 3 | L116: 1 | M116: 3 | N116: 0
A117: Q77 | B117: RWP | C117: WORCESTERSHIRE ACUTE HOSPITALS NHS TRUST | D117: RWP50 | E117: Worcestershire Royal Hospital - RWP50 | F117: 37 | G117: 0.9459459459 | H117: 0 | I117: 30 | J117: 5 | K117: 2 | L117: 0 | M117: 0 | N117: 0
A118: Q77 | B118: RLQ | C118: WYE VALLEY NHS TRUST | D118: RLQ01 | E118: Hereford County Hospital - RLQ01 | F118: 55 | G118: 1 | H118: 0 | I118: 42 | J118: 13 | K118: 0 | L118: 0 | M118: 0 | N118: 0
A119: Q78 | B119: RC1 | C119: BEDFORD HOSPITAL NHS TRUST | D119: RC110 | E119: Bedford Hospital South Wing - RC110 | F119: 60 | G119: 0.9666666667 | H119: 0.01666666667 | I119: 49 | J119: 9 | K119: 1 | L119: 0 | M119: 1 | N119: 0
A120: Q78 | B120: RWH | C120: EAST AND NORTH HERTFORDSHIRE NHS TRUST | D120: RWH01 | E120: Lister Hospital - RWH01 | F120: 214 | G120: 0.8878504673 | H120: 0.02336448598 | I120: 127 | J120: 63 | K120: 12 | L120: 5 | M120: 0 | N120: 7
A121: Q78 | B121: RNQ | C121: KETTERING GENERAL HOSPITAL NHS FOUNDATION TRUST | D121: RNQ51 | E121: Kettering General Hospital - RNQ51 | F121: 42 | G121: 0.9761904762 | H121: 0.02380952381 | I121: 35 | J121: 6 | K121: 0 | L121: 0 | M121: 1 | N121: 0
A122: Q78 | B122: RC9 | C122: LUTON AND DUNSTABLE UNIVERSITY HOSPITAL NHS FOUNDATION TRUST | D122: RC971 | E122: Luton and Dunstable Hospital - RC971 | F122: 39 | G122: 0.9743589744 | H122: 0.02564102564 | I122: 31 | J122: 7 | K122: 0 | L122: 1 | M122: 0 | N122: 0
A123: Q78 | B123: RD8 | C123: MILTON KEYNES UNIVERSITY HOSPITAL NHS FOUNDATION TRUST | D123: RD816 | E123: Milton Keynes Hospital - RD816 | F123: 43 | G123: 0.9534883721 | H123: 0 | I123: 32 | J123: 9 | K123: 2 | L123: 0 | M123: 0 | N123: 0
A124: Q78 | B124: RNS | C124: NORTHAMPTON GENERAL HOSPITAL NHS TRUST | D124: RNS01 | E124: Northampton General Hospital (Acute) - RNS01 | F124: 63 | G124: 0.9841269841 | H124: 0 | I124: 55 | J124: 7 | K124: 1 | L124: 0 | M124: 0 | N124: 0
A125: Q78 | B125: RWD | C125: UNITED LINCOLNSHIRE HOSPITALS NHS TRUST | D125: RWDLP | E125: Grantham and District Hospital - RWDLP | F125: 0 | G125: NA | H125: NA | I125: 0 | J125: 0 | K125: 0 | L125: 0 | M125: 0 | N125: 0
A126: Q78 | B126: RWD | C126: UNITED LINCOLNSHIRE HOSPITALS NHS TRUST | D126: RWDDA | E126: Lincoln County Hospital - RWDDA | F126: 43 | G126: 0.7906976744 | H126: 0.1395348837 | I126: 28 | J126: 6 | K126: 3 | L126: 5 | M126: 1 | N126: 0
A127: Q78 | B127: RWD | C127: UNITED LINCOLNSHIRE HOSPITALS NHS TRUST | D127: RWDLA | E127: Pilgrim Hospital - RWDLA | F127: 15 | G127: 0.8666666667 | H127: 0.06666666667 | I127: 10 | J127: 3 | K127: 0 | L127: 0 | M127: 1 | N127: 1
A128: Q78 | B128: RWE | C128: UNIVERSITY HOSPITALS OF LEICESTER NHS TRUST | D128: RWEAK | E128: Leicester General Hospital - RWEAK | F128: 138 | G128: 0.9202898551 | H128: 0.02173913043 | I128: 83 | J128: 44 | K128: 4 | L128: 2 | M128: 1 | N128: 4
A129: Q78 | B129: RWE | C129: UNIVERSITY HOSPITALS OF LEICESTER NHS TRUST | D129: RWEAA | E129: Leicester Royal Infirmary - RWEAA | F129: 259 | G129: 0.9073359073 | H129: 0.03088803089 | I129: 173 | J129: 62 | K129: 8 | L129: 2 | M129: 6 | N129: 8
A130: Q78 | B130: RWE | C130: UNIVERSITY HOSPITALS OF LEICESTER NHS TRUST | D130: RWE10 | E130: St Mary's Hospital - RWE10 | F130: 23 | G130: 1 | H130: 0 | I130: 19 | J130: 4 | K130: 0 | L130: 0 | M130: 0 | N130: 0
A131: Q78 | B131: RWG | C131: WEST HERTFORDSHIRE HOSPITALS NHS TRUST | D131: RWG02 | E131: Watford General Hospital - RWG02 | F131: 153 | G131: 0.9346405229 | H131: 0.02614379085 | I131: 101 | J131: 42 | K131: 4 | L131: 1 | M131: 3 | N131: 2
A132: Q79 | B132: RDD | C132: BASILDON AND THURROCK UNIVERSITY HOSPITALS NHS FOUNDATION TRUST | D132: RDDH0 | E132: Basildon University Hospital - RDDH0 | F132: 155 | G132: 0.9483870968 | H132: 0.01290322581 | I132: 115 | J132: 32 | K132: 3 | L132: 1 | M132: 1 | N132: 3
A133: Q79 | B133: RGT | C133: CAMBRIDGE UNIVERSITY HOSPITALS NHS FOUNDATION TRUST | D133: RGT32 | E133: Rosie Hospital - RGT32 | F133: 161 | G133: 0.9689440994 | H133: 0.01242236025 | I133: 116 | J133: 40 | K133: 3 | L133: 2 | M133: 0 | N133: 0
A134: Q79 | B134: RDE | C134: COLCHESTER HOSPITAL UNIVERSITY NHS FOUNDATION TRUST | D134: RDEE4 | E134: Colchester General Hospital - RDEE4 | F134: 66 | G134: 0.9393939394 | H134: 0.01515151515 | I134: 38 | J134: 24 | K134: 2 | L134: 1 | M134: 0 | N134: 1
A135: Q79 | B135: RGQ | C135: IPSWICH HOSPITAL NHS TRUST | D135: RGQ02 | E135: The Ipswich Hospital NHS Trust - RGQ02 | F135: 105 | G135: 0.9619047619 | H135: 0 | I135: 80 | J135: 21 | K135: 4 | L135: 0 | M135: 0 | N135: 0
A136: Q79 | B136: RGP | C136: JAMES PAGET UNIVERSITY HOSPITALS NHS FOUNDATION TRUST | D136: RGP75 | E136: James Paget University Hospital - RGP75 | F136: 35 | G136: 1 | H136: 0 | I136: 30 | J136: 5 | K136: 0 | L136: 0 | M136: 0 | N136: 0
A137: Q79 | B137: RQ8 | C137: MID ESSEX HOSPITAL SERVICES NHS TRUST | D137: RQ8L0 | E137: Broomfield Hospital - RQ8L0 | F137: 57 | G137: 0.9122807018 | H137: 0.08771929825 | I137: 48 | J137: 4 | K137: 0 | L137: 1 | M137: 4 | N137: 0
A138: Q79 | B138: RM1 | C138: NORFOLK AND NORWICH UNIVERSITY HOSPITALS NHS FOUNDATION TRUST | D138: RM102 | E138: Norfolk and Norwich University Hospital - RM102 | F138: 41 | G138: 1 | H138: 0 | I138: 39 | J138: 2 | K138: 0 | L138: 0 | M138: 0 | N138: 0
A139: Q79 | B139: RGN | C139: NORTH WEST ANGLIA NHS FOUNDATION TRUST | D139: RGN90 | E139: Hinchingbrooke Hospital - RGN90 | F139: 44 | G139: 0.9772727273 | H139: 0 | I139: 41 | J139: 2 | K139: 1 | L139: 0 | M139: 0 | N139: 0
A140: Q79 | B140: RGN | C140: NORTH WEST ANGLIA NHS FOUNDATION TRUST | D140: RGN80 | E140: Peterborough City Hospital - RGN80 | F140: 156 | G140: 0.9679487179 | H140: 0.01923076923 | I140: 123 | J140: 28 | K140: 1 | L140: 2 | M140: 1 | N140: 1
A141: Q79 | B141: RAJ | C141: SOUTHEND UNIVERSITY HOSPITAL NHS FOUNDATION TRUST | D141: RAJ01 | E141: Southend Hospital - RAJ01 | F141: 7 | G141: 1 | H141: 0 | I141: * | J141: * | K141: * | L141: * | M141: * | N141: *
A142: Q79 | B142: RQW | C142: THE PRINCESS ALEXANDRA HOSPITAL NHS TRUST | D142: RQWG0 | E142: Princess Alexandra Hospital - RQWG0 | F142: 176 | G142: 0.9488636364 | H142: 0 | I142: 148 | J142: 19 | K142: 0 | L142: 0 | M142: 0 | N142: 9
A143: Q79 | B143: RCX | C143: THE QUEEN ELIZABETH HOSPITAL, KING'S LYNN, NHS FOUNDATION TRUST | D143: RCX70 | E143: The Queen Elizabeth Hospital - RCX70 | F143: 68 | G143: 0.9264705882 | H143: 0.01470588235 | I143: 45 | J143: 18 | K143: 4 | L143: 1 | M143: 0 | N143: 0
A144: Q79 | B144: RGR | C144: WEST SUFFOLK NHS FOUNDATION TRUST | D144: RGR50 | E144: West Suffolk Hospital - RGR50 | F144: 3 | G144: * | H144: * | I144: * | J144: * | K144: * | L144: * | M144: * | N144: *
A145: Q80 | B145: RVJ | C145: NORTH BRISTOL NHS TRUST | D145: RVJ21 | E145: Cossham Hospital - RVJ21 | F145: 28 | G145: 1 | H145: 0 | I145: 28 | J145: 0 | K145: 0 | L145: 0 | M145: 0 | N145: 0
A146: Q80 | B146: RVJ | C146: NORTH BRISTOL NHS TRUST | D146: RVJ01 | E146: Southmead Hospital - RVJ01 | F146: 63 | G146: 0.9047619048 | H146: 0.07936507937 | I146: 45 | J146: 12 | K146: 1 | L146: 1 | M146: 4 | N146: 0
A147: Q80 | B147: RBZ | C147: NORTHERN DEVON HEALTHCARE NHS TRUST | D147: RBZ12 | E147: North Devon District Hospital - RBZ12 | F147: 18 | G147: 1 | H147: 0 | I147: 15 | J147: 3 | K147: 0 | L147: 0 | M147: 0 | N147: 0
A148: Q80 | B148: RK9 | C148: PLYMOUTH HOSPITALS NHS TRUST | D148: RK950 | E148: Derriford Hospital - RK950 | F148: 75 | G148: 0.9733333333 | H148: 0 | I148: 48 | J148: 25 | K148: 2 | L148: 0 | M148: 0 | N148: 0
A149: Q80 | B149: REF | C149: ROYAL CORNWALL HOSPITALS NHS TRUST | D149: REF12 | E149: Royal Cornwall Hospital (Treliske) - REF12 | F149: 50 | G149: 0.9 | H149: 0.04 | I149: 38 | J149: 7 | K149: 3 | L149: 1 | M149: 1 | N149: 0
A150: Q80 | B150: RH8 | C150: ROYAL DEVON AND EXETER NHS FOUNDATION TRUST | D150: RH854 | E150: Honiton Hospital - RH 854 | F150: 0 | G150: NA | H150: NA | I150: 0 | J150: 0 | K150: 0 | L150: 0 | M150: 0 | N150: 0
A151: Q80 | B151: RH8 | C151: ROYAL DEVON AND EXETER NHS FOUNDATION TRUST | D151: RH833 | E151: Okehampton Community Hospital - RH833 | F151: 0 | G151: NA | H151: NA | I151: 0 | J151: 0 | K151: 0 | L151: 0 | M151: 0 | N151: 0
A152: Q80 | B152: RH8 | C152: ROYAL DEVON AND EXETER NHS FOUNDATION TRUST | D152: RH801 | E152: Royal Devon and Exeter Hospital (Wonford) - RH801 | F152: 1 | G152: * | H152: * | I152: * | J152: * | K152: * | L152: * | M152: * | N152: *
A153: Q80 | B153: RH8 | C153: ROYAL DEVON AND EXETER NHS FOUNDATION TRUST | D153: RH853 | E153: Tiverton and District Hospital - RH853 | F153: 0 | G153: NA | H153: NA | I153: 0 | J153: 0 | K153: 0 | L153: 0 | M153: 0 | N153: 0
A154: Q80 | B154: RBA | C154: TAUNTON AND SOMERSET NHS FOUNDATION TRUST | D154: RBAC3 | E154: Bridgwater Hospital - RBAC3 | F154: 0 | G154: NA | H154: NA | I154: 0 | J154: 0 | K154: 0 | L154: 0 | M154: 0 | N154: 0
A155: Q80 | B155: RBA | C155: TAUNTON AND SOMERSET NHS FOUNDATION TRUST | D155: RBA11 | E155: Musgrove Park Hospital - RBA11 | F155: 73 | G155: 1 | H155: 0 | I155: 60 | J155: 13 | K155: 0 | L155: 0 | M155: 0 | N155: 0
A156: Q80 | B156: RA9 | C156: TORBAY AND SOUTH DEVON NHS FOUNDATION TRUST | D156: RA901 | E156: Torbay Hospital - RA901 | F156: 5 | G156: 1 | H156: 0 | I156: * | J156: * | K156: * | L156: * | M156: * | N156: *
A157: Q80 | B157: RA7 | C157: UNIVERSITY HOSPITALS BRISTOL NHS FOUNDATION TRUST | D157: RA707 | E157: St Michael's Hospital - RA707 | F157: 87 | G157: 0.9655172414 | H157: 0 | I157: 67 | J157: 17 | K157: 2 | L157: 0 | M157: 0 | N157: 1
A158: Q80 | B158: RA3 | C158: WESTON AREA HEALTH NHS TRUST | D158: RA301 | E158: Weston General Hospital - RA301 | F158: 13 | G158: 1 | H158: 0 | I158: 12 | J158: 1 | K158: 0 | L158: 0 | M158: 0 | N158: 0
A159: Q80 | B159: RA4 | C159: YEOVIL DISTRICT HOSPITAL NHS FOUNDATION TRUST | D159: RA430 | E159: Yeovil District Hospital - RA430 | F159: 65 | G159: 0.9692307692 | H159: 0.01538461538 | I159: 50 | J159: 13 | K159: 1 | L159: 0 | M159: 1 | N159: 0
A160: Q81 | B160: RTK | C160: ASHFORD AND ST PETER'S HOSPITALS NHS FOUNDATION TRUST | D160: RTK01 | E160: St Peter's Hospital - RTK01 | F160: 0 | G160: NA | H160: NA | I160: 0 | J160: 0 | K160: 0 | L160: 0 | M160: 0 | N160: 0
A161: Q81 | B161: RXH | C161: BRIGHTON AND SUSSEX UNIVERSITY HOSPITALS NHS TRUST | D161: RXH09 | E161: Princess Royal Hospital - RXH09 | F161: 31 | G161: 0.935483871 | H161: 0 | I161: 28 | J161: 1 | K161: 2 | L161: 0 | M161: 0 | N161: 0
A162: Q81 | B162: RXH | C162: BRIGHTON AND SUSSEX UNIVERSITY HOSPITALS NHS TRUST | D162: RXH01 | E162: Royal Sussex County Hospital - RXH01 | F162: 32 | G162: 0.875 | H162: 0.09375 | I162: 22 | J162: 6 | K162: 1 | L162: 2 | M162: 1 | N162: 0
A163: Q81 | B163: RN7 | C163: DARTFORD AND GRAVESHAM NHS TRUST | D163: RN707 | E163: Darent Valley Hospital - RN707 | F163: 89 | G163: 1 | H163: 0 | I163: 73 | J163: 16 | K163: 0 | L163: 0 | M163: 0 | N163: 0
A164: Q81 | B164: RVV | C164: EAST KENT HOSPITALS UNIVERSITY NHS FOUNDATION TRUST | D164: RVV09 | E164: Queen Elizabeth The Queen Mother Hospital - RVV09 | F164: 78 | G164: 0.9358974359 | H164: 0 | I164: 64 | J164: 9 | K164: 0 | L164: 0 | M164: 0 | N164: 5
A165: Q81 | B165: RVV | C165: EAST KENT HOSPITALS UNIVERSITY NHS FOUNDATION TRUST | D165: RVV01 | E165: William Harvey Hospital (Ashford) - RVV01 | F165: 123 | G165: 0.9430894309 | H165: 0.0162601626 | I165: 105 | J165: 11 | K165: 0 | L165: 2 | M165: 0 | N165: 5
A166: Q81 | B166: RXC | C166: EAST SUSSEX HEALTHCARE NHS TRUST | D166: RXC01 | E166: Conquest Hospital - RXC01 | F166: 88 | G166: 0.9772727273 | H166: 0.01136363636 | I166: 60 | J166: 26 | K166: 0 | L166: 0 | M166: 1 | N166: 1
A167: Q81 | B167: RXC | C167: EAST SUSSEX HEALTHCARE NHS TRUST | D167: RXC02 | E167: Eastbourne District General Hospital - RXC02 | F167: 23 | G167: 1 | H167: 0 | I167: 21 | J167: 2 | K167: 0 | L167: 0 | M167: 0 | N167: 0
A168: Q81 | B168: RDU | C168: FRIMLEY HEALTH NHS FOUNDATION TRUST | D168: RDU01 | E168: Frimley Park Hospital - RDU01 | F168: 142 | G168: 0.8943661972 | H168: 0 | I168: 112 | J168: 15 | K168: 1 | L168: 0 | M168: 0 | N168: 14
A169: Q81 | B169: RDU | C169: FRIMLEY HEALTH NHS FOUNDATION TRUST | D169: RDU50 | E169: Wexham Park Hospital - RDU50 | F169: 22 | G169: 0.7727272727 | H169: 0.04545454545 | I169: 13 | J169: 4 | K169: 3 | L169: 1 | M169: 0 | N169: 1
A170: Q81 | B170: RWF | C170: MAIDSTONE AND TUNBRIDGE WELLS NHS TRUST | D170: RWF03 | E170: Maidstone District General Hospital - RWF03 | F170: 40 | G170: 0.975 | H170: 0 | I170: 39 | J170: 0 | K170: 0 | L170: 0 | M170: 0 | N170: 1
A171: Q81 | B171: RWF | C171: MAIDSTONE AND TUNBRIDGE WELLS NHS TRUST | D171: RWFTW | E171: The Tunbridge Wells Hospital - RWFTW | F171: 129 | G171: 0.9534883721 | H171: 0 | I171: 106 | J171: 17 | K171: 0 | L171: 0 | M171: 0 | N171: 6
A172: Q81 | B172: RPA | C172: MEDWAY NHS FOUNDATION TRUST | D172: RPA02 | E172: Medway Maritime Hospital - RPA02 | F172: 145 | G172: 0.9793103448 | H172: 0.006896551724 | I172: 126 | J172: 16 | K172: 2 | L172: 1 | M172: 0 | N172: 0
A173: Q81 | B173: RA2 | C173: ROYAL SURREY COUNTY HOSPITAL NHS FOUNDATION TRUST | D173: RA201 | E173: Royal Surrey County Hospital - RA201 | F173: 124 | G173: 0.9435483871 | H173: 0.03225806452 | I173: 100 | J173: 17 | K173: 3 | L173: 3 | M173: 1 | N173: 0
A174: Q81 | B174: RTP | C174: SURREY AND SUSSEX HEALTHCARE NHS TRUST | D174: RTP04 | E174: East Surrey Hospital - RTP04 | F174: 96 | G174: 0.9583333333 | H174: 0.01041666667 | I174: 69 | J174: 23 | K174: 2 | L174: 1 | M174: 0 | N174: 1
A175: Q81 | B175: RYR | C175: WESTERN SUSSEX HOSPITALS NHS FOUNDATION TRUST | D175: RYR16 | E175: St Richard's Hospital - RYR16 | F175: 56 | G175: 1 | H175: 0 | I175: 48 | J175: 8 | K175: 0 | L175: 0 | M175: 0 | N175: 0
A176: Q81 | B176: RYR | C176: WESTERN SUSSEX HOSPITALS NHS FOUNDATION TRUST | D176: RYR18 | E176: Worthing Hospital - RYR18 | F176: 117 | G176: 0.9829059829 | H176: 0.008547008547 | I176: 103 | J176: 12 | K176: 0 | L176: 1 | M176: 0 | N176: 1
A177: Q82 | B177: RXQ | C177: BUCKINGHAMSHIRE HEALTHCARE NHS TRUST | D177: RXQ02 | E177: Stoke Mandeville Hospital - RXQ02 | F177: 188 | G177: 0.9787234043 | H177: 0.01063829787 | I177: 140 | J177: 44 | K177: 2 | L177: 2 | M177: 0 | N177: 0
A178: Q82 | B178: RTE | C178: GLOUCESTERSHIRE HOSPITALS NHS FOUNDATION TRUST | D178: RTE03 | E178: Gloucestershire Royal Hospital - RTE03 | F178: 0 | G178: NA | H178: NA | I178: 0 | J178: 0 | K178: 0 | L178: 0 | M178: 0 | N178: 0
A179: Q82 | B179: RTE | C179: GLOUCESTERSHIRE HOSPITALS NHS FOUNDATION TRUST | D179: RTE26 | E179: Stroud General Hospital - RTE26 | F179: 0 | G179: NA | H179: NA | I179: 0 | J179: 0 | K179: 0 | L179: 0 | M179: 0 | N179: 0
A180: Q82 | B180: RN3 | C180: GREAT WESTERN HOSPITALS NHS FOUNDATION TRUST | D180: RN325 | E180: The Great Western Hospital - RN325 | F180: 5 | G180: 1 | H180: 0 | I180: * | J180: * | K180: * | L180: * | M180: * | N180: *
A181: Q82 | B181: RTH | C181: OXFORD UNIVERSITY HOSPITALS NHS FOUNDATION TRUST | D181: RTH19 | E181: Chipping Norton Community Hospital - RTH19 | F181: 2 | G181: * | H181: * | I181: * | J181: * | K181: * | L181: * | M181: * | N181: *
A182: Q82 | B182: RTH | C182: OXFORD UNIVERSITY HOSPITALS NHS FOUNDATION TRUST | D182: RTH05 | E182: Horton General Hospital - RTH05 | F182: 8 | G182: 0.5 | H182: 0 | I182: * | J182: * | K182: * | L182: * | M182: * | N182: *
A183: Q82 | B183: RTH | C183: OXFORD UNIVERSITY HOSPITALS NHS FOUNDATION TRUST | D183: RTH08 | E183: John Radcliffe Hospital - RTH08 | F183: 93 | G183: 0.9247311828 | H183: 0.01075268817 | I183: 68 | J183: 18 | K183: 2 | L183: 1 | M183: 0 | N183: 4
A184: Q82 | B184: RTH | C184: OXFORD UNIVERSITY HOSPITALS NHS FOUNDATION TRUST | D184: RTH16 | E184: Wallingford Community Hospital - RTH16 | F184: 0 | G184: NA | H184: NA | I184: 0 | J184: 0 | K184: 0 | L184: 0 | M184: 0 | N184: 0
A185: Q82 | B185: RHW | C185: ROYAL BERKSHIRE NHS FOUNDATION TRUST | D185: RHW01 | E185: Royal Berkshire Hospital - RHW01 | F185: 129 | G185: 0.976744186 | H185: 0.01550387597 | I185: 84 | J185: 42 | K185: 1 | L185: 1 | M185: 1 | N185: 0
A186: Q82 | B186: RD1 | C186: ROYAL UNITED HOSPITALS BATH NHS FOUNDATION TRUST | D186: RD102 | E186: Chippenham Community Hospital -RD102 | F186: 3 | G186: * | H186: * | I186: * | J186: * | K186: * | L186: * | M186: * | N186: *
A187: Q82 | B187: RD1 | C187: ROYAL UNITED HOSPITALS BATH NHS FOUNDATION TRUST | D187: RD121 | E187: Frome Community Hospital - RD121 | F187: 0 | G187: NA | H187: NA | I187: 0 | J187: 0 | K187: 0 | L187: 0 | M187: 0 | N187: 0
A188: Q82 | B188: RD1 | C188: ROYAL UNITED HOSPITALS BATH NHS FOUNDATION TRUST | D188: RD129 | E188: Paulton Memorial Hospital - RD129 | F188: 2 | G188: * | H188: * | I188: * | J188: * | K188: * | L188: * | M188: * | N188: *
A189: Q82 | B189: RD1 | C189: ROYAL UNITED HOSPITALS BATH NHS FOUNDATION TRUST | D189: RD130 | E189: Princess Anne Wing RUH - RD130 | F189: 46 | G189: 0.9782608696 | H189: 0.02173913043 | I189: 42 | J189: 3 | K189: 0 | L189: 1 | M189: 0 | N189: 0
A190: Q82 | B190: RD1 | C190: ROYAL UNITED HOSPITALS BATH NHS FOUNDATION TRUST | D190: RD108 | E190: Trowbridge Community Hospital - RD108 | F190: 0 | G190: NA | H190: NA | I190: 0 | J190: 0 | K190: 0 | L190: 0 | M190: 0 | N190: 0
A191: Q82 | B191: RNZ | C191: SALISBURY NHS FOUNDATION TRUST | D191: RNZ02 | E191: Salisbury District Hospital - RNZ02 | F191: 1 | G191: * | H191: * | I191: * | J191: * | K191: * | L191: * | M191: * | N191: *
A192: Q83 | B192: RMC | C192: BOLTON NHS FOUNDATION TRUST | D192: RMC01 | E192: Royal Bolton Hospital - RMC01 | F192: 150 | G192: 0.9266666667 | H192: 0.04 | I192: 103 | J192: 36 | K192: 5 | L192: 1 | M192: 5 | N192: 0
A193: Q83 | B193: RY2 | C193: BRIDGEWATER COMMUNITY HEALTHCARE NHS FOUNDATION TRUST | D193: RY28P | E193: Health Care Resource Centre - RY28P | F193: 0 | G193: NA | H193: NA | I193: 0 | J193: 0 | K193: 0 | L193: 0 | M193: 0 | N193: 0
A194: Q83 | B194: RW3 | C194: CENTRAL MANCHESTER UNIVERSITY HOSPITALS NHS FOUNDATION TRUST | D194: RW3SM | E194: St Mary's Hospital - RW3SM | F194: 386 | G194: 0.981865285 | H194: 0.00518134715 | I194: 313 | J194: 66 | K194: 2 | L194: 1 | M194: 1 | N194: 3
A195: Q83 | B195: RW6 | C195: PENNINE ACUTE HOSPITALS NHS TRUST | D195: RW602 | E195: North Manchester General Hospital - RW602 | F195: 46 | G195: 1 | H195: 0 | I195: 42 | J195: 4 | K195: 0 | L195: 0 | M195: 0 | N195: 0
A196: Q83 | B196: RW6 | C196: PENNINE ACUTE HOSPITALS NHS TRUST | D196: RW603 | E196: Royal Oldham Hospital - RW603 | F196: 93 | G196: 0.8064516129 | H196: 0.1290322581 | I196: 56 | J196: 19 | K196: 5 | L196: 5 | M196: 7 | N196: 1
A197: Q83 | B197: RWJ | C197: STOCKPORT NHS FOUNDATION TRUST | D197: RWJ09 | E197: Stepping Hill Hospital - RWJ09 | F197: 120 | G197: 0.9666666667 | H197: 0.008333333333 | I197: 104 | J197: 12 | K197: 2 | L197: 1 | M197: 0 | N197: 1
A198: Q83 | B198: RMP | C198: TAMESIDE AND GLOSSOP INTEGRATED CARE NHS FOUNDATION TRUST | D198: RMP01 | E198: Tameside General Hospital - RMP01 | F198: 53 | G198: 0.8867924528 | H198: 0.01886792453 | I198: 31 | J198: 16 | K198: 5 | L198: 0 | M198: 1 | N198: 0
A199: Q83 | B199: RM2 | C199: UNIVERSITY HOSPITAL OF SOUTH MANCHESTER NHS FOUNDATION TRUST | D199: RM202 | E199: Wythenshawe Hospital - RM202 | F199: 10 | G199: 1 | H199: 0 | I199: 8 | J199: 2 | K199: 0 | L199: 0 | M199: 0 | N199: 0
A200: Q83 | B200: RRF | C200: WRIGHTINGTON, WIGAN AND LEIGH NHS FOUNDATION TRUST | D200: RRF02 | E200: Royal Albert Edward Infirmary - RRF02 | F200: 66 | G200: 0.9848484848 | H200: 0 | I200: 60 | J200: 5 | K200: 1 | L200: 0 | M200: 0 | N200: 0
A201: Q84 | B201: RXL | C201: BLACKPOOL TEACHING HOSPITALS NHS FOUNDATION TRUST | D201: RXL01 | E201: Blackpool Victoria Hospital - RXL01 | F201: 91 | G201: 0.9450549451 | H201: 0.02197802198 | I201: 58 | J201: 28 | K201: 3 | L201: 2 | M201: 0 | N201: 0
A202: Q84 | B202: RXR | C202: EAST LANCASHIRE HOSPITALS NHS TRUST | D202: RXR20 | E202: Royal Blackburn Hospital - RXR20 | F202: 75 | G202: 0.9066666667 | H202: 0.05333333333 | I202: 59 | J202: 9 | K202: 3 | L202: 0 | M202: 4 | N202: 0
A203: Q84 | B203: RXN | C203: LANCASHIRE TEACHING HOSPITALS NHS FOUNDATION TRUST | D203: RXN01 | E203: Chorley and South Ribble Hospital - RXN01 | F203: 3 | G203: * | H203: * | I203: * | J203: * | K203: * | L203: * | M203: * | N203: *
A204: Q84 | B204: RXN | C204: LANCASHIRE TEACHING HOSPITALS NHS FOUNDATION TRUST | D204: RXN02 | E204: Royal Preston Hospital - RXN02 | F204: 46 | G204: 0.9565217391 | H204: 0.02173913043 | I204: * | J204: * | K204: * | L204: * | M204: * | N204: *

Sheet Region (Geography) Q4
B6: Sort data by:
A9: Region (Geo) Code | B9: Region (Geography) | C9: Total Responses | D9: Percentage Recommended | E9: Percentage Not Recommended | F9: Breakdown of Responses
F10: Extremely Likely | G10: Likely | H10: Neither | I10: Unlikely | J10: Extremely Unlikely | K10: Don't Know
B11: England | C11: 5013 | D11: 0.9764612009 | E11: 0.005984440455 | F11: 4228 | G11: 667 | H11: 64 | I11: 18 | J11: 12 | K11: 24
B12: Selection (excluding suppressed data) | C12: =SUBTOTAL(9,C13:C40) -> 5013 | D12: =IFERROR((F12+G12)/SUM(F12:K12), "-") -> 0.9764612009 | E12: =IFERROR((I12+J12)/SUM(F12:K12), "-") -> 0.005984440455 | F12: =SUBTOTAL(9,F13:F40) -> 4228 | G12: =SUBTOTAL(9,G13:G40) -> 667 | H12: 64 | I12: 18 | J12: 12 | K12: 24
A13: Q72 | B13: NHS England Yorkshire & Humber | C13: 497 | D13: 0.9818913481 | E13: 0.006036217304 | F13: 422 | G13: 66 | H13: 6 | I13: 1 | J13: 2 | K13: 0
A14: Q74 | B14: NHS England Cumbria & North East | C14: 191 | D14: 0.9895287958 | E14: 0.005235602094 | F14: 175 | G14: 14 | H14: 1 | I14: 0 | J14: 1 | K14: 0
A15: Q75 | B15: NHS England Cheshire & Merseyside | C15: 80 | D15: 0.9875 | E15: 0.0125 | F15: 74 | G15: 5 | H15: 0 | I15: 1 | J15: 0 | K15: 0
A16: Q83 | B16: NHS England Greater Manchester | C16: 245 | D16: 0.9795918367 | E16: 0.008163265306 | F16: 213 | G16: 27 | H16: 3 | I16: 1 | J16: 1 | K16: 0
A17: Q84 | B17: NHS England Lancashire | C17: 168 | D17: 0.9702380952 | E17: 0.005952380952 | F17: 138 | G17: 25 | H17: 4 | I17: 1 | J17: 0 | K17: 0
A18: Q76 | B18: NHS England North Midlands | C18: 428 | D18: 0.988317757 | E18: 0.002336448598 | F18: 376 | G18: 47 | H18: 4 | I18: 0 | J18: 1 | K18: 0
A19: Q77 | B19: NHS England West Midlands | C19: 329 | D19: 0.9726443769 | E19: 0.01215805471 | F19: 278 | G19: 42 | H19: 5 | I19: 2 | J19: 2 | K19: 0
A20: Q78 | B20: NHS England Central Midlands | C20: 595 | D20: 0.9798319328 | E20: 0.003361344538 | F20: 471 | G20: 112 | H20: 9 | I20: 2 | J20: 0 | K20: 1
A21: Q79 | B21: NHS England East | C21: 432 | D21: 0.9791666667 | E21: 0.002314814815 | F21: 364 | G21: 59 | H21: 2 | I21: 0 | J21: 1 | K21: 6
A22: Q80 | B22: NHS England South West | C22: 324 | D22: 0.950617284 | E22: 0.01543209877 | F22: 263 | G22: 45 | H22: 9 | I22: 4 | J22: 1 | K22: 2
A23: Q81 | B23: NHS England South East | C23: 326 | D23: 0.9662576687 | E23: 0.009202453988 | F23: 279 | G23: 36 | H23: 4 | I23: 2 | J23: 1 | K23: 4
A24: Q82 | B24: NHS England South Central | C24: 277 | D24: 0.9855595668 | E24: 0 | F24: 242 | G24: 31 | H24: 3 | I24: 0 | J24: 0 | K24: 1
A25: Q70 | B25: NHS England Wessex | C25: 248 | D25: 0.9838709677 | E25: 0 | F25: 206 | G25: 38 | H25: 2 | I25: 0 | J25: 0 | K25: 2
A26: Q71 | B26: NHS England London | C26: 873 | D26: 0.9702176403 | E26: 0.006872852234 | F26: 727 | G26: 120 | H26: 12 | I26: 4 | J26: 2 | K26: 8

Sheet Trusts Q4
B6: Sort data by:
A9: Region (Geo) Code | B9: Trust Code | C9: Trust Name | D9: Total Responses | E9: Percentage Recommended | F9: Percentage Not Recommended | G9: Breakdown of Responses | M9: Mode of Collection
G10: Extremely Likely | H10: Likely | I10: Neither | J10: Unlikely | K10: Extremely Unlikely | L10: Don't Know | M10: SMS/Text / Smartphone App | N10: Electronic tablet/kiosk at point of discharge | O10: Paper / postcard at point of discharge | P10: Paper survey sent to the patients home | Q10: Telephone survey once patient is home | R10: Online survey once patient is home | S10: Other
C11: England | D11: 5013 | E11: 0.9764612009 | F11: 0.005984440455 | G11: 4228 | H11: 667 | I11: 64 | J11: 18 | K11: 12 | L11: 24 | M11: 543 | N11: 354 | O11: 3842 | P11: 62 | Q11: 0 | R11: 160 | S11: 52
C12: Selection (excluding suppressed data) | D12: =SUBTOTAL(9,D13:D299) -> 5013 | E12: =IFERROR((G12+H12)/SUM(G12:L12), "-") -> 0.9774984796 | F12: =IFERROR((J12+K12)/SUM(G12:L12), "-") -> 0.005878775593 | G12: =SUBTOTAL(9,G13:G299) -> 4168 | H12: =SUBTOTAL(9,H13:H299) -> 654 | I12: 58 | J12: 17 | K12: 12 | L12: 24 | M12: 533 | N12: 343 | O12: 3796 | P12: 52 | Q12: 0 | R12: 157 | S12: 52
A13: Q70 | B13: RBD | C13: DORSET COUNTY HOSPITAL NHS FOUNDATION TRUST | D13: 27 | E13: 0.962962963 | F13: 0 | G13: 24 | H13: 2 | I13: 0 | J13: 0 | K13: 0 | L13: 1 | M13: 27 | N13: 0 | O13: 0 | P13: 0 | Q13: 0 | R13: 0 | S13: 0
A14: Q70 | B14: RN5 | C14: HAMPSHIRE HOSPITALS NHS FOUNDATION TRUST | D14: 49 | E14: 1 | F14: 0 | G14: 45 | H14: 4 | I14: 0 | J14: 0 | K14: 0 | L14: 0 | M14: 1 | N14: 0 | O14: 48 | P14: 0 | Q14: 0 | R14: 0 | S14: 0
A15: Q70 | B15: R1F | C15: ISLE OF WIGHT NHS TRUST | D15: 0 | E15: NA | F15: NA | G15: 0 | H15: 0 | I15: 0 | J15: 0 | K15: 0 | L15: 0 | M15: 0 | N15: 0 | O15: 0 | P15: 0 | Q15: 0 | R15: 0 | S15: 0
A16: Q70 | B16: RD3 | C16: POOLE HOSPITAL NHS FOUNDATION TRUST | D16: 29 | E16: 0.9310344828 | F16: 0 | G16: 23 | H16: 4 | I16: 2 | J16: 0 | K16: 0 | L16: 0 | M16: 29 | N16: 0 | O16: 0 | P16: 0 | Q16: 0 | R16: 0 | S16: 0
A17: Q70 | B17: RHU | C17: PORTSMOUTH HOSPITALS NHS TRUST | D17: 49 | E17: 0.9795918367 | F17: 0 | G17: 40 | H17: 8 | I17: 0 | J17: 0 | K17: 0 | L17: 1 | M17: 0 | N17: 0 | O17: 49 | P17: 0 | Q17: 0 | R17: 0 | S17: 0
A18: Q70 | B18: RDZ | C18: THE ROYAL BOURNEMOUTH AND CHRISTCHURCH HOSPITALS NHS FOUNDATION TRUST | D18: 13 | E18: 1 | F18: 0 | G18: 12 | H18: 1 | I18: 0 | J18: 0 | K18: 0 | L18: 0 | M18: 0 | N18: 0 | O18: 13 | P18: 0 | Q18: 0 | R18: 0 | S18: 0
A19: Q70 | B19: RHM | C19: UNIVERSITY HOSPITAL SOUTHAMPTON NHS FOUNDATION TRUST | D19: 81 | E19: 1 | F19: 0 | G19: 62 | H19: 19 | I19: 0 | J19: 0 | K19: 0 | L19: 0 | M19: 0 | N19: 0 | O19: 79 | P19: 0 | Q19: 0 | R19: 2 | S19: 0
A20: Q71 | B20: RF4 | C20: BARKING, HAVERING AND REDBRIDGE UNIVERSITY HOSPITALS NHS TRUST | D20: 215 | E20: 0.9953488372 | F20: 0 | G20: 197 | H20: 17 | I20: 0 | J20: 0 | K20: 0 | L20: 1 | M20: 0 | N20: 0 | O20: 215 | P20: 0 | Q20: 0 | R20: 0 | S20: 0
A21: Q71 | B21: R1H | C21: BARTS HEALTH NHS TRUST | D21: 54 | E21: 0.8333333333 | F21: 0.03703703704 | G21: 29 | H21: 16 | I21: 2 | J21: 2 | K21: 0 | L21: 5 | M21: 0 | N21: 0 | O21: 54 | P21: 0 | Q21: 0 | R21: 0 | S21: 0
A22: Q71 | B22: RQM | C22: CHELSEA AND WESTMINSTER HOSPITAL NHS FOUNDATION TRUST | D22: 36 | E22: 0.8611111111 | F22: 0.05555555556 | G22: 27 | H22: 4 | I22: 3 | J22: 1 | K22: 1 | L22: 0 | M22: 26 | N22: 0 | O22: 10 | P22: 0 | Q22: 0 | R22: 0 | S22: 0
A23: Q71 | B23: RJ6 | C23: CROYDON HEALTH SERVICES NHS TRUST | D23: 1 | E23: * | F23: * | G23: * | H23: * | I23: * | J23: * | K23: * | L23: * | M23: * | N23: * | O23: * | P23: * | Q23: * | R23: * | S23: *
A24: Q71 | B24: RVR | C24: EPSOM AND ST HELIER UNIVERSITY HOSPITALS NHS TRUST | D24: 12 | E24: 1 | F24: 0 | G24: 11 | H24: 1 | I24: 0 | J24: 0 | K24: 0 | L24: 0 | M24: 0 | N24: 0 | O24: 12 | P24: 0 | Q24: 0 | R24: 0 | S24: 0
A25: Q71 | B25: RJ1 | C25: GUY'S AND ST THOMAS' NHS FOUNDATION TRUST | D25: 8 | E25: 1 | F25: 0 | G25: 8 | H25: 0 | I25: 0 | J25: 0 | K25: 0 | L25: 0 | M25: 0 | N25: 0 | O25: 8 | P25: 0 | Q25: 0 | R25: 0 | S25: 0
A26: Q71 | B26: RQX | C26: HOMERTON UNIVERSITY HOSPITAL NHS FOUNDATION TRUST | D26: 68 | E26: 0.9705882353 | F26: 0 | G26: 53 | H26: 13 | I26: 1 | J26: 0 | K26: 0 | L26: 1 | M26: 0 | N26: 7 | O26: 61 | P26: 0 | Q26: 0 | R26: 0 | S26: 0
A27: Q71 | B27: RYJ | C27: IMPERIAL COLLEGE HEALTHCARE NHS TRUST | D27: 104 | E27: 0.9807692308 | F27: 0 | G27: 80 | H27: 22 | I27: 2 | J27: 0 | K27: 0 | L27: 0 | M27: 36 | N27: 0 | O27: 68 | P27: 0 | Q27: 0 | R27: 0 | S27: 0
A28: Q71 | B28: RJZ | C28: KING'S COLLEGE HOSPITAL NHS FOUNDATION TRUST | D28: 17 | E28: 1 | F28: 0 | G28: 16 | H28: 1 | I28: 0 | J28: 0 | K28: 0 | L28: 0 | M28: 0 | N28: 15 | O28: 2 | P28: 0 | Q28: 0 | R28: 0 | S28: 0
A29: Q71 | B29: RAX | C29: KINGSTON HOSPITAL NHS FOUNDATION TRUST | D29: 19 | E29: 1 | F29: 0 | G29: 17 | H29: 2 | I29: 0 | J29: 0 | K29: 0 | L29: 0 | M29: 0 | N29: 19 | O29: 0 | P29: 0 | Q29: 0 | R29: 0 | S29: 0
A30: Q71 | B30: RJ2 | C30: LEWISHAM AND GREENWICH NHS TRUST | D30: 71 | E30: 0.985915493 | F30: 0.01408450704 | G30: 56 | H30: 14 | I30: 0 | J30: 0 | K30: 1 | L30: 0 | M30: 0 | N30: 0 | O30: 71 | P30: 0 | Q30: 0 | R30: 0 | S30: 0
A31: Q71 | B31: R1K | C31: LONDON NORTH WEST HEALTHCARE NHS TRUST | D31: 10 | E31: 1 | F31: 0 | G31: 8 | H31: 2 | I31: 0 | J31: 0 | K31: 0 | L31: 0 | M31: 0 | N31: 7 | O31: 3 | P31: 0 | Q31: 0 | R31: 0 | S31: 0
A32: Q71 | B32: RAP | C32: NORTH MIDDLESEX UNIVERSITY HOSPITAL NHS TRUST | D32: 118 | E32: 0.9491525424 | F32: 0.008474576271 | G32: 97 | H32: 15 | I32: 4 | J32: 1 | K32: 0 | L32: 1 | M32: 0 | N32: 0 | O32: 118 | P32: 0 | Q32: 0 | R32: 0 | S32: 0
A33: Q71 | B33: RAL | C33: ROYAL FREE LONDON NHS FOUNDATION TRUST | D33: 69 | E33: 1 | F33: 0 | G33: 63 | H33: 6 | I33: 0 | J33: 0 | K33: 0 | L33: 0 | M33: 0 | N33: 0 | O33: 69 | P33: 0 | Q33: 0 | R33: 0 | S33: 0
A34: Q71 | B34: RJ7 | C34: ST GEORGE'S UNIVERSITY HOSPITALS NHS FOUNDATION TRUST | D34: 20 | E34: 1 | F34: 0 | G34: 17 | H34: 3 | I34: 0 | J34: 0 | K34: 0 | L34: 0 | M34: 0 | N34: 20 | O34: 0 | P34: 0 | Q34: 0 | R34: 0 | S34: 0
A35: Q71 | B35: RAS | C35: THE HILLINGDON HOSPITALS NHS FOUNDATION TRUST | D35: 7 | E35: 1 | F35: 0 | G35: 5 | H35: 2 | I35: 0 | J35: 0 | K35: 0 | L35: 0 | M35: 0 | N35: 0 | O35: 7 | P35: 0 | Q35: 0 | R35: 0 | S35: 0
A36: Q71 | B36: RKE | C36: THE WHITTINGTON HOSPITAL NHS TRUST | D36: 41 | E36: 1 | F36: 0 | G36: 39 | H36: 2 | I36: 0 | J36: 0 | K36: 0 | L36: 0 | M36: 0 | N36: 21 | O36: 20 | P36: 0 | Q36: 0 | R36: 0 | S36: 0
A37: Q71 | B37: RRV | C37: UNIVERSITY COLLEGE LONDON HOSPITALS NHS FOUNDATION TRUST | D37: 3 | E37: * | F37: * | G37: * | H37: * | I37: * | J37: * | K37: * | L37: * | M37: * | N37: * | O37: * | P37: * | Q37: * | R37: * | S37: *
A38: Q72 | B38: RCF | C38: AIREDALE NHS FOUNDATION TRUST | D38: 21 | E38: 0.9523809524 | F38: 0 | G38: 20 | H38: 0 | I38: 1 | J38: 0 | K38: 0 | L38: 0 | M38: 1 | N38: 0 | O38: 20 | P38: 0 | Q38: 0 | R38: 0 | S38: 0
A39: Q72 | B39: RFF | C39: BARNSLEY HOSPITAL NHS FOUNDATION TRUST | D39: 26 | E39: 0.9230769231 | F39: 0.03846153846 | G39: 23 | H39: 1 | I39: 1 | J39: 0 | K39: 1 | L39: 0 | M39: 0 | N39: 0 | O39: 26 | P39: 0 | Q39: 0 | R39: 0 | S39: 0
A40: Q72 | B40: RAE | C40: BRADFORD TEACHING HOSPITALS NHS FOUNDATION TRUST | D40: 11 | E40: 1 | F40: 0 | G40: * | H40: * | I40: * | J40: * | K40: * | L40: * | M40: * | N40: * | O40: * | P40: * | Q40: * | R40: * | S40: *
A41: Q72 | B41: RWY | C41: CALDERDALE AND HUDDERSFIELD NHS FOUNDATION TRUST | D41: 131 | E41: 0.9770992366 | F41: 0.007633587786 | G41: 101 | H41: 27 | I41: 2 | J41: 0 | K41: 1 | L41: 0 | M41: 0 | N41: 131 | O41: 0 | P41: 0 | Q41: 0 | R41: 0 | S41: 0
A42: Q72 | B42: RP5 | C42: DONCASTER AND BASSETLAW TEACHING HOSPITALS NHS FOUNDATION TRUST | D42: 50 | E42: 0.98 | F42: 0.02 | G42: 44 | H42: 5 | I42: 0 | J42: 1 | K42: 0 | L42: 0 | M42: 0 | N42: 0 | O42: 50 | P42: 0 | Q42: 0 | R42: 0 | S42: 0
A43: Q72 | B43: RCD | C43: HARROGATE AND DISTRICT NHS FOUNDATION TRUST | D43: 13 | E43: 1 | F43: 0 | G43: 11 | H43: 2 | I43: 0 | J43: 0 | K43: 0 | L43: 0 | M43: 0 | N43: 0 | O43: 13 | P43: 0 | Q43: 0 | R43: 0 | S43: 0
A44: Q72 | B44: RWA | C44: HULL AND EAST YORKSHIRE HOSPITALS NHS TRUST | D44: 13 | E44: 1 | F44: 0 | G44: 12 | H44: 1 | I44: 0 | J44: 0 | K44: 0 | L44: 0 | M44: 0 | N44: 0 | O44: 13 | P44: 0 | Q44: 0 | R44: 0 | S44: 0
A45: Q72 | B45: RR8 | C45: LEEDS TEACHING HOSPITALS NHS TRUST | D45: 30 | E45: 1 | F45: 0 | G45: 26 | H45: 4 | I45: 0 | J45: 0 | K45: 0 | L45: 0 | M45: 0 | N45: 0 | O45: 30 | P45: 0 | Q45: 0 | R45: 0 | S45: 0
A46: Q72 | B46: RXF | C46: MID YORKSHIRE HOSPITALS NHS TRUST | D46: 30 | E46: 1 | F46: 0 | G46: 27 | H46: 3 | I46: 0 | J46: 0 | K46: 0 | L46: 0 | M46: 0 | N46: 0 | O46: 30 | P46: 0 | Q46: 0 | R46: 0 | S46: 0
A47: Q72 | B47: RJL | C47: NORTHERN LINCOLNSHIRE AND GOOLE NHS FOUNDATION TRUST | D47: 2 | E47: * | F47: * | G47: * | H47: * | I47: * | J47: * | K47: * | L47: * | M47: * | N47: * | O47: * | P47: * | Q47: * | R47: * | S47: *
A48: Q72 | B48: RHQ | C48: SHEFFIELD TEACHING HOSPITALS NHS FOUNDATION TRUST | D48: 44 | E48: 1 | F48: 0 | G48: 39 | H48: 5 | I48: 0 | J48: 0 | K48: 0 | L48: 0 | M48: 0 | N48: 0 | O48: 44 | P48: 0 | Q48: 0 | R48: 0 | S48: 0
A49: Q72 | B49: RFR | C49: THE ROTHERHAM NHS FOUNDATION TRUST | D49: 34 | E49: 1 | F49: 0 | G49: 30 | H49: 4 | I49: 0 | J49: 0 | K49: 0 | L49: 0 | M49: 0 | N49: 0 | O49: 34 | P49: 0 | Q49: 0 | R49: 0 | S49: 0
A50: Q72 | B50: RCB | C50: YORK TEACHING HOSPITAL NHS FOUNDATION TRUST | D50: 92 | E50: 0.9782608696 | F50: 0 | G50: 78 | H50: 12 | I50: 2 | J50: 0 | K50: 0 | L50: 0 | M50: 0 | N50: 0 | O50: 92 | P50: 0 | Q50: 0 | R50: 0 | S50: 0
A51: Q74 | B51: RLN | C51: CITY HOSPITALS SUNDERLAND NHS FOUNDATION TRUST | D51: 0 | E51: NA | F51: NA | G51: 0 | H51: 0 | I51: 0 | J51: 0 | K51: 0 | L51: 0 | M51: 0 | N51: 0 | O51: 0 | P51: 0 | Q51: 0 | R51: 0 | S51: 0
A52: Q74 | B52: RXP | C52: COUNTY DURHAM AND DARLINGTON NHS FOUNDATION TRUST | D52: 8 | E52: 1 | F52: 0 | G52: 8 | H52: 0 | I52: 0 | J52: 0 | K52: 0 | L52: 0 | M52: 0 | N52: 0 | O52: 8 | P52: 0 | Q52: 0 | R52: 0 | S52: 0
A53: Q74 | B53: RR7 | C53: GATESHEAD HEALTH NHS FOUNDATION TRUST | D53: 14 | E53: 1 | F53: 0 | G53: 14 | H53: 0 | I53: 0 | J53: 0 | K53: 0 | L53: 0 | M53: 0 | N53: 0 | O53: 14 | P53: 0 | Q53: 0 | R53: 0 | S53: 0
A54: Q74 | B54: RNL | C54: NORTH CUMBRIA UNIVERSITY HOSPITALS NHS TRUST | D54: 29 | E54: 1 | F54: 0 | G54: 29 | H54: 0 | I54: 0 | J54: 0 | K54: 0 | L54: 0 | M54: 0 | N54: 0 | O54: 29 | P54: 0 | Q54: 0 | R54: 0 | S54: 0
A55: Q74 | B55: RVW | C55: NORTH TEES AND HARTLEPOOL NHS FOUNDATION TRUST | D55: 29 | E55: 1 | F55: 0 | G55: 24 | H55: 5 | I55: 0 | J55: 0 | K55: 0 | L55: 0 | M55: 0 | N55: 0 | O55: 29 | P55: 0 | Q55: 0 | R55: 0 | S55: 0
A56: Q74 | B56: RTF | C56: NORTHUMBRIA HEALTHCARE NHS FOUNDATION TRUST | D56: 79 | E56: 0.9746835443 | F56: 0.01265822785 | G56: 70 | H56: 7 | I56: 1 | J56: 0 | K56: 1 | L56: 0 | M56: 0 | N56: 0 | O56: 79 | P56: 0 | Q56: 0 | R56: 0 | S56: 0
A57: Q74 | B57: RTR | C57: SOUTH TEES HOSPITALS NHS FOUNDATION TRUST | D57: 6 | E57: 1 | F57: 0 | G57: 6 | H57: 0 | I57: 0 | J57: 0 | K57: 0 | L57: 0 | M57: 0 | N57: 0 | O57: 6 | P57: 0 | Q57: 0 | R57: 0 | S57: 0
A58: Q74 | B58: RE9 | C58: SOUTH TYNESIDE NHS FOUNDATION TRUST | D58: 4 | E58: * | F58: * | G58: * | H58: * | I58: * | J58: * | K58: * | L58: * | M58: * | N58: * | O58: * | P58: * | Q58: * | R58: * | S58: *
A59: Q74 | B59: RTD | C59: THE NEWCASTLE UPON TYNE HOSPITALS NHS FOUNDATION TRUST | D59: 2 | E59: * | F59: * | G59: * | H59: * | I59: * | J59: * | K59: * | L59: * | M59: * | N59: * | O59: * | P59: * | Q59: * | R59: * | S59: *
A60: Q74 | B60: RTX | C60: UNIVERSITY HOSPITALS OF MORECAMBE BAY NHS FOUNDATION TRUST | D60: 20 | E60: 1 | F60: 0 | G60: 18 | H60: 2 | I60: 0 | J60: 0 | K60: 0 | L60: 0 | M60: 0 | N60: 0 | O60: 20 | P60: 0 | Q60: 0 | R60: 0 | S60: 0
A61: Q75 | B61: RJR | C61: COUNTESS OF CHESTER HOSPITAL NHS FOUNDATION TRUST | D61: 29 | E61: 0.9655172414 | F61: 0.03448275862 | G61: 26 | H61: 2 | I61: 0 | J61: 1 | K61: 0 | L61: 0 | M61: 29 | N61: 0 | O61: 0 | P61: 0 | Q61: 0 | R61: 0 | S61: 0
A62: Q75 | B62: RJN | C62: EAST CHESHIRE NHS TRUST | D62: 3 | E62: * | F62: * | G62: * | H62: * | I62: * | J62: * | K62: * | L62: * | M62: * | N62: * | O62: * | P62: * | Q62: * | R62: * | S62: *
A63: Q75 | B63: REP | C63: LIVERPOOL WOMEN'S NHS FOUNDATION TRUST | D63: 0 | E63: NA | F63: NA | G63: 0 | H63: 0 | I63: 0 | J63: 0 | K63: 0 | L63: 0 | M63: 0 | N63: 0 | O63: 0 | P63: 0 | Q63: 0 | R63: 0 | S63: 0
A64: Q75 | B64: RBT | C64: MID CHESHIRE HOSPITALS NHS FOUNDATION TRUST | D64: 6 | E64: 1 | F64: 0 | G64: 6 | H64: 0 | I64: 0 | J64: 0 | K64: 0 | L64: 0 | M64: 0 | N64: 0 | O64: 6 | P64: 0 | Q64: 0 | R64: 0 | S64: 0
A65: Q75 | B65: RVY | C65: SOUTHPORT AND ORMSKIRK HOSPITAL NHS TRUST | D65: 1 | E65: * | F65: * | G65: * | H65: * | I65: * | J65: * | K65: * | L65: * | M65: * | N65: * | O65: * | P65: * | Q65: * | R65: * | S65: *
A66: Q75 | B66: RBN | C66: ST HELENS AND KNOWSLEY HOSPITAL SERVICES NHS TRUST | D66: 26 | E66: 1 | F66: 0 | G66: 25 | H66: 1 | I66: 0 | J66: 0 | K66: 0 | L66: 0 | M66: 0 | N66: 0 | O66: 26 | P66: 0 | Q66: 0 | R66: 0 | S66: 0
A67: Q75 | B67: RWW | C67: WARRINGTON AND HALTON HOSPITALS NHS FOUNDATION TRUST | D67: 10 | E67: 1 | F67: 0 | G67: 8 | H67: 2 | I67: 0 | J67: 0 | K67: 0 | L67: 0 | M67: 0 | N67: 0 | O67: 10 | P67: 0 | Q67: 0 | R67: 0 | S67: 0
A68: Q75 | B68: RBL | C68: WIRRAL UNIVERSITY TEACHING HOSPITAL NHS FOUNDATION TRUST | D68: 5 | E68: 1 | F68: 0 | G68: 5 | H68: 0 | I68: 0 | J68: 0 | K68: 0 | L68: 0 | M68: 0 | N68: 0 | O68: 5 | P68: 0 | Q68: 0 | R68: 0 | S68: 0
A69: Q76 | B69: RJF | C69: BURTON HOSPITALS NHS FOUNDATION TRUST | D69: 17 | E69: 0.9411764706 | F69: 0 | G69: 15 | H69: 1 | I69: 1 | J69: 0 | K69: 0 | L69: 0 | M69: 0 | N69: 0 | O69: 17 | P69: 0 | Q69: 0 | R69: 0 | S69: 0
A70: Q76 | B70: RFS | C70: CHESTERFIELD ROYAL HOSPITAL NHS FOUNDATION TRUST | D70: 0 | E70: NA | F70: NA | G70: 0 | H70: 0 | I70: 0 | J70: 0 | K70: 0 | L70: 0 | M70: 0 | N70: 0 | O70: 0 | P70: 0 | Q70: 0 | R70: 0 | S70: 0
A71: Q76 | B71: RTG | C71: DERBY TEACHING HOSPITALS NHS FOUNDATION TRUST | D71: 97 | E71: 0.9690721649 | F71: 0.01030927835 | G71: 83 | H71: 11 | I71: 2 | J71: 0 | K71: 1 | L71: 0 | M71: 1 | N71: 0 | O71: 96 | P71: 0 | Q71: 0 | R71: 0 | S71: 0
A72: Q76 | B72: RX1 | C72: NOTTINGHAM UNIVERSITY HOSPITALS NHS TRUST | D72: 214 | E72: 0.9953271028 | F72: 0 | G72: 186 | H72: 27 | I72: 1 | J72: 0 | K72: 0 | L72: 0 | M72: 0 | N72: 0 | O72: 214 | P72: 0 | Q72: 0 | R72: 0 | S72: 0
A73: Q76 | B73: RK5 | C73: SHERWOOD FOREST HOSPITALS NHS FOUNDATION TRUST | D73: 19 | E73: 1 | F73: 0 | G73: 18 | H73: 1 | I73: 0 | J73: 0 | K73: 0 | L73: 0 | M73: 0 | N73: 0 | O73: 19 | P73: 0 | Q73: 0 | R73: 0 | S73: 0
A74: Q76 | B74: RXW | C74: SHREWSBURY AND TELFORD HOSPITAL NHS TRUST | D74: 15 | E74: 1 | F74: 0 | G74: 15 | H74: 0 | I74: 0 | J74: 0 | K74: 0 | L74: 0 | M74: 0 | N74: 0 | O74: 15 | P74: 0 | Q74: 0 | R74: 0 | S74: 0
A75: Q76 | B75: RJE | C75: UNIVERSITY HOSPITALS OF NORTH MIDLANDS NHS TRUST | D75: 66 | E75: 1 | F75: 0 | G75: 59 | H75: 7 | I75: 0 | J75: 0 | K75: 0 | L75: 0 | M75: 0 | N75: 0 | O75: 66 | P75: 0 | Q75: 0 | R75: 0 | S75: 0
A76: Q77 | B76: RQ3 | C76: BIRMINGHAM WOMEN'S AND CHILDREN'S NHS FOUNDATION TRUST | D76: 40 | E76: 1 | F76: 0 | G76: 35 | H76: 5 | I76: 0 | J76: 0 | K76: 0 | L76: 0 | M76: 0 | N76: 0 | O76: 40 | P76: 0 | Q76: 0 | R76: 0 | S76: 0
A77: Q77 | B77: RLT | C77: GEORGE ELIOT HOSPITAL NHS TRUST | D77: 41 | E77: 0.9024390244 | F77: 0.0487804878 | G77: 30 | H77: 7 | I77: 2 | J77: 1 | K77: 1 | L77: 0 | M77: 23 | N77: 0 | O77: 18 | P77: 0 | Q77: 0 | R77: 0 | S77: 0
A78: Q77 | B78: RR1 | C78: HEART OF ENGLAND NHS FOUNDATION TRUST | D78: 0 | E78: NA | F78: NA | G78: 0 | H78: 0 | I78: 0 | J78: 0 | K78: 0 | L78: 0 | M78: 0 | N78: 0 | O78: 0 | P78: 0 | Q78: 0 | R78: 0 | S78: 0
A79: Q77 | B79: RXK | C79: SANDWELL AND WEST BIRMINGHAM HOSPITALS NHS TRUST | D79: 1 | E79: * | F79: * | G79: * | H79: * | I79: * | J79: * | K79: * | L79: * | M79: * | N79: * | O79: * | P79: * | Q79: * | R79: * | S79: *
A80: Q77 | B80: RJC | C80: SOUTH WARWICKSHIRE NHS FOUNDATION TRUST | D80: 0 | E80: NA | F80: NA | G80: 0 | H80: 0 | I80: 0 | J80: 0 | K80: 0 | L80: 0 | M80: 0 | N80: 0 | O80: 0 | P80: 0 | Q80: 0 | R80: 0 | S80: 0
A81: Q77 | B81: RNA | C81: THE DUDLEY GROUP NHS FOUNDATION TRUST | D81: 45 | E81: 1 | F81: 0 | G81: 42 | H81: 3 | I81: 0 | J81: 0 | K81: 0 | L81: 0 | M81: 0 | N81: 0 | O81: 45 | P81: 0 | Q81: 0 | R81: 0 | S81: 0
A82: Q77 | B82: RL4 | C82: THE ROYAL WOLVERHAMPTON NHS TRUST | D82: 15 | E82: 1 | F82: 0 | G82: 14 | H82: 1 | I82: 0 | J82: 0 | K82: 0 | L82: 0 | M82: 0 | N82: 0 | O82: 15 | P82: 0 | Q82: 0 | R82: 0 | S82: 0
A83: Q77 | B83: RKB | C83: UNIVERSITY HOSPITALS COVENTRY AND WARWICKSHIRE NHS TRUST | D83: 115 | E83: 0.9913043478 | F83: 0 | G83: 98 | H83: 16 | I83: 1 | J83: 0 | K83: 0 | L83: 0 | M83: 0 | N83: 0 | O83: 115 | P83: 0 | Q83: 0 | R83: 0 | S83: 0
A84: Q77 | B84: RBK | C84: WALSALL HEALTHCARE NHS TRUST | D84: 10 | E84: 0.7 | F84: 0.1 | G84: * | H84: * | I84: * | J84: * | K84: * | L84: * | M84: * | N84: * | O84: * | P84: * | Q84: * | R84: * | S84: *
A85: Q77 | B85: RWP | C85: WORCESTERSHIRE ACUTE HOSPITALS NHS TRUST | D85: 42 | E85: 1 | F85: 0 | G85: 38 | H85: 4 | I85: 0 | J85: 0 | K85: 0 | L85: 0 | M85: 0 | N85: 0 | O85: 42 | P85: 0 | Q85: 0 | R85: 0 | S85: 0
A86: Q77 | B86: RLQ | C86: WYE VALLEY NHS TRUST | D86: 20 | E86: 0.95 | F86: 0.05 | G86: 17 | H86: 2 | I86: 0 | J86: 0 | K86: 1 | L86: 0 | M86: 0 | N86: 0 | O86: 20 | P86: 0 | Q86: 0 | R86: 0 | S86: 0
A87: Q78 | B87: RC1 | C87: BEDFORD HOSPITAL NHS TRUST | D87: 48 | E87: 0.9791666667 | F87: 0 | G87: 38 | H87: 9 | I87: 1 | J87: 0 | K87: 0 | L87: 0 | M87: 23 | N87: 0 | O87: 0 | P87: 0 | Q87: 0 | R87: 25 | S87: 0
A88: Q78 | B88: RWH | C88: EAST AND NORTH HERTFORDSHIRE NHS TRUST | D88: 4 | E88: * | F88: * | G88: * | H88: * | I88: * | J88: * | K88: * | L88: * | M88: * | N88: * | O88: * | P88: * | Q88: * | R88: * | S88: *
A89: Q78 | B89: RNQ | C89: KETTERING GENERAL HOSPITAL NHS FOUNDATION TRUST | D89: 0 | E89: NA | F89: NA | G89: 0 | H89: 0 | I89: 0 | J89: 0 | K89: 0 | L89: 0 | M89: 0 | N89: 0 | O89: 0 | P89: 0 | Q89: 0 | R89: 0 | S89: 0
A90: Q78 | B90: RC9 | C90: LUTON AND DUNSTABLE UNIVERSITY HOSPITAL NHS FOUNDATION TRUST | D90: 10 | E90: 0.8 | F90: 0 | G90: * | H90: * | I90: * | J90: * | K90: * | L90: * | M90: * | N90: * | O90: * | P90: * | Q90: * | R90: * | S90: *
A91: Q78 | B91: RD8 | C91: MILTON KEYNES UNIVERSITY HOSPITAL NHS FOUNDATION TRUST | D91: 30 | E91: 0.9333333333 | F91: 0.03333333333 | G91: 19 | H91: 9 | I91: 1 | J91: 1 | K91: 0 | L91: 0 | M91: 0 | N91: 0 | O91: 29 | P91: 0 | Q91: 0 | R91: 1 | S91: 0
A92: Q78 | B92: RNS | C92: NORTHAMPTON GENERAL HOSPITAL NHS TRUST | D92: 124 | E92: 0.9758064516 | F92: 0 | G92: 102 | H92: 19 | I92: 2 | J92: 0 | K92: 0 | L92: 1 | M92: 0 | N92: 0 | O92: 0 | P92: 0 | Q92: 0 | R92: 124 | S92: 0
A93: Q78 | B93: RWD | C93: UNITED LINCOLNSHIRE HOSPITALS NHS TRUST | D93: 36 | E93: 0.9722222222 | F93: 0 | G93: 34 | H93: 1 | I93: 1 | J93: 0 | K93: 0 | L93: 0 | M93: 0 | N93: 0 | O93: 36 | P93: 0 | Q93: 0 | R93: 0 | S93: 0
A94: Q78 | B94: RWE | C94: UNIVERSITY HOSPITALS OF LEICESTER NHS TRUST | D94: 323 | E94: 0.9938080495 | F94: 0.003095975232 | G94: 255 | H94: 66 | I94: 1 | J94: 1 | K94: 0 | L94: 0 | M94: 0 | N94: 4 | O94: 319 | P94: 0 | Q94: 0 | R94: 0 | S94: 0
A95: Q78 | B95: RWG | C95: WEST HERTFORDSHIRE HOSPITALS NHS TRUST | D95: 20 | E95: 1 | F95: 0 | G95: 18 | H95: 2 | I95: 0 | J95: 0 | K95: 0 | L95: 0 | M95: 0 | N95: 0 | O95: 19 | P95: 0 | Q95: 0 | R95: 1 | S95: 0
A96: Q79 | B96: RDD | C96: BASILDON AND THURROCK UNIVERSITY HOSPITALS NHS FOUNDATION TRUST | D96: 57 | E96: 0.9824561404 | F96: 0 | G96: 52 | H96: 4 | I96: 0 | J96: 0 | K96: 0 | L96: 1 | M96: 0 | N96: 0 | O96: 57 | P96: 0 | Q96: 0 | R96: 0 | S96: 0
A97: Q79 | B97: RGT | C97: CAMBRIDGE UNIVERSITY HOSPITALS NHS FOUNDATION TRUST | D97: 8 | E97: 1 | F97: 0 | G97: 6 | H97: 2 | I97: 0 | J97: 0 | K97: 0 | L97: 0 | M97: 0 | N97: 0 | O97: 8 | P97: 0 | Q97: 0 | R97: 0 | S97: 0
A98: Q79 | B98: RDE | C98: COLCHESTER HOSPITAL UNIVERSITY NHS FOUNDATION TRUST | D98: 0 | E98: NA | F98: NA | G98: 0 | H98: 0 | I98: 0 | J98: 0 | K98: 0 | L98: 0 | M98: 0 | N98: 0 | O98: 0 | P98: 0 | Q98: 0 | R98: 0 | S98: 0
A99: Q79 | B99: RGQ | C99: IPSWICH HOSPITAL NHS TRUST | D99: 82 | E99: 0.9756097561 | F99: 0 | G99: 74 | H99: 6 | I99: 2 | J99: 0 | K99: 0 | L99: 0 | M99: 0 | N99: 80 | O99: 1 | P99: 0 | Q99: 0 | R99: 1 | S99: 0
A100: Q79 | B100: RGP | C100: JAMES PAGET UNIVERSITY HOSPITALS NHS FOUNDATION TRUST | D100: 6 | E100: 1 | F100: 0 | G100: * | H100: * | I100: * | J100: * | K100: * | L100: * | M100: * | N100: * | O100: * | P100: * | Q100: * | R100: * | S100: *
A101: Q79 | B101: RQ8 | C101: MID ESSEX HOSPITAL SERVICES NHS TRUST | D101: 37 | E101: 0.972972973 | F101: 0.02702702703 | G101: 30 | H101: 6 | I101: 0 | J101: 0 | K101: 1 | L101: 0 | M101: 37 | N101: 0 | O101: 0 | P101: 0 | Q101: 0 | R101: 0 | S101: 0
A102: Q79 | B102: RM1 | C102: NORFOLK AND NORWICH UNIVERSITY HOSPITALS NHS FOUNDATION TRUST | D102: 19 | E102: 1 | F102: 0 | G102: 15 | H102: 4 | I102: 0 | J102: 0 | K102: 0 | L102: 0 | M102: 0 | N102: 0 | O102: 19 | P102: 0 | Q102: 0 | R102: 0 | S102: 0
A103: Q79 | B103: RGN | C103: NORTH WEST ANGLIA NHS FOUNDATION TRUST | D103: 126 | E103: 0.9920634921 | F103: 0 | G103: 103 | H103: 22 | I103: 0 | J103: 0 | K103: 0 | L103: 1 | M103: 0 | N103: 0 | O103: 126 | P103: 0 | Q103: 0 | R103: 0 | S103: 0
A104: Q79 | B104: RAJ | C104: SOUTHEND UNIVERSITY HOSPITAL NHS FOUNDATION TRUST | D104: 4 | E104: * | F104: * | G104: * | H104: * | I104: * | J104: * | K104: * | L104: * | M104: * | N104: * | O104: * | P104: * | Q104: * | R104: * | S104: *
A105: Q79 | B105: RQW | C105: THE PRINCESS ALEXANDRA HOSPITAL NHS TRUST | D105: 52 | E105: 0.9230769231 | F105: 0 | G105: 39 | H105: 9 | I105: 0 | J105: 0 | K105: 0 | L105: 4 | M105: 0 | N105: 0 | O105: 0 | P105: 0 | Q105: 0 | R105: 0 | S105: 52
A106: Q79 | B106: RCX | C106: THE QUEEN ELIZABETH HOSPITAL, KING'S LYNN, NHS FOUNDATION TRUST | D106: 11 | E106: 1 | F106: 0 | G106: 9 | H106: 2 | I106: 0 | J106: 0 | K106: 0 | L106: 0 | M106: 0 | N106: 0 | O106: 11 | P106: 0 | Q106: 0 | R106: 0 | S106: 0
A107: Q79 | B107: RGR | C107: WEST SUFFOLK NHS FOUNDATION TRUST | D107: 30 | E107: 1 | F107: 0 | G107: 26 | H107: 4 | I107: 0 | J107: 0 | K107: 0 | L107: 0 | M107: 0 | N107: 30 | O107: 0 | P107: 0 | Q107: 0 | R107: 0 | S107: 0
A108: Q80 | B108: RVJ | C108: NORTH BRISTOL NHS TRUST | D108: 63 | E108: 0.9047619048 | F108: 0.04761904762 | G108: 46 | H108: 11 | I108: 3 | J108: 2 | K108: 1 | L108: 0 | M108: 53 | N108: 0 | O108: 10 | P108: 0 | Q108: 0 | R108: 0 | S108: 0
A109: Q80 | B109: RBZ | C109: NORTHERN DEVON HEALTHCARE NHS TRUST | D109: 3 | E109: * | F109: * | G109: * | H109: * | I109: * | J109: * | K109: * | L109: * | M109: * | N109: * | O109: * | P109: * | Q109: * | R109: * | S109: *
A110: Q80 | B110: RK9 | C110: PLYMOUTH HOSPITALS NHS TRUST | D110: 92 | E110: 0.9565217391 | F110: 0 | G110: 75 | H110: 13 | I110: 3 | J110: 0 | K110: 0 | L110: 1 | M110: 0 | N110: 0 | O110: 92 | P110: 0 | Q110: 0 | R110: 0 | S110: 0
A111: Q80 | B111: REF | C111: ROYAL CORNWALL HOSPITALS NHS TRUST | D111: 21 | E111: 0.9523809524 | F111: 0 | G111: 17 | H111: 3 | I111: 0 | J111: 0 | K111: 0 | L111: 1 | M111: 0 | N111: 0 | O111: 21 | P111: 0 | Q111: 0 | R111: 0 | S111: 0
A112: Q80 | B112: RH8 | C112: ROYAL DEVON AND EXETER NHS FOUNDATION TRUST | D112: 0 | E112: NA | F112: NA | G112: 0 | H112: 0 | I112: 0 | J112: 0 | K112: 0 | L112: 0 | M112: 0 | N112: 0 | O112: 0 | P112: 0 | Q112: 0 | R112: 0 | S112: 0
A113: Q80 | B113: RBA | C113: TAUNTON AND SOMERSET NHS FOUNDATION TRUST | D113: 32 | E113: 0.9375 | F113: 0 | G113: 26 | H113: 4 | I113: 2 | J113: 0 | K113: 0 | L113: 0 | M113: 0 | N113: 0 | O113: 32 | P113: 0 | Q113: 0 | R113: 0 | S113: 0
A114: Q80 | B114: RA9 | C114: TORBAY AND SOUTH DEVON NHS FOUNDATION TRUST | D114: 7 | E114: 0.8571428571 | F114: 0 | G114: * | H114: * | I114: * | J114: * | K114: * | L114: * | M114: * | N114: * | O114: * | P114: * | Q114: * | R114: * | S114: *
A115: Q80 | B115: RA7 | C115: UNIVERSITY HOSPITALS BRISTOL NHS FOUNDATION TRUST | D115: 65 | E115: 0.9846153846 | F115: 0.01538461538 | G115: 58 | H115: 6 | I115: 0 | J115: 1 | K115: 0 | L115: 0 | M115: 0 | N115: 0 | O115: 65 | P115: 0 | Q115: 0 | R115: 0 | S115: 0
A116: Q80 | B116: RA3 | C116: WESTON AREA HEALTH NHS TRUST | D116: 41 | E116: 0.9756097561 | F116: 0.0243902439 | G116: 33 | H116: 7 | I116: 0 | J116: 1 | K116: 0 | L116: 0 | M116: 0 | N116: 0 | O116: 41 | P116: 0 | Q116: 0 | R116: 0 | S116: 0
A117: Q80 | B117: RA4 | C117: YEOVIL DISTRICT HOSPITAL NHS FOUNDATION TRUST | D117: 0 | E117: NA | F117: NA | G117: 0 | H117: 0 | I117: 0 | J117: 0 | K117: 0 | L117: 0 | M117: 0 | N117: 0 | O117: 0 | P117: 0 | Q117: 0 | R117: 0 | S117: 0
A118: Q81 | B118: RTK | C118: ASHFORD AND ST PETER'S HOSPITALS NHS FOUNDATION TRUST | D118: 0 | E118: NA | F118: NA | G118: 0 | H118: 0 | I118: 0 | J118: 0 | K118: 0 | L118: 0 | M118: 0 | N118: 0 | O118: 0 | P118: 0 | Q118: 0 | R118: 0 | S118: 0
A119: Q81 | B119: RXH | C119: BRIGHTON AND SUSSEX UNIVERSITY HOSPITALS NHS TRUST | D119: 20 | E119: 0.8 | F119: 0.1 | G119: 15 | H119: 1 | I119: 1 | J119: 2 | K119: 0 | L119: 1 | M119: 20 | N119: 0 | O119: 0 | P119: 0 | Q119: 0 | R119: 0 | S119: 0
A120: Q81 | B120: RN7 | C120: DARTFORD AND GRAVESHAM NHS TRUST | D120: 0 | E120: NA | F120: NA | G120: 0 | H120: 0 | I120: 0 | J120: 0 | K120: 0 | L120: 0 | M120: 0 | N120: 0 | O120: 0 | P120: 0 | Q120: 0 | R120: 0 | S120: 0
A121: Q81 | B121: RVV | C121: EAST KENT HOSPITALS UNIVERSITY NHS FOUNDATION TRUST | D121: 6 | E121: 1 | F121: 0 | G121: * | H121: * | I121: * | J121: * | K121: * | L121: * | M121: * | N121: * | O121: * | P121: * | Q121: * | R121: * | S121: *
A122: Q81 | B122: RXC | C122: EAST SUSSEX HEALTHCARE NHS TRUST | D122: 9 | E122: 1 | F122: 0 | G122: 7 | H122: 2 | I122: 0 | J122: 0 | K122: 0 | L122: 0 | M122: 0 | N122: 9 | O122: 0 | P122: 0 | Q122: 0 | R122: 0 | S122: 0
A123: Q81 | B123: RDU | C123: FRIMLEY HEALTH NHS FOUNDATION TRUST | D123: 148 | E123: 0.9932432432 | F123: 0 | G123: 131 | H123: 16 | I123: 1 | J123: 0 | K123: 0 | L123: 0 | M123: 0 | N123: 0 | O123: 147 | P123: 0 | Q123: 0 | R123: 1 | S123: 0
A124: Q81 | B124: RWF | C124: MAIDSTONE AND TUNBRIDGE WELLS NHS TRUST | D124: 6 | E124: 1 | F124: 0 | G124: 5 | H124: 1 | I124: 0 | J124: 0 | K124: 0 | L124: 0 | M124: 0 | N124: 0 | O124: 6 | P124: 0 | Q124: 0 | R124: 0 | S124: 0
A125: Q81 | B125: RPA | C125: MEDWAY NHS FOUNDATION TRUST | D125: 2 | E125: * | F125: * | G125: * | H125: * | I125: * | J125: * | K125: * | L125: * | M125: * | N125: * | O125: * | P125: * | Q125: * | R125: * | S125: *
A126: Q81 | B126: RA2 | C126: ROYAL SURREY COUNTY HOSPITAL NHS FOUNDATION TRUST | D126: 71 | E126: 0.9295774648 | F126: 0.01408450704 | G126: 58 | H126: 8 | I126: 1 | J126: 0 | K126: 1 | L126: 3 | M126: 57 | N126: 0 | O126: 14 | P126: 0 | Q126: 0 | R126: 0 | S126: 0
A127: Q81 | B127: RTP | C127: SURREY AND SUSSEX HEALTHCARE NHS TRUST | D127: 43 | E127: 0.976744186 | F127: 0 | G127: 36 | H127: 6 | I127: 1 | J127: 0 | K127: 0 | L127: 0 | M127: 0 | N127: 0 | O127: 42 | P127: 0 | Q127: 0 | R127: 1 | S127: 0
A128: Q81 | B128: RYR | C128: WESTERN SUSSEX HOSPITALS NHS FOUNDATION TRUST | D128: 21 | E128: 1 | F128: 0 | G128: 19 | H128: 2 | I128: 0 | J128: 0 | K128: 0 | L128: 0 | M128: 0 | N128: 0 | O128: 21 | P128: 0 | Q128: 0 | R128: 0 | S128: 0
A129: Q82 | B129: RXQ | C129: BUCKINGHAMSHIRE HEALTHCARE NHS TRUST | D129: 30 | E129: 1 | F129: 0 | G129: 28 | H129: 2 | I129: 0 | J129: 0 | K129: 0 | L129: 0 | M129: 0 | N129: 0 | O129: 30 | P129: 0 | Q129: 0 | R129: 0 | S129: 0
A130: Q82 | B130: RTE | C130: GLOUCESTERSHIRE HOSPITALS NHS FOUNDATION TRUST | D130: 0 | E130: NA | F130: NA | G130: 0 | H130: 0 | I130: 0 | J130: 0 | K130: 0 | L130: 0 | M130: 0 | N130: 0 | O130: 0 | P130: 0 | Q130: 0 | R130: 0 | S130: 0
A131: Q82 | B131: RN3 | C131: GREAT WESTERN HOSPITALS NHS FOUNDATION TRUST | D131: 13 | E131: 0.9230769231 | F131: 0 | G131: 10 | H131: 2 | I131: 1 | J131: 0 | K131: 0 | L131: 0 | M131: 0 | N131: 0 | O131: 13 | P131: 0 | Q131: 0 | R131: 0 | S131: 0
A132: Q82 | B132: RTH | C132: OXFORD UNIVERSITY HOSPITALS NHS FOUNDATION TRUST | D132: 123 | E132: 0.9756097561 | F132: 0 | G132: 111 | H132: 9 | I132: 2 | J132: 0 | K132: 0 | L132: 1 | M132: 0 | N132: 0 | O132: 122 | P132: 0 | Q132: 0 | R132: 1 | S132: 0
A133: Q82 | B133: RHW | C133: ROYAL BERKSHIRE NHS FOUNDATION TRUST | D133: 44 | E133: 1 | F133: 0 | G133: 31 | H133: 13 | I133: 0 | J133: 0 | K133: 0 | L133: 0 | M133: 0 | N133: 0 | O133: 44 | P133: 0 | Q133: 0 | R133: 0 | S133: 0
A134: Q82 | B134: RD1 | C134: ROYAL UNITED HOSPITALS BATH NHS FOUNDATION TRUST | D134: 56 | E134: 1 | F134: 0 | G134: 51 | H134: 5 | I134: 0 | J134: 0 | K134: 0 | L134: 0 | M134: 0 | N134: 0 | O134: 56 | P134: 0 | Q134: 0 | R134: 0 | S134: 0
A135: Q82 | B135: RNZ | C135: SALISBURY NHS FOUNDATION TRUST | D135: 11 | E135: 1 | F135: 0 | G135: 11 | H135: 0 | I135: 0 | J135: 0 | K135: 0 | L135: 0 | M135: 0 | N135: 0 | O135: 11 | P135: 0 | Q135: 0 | R135: 0 | S135: 0
A136: Q83 | B136: RMC | C136: BOLTON NHS FOUNDATION TRUST | D136: 47 | E136: 1 | F136: 0 | G136: 37 | H136: 10 | I136: 0 | J136: 0 | K136: 0 | L136: 0 | M136: 26 | N136: 0 | O136: 0 | P136: 21 | Q136: 0 | R136: 0 | S136: 0
A137: Q83 | B137: RY2 | C137: BRIDGEWATER COMMUNITY HEALTHCARE NHS FOUNDATION TRUST | D137: 53 | E137: 0.9811320755 | F137: 0 | G137: 47 | H137: 5 | I137: 1 | J137: 0 | K137: 0 | L137: 0 | M137: 0 | N137: 0 | O137: 53 | P137: 0 | Q137: 0 | R137: 0 | S137: 0
A138: Q83 | B138: RW3 | C138: CENTRAL MANCHESTER UNIVERSITY HOSPITALS NHS FOUNDATION TRUST | D138: 0 | E138: NA | F138: NA | G138: 0 | H138: 0 | I138: 0 | J138: 0 | K138: 0 | L138: 0 | M138: 0 | N138: 0 | O138: 0 | P138: 0 | Q138: 0 | R138: 0 | S138: 0
A139: Q83 | B139: RW6 | C139: PENNINE ACUTE HOSPITALS NHS TRUST | D139: 34 | E139: 0.9411764706 | F139: 0.02941176471 | G139: 29 | H139: 3 | I139: 1 | J139: 0 | K139: 1 | L139: 0 | M139: 29 | N139: 0 | O139: 5 | P139: 0 | Q139: 0 | R139: 0 | S139: 0
A140: Q83 | B140: RWJ | C140: STOCKPORT NHS FOUNDATION TRUST | D140: 31 | E140: 0.935483871 | F140: 0.03225806452 | G140: 27 | H140: 2 | I140: 1 | J140: 1 | K140: 0 | L140: 0 | M140: 0 | N140: 0 | O140: 0 | P140: 31 | Q140: 0 | R140: 0 | S140: 0
A141: Q83 | B141: RMP | C141: TAMESIDE AND GLOSSOP INTEGRATED CARE NHS FOUNDATION TRUST | D141: 17 | E141: 1 | F141: 0 | G141: 16 | H141: 1 | I141: 0 | J141: 0 | K141: 0 | L141: 0 | M141: 0 | N141: 0 | O141: 17 | P141: 0 | Q141: 0 | R141: 0 | S141: 0
A142: Q83 | B142: RM2 | C142: UNIVERSITY HOSPITAL OF SOUTH MANCHESTER NHS FOUNDATION TRUST | D142: 51 | E142: 1 | F142: 0 | G142: 47 | H142: 4 | I142: 0 | J142: 0 | K142: 0 | L142: 0 | M142: 0 | N142: 0 | O142: 51 | P142: 0 | Q142: 0 | R142: 0 | S142: 0
A143: Q83 | B143: RRF | C143: WRIGHTINGTON, WIGAN AND LEIGH NHS FOUNDATION TRUST | D143: 12 | E143: 1 | F143: 0 | G143: 10 | H143: 2 | I143: 0 | J143: 0 | K143: 0 | L143: 0 | M143: 6 | N143: 0 | O143: 6 | P143: 0 | Q143: 0 | R143: 0 | S143: 0
A144: Q84 | B144: RXL | C144: BLACKPOOL TEACHING HOSPITALS NHS FOUNDATION TRUST | D144: 21 | E144: 1 | F144: 0 | G144: 18 | H144: 3 | I144: 0 | J144: 0 | K144: 0 | L144: 0 | M144: 0 | N144: 0 | O144: 21 | P144: 0 | Q144: 0 | R144: 0 | S144: 0
A145: Q84 | B145: RXR | C145: EAST LANCASHIRE HOSPITALS NHS TRUST | D145: 87 | E145: 0.9540229885 | F145: 0 | G145: 68 | H145: 15 | I145: 4 | J145: 0 | K145: 0 | L145: 0 | M145: 49 | N145: 0 | O145: 38 | P145: 0 | Q145: 0 | R145: 0 | S145: 0
A146: Q84 | B146: RXN | C146: LANCASHIRE TEACHING HOSPITALS NHS FOUNDATION TRUST | D146: 60 | E146: 0.9833333333 | F146: 0.01666666667 | G146: 52 | H146: 7 | I146: 0 | J146: 1 | K146: 0 | L146: 0 | M146: 60 | N146: 0 | O146: 0 | P146: 0 | Q146: 0 | R146: 0 | S146: 0

Sheet BSQ1 (hidden)
B1: Sort | C1: Region (Geo) | D1: Region (Geo) | E1: Trusts | F1: Trusts | G1: Sites | H1: Sites | J1: Sort ranges: | K1: Sort range… | L1: Sort range… | M1: Sort range… | N1: Reference Region List: | O1: Code… | P1: Name… | Q1: Linked Region List: | R1: Code… | S1: Name… | T1: Reference Lists: | U1: Code… | V1: Code… | W1: Name… | X1: Code… | Y1: Name… | Z1: Trusts Linked Lists: | AA1: Code… | AB1: Name… | AC1: Site Linked Lists: | AD1: Code… | AE1: Name… | AF1: Code… | AG1: Name…
A2: Region (Geo) | B2: 1 | C2: 1 | D2: 1 | E2: - | F2: - | G2: - | H2: - | K2: Region (Geo) Code | L2: Region (Geo) Code | M2: Region (Geo) Code | O2: Q72 | P2: NHS England Yorkshire & Humber | R2: Q70 | S2: NHS England Central Midlands | U2: Q70 | V2: RBD | W2: DORSET COUNTY HOSPITAL NHS FOUNDATION TRUST | X2: RBD01 | Y2: Dorset County Hospital - RBD01 | AA2: R1F | AB2: AIREDALE NHS FOUNDATION TRUST | AD2: R1F | AE2: AIREDALE NHS FOUNDATION TRUST | AF2: R1F01 | AG2: Airedale General Hospital - RCF22
A3: Trusts | B3: 1 | C3: 1 | D3: 1 | E3: 1 | F3: 1 | G3: - | H3: - | K3: Region (Geography) | L3: Trust Code | M3: Trust Code | O3: Q74 | P3: NHS England Cumbria & North East | R3: Q71 | S3: NHS England Cheshire & Merseyside | U3: Q70 | V3: RN5 | W3: HAMPSHIRE HOSPITALS NHS FOUNDATION TRUST | X3: RN542 | Y3: Andover War Memorial Hospital - RN542 | AA3: R1H | AB3: ASHFORD AND ST PETER'S HOSPITALS NHS FOUNDATION TRUST | AD3: R1H | AE3: ASHFORD AND ST PETER'S HOSPITALS NHS FOUNDATION TRUST | AF3: R1H12 | AG3: Alexandra Hospital - RWP01
A4: Sites | B4: 1 | C4: 1 | D4: 1 | E4: 1 | F4: 1 | G4: 1 | H4: 1 | K4: Total Responses | L4: Trust Name | M4: Trust Name | O4: Q75 | P4: NHS England Cheshire & Merseyside | R4: Q72 | S4: NHS England Cumbria & North East | U4: Q70 | V4: RN5 | W4: HAMPSHIRE HOSPITALS NHS FOUNDATION TRUST | X4: RN506 | Y4: Basingstoke and North Hampshire Hospital - RN506 | AA4: R1K | AB4: BARKING, HAVERING AND REDBRIDGE UNIVERSITY HOSPITALS NHS TRUST | AD4: R1K | AE4: BARKING, HAVERING AND REDBRIDGE UNIVERSITY HOSPITALS NHS TRUST | AF4: R1HKH | AG4: Andover War Memorial Hospital - RN542
K5: Percentage Recommended | L5: Total Responses | M5: Site Code | O5: Q83 | P5: NHS England Greater Manchester | R5: Q74 | S5: NHS England East | U5: Q70 | V5: RN5 | W5: HAMPSHIRE HOSPITALS NHS FOUNDATION TRUST | X5: RN541 | Y5: Royal Hampshire County Hospital - RN541 | AA5: RA2 | AB5: BARNSLEY HOSPITAL NHS FOUNDATION TRUST | AD5: RA2 | AE5: BARNSLEY HOSPITAL NHS FOUNDATION TRUST | AF5: R1HNH | AG5: Arrowe Park Hospital - RBL14
K6: Percentage Not Recommended | L6: Percentage Recommended | M6: Site Name | O6: Q84 | P6: NHS England Lancashire | R6: Q75 | S6: NHS England Greater Manchester | U6: Q70 | V6: R1F | W6: ISLE OF WIGHT NHS TRUST | X6: R1F01 | Y6: St Mary's Hospital - R1F01 | AA6: RA3 | AB6: BARTS HEALTH NHS TRUST | AD6: RA3 | AE6: BARTS HEALTH NHS TRUST | AF6: R1K01 | AG6: Barnet Hospital - RAL26
K7: Extremely Likely | L7: Percentage Not Recommended | M7: Total Responses | O7: Q76 | P7: NHS England North Midlands | R7: Q76 | S7: NHS England Lancashire | U7: Q70 | V7: RD3 | W7: POOLE HOSPITAL NHS FOUNDATION TRUST | X7: RD304 | Y7: Poole General Hospital NHS Trust HQ - RD304 | AA7: RA4 | AB7: BASILDON AND THURROCK UNIVERSITY HOSPITALS NHS FOUNDATION TRUST | AD7: RA4 | AE7: BASILDON AND THURROCK UNIVERSITY HOSPITALS NHS FOUNDATION TRUST | AF7: R1K02 | AG7: Barnsley Hospital NHS Foundation Trust HQ - RFFAA
K8: Likely | L8: Extremely Likely | M8: Percentage Recommended | O8: Q77 | P8: NHS England West Midlands | R8: Q77 | S8: NHS England London | U8: Q70 | V8: RHU | W8: PORTSMOUTH HOSPITALS NHS TRUST | X8: RHU10 | Y8: Gosport War Memorial Hospital - RHU10 | AA8: RA7 | AB8: BEDFORD HOSPITAL NHS TRUST | AD8: RA7 | AE8: BEDFORD HOSPITAL NHS TRUST | AF8: R1K04 | AG8: Basildon University Hospital - RDDH0
K9: Neither | L9: Likely | M9: Percentage Not Recommended | O9: Q78 | P9: NHS England Central Midlands | R9: Q78 | S9: NHS England North Midlands | U9: Q70 | V9: RHU | W9: PORTSMOUTH HOSPITALS NHS TRUST | X9: RHU04 | Y9: Petersfield Community Hospital - RHU04 | AA9: RA9 | AB9: BIRMINGHAM WOMEN'S AND CHILDREN'S NHS FOUNDATION TRUST | AD9: RA9 | AE9: BIRMINGHAM WOMEN'S AND CHILDREN'S NHS FOUNDATION TRUST | AF9: R1KXXX | AG9: Basingstoke and North Hampshire Hospital - RN506
K10: Unlikely | L10: Neither | M10: Extremely Likely | O10: Q79 | P10: NHS England East | R10: Q79 | S10: NHS England South Central | U10: Q70 | V10: RHU | W10: PORTSMOUTH HOSPITALS NHS TRUST | X10: RHU03 | Y10: Queen Alexandra Hospital - RHU03 | AA10: RAE | AB10: BLACKPOOL TEACHING HOSPITALS NHS FOUNDATION TRUST | AD10: RAE | AE10: BLACKPOOL TEACHING HOSPITALS NHS FOUNDATION TRUST | AF10: RA201 | AG10: Bassetlaw Hospital - RP5BA
K11: Extremely Unlikely | L11: Unlikely | M11: Likely | O11: Q80 | P11: NHS England South West | R11: Q80 | S11: NHS England South East | U11: Q70 | V11: RHU | W11: PORTSMOUTH HOSPITALS NHS TRUST | X11: RHU02 | Y11: St Mary's Hospital - RHU02 | AA11: RAJ | AB11: BOLTON NHS FOUNDATION TRUST | AD11: RAJ | AE11: BOLTON NHS FOUNDATION TRUST | AF11: RA301 | AG11: Bedford Hospital South Wing - RC110
K12: Don't Know | L12: Extremely Unlikely | M12: Neither | O12: Q81 | P12: NHS England South East | R12: Q81 | S12: NHS England South West | U12: Q70 | V12: RDZ | W12: THE ROYAL BOURNEMOUTH AND CHRISTCHURCH HOSPITALS NHS FOUNDATION TRUST | X12: RDZ20 | Y12: Royal Bournemouth General Hospital - RDZ20 | AA12: RAL | AB12: BRADFORD TEACHING HOSPITALS NHS FOUNDATION TRUST | AD12: RAL | AE12: BRADFORD TEACHING HOSPITALS NHS FOUNDATION TRUST | AF12: RA430 | AG12: Birmingham Women's Hospital - RQ370
L13: Don't Know | M13: Unlikely | O13: Q82 | P13: NHS England South Central | R13: Q82 | S13: NHS England Wessex | U13: Q70 | V13: RHM | W13: UNIVERSITY HOSPITAL SOUTHAMPTON NHS FOUNDATION TRUST | X13: RHM12 | Y13: Princess Anne Hospital - RHM12 | AA13: RAP | AB13: BRIDGEWATER COMMUNITY HEALTHCARE NHS FOUNDATION TRUST | AD13: RAP | AE13: BRIDGEWATER COMMUNITY HEALTHCARE NHS FOUNDATION TRUST | AF13: RA707 | AG13: Blackpool Victoria Hospital - RXL01
L14: SMS/Text / Smartphone App | M14: Extremely Unlikely | O14: Q70 | P14: NHS England Wessex | R14: Q83 | S14: NHS England West Midlands | U14: Q71 | V14: RF4 | W14: BARKING, HAVERING AND REDBRIDGE UNIVERSITY HOSPITALS NHS TRUST | X14: RF4QH | Y14: Queen's Hospital - RF4QH | AA14: RAS | AB14: BRIGHTON AND SUSSEX UNIVERSITY HOSPITALS NHS TRUST | AD14: RAS | AE14: BRIGHTON AND SUSSEX UNIVERSITY HOSPITALS NHS TRUST | AF14: RA901 | AG14: Bradford Royal Infirmary - RAE01
L15: Electronic tablet/kiosk at point of discharge | M15: Don't Know | O15: Q71 | P15: NHS England London | R15: Q84 | S15: NHS England Yorkshire & Humber | U15: Q71 | V15: R1H | W15: BARTS HEALTH NHS TRUST | X15: R1HNH | Y15: Newham General Hospital - R1HNH | AA15: RAX | AB15: BUCKINGHAMSHIRE HEALTHCARE NHS TRUST | AD15: RAX | AE15: BUCKINGHAMSHIRE HEALTHCARE NHS TRUST | AF15: RAE01 | AG15: Bridgwater Hospital - RBAC3
L16: Paper / postcard at point of discharge | U16: Q71 | V16: R1H | W16: BARTS HEALTH NHS TRUST | X16: R1H12 | Y16: The Royal London Hospital - R1H12 | AA16: RBA | AB16: BURTON HOSPITALS NHS FOUNDATION TRUST | AD16: RBA | AE16: BURTON HOSPITALS NHS FOUNDATION TRUST | AF16: RAEXXX | AG16: Broomfield Hospital - RQ8L0
L17: Paper survey, sent to the patients home | U17: Q71 | V17: R1H | W17: BARTS HEALTH NHS TRUST | X17: R1HKH | Y17: Whipps Cross University Hospital - R1HKH | AA17: RBD | AB17: CALDERDALE AND HUDDERSFIELD NHS FOUNDATION TRUST | AD17: RBD | AE17: CALDERDALE AND HUDDERSFIELD NHS FOUNDATION TRUST | AF17: RAJ01 | AG17: Central Middlesex Hospital - R1K02
L18: Telephone survey once patient is home | U18: Q71 | V18: RQM | W18: CHELSEA AND WESTMINSTER HOSPITAL NHS FOUNDATION TRUST | X18: RQM01 | Y18: Chelsea and Westminster Hospital - RQM01 | AA18: RBK | AB18: CAMBRIDGE UNIVERSITY HOSPITALS NHS FOUNDATION TRUST | AD18: RBK | AE18: CAMBRIDGE UNIVERSITY HOSPITALS NHS FOUNDATION TRUST | AF18: RAL01 | AG18: Chelsea and Westminster Hospital - RQM01
L19: Online survey once patient is home | U19: Q71 | V19: RQM | W19: CHELSEA AND WESTMINSTER HOSPITAL NHS FOUNDATION TRUST | X19: RQM91 | Y19: West Middlesex University Hospital - RQM91 | AA19: RBL | AB19: CENTRAL MANCHESTER UNIVERSITY HOSPITALS NHS FOUNDATION TRUST | AD19: RBL | AE19: CENTRAL MANCHESTER UNIVERSITY HOSPITALS NHS FOUNDATION TRUST | AF19: RAL26 | AG19: Cheltenham General Hospital - RTE01
L20: Other | U20: Q71 | V20: RJ6 | W20: CROYDON HEALTH SERVICES NHS TRUST | X20: RJ611 | Y20: Croydon University Hospital - RJ611 | AA20: RBN | AB20: CHELSEA AND WESTMINSTER HOSPITAL NHS FOUNDATION TRUST | AD20: RBN | AE20: CHELSEA AND WESTMINSTER HOSPITAL NHS FOUNDATION TRUST | AF20: RAPNM | AG20: Chesterfield Royal Hospital - RFSDA
U21: Q71 | V21: RVR | W21: EPSOM AND ST HELIER UNIVERSITY HOSPITALS NHS TRUST | X21: RVR50 | Y21: Epsom Hospital - RVR50 | AA21: RBT | AB21: CHESTERFIELD ROYAL HOSPITAL NHS FOUNDATION TRUST | AD21: RBT | AE21: CHESTERFIELD ROYAL HOSPITAL NHS FOUNDATION TRUST | AF21: RAS01 | AG21: Chippenham Community Hospital -RD102
U22: Q71 | V22: RVR | W22: EPSOM AND ST HELIER UNIVERSITY HOSPITALS NHS TRUST | X22: RVRXXX | Y22: Non-hospital site - RVRXXX | AA22: RBZ | AB22: CITY HOSPITALS SUNDERLAND NHS FOUNDATION TRUST | AD22: RBZ | AE22: CITY HOSPITALS SUNDERLAND NHS FOUNDATION TRUST | AF22: RAX01 | AG22: City Hospital - RXK02
U23: Q71 | V23: RVR | W23: EPSOM AND ST HELIER UNIVERSITY HOSPITALS NHS TRUST | X23: RVR05 | Y23: St Helier Hospital - RVR05 | AA23: RC1 | AB23: COLCHESTER HOSPITAL UNIVERSITY NHS FOUNDATION TRUST | AD23: RC1 | AE23: COLCHESTER HOSPITAL UNIVERSITY NHS FOUNDATION TRUST | AF23: RAXXXX | AG23: Colchester General Hospital - RDEE4
U24: Q71 | V24: RJ1 | W24: GUY'S AND ST THOMAS' NHS FOUNDATION TRUST | X24: RJ122 | Y24: St Thomas' Hospital - RJ122 | AA24: RC9 | AB24: COUNTESS OF CHESTER HOSPITAL NHS FOUNDATION TRUST | AD24: RC9 | AE24: COUNTESS OF CHESTER HOSPITAL NHS FOUNDATION TRUST | AF24: RBA11 | AG24: Conquest Hospital - RXC01
U25: Q71 | V25: RQX | W25: HOMERTON UNIVERSITY HOSPITAL NHS FOUNDATION TRUST | X25: RQXM1 | Y25: Homerton University Hospital - RQXM1 | AA25: RCB | AB25: COUNTY DURHAM AND DARLINGTON NHS FOUNDATION TRUST | AD25: RCB | AE25: COUNTY DURHAM AND DARLINGTON NHS FOUNDATION TRUST | AF25: RBAC3 | AG25: Countess Of Chester Hospital - RJR05
U26: Q71 | V26: RYJ | W26: IMPERIAL COLLEGE HEALTHCARE NHS TRUST | X26: RYJ04 | Y26: Queen Charlotte's Hospital - RYJ04 | AA26: RCD | AB26: CROYDON HEALTH SERVICES NHS TRUST | AD26: RCD | AE26: CROYDON HEALTH SERVICES NHS TRUST | AF26: RBAXXX | AG26: County Hospital - RJE09
U27: Q71 | V27: RYJ | W27: IMPERIAL COLLEGE HEALTHCARE NHS TRUST | X27: RYJ01 | Y27: St Mary's Hospital (HQ) - RYJ01 | AA27: RCF | AB27: DARTFORD AND GRAVESHAM NHS TRUST | AD27: RCF | AE27: DARTFORD AND GRAVESHAM NHS TRUST | AF27: RBD01 | AG27: Crowborough Birthing Centre - RXC14
U28: Q71 | V28: RJZ | W28: KING'S COLLEGE HOSPITAL NHS FOUNDATION TRUST | X28: RJZ01 | Y28: King's College Hospital (Denmark Hill) - RJZ01 | AA28: RCX | AB28: DERBY TEACHING HOSPITALS NHS FOUNDATION TRUST | AD28: RCX | AE28: DERBY TEACHING HOSPITALS NHS FOUNDATION TRUST | AF28: RBK02 | AG28: Croydon University Hospital - RJ611
U29: Q71 | V29: RJZ | W29: KING'S COLLEGE HOSPITAL NHS FOUNDATION TRUST | X29: RJZ30 | Y29: Princess Royal University Hospital - RJZ30 | AA29: RD1 | AB29: DONCASTER AND BASSETLAW TEACHING HOSPITALS NHS FOUNDATION TRUST | AD29: RD1 | AE29: DONCASTER AND BASSETLAW TEACHING HOSPITALS NHS FOUNDATION TRUST | AF29: RBL14 | AG29: Darent Valley Hospital - RN707
U30: Q71 | V30: RAX | W30: KINGSTON HOSPITAL NHS FOUNDATION TRUST | X30: RAX01 | Y30: Kingston Hospital - RAX01 | AA30: RD3 | AB30: DORSET COUNTY HOSPITAL NHS FOUNDATION TRUST | AD30: RD3 | AE30: DORSET COUNTY HOSPITAL NHS FOUNDATION TRUST | AF30: RBN01 | AG30: Derriford Hospital - RK950
U31: Q71 | V31: RAX | W31: KINGSTON HOSPITAL NHS FOUNDATION TRUST | X31: RAXXXX | Y31: Non-hospital site - RAXXXX | AA31: RD8 | AB31: EAST AND NORTH HERTFORDSHIRE NHS TRUST | AD31: RD8 | AE31: EAST AND NORTH HERTFORDSHIRE NHS TRUST | AF31: RBT20 | AG31: Dewsbury and District Hospital - RXF10
U32: Q71 | V32: RJ2 | W32: LEWISHAM AND GREENWICH NHS TRUST | X32: RJ2XXX | Y32: Non-hospital site - RJ2XXX | AA32: RDD | AB32: EAST CHESHIRE NHS TRUST | AD32: RDD | AE32: EAST CHESHIRE NHS TRUST | AF32: RBZ12 | AG32: Diana, Princess Of Wales Hospital - RJL30
U33: Q71 | V33: RJ2 | W33: LEWISHAM AND GREENWICH NHS TRUST | X33: RJ231 | Y33: Queen Elizabeth Hospital - RJ231 | AA33: RDE | AB33: EAST KENT HOSPITALS UNIVERSITY NHS FOUNDATION TRUST | AD33: RDE | AE33: EAST KENT HOSPITALS UNIVERSITY NHS FOUNDATION TRUST | AF33: RC110 | AG33: Doncaster Royal Infirmary - RP5DR
U34: Q71 | V34: RJ2 | W34: LEWISHAM AND GREENWICH NHS TRUST | X34: RJ224 | Y34: University Hospital Lewisham - RJ224 | AA34: RDU | AB34: EAST LANCASHIRE HOSPITALS NHS TRUST | AD34: RDU | AE34: EAST LANCASHIRE HOSPITALS NHS TRUST | AF34: RC971 | AG34: Dorset County Hospital - RBD01
U35: Q71 | V35: R1K | W35: LONDON NORTH WEST HEALTHCARE NHS TRUST | X35: R1K02 | Y35: Central Middlesex Hospital - R1K02 | AA35: RDZ | AB35: EAST SUSSEX HEALTHCARE NHS TRUST | AD35: RDZ | AE35: EAST SUSSEX HEALTHCARE NHS TRUST | AF35: RCB55 | AG35: Ealing Hospital - R1K04
U36: Q71 | V36: R1K | W36: LONDON NORTH WEST HEALTHCARE NHS TRUST | X36: R1K04 | Y36: Ealing Hospital - R1K04 | AA36: RE9 | AB36: EPSOM AND ST HELIER UNIVERSITY HOSPITALS NHS TRUST | AD36: RE9 | AE36: EPSOM AND ST HELIER UNIVERSITY HOSPITALS NHS TRUST | AF36: RCBCA | AG36: East Surrey Hospital - RTP04
